Workbook

Sheet MENU

Sheet MENU1
F11: SEGÚN CANTÓN Y DISTRITO
A12: POR CANTÓN
B14: ALCALDÍAS

Sheet MENU2
F11: SEGÚN CANTÓN Y DISTRITO
A12: POR CANTÓN
B14: ALCALDÍAS

Sheet MENU3
G10: CANDIDATURAS PROPUESTAS
B14: ALCALDÍAS

Sheet 1.1
A1: CUADRO 1.1 COSTA RICA: CANDIDATOS(AS) PROPUESTOS(AS) EN PROPIEDAD Y SUPLENCIA
A2: POR SEXO, SEGÚN TIPO DE CANDIDATURA, ELECCIONES DICIEMBRE 2010
A3: (cifras absolutas y relativas)
A5: TIPO DE CANDIDATURA | B5: TOTAL | G5: EN PROPIEDAD | L5: EN SUPLENCIA
B6: TOTAL | C6: MUJERES | E6: HOMBRES | G6: TOTAL | H6: MUJERES | J6: HOMBRES | L6: TOTAL | M6: MUJERES | O6: HOMBRES
C7: Absoluto | D7: % | E7: Absoluto | F7: % | H7: Absoluto | I7: % | J7: Absoluto | K7: % | M7: Absoluto | N7: % | O7: Absoluto | P7: %
A9: TOTAL | B9: =SUM(B11:B18) -> 15858 | C9: =SUM(C11:C18) -> 7794 | D9: =+C9/$B9*100 -> 49.14869467 | E9: 8064 | F9: =+E9/$B9*100 -> 50.85130533 | G9: 8507 | H9: 3901 | I9: =+H9/$G9*100 -> 45.85635359 | J9: 4606 | K9: =+J9/$G9*100 -> 54.14364641 | L9: 7351 | M9: 3893 | N9: =+M9/$L9*100 -> 52.95878112 | O9: 3458 | P9: =+O9/$L9*100 -> 47.04121888
A11: ALACALDE(SA) | B11: =+G11+L11 -> 339 | C11: 49 | D11: =+C11/$B11*100 -> 14.45427729 | E11: =+J11+O11 -> 290 | F11: =+E11/$B11*100 -> 85.54572271 | G11: =+H11+J11 -> 339 | H11: 49 | I11: =+H11/$G11*100 -> 14.45427729 | J11: 290 | K11: =+J11/$G11*100 -> 85.54572271 | L11: =+M11+O11 -> 0 | M11: 0 | N11: 0 | O11: 0 | P11: 0
A12: VICEALCALDE(SA) PRIMERO(A) | B12: 338 | C12: 289 | D12: 85.50295858 | E12: 49 | F12: 14.49704142 | G12: 338 | H12: 289 | I12: =+H12/$G12*100 -> 85.50295858 | J12: 49 | K12: =+J12/$G12*100 -> 14.49704142 | L12: 0 | M12: 0 | N12: 0 | O12: 0 | P12: 0
A13: VICEALCALDE(SA) SEGUNDO(A) | B13: 331 | C13: 73 | D13: 22.05438066 | E13: 258 | F13: 77.94561934 | G13: 0 | H13: 0 | I13: 0 | J13: 0 | K13: 0 | L13: 331 | M13: 73 | N13: =+M13/$L13*100 -> 22.05438066 | O13: 258 | P13: =+O13/$L13*100 -> 77.94561934
A14: CONCEJAL DE DISTRITO | B14: 11000 | C14: 5475 | D14: 49.77272727 | E14: 5525 | F14: 50.22727273 | G14: 5825 | H14: 2886 | I14: =+H14/$G14*100 -> 49.54506438 | J14: 2939 | K14: =+J14/$G14*100 -> 50.45493562 | L14: 5175 | M14: 2589 | N14: =+M14/$L14*100 -> 50.02898551 | O14: 2586 | P14: =+O14/$L14*100 -> 49.97101449
A15: CONCEJAL MUNICIPAL DE DISTRITO | B15: 211 | C15: 100 | D15: 47.39336493 | E15: 111 | F15: 52.60663507 | G15: 107 | H15: 50 | I15: =+H15/$G15*100 -> 46.72897196 | J15: 57 | K15: =+J15/$G15*100 -> 53.27102804 | L15: 104 | M15: 50 | N15: =+M15/$L15*100 -> 48.07692308 | O15: 54 | P15: =+O15/$L15*100 -> 51.92307692
A16: INTENDENTE | B16: 30 | C16: 5 | D16: 16.66666667 | E16: 25 | F16: 83.33333333 | G16: 30 | H16: 5 | I16: =+H16/$G16*100 -> 16.66666667 | J16: 25 | K16: =+J16/$G16*100 -> 83.33333333 | L16: 0 | M16: 0 | N16: 0 | O16: 0 | P16: 0
A17: VICEINTENDENTE | B17: 31 | C17: 26 | D17: 83.87096774 | E17: 5 | F17: 16.12903226 | G17: 31 | H17: 26 | I17: =+H17/$G17*100 -> 83.87096774 | J17: 5 | K17: =+J17/$G17*100 -> 16.12903226 | L17: 0 | M17: 0 | N17: 0 | O17: 0 | P17: 0
A18: SÍNDICO(A) | B18: 3578 | C18: 1777 | D18: 49.6646171 | E18: 1801 | F18: 50.3353829 | G18: 1837 | H18: 596 | I18: =+H18/$G18*100 -> 32.4442025 | J18: 1241 | K18: =+J18/$G18*100 -> 67.5557975 | L18: 1741 | M18: 1181 | N18: =+M18/$L18*100 -> 67.83457783 | O18: 560 | P18: =+O18/$L18*100 -> 32.16542217
A21: Fuente: Tribunal Supremo de Elecciones.

Sheet 1.2
A1: CUADRO 1.2 COSTA RICA: CANDIDATOS(AS) A ALCALDES(AS), SÍNDICOS(AS) PROPIETARIOS(AS), CONCEJALES PROPIETARIOS(AS) E INTENDENTES
A2: POR SEXO, SEGÚN PARTIDO POLÍTICO, ELECCIONES DICIEMBRE 2010
A3: (cifras absolutas y relativas)
A5: PARTIDO POLÍTICO | B5: ALCALDES(AS) | G5: SÍNDICOS(AS) PROPIETARIOS(AS) | L5: CONCEJALES PROPIETARIOS(AS) 1/ | Q5: INTENDENTES
B6: TOTAL | C6: MUJERES | E6: HOMBRES | G6: TOTAL | H6: MUJERES | J6: HOMBRES | L6: TOTAL | M6: MUJERES | O6: HOMBRES | Q6: TOTAL | R6: MUJERES | T6: HOMBRES
C7: Absoluto | D7: % | E7: Absoluto | F7: % | H7: Absoluto | I7: % | J7: Absoluto | K7: % | M7: Absoluto | N7: % | O7: Absoluto | P7: % | R7: Absoluto | S7: % | T7: Absoluto | U7: %
A9: TOTAL | B9: =SUM(B10:B56) -> 339 | C9: =SUM(C10:C56) -> 49 | D9: =+C9/$B9*100 -> 14.45427729 | E9: =SUM(E10:E56) -> 290 | F9: =+E9/$B9*100 -> 85.54572271 | G9: =SUM(G10:G56) -> 1837 | H9: =SUM(H10:H56) -> 596 | I9: =+H9/$G9*100 -> 32.4442025 | J9: =SUM(J10:J56) -> 1241 | K9: =+J9/$G9*100 -> 67.5557975 | L9: =SUM(L10:L56) -> 5932 | M9: =SUM(M10:M56) -> 2936 | N9: =+M9/$L9*100 -> 49.49426837 | O9: =SUM(O10:O56) -> 2996 | P9: =+O9/$L9*100 -> 50.50573163 | Q9: =SUM(Q10:Q56) -> 30 | R9: =SUM(R10:R56) -> 5 | S9: =+R9/$Q9*100 -> 16.66666667 | T9: =SUM(T10:T56) -> 25 | U9: =+T9/$Q9*100 -> 83.33333333
A10: ACCESIBILIDAD SIN EXCLUSIÓN | B10: =+C10+E10 -> 17 | C10: 3 | D10: =+C10/$B10*100 -> 17.64705882 | E10: 14 | F10: =+E10/$B10*100 -> 82.35294118 | G10: =+H10+J10 -> 97 | H10: 38 | I10: =+H10/$G10*100 -> 39.17525773 | J10: 59 | K10: =+J10/$G10*100 -> 60.82474227 | L10: =+M10+O10 -> 239 | M10: 116 | N10: =+M10/$L10*100 -> 48.53556485 | O10: 123 | P10: =+O10/$L10*100 -> 51.46443515 | Q10: =+R10+T10 -> 3 | R10: 0 | S10: =+R10/$Q10*100 -> 0 | T10: 3 | U10: =+T10/$Q10*100 -> 100
A11: ACCIÓN CANTONAL SIQUIRRES INDEPENDIENTE | B11: 1 | C11: 0 | D11: 0 | E11: 1 | F11: 100 | G11: 6 | H11: 1 | I11: 16.66666667 | J11: 5 | K11: 83.33333333 | L11: 20 | M11: 10 | N11: 50 | O11: 10 | P11: 50 | Q11: 0 | R11: 0 | S11: 0 | T11: 0 | U11: 0
A12: ACCIÓN CIUDADANA | B12: 51 | C12: 13 | D12: 25.49019608 | E12: 38 | F12: 74.50980392 | G12: 270 | H12: 98 | I12: 36.2962963 | J12: 172 | K12: 63.7037037 | L12: 851 | M12: 418 | N12: 49.1186839 | O12: 433 | P12: 50.8813161 | Q12: 3 | R12: 1 | S12: =+R12/$Q12*100 -> 33.33333333 | T12: 2 | U12: =+T12/$Q12*100 -> 66.66666667
A13: ACCIÓN NARANJEÑA | B13: 1 | C13: 0 | D13: 0 | E13: 1 | F13: 100 | G13: 7 | H13: 0 | I13: 0 | J13: 7 | K13: 100 | L13: 0 | M13: 0 | N13: 0 | O13: 0 | P13: 0 | Q13: 0 | R13: 0 | S13: 0 | T13: 0 | U13: 0
A14: ACCIÓN QUEPEÑA | B14: 1 | C14: 0 | D14: 0 | E14: 1 | F14: 100 | G14: 3 | H14: 3 | I14: 100 | J14: 0 | K14: 0 | L14: 9 | M14: 4 | N14: 44.44444444 | O14: 5 | P14: 55.55555556 | Q14: 0 | R14: 0 | S14: 0 | T14: 0 | U14: 0
A15: ACUERDO CANTONAL DESAMPARADEÑO | B15: 1 | C15: 0 | D15: 0 | E15: 1 | F15: 100 | G15: 13 | H15: 7 | I15: 53.84615385 | J15: 6 | K15: 46.15384615 | L15: 52 | M15: 26 | N15: 50 | O15: 26 | P15: 50 | Q15: 0 | R15: 0 | S15: 0 | T15: 0 | U15: 0
A16: ALIANZA PATRIÓTICA | B16: 5 | C16: 1 | D16: 20 | E16: 4 | F16: 80 | G16: 18 | H16: 2 | I16: 11.11111111 | J16: 16 | K16: 88.88888889 | L16: 44 | M16: 24 | N16: 54.54545455 | O16: 20 | P16: 45.45454545 | Q16: 0 | R16: 0 | S16: 0 | T16: 0 | U16: 0
A17: AUTÉNTICO LABRADOR DE CORONADO | B17: 0 | C17: 0 | D17: 0 | E17: 0 | F17: 0 | G17: 4 | H17: 2 | I17: 50 | J17: 2 | K17: 50 | L17: 11 | M17: 5 | N17: 45.45454545 | O17: 6 | P17: 54.54545455 | Q17: 0 | R17: 0 | S17: 0 | T17: 0 | U17: 0
A18: AUTÓNOMO OROMONTANO | B18: 1 | C18: 0 | D18: 0 | E18: 1 | F18: 100 | G18: 2 | H18: 0 | I18: 0 | J18: 2 | K18: 100 | L18: 11 | M18: 5 | N18: 45.45454545 | O18: 6 | P18: 54.54545455 | Q18: 0 | R18: 0 | S18: 0 | T18: 0 | U18: 0
A19: CÍVICO DE TIBÁS FUENTEOVEJUNA | B19: 1 | C19: 0 | D19: 0 | E19: 1 | F19: 100 | G19: 5 | H19: 2 | I19: 40 | J19: 3 | K19: 60 | L19: 7 | M19: 3 | N19: 42.85714286 | O19: 4 | P19: 57.14285714 | Q19: 0 | R19: 0 | S19: 0 | T19: 0 | U19: 0
A20: COALICIÓN BARVA UNIDA | B20: 1 | C20: 0 | D20: 0 | E20: 1 | F20: 100 | G20: 5 | H20: 3 | I20: 60 | J20: 2 | K20: 40 | L20: 16 | M20: 8 | N20: 50 | O20: 8 | P20: 50 | Q20: 0 | R20: 0 | S20: 0 | T20: 0 | U20: 0
A21: COALICIÓN CARTAGO UNIDO | B21: 1 | C21: 0 | D21: 0 | E21: 1 | F21: 100 | G21: 11 | H21: 2 | I21: 18.18181818 | J21: 9 | K21: 81.81818182 | L21: 44 | M21: 22 | N21: 50 | O21: 22 | P21: 50 | Q21: 0 | R21: 0 | S21: 0 | T21: 0 | U21: 0
A22: COALICIÓN MONTES DE OCA UNIDA | B22: 1 | C22: 0 | D22: 0 | E22: 1 | F22: 100 | G22: 4 | H22: 3 | I22: 75 | J22: 1 | K22: 25 | L22: 14 | M22: 8 | N22: 57.14285714 | O22: 6 | P22: 42.85714286 | Q22: 0 | R22: 0 | S22: 0 | T22: 0 | U22: 0
A23: COALICIÓN PARTIDO ALIANZA ZARCEREÑA | B23: 1 | C23: 0 | D23: 0 | E23: 1 | F23: 100 | G23: 7 | H23: 2 | I23: 28.57142857 | J23: 5 | K23: 71.42857143 | L23: 27 | M23: 14 | N23: 51.85185185 | O23: 13 | P23: 48.14814815 | Q23: 0 | R23: 0 | S23: 0 | T23: 0 | U23: 0
A24: COALICIÓN RAMONENSE | B24: 1 | C24: 0 | D24: 0 | E24: 1 | F24: 100 | G24: 13 | H24: 1 | I24: 7.692307692 | J24: 12 | K24: 92.30769231 | L24: 43 | M24: 21 | N24: 48.8372093 | O24: 22 | P24: 51.1627907 | Q24: 0 | R24: 0 | S24: 0 | T24: 0 | U24: 0
A25: COALICIÓN UNIDOS POR SAN CARLOS | B25: 1 | C25: 0 | D25: 0 | E25: 1 | F25: 100 | G25: 13 | H25: 2 | I25: 15.38461538 | J25: 11 | K25: 84.61538462 | L25: 51 | M25: 25 | N25: 49.01960784 | O25: 26 | P25: 50.98039216 | Q25: 0 | R25: 0 | S25: 0 | T25: 0 | U25: 0
A26: COALICIÓN UNIÓN LIBERIANA | B26: 1 | C26: 0 | D26: 0 | E26: 1 | F26: 100 | G26: 5 | H26: 2 | I26: 40 | J26: 3 | K26: 60 | L26: 15 | M26: 9 | N26: 60 | O26: 6 | P26: 40 | Q26: 0 | R26: 0 | S26: 0 | T26: 0 | U26: 0
A27: CURRIDABAT SIGLO XXI | B27: 1 | C27: 0 | D27: 0 | E27: 1 | F27: 100 | G27: 4 | H27: 2 | I27: 50 | J27: 2 | K27: 50 | L27: 16 | M27: 8 | N27: 50 | O27: 8 | P27: 50 | Q27: 0 | R27: 0 | S27: 0 | T27: 0 | U27: 0
A28: DEL SOL | B28: 1 | C28: 0 | D28: 0 | E28: 1 | F28: 100 | G28: 6 | H28: 3 | I28: 50 | J28: 3 | K28: 50 | L28: 23 | M28: 11 | N28: 47.82608696 | O28: 12 | P28: 52.17391304 | Q28: 0 | R28: 0 | S28: 0 | T28: 0 | U28: 0
A29: EL PUENTE Y LOS CAMINOS DE MORA | B29: 1 | C29: 1 | D29: 100 | E29: 0 | F29: 0 | G29: 5 | H29: 2 | I29: 40 | J29: 3 | K29: 60 | L29: 19 | M29: 10 | N29: 52.63157895 | O29: 9 | P29: 47.36842105 | Q29: 0 | R29: 0 | S29: 0 | T29: 0 | U29: 0
A30: FRENTE AMPLIO | B30: 8 | C30: 1 | D30: 12.5 | E30: 7 | F30: 87.5 | G30: 38 | H30: 10 | I30: 26.31578947 | J30: 28 | K30: 73.68421053 | L30: 89 | M30: 45 | N30: 50.56179775 | O30: 44 | P30: 49.43820225 | Q30: 0 | R30: 0 | S30: 0 | T30: 0 | U30: 0
A31: GARABITO ECOLÓGICO | B31: 1 | C31: 0 | D31: 0 | E31: 1 | F31: 100 | G31: 1 | H31: 0 | I31: 0 | J31: 1 | K31: 100 | L31: 7 | M31: 3 | N31: 42.85714286 | O31: 4 | P31: 57.14285714 | Q31: 0 | R31: 0 | S31: 0 | T31: 0 | U31: 0
A32: GOICOECHEA EN ACCIÓN | B32: 1 | C32: 0 | D32: 0 | E32: 1 | F32: 100 | G32: 7 | H32: 4 | I32: 57.14285714 | J32: 3 | K32: 42.85714286 | L32: 24 | M32: 12 | N32: 50 | O32: 12 | P32: 50 | Q32: 0 | R32: 0 | S32: 0 | T32: 0 | U32: 0
A33: INDEPENDIENTE BELEMITA | B33: 1 | C33: 0 | D33: 0 | E33: 1 | F33: 100 | G33: 3 | H33: 0 | I33: 0 | J33: 3 | K33: 100 | L33: 9 | M33: 5 | N33: 55.55555556 | O33: 4 | P33: 44.44444444 | Q33: 0 | R33: 0 | S33: 0 | T33: 0 | U33: 0
A34: INTEGRACIÓN BARBAREÑA | B34: 1 | C34: 0 | D34: 0 | E34: 1 | F34: 100 | G34: 6 | H34: 3 | I34: 50 | J34: 3 | K34: 50 | L34: 0 | M34: 0 | N34: 0 | O34: 0 | P34: 0 | Q34: 0 | R34: 0 | S34: 0 | T34: 0 | U34: 0
A35: INTEGRACIÓN NACIONAL | B35: 12 | C35: 1 | D35: 8.333333333 | E35: 11 | F35: 91.66666667 | G35: 53 | H35: 15 | I35: 28.30188679 | J35: 38 | K35: 71.69811321 | L35: 140 | M35: 65 | N35: 46.42857143 | O35: 75 | P35: 53.57142857 | Q35: 0 | R35: 0 | S35: 0 | T35: 0 | U35: 0
A36: LIBERACIÓN NACIONAL | B36: 81 | C36: 14 | D36: 17.28395062 | E36: 67 | F36: 82.71604938 | G36: 468 | H36: 122 | I36: 26.06837607 | J36: 346 | K36: 73.93162393 | L36: 1782 | M36: 889 | N36: 49.88776655 | O36: 893 | P36: 50.11223345 | Q36: 8 | R36: 0 | S36: =+R36/$Q36*100 -> 0 | T36: 8 | U36: =+T36/$Q36*100 -> 100
A37: MOVIMIENTO AVANCE SANTO DOMINGO | B37: 1 | C37: 0 | D37: 0 | E37: 1 | F37: 100 | G37: 8 | H37: 3 | I37: 37.5 | J37: 5 | K37: 62.5 | L37: 24 | M37: 12 | N37: 50 | O37: 12 | P37: 50 | Q37: 0 | R37: 0 | S37: 0 | T37: 0 | U37: 0
A38: MOVIMIENTO DE TRABAJADORES Y CAMPESINOS | B38: 1 | C38: 0 | D38: 0 | E38: 1 | F38: 100 | G38: 4 | H38: 0 | I38: 0 | J38: 4 | K38: 100 | L38: 11 | M38: 6 | N38: 54.54545455 | O38: 5 | P38: 45.45454545 | Q38: 0 | R38: 0 | S38: 0 | T38: 0 | U38: 0
A39: MOVIMIENTO LIBERTARIO | B39: 54 | C39: 5 | D39: 9.259259259 | E39: 49 | F39: 90.74074074 | G39: 289 | H39: 102 | I39: 35.29411765 | J39: 187 | K39: 64.70588235 | L39: 903 | M39: 445 | N39: 49.28017719 | O39: 458 | P39: 50.71982281 | Q39: 7 | R39: 2 | S39: =+R39/$Q39*100 -> 28.57142857 | T39: 5 | U39: =+T39/$Q39*100 -> 71.42857143
A40: ORGANIZACIÓN LABORISTA DE AGUIRRE | B40: 1 | C40: 0 | D40: 0 | E40: 1 | F40: 100 | G40: 3 | H40: 0 | I40: 0 | J40: 3 | K40: 100 | L40: 11 | M40: 6 | N40: 54.54545455 | O40: 5 | P40: 45.45454545 | Q40: 0 | R40: 0 | S40: 0 | T40: 0 | U40: 0
A41: ORGANIZACIÓN SOCIAL ACTIVA | B41: 1 | C41: 0 | D41: 0 | E41: 1 | F41: 100 | G41: 5 | H41: 2 | I41: 40 | J41: 3 | K41: 60 | L41: 19 | M41: 9 | N41: 47.36842105 | O41: 10 | P41: 52.63157895 | Q41: 0 | R41: 0 | S41: 0 | T41: 0 | U41: 0
A42: RENOVACIÓN COSTARRICENSE | B42: 19 | C42: 1 | D42: 5.263157895 | E42: 18 | F42: 94.73684211 | G42: 86 | H42: 35 | I42: 40.69767442 | J42: 51 | K42: 59.30232558 | L42: 289 | M42: 145 | N42: 50.17301038 | O42: 144 | P42: 49.82698962 | Q42: 0 | R42: 0 | S42: 0 | T42: 0 | U42: 0
A43: RENOVEMOS ALAJUELA | B43: 1 | C43: 0 | D43: 0 | E43: 1 | F43: 100 | G43: 14 | H43: 5 | I43: 35.71428571 | J43: 9 | K43: 64.28571429 | L43: 51 | M43: 23 | N43: 45.09803922 | O43: 28 | P43: 54.90196078 | Q43: 0 | R43: 0 | S43: 0 | T43: 0 | U43: 0
A44: RESTAURACIÓN HEREDIANA | B44: 2 | C44: 0 | D44: 0 | E44: 2 | F44: 100 | G44: 9 | H44: 5 | I44: 55.55555556 | J44: 4 | K44: 44.44444444 | L44: 21 | M44: 12 | N44: 57.14285714 | O44: 9 | P44: 42.85714286 | Q44: 0 | R44: 0 | S44: 0 | T44: 0 | U44: 0
A45: TALAMANCA UNIDA | B45: 1 | C45: 0 | D45: 0 | E45: 1 | F45: 100 | G45: 4 | H45: 2 | I45: 50 | J45: 2 | K45: 50 | L45: 5 | M45: 1 | N45: 20 | O45: 4 | P45: 80 | Q45: 0 | R45: 0 | S45: 0 | T45: 0 | U45: 0
A46: TARRAZÚ PRIMERO | B46: 1 | C46: 0 | D46: 0 | E46: 1 | F46: 100 | G46: 3 | H46: 2 | I46: 66.66666667 | J46: 1 | K46: 33.33333333 | L46: 11 | M46: 5 | N46: 45.45454545 | O46: 6 | P46: 54.54545455 | Q46: 0 | R46: 0 | S46: 0 | T46: 0 | U46: 0
A47: TODO POR FLORES | B47: 1 | C47: 0 | D47: 0 | E47: 1 | F47: 100 | G47: 3 | H47: 2 | I47: 66.66666667 | J47: 1 | K47: 33.33333333 | L47: 12 | M47: 6 | N47: 50 | O47: 6 | P47: 50 | Q47: 0 | R47: 0 | S47: 0 | T47: 0 | U47: 0
A48: TRANSPARENCIA CARTAGINÉS | B48: 1 | C48: 1 | D48: 100 | E48: 0 | F48: 0 | G48: 5 | H48: 5 | I48: 100 | J48: 0 | K48: 0 | L48: 0 | M48: 0 | N48: 0 | O48: 0 | P48: 0 | Q48: 0 | R48: 0 | S48: 0 | T48: 0 | U48: 0
A49: ÚNICO ABANGAREÑO | B49: 1 | C49: 0 | D49: 0 | E49: 1 | F49: 100 | G49: 4 | H49: 2 | I49: 50 | J49: 2 | K49: 50 | L49: 16 | M49: 8 | N49: 50 | O49: 8 | P49: 50 | Q49: 1 | R49: 1 | S49: =+R49/$Q49*100 -> 100 | T49: 0 | U49: =+T49/$Q49*100 -> 0
A50: UNIDAD SOCIAL CRISTIANA | B50: 53 | C50: 7 | D50: 13.20754717 | E50: 46 | F50: 86.79245283 | G50: 291 | H50: 91 | I50: 31.27147766 | J50: 200 | K50: 68.72852234 | L50: 890 | M50: 441 | N50: 49.5505618 | O50: 449 | P50: 50.4494382 | Q50: 7 | R50: 1 | S50: =+R50/$Q50*100 -> 14.28571429 | T50: 6 | U50: =+T50/$Q50*100 -> 85.71428571
A51: UNIÓN AGRÍCOLA CARTAGINÉS | B51: 2 | C51: 0 | D51: 0 | E51: 2 | F51: 100 | G51: 8 | H51: 1 | I51: 12.5 | J51: 7 | K51: 87.5 | L51: 32 | M51: 16 | N51: 50 | O51: 16 | P51: 50 | Q51: 1 | R51: 0 | S51: =+R51/$Q51*100 -> 0 | T51: 1 | U51: =+T51/$Q51*100 -> 100
A52: UNIÓN ATENIENSE | B52: 1 | C52: 1 | D52: 100 | E52: 0 | F52: 0 | G52: 8 | H52: 1 | I52: 12.5 | J52: 7 | K52: 87.5 | L52: 27 | M52: 13 | N52: 48.14814815 | O52: 14 | P52: 51.85185185 | Q52: 0 | R52: 0 | S52: 0 | T52: 0 | U52: 0
A53: UNIÓN PALMAREÑA | B53: 1 | C53: 0 | D53: 0 | E53: 1 | F53: 100 | G53: 6 | H53: 2 | I53: 33.33333333 | J53: 4 | K53: 66.66666667 | L53: 28 | M53: 14 | N53: 50 | O53: 14 | P53: 50 | Q53: 0 | R53: 0 | S53: 0 | T53: 0 | U53: 0
A54: UNIÓN POASEÑA | B54: 1 | C54: 0 | D54: 0 | E54: 1 | F54: 100 | G54: 5 | H54: 3 | I54: 60 | J54: 2 | K54: 40 | L54: 8 | M54: 3 | N54: 37.5 | O54: 5 | P54: 62.5 | Q54: 0 | R54: 0 | S54: 0 | T54: 0 | U54: 0
A55: VERDE ECOLOGISTA | B55: 1 | C55: 0 | D55: 0 | E55: 1 | F55: 100 | G55: 5 | H55: 4 | I55: 80 | J55: 1 | K55: 20 | L55: 0 | M55: 0 | N55: 0 | O55: 0 | P55: 0 | Q55: 0 | R55: 0 | S55: 0 | T55: 0 | U55: 0
A56: YUNTA PROGRESISTA ESCAZUCEÑA | B56: 1 | C56: 0 | D56: 0 | E56: 1 | F56: 100 | G56: 3 | H56: 0 | I56: 0 | J56: 3 | K56: 100 | L56: 11 | M56: 5 | N56: 45.45454545 | O56: 6 | P56: 54.54545455 | Q56: 0 | R56: 0 | S56: 0 | T56: 0 | U56: 0
A59: 1/ Incluye Concejales de Distrito y Concejales Municipales de Distrito.

Sheet 1.3
A1: CUADRO 1.3 COSTA RICA: CANDIDATOS(AS) A ALCALDES(AS), SÍNDICOS(AS) PROPIETARIOS(AS), CONCEJALES PROPIETARIOS(AS) E INTENDENTES
A2: POR SEXO,SEGÚN GRUPOS DE EDAD, ELECCIONES DICIEMBRE 2010
A3: (cifras absolutas y relativas)
A5: GRUPOS DE EDAD | B5: ALCALDES(AS) | G5: SÍNDICOS(AS) PROPIETARIOS(AS) | L5: CONCEJALES PROPIETARIOS(AS) 1/ | Q5: INTENDENTES
B6: TOTAL | C6: MUJERES | E6: HOMBRES | G6: TOTAL | H6: MUJERES | J6: HOMBRES | L6: TOTAL | M6: MUJERES | O6: HOMBRES | Q6: TOTAL | R6: MUJERES | T6: HOMBRES
C7: Absoluto | D7: % | E7: Absoluto | F7: % | H7: Absoluto | I7: % | J7: Absoluto | K7: % | M7: Absoluto | N7: % | O7: Absoluto | P7: % | R7: Absoluto | S7: % | T7: Absoluto | U7: %
A9: TOTAL | B9: =SUM(B10:B23) -> 339 | C9: =SUM(C10:C23) -> 49 | D9: =+C9/$B9*100 -> 14.45427729 | E9: =SUM(E10:E23) -> 290 | F9: =+E9/$B9*100 -> 85.54572271 | G9: =SUM(G10:G23) -> 1837 | H9: =SUM(H10:H23) -> 596 | I9: =+H9/$G9*100 -> 32.4442025 | J9: =SUM(J10:J23) -> 1241 | K9: =+J9/$G9*100 -> 67.5557975 | L9: =SUM(L10:L23) -> 5932 | M9: =SUM(M10:M23) -> 2936 | N9: =+M9/$L9*100 -> 49.49426837 | O9: =SUM(O10:O23) -> 2996 | P9: =+O9/$L9*100 -> 50.50573163 | Q9: =SUM(Q10:Q23) -> 30 | R9: =SUM(R10:R23) -> 5 | S9: =+R9/$Q9*100 -> 16.66666667 | T9: =SUM(T10:T23) -> 25 | U9: =+T9/$Q9*100 -> 83.33333333
A10: MENOS DE 25 AÑOS | B10: =+C10+E10 -> 2 | C10: 2 | D10: 100 | E10: 0 | F10: 0 | G10: =+H10+J10 -> 62 | H10: 26 | I10: 41.93548387 | J10: 36 | K10: 58.06451613 | L10: =+M10+O10 -> 405 | M10: 214 | N10: 52.83950617 | O10: 191 | P10: 47.16049383 | Q10: =+R10+T10 -> 1 | R10: 0 | S10: =+R10/$Q10*100 -> 0 | T10: 1 | U10: 100
A11: DE 25 A 29 AÑOS | B11: 4 | C11: 1 | D11: 25 | E11: 3 | F11: 75 | G11: 69 | H11: 23 | I11: 33.33333333 | J11: 46 | K11: 66.66666667 | L11: =+M11+O11 -> 515 | M11: 293 | N11: 56.89320388 | O11: 222 | P11: 43.10679612 | Q11: 1 | R11: 0 | S11: 0 | T11: 1 | U11: 100
A12: DE 30 A 34 AÑOS | B12: 12 | C12: 1 | D12: 8.333333333 | E12: 11 | F12: 91.66666667 | G12: 113 | H12: 45 | I12: 39.82300885 | J12: 68 | K12: 60.17699115 | L12: 591 | M12: 346 | N12: 58.54483926 | O12: 245 | P12: 41.45516074 | Q12: 2 | R12: 0 | S12: 0 | T12: 2 | U12: 100
A13: DE 35 A 39 AÑOS | B13: 20 | C13: 5 | D13: 25 | E13: 15 | F13: 75 | G13: 171 | H13: 59 | I13: 34.50292398 | J13: 112 | K13: 65.49707602 | L13: 673 | M13: 394 | N13: 58.54383358 | O13: 279 | P13: 41.45616642 | Q13: 2 | R13: 0 | S13: 0 | T13: 2 | U13: 100
A14: DE 40 A 44 AÑOS | B14: 51 | C14: 9 | D14: 17.64705882 | E14: 42 | F14: 82.35294118 | G14: 250 | H14: 101 | I14: 40.4 | J14: 149 | K14: 59.6 | L14: 811 | M14: 423 | N14: 52.15782984 | O14: 388 | P14: 47.84217016 | Q14: 5 | R14: 1 | S14: 20 | T14: 4 | U14: 80
A15: DE 45 A 49 AÑOS | B15: 70 | C15: 12 | D15: 17.14285714 | E15: 58 | F15: 82.85714286 | G15: 330 | H15: 121 | I15: 36.66666667 | J15: 209 | K15: 63.33333333 | L15: 877 | M15: 421 | N15: 48.004561 | O15: 456 | P15: 51.995439 | Q15: 7 | R15: 0 | S15: 0 | T15: 7 | U15: 100
A16: DE 50 A 54 AÑOS | B16: 94 | C16: 10 | D16: 10.63829787 | E16: 84 | F16: 89.36170213 | G16: 328 | H16: 90 | I16: 27.43902439 | J16: 238 | K16: 72.56097561 | L16: 759 | M16: 355 | N16: 46.77206851 | O16: 404 | P16: 53.22793149 | Q16: 5 | R16: 2 | S16: =+R16/$Q16*100 -> 40 | T16: 3 | U16: 60
A17: DE 55 A 59 AÑOS | B17: 49 | C17: 5 | D17: 10.20408163 | E17: 44 | F17: 89.79591837 | G17: 229 | H17: 73 | I17: 31.87772926 | J17: 156 | K17: 68.12227074 | L17: 548 | M17: 233 | N17: 42.51824818 | O17: 315 | P17: 57.48175182 | Q17: 4 | R17: 2 | S17: =+R17/$Q17*100 -> 50 | T17: 2 | U17: 50
A18: DE 60 A 64 AÑOS | B18: 21 | C18: 3 | D18: 14.28571429 | E18: 18 | F18: 85.71428571 | G18: 137 | H18: 32 | I18: 23.35766423 | J18: 105 | K18: 76.64233577 | L18: 394 | M18: 163 | N18: 41.37055838 | O18: 231 | P18: 58.62944162 | Q18: 3 | R18: 0 | S18: 0 | T18: 3 | U18: 100
A19: DE 65 A 69 AÑOS | B19: 11 | C19: 1 | D19: 9.090909091 | E19: 10 | F19: 90.90909091 | G19: 93 | H19: 13 | I19: 13.97849462 | J19: 80 | K19: 86.02150538 | L19: 202 | M19: 61 | N19: 30.1980198 | O19: 141 | P19: 69.8019802 | Q19: 0 | R19: 0 | S19: 0 | T19: 0 | U19: 0
A20: DE 70 A 74 AÑOS | B20: 4 | C20: 0 | D20: 0 | E20: 4 | F20: 100 | G20: 41 | H20: 9 | I20: 21.95121951 | J20: 32 | K20: 78.04878049 | L20: 94 | M20: 18 | N20: 19.14893617 | O20: 76 | P20: 80.85106383 | Q20: 0 | R20: 0 | S20: 0 | T20: 0 | U20: 0
A21: DE 75 A 79 AÑOS | B21: 1 | C21: 0 | D21: 0 | E21: 1 | F21: 100 | G21: 12 | H21: 3 | I21: 25 | J21: 9 | K21: 75 | L21: 43 | M21: 5 | N21: 11.62790698 | O21: 38 | P21: 88.37209302 | Q21: 0 | R21: 0 | S21: 0 | T21: 0 | U21: 0
A22: DE 80 A 84 AÑOS | C22: 0 | D22: 0 | E22: 0 | F22: 0 | G22: 2 | H22: 1 | I22: 0 | J22: 1 | K22: 0 | L22: 19 | M22: 9 | N22: 47.36842105 | O22: 10 | P22: 52.63157895 | Q22: 0 | R22: 0 | S22: 0 | T22: 0 | U22: 0
A23: 85 AÑOS Y MÁS | B23: 0 | C23: 0 | D23: 0 | E23: 0 | F23: 0 | G23: 0 | H23: 0 | I23: 0 | J23: 0 | K23: 0 | L23: 1 | M23: 1 | N23: 100 | O23: 0 | P23: 0 | Q23: 0 | R23: 0 | S23: 0 | T23: 0 | U23: 0
A26: 1/ Incluye Concejales de Distrito y Concejales Municipales de Distrito.
A27: Fuente: Tribunal Supremo de Elecciones.

Sheet 1.4
A1: CUADRO1.4 COSTA RICA: CANDIDATOS(AS) A ALCALDES(AS), SÍNDICOS(AS) PROPIETARIOS(AS), CONCEJALES PROPIETARIOS(AS)
A2: E INTENDENTES, SEGÚN GRUPOS DE EDAD, ELECCIONES DICIEMBRE 2010
A3: (cifras absolutas y relativas)
A5: GRUPOS DE EDAD | B5: ALCALDES(AS) | D5: SÍNDICOS(AS) PROPIETARIOS(AS) | F5: CONCEJALES PROPIETARIOS(AS) 1/ | H5: INTENDENTES
B6: Absoluto | C6: % | D6: Absoluto | E6: % | F6: Absoluto | G6: % | H6: Absoluto | I6: %
A8: TOTAL | B8: =SUM(B9:B22) -> 339 | C8: =+B8/B$8*100 -> 100 | D8: =SUM(D9:D22) -> 1837 | E8: =+D8/D$8*100 -> 100 | F8: =SUM(F9:F22) -> 5932 | G8: =+F8/F$8*100 -> 100 | H8: =SUM(H9:H22) -> 30 | I8: =+H8/H$8*100 -> 100
A9: MENOS DE 25 AÑOS | B9: 2 | C9: =+B9/B$8*100 -> 0.5899705015 | D9: 62 | E9: 3.375068046 | F9: 405 | G9: =+F9/F$8*100 -> 6.827376939 | H9: 1 | I9: 3.333333333
A10: DE 25 A 29 AÑOS | B10: 4 | C10: 1.179941003 | D10: 69 | E10: 3.756124115 | F10: 515 | G10: 8.681726231 | H10: 1 | I10: 3.333333333
A11: DE 30 A 34 AÑOS | B11: 12 | C11: 3.539823009 | D11: 113 | E11: 6.151333696 | F11: 591 | G11: 9.962913014 | H11: 2 | I11: 6.666666667
A12: DE 35 A 39 AÑOS | B12: 20 | C12: 5.899705015 | D12: 171 | E12: 9.308655416 | F12: 673 | G12: 11.34524612 | H12: 2 | I12: 6.666666667
A13: DE 40 A 44 AÑOS | B13: 51 | C13: 15.04424779 | D13: 250 | E13: 13.60914535 | F13: 811 | G13: 13.6716116 | H13: 5 | I13: 16.66666667
A14: DE 45 A 49 AÑOS | B14: 70 | C14: 20.64896755 | D14: 330 | E14: 17.96407186 | F14: 877 | G14: 14.78422117 | H14: 7 | I14: 23.33333333
A15: DE 50 A 54 AÑOS | B15: 94 | C15: 27.72861357 | D15: 328 | E15: 17.85519869 | F15: 759 | G15: 12.79501011 | H15: 5 | I15: 16.66666667
A16: DE 55 A 59 AÑOS | B16: 49 | C16: 14.45427729 | D16: 229 | E16: 12.46597714 | F16: 548 | G16: 9.238031018 | H16: 4 | I16: 13.33333333
A17: DE 60 A 64 AÑOS | B17: 21 | C17: 6.194690265 | D17: 137 | E17: 7.457811649 | F17: 394 | G17: 6.641942009 | H17: 3 | I17: 10
A18: DE 65 A 69 AÑOS | B18: 11 | C18: 3.244837758 | D18: 93 | E18: 5.062602069 | F18: 202 | G18: 3.405259609 | H18: 0 | I18: 0
A19: DE 70 A 74 AÑOS | B19: 4 | C19: 1.179941003 | D19: 41 | E19: 2.231899837 | F19: 94 | G19: 1.584625759 | H19: 0 | I19: 0
A20: DE 75 A 79 AÑOS | B20: 1 | C20: 0.2949852507 | D20: 12 | E20: 0.6532389766 | F20: 43 | G20: 0.724881996 | H20: 0 | I20: 0
A21: DE 80 A 84 AÑOS | B21: 0 | C21: 0 | D21: 2 | E21: 0.1088731628 | F21: 19 | G21: 0.3202966959 | H21: 0 | I21: 0
A22: 85 AÑOS Y MÁS | B22: 0 | C22: 0 | D22: 0 | E22: 0 | F22: 1 | G22: 0.01685772084 | H22: 0 | I22: 0
A25: 1/ Incluye Concejales de Distrito y Concejales Municipales de Distrito.
A26: Fuente: Tribunal Supremo de Elecciones.

Sheet 1.5
A1: CUADRO 1.5 COSTA RICA: CANDIDATOS(AS) A ALCALDES(AS), SÍNDICOS(AS) PROPIETARIOS(AS), CONCEJALES PROPIETARIOS(AS) E INTENDENTES
A2: POR SEXO, SEGÚN PROVINCIA, ELECCIONES DICIEMBRE 2010
A3: (cifras absolutas y relativas)
A5: PROVINCIA | B5: ALCALDES(AS) | G5: SÍNDICOS(AS) PROPIETARIOS(AS) | L5: CONCEJALES PROPIETARIOS(AS) 1/ | Q5: INTENDENTES
B6: TOTAL | C6: MUJERES | E6: HOMBRES | G6: TOTAL | H6: MUJERES | J6: HOMBRES | L6: TOTAL | M6: MUJERES | O6: HOMBRES | Q6: TOTAL | R6: MUJERES | T6: HOMBRES
C7: Absoluto | D7: % | E7: Absoluto | F7: % | H7: Absoluto | I7: % | J7: Absoluto | K7: % | M7: Absoluto | N7: % | O7: Absoluto | P7: % | R7: Absoluto | S7: % | T7: Absoluto | U7: %
A9: TOTAL | B9: =SUM(B10:B16) -> 339 | C9: =SUM(C10:C16) -> 49 | D9: =+C9/$B9*100 -> 14.45427729 | E9: =SUM(E10:E16) -> 290 | F9: =+E9/$B9*100 -> 85.54572271 | G9: =SUM(G10:G16) -> 1837 | H9: =SUM(H10:H16) -> 596 | I9: =+H9/$G9*100 -> 32.4442025 | J9: =SUM(J10:J16) -> 1241 | K9: =+J9/$G9*100 -> 67.5557975 | L9: =SUM(L10:L16) -> 5932 | M9: =SUM(M10:M16) -> 2936 | N9: =+M9/$L9*100 -> 49.49426837 | O9: =SUM(O10:O16) -> 2996 | P9: =+O9/$L9*100 -> 50.50573163 | Q9: =SUM(Q10:Q16) -> 30 | R9: =SUM(R10:R16) -> 5 | S9: =+R9/$Q9*100 -> 16.66666667 | T9: =SUM(T10:T16) -> 25 | U9: =+T9/$Q9*100 -> 83.33333333
A10: SAN JOSÉ | B10: =+C10+E10 -> 87 | C10: 13 | D10: =+C10/$B10*100 -> 14.94252874 | E10: 74 | F10: =+E10/$B10*100 -> 85.05747126 | G10: =+H10+J10 -> 491 | H10: 180 | I10: =+H10/$G10*100 -> 36.6598778 | J10: 311 | K10: =+J10/$G10*100 -> 63.3401222 | L10: =+M10+O10 -> 1590 | M10: 797 | N10: =+M10/$L10*100 -> 50.12578616 | O10: 793 | P10: =+O10/$L10*100 -> 49.87421384 | Q10: =+R10+T10 -> 0 | R10: 0 | S10: 0 | T10: 0 | U10: 0
A11: ALAJUELA | B11: 61 | C11: 10 | D11: 16.39344262 | E11: 51 | F11: 83.60655738 | G11: 417 | H11: 110 | I11: 26.37889688 | J11: 307 | K11: 73.62110312 | L11: 1252 | M11: 610 | N11: 48.72204473 | O11: 642 | P11: 51.27795527 | Q11: 2 | R11: 1 | S11: =+R11/$Q11*100 -> 50 | T11: 1 | U11: =+T11/$Q11*100 -> 50
A12: CARTAGO | B12: 29 | C12: 4 | D12: 13.79310345 | E12: 25 | F12: 86.20689655 | G12: 172 | H12: 53 | I12: 30.81395349 | J12: 119 | K12: 69.18604651 | L12: 583 | M12: 292 | N12: 50.08576329 | O12: 291 | P12: 49.91423671 | Q12: 7 | R12: 0 | S12: =+R12/$Q12*100 -> 0 | T12: 7 | U12: =+T12/$Q12*100 -> 100
A13: HEREDIA | B13: 39 | C13: 7 | D13: 17.94871795 | E13: 32 | F13: 82.05128205 | G13: 181 | H13: 79 | I13: 43.64640884 | J13: 102 | K13: 56.35359116 | L13: 621 | M13: 315 | N13: 50.72463768 | O13: 306 | P13: 49.27536232 | Q13: 0 | R13: 0 | S13: 0 | T13: 0 | U13: 0
A14: GUANACASTE | B14: 39 | C14: 3 | D14: 7.692307692 | E14: 36 | F14: 92.30769231 | G14: 199 | H14: 59 | I14: 29.64824121 | J14: 140 | K14: 70.35175879 | L14: 654 | M14: 323 | N14: 49.3883792 | O14: 331 | P14: 50.6116208 | Q14: 4 | R14: 2 | S14: =+R14/$Q14*100 -> 50 | T14: 2 | U14: =+T14/$Q14*100 -> 50
A15: PUNTARENAS | B15: 49 | C15: 6 | D15: 12.24489796 | E15: 43 | F15: 87.75510204 | G15: 238 | H15: 72 | I15: 30.25210084 | J15: 166 | K15: 69.74789916 | L15: 765 | M15: 368 | N15: 48.10457516 | O15: 397 | P15: 51.89542484 | Q15: 17 | R15: 2 | S15: =+R15/$Q15*100 -> 11.76470588 | T15: 15 | U15: =+T15/$Q15*100 -> 88.23529412
A16: LIMÓN | B16: 35 | C16: 6 | D16: 17.14285714 | E16: 29 | F16: 82.85714286 | G16: 139 | H16: 43 | I16: 30.9352518 | J16: 96 | K16: 69.0647482 | L16: 467 | M16: 231 | N16: 49.46466809 | O16: 236 | P16: 50.53533191 | Q16: 0 | R16: 0 | S16: 0 | T16: 0 | U16: 0
A19: 1/ Incluye Concejales de Distrito y Concejales Municipales de Distrito.
A20: Fuente: Tribunal Supremo de Elecciones.

Sheet 1.6
A1: CUADRO 1.6 COSTA RICA: CANDIDATOS(AS) A CONCEJALES 1/ PROPIETARIOS(AS) , POR ORDEN DEL PUESTO Y SEXO
A2: SEGÚN PARTIDO POLÍTICO, ELECCIONES DICIEMBRE 2010
A3: (cifras absolutas y relativas)
A5: PARTIDO POLÍTICO | B5: TOTAL | G5: PRIMER PUESTO | L5: SEGUNDO PUESTO | Q5: TERCER PUERTO | V5: CUARTO PUESTO
B6: TOTAL | C6: MUJERES | E6: HOMBRES | G6: TOTAL | H6: MUJERES | J6: HOMBRES | L6: TOTAL | M6: MUJERES | O6: HOMBRES | Q6: TOTAL | R6: MUJERES | T6: HOMBRES | V6: TOTAL | W6: MUJERES | Y6: HOMBRES
C7: Absoluto | D7: % | E7: Absoluto | F7: % | H7: Absoluto | I7: % | J7: Absoluto | K7: % | M7: Absoluto | N7: % | O7: Absoluto | P7: % | R7: Absoluto | S7: % | T7: Absoluto | U7: % | W7: Absoluto | X7: % | Y7: Absoluto | Z7: %
A9: TOTAL | B9: =SUM(B10:B52) -> 5905 | C9: =SUM(C10:C52) -> 2936 | D9: =+C9/$B9*100 -> 49.72057578 | E9: =SUM(E10:E52) -> 2996 | F9: =+E9/$B9*100 -> 50.73666384 | G9: =SUM(G10:G52) -> 1679 | H9: =SUM(H10:H52) -> 712 | I9: =+H9/$G9*100 -> 42.40619416 | J9: =SUM(J10:J52) -> 967 | K9: =+J9/$G9*100 -> 57.59380584 | L9: =SUM(L10:L52) -> 1556 | M9: =SUM(M10:M52) -> 887 | N9: =+M9/$L9*100 -> 57.00514139 | O9: =SUM(O10:O52) -> 669 | P9: =+O9/$L9*100 -> 42.99485861 | Q9: =SUM(Q10:Q52) -> 1437 | R9: =SUM(R10:R52) -> 602 | S9: =+R9/$Q9*100 -> 41.89283229 | T9: =SUM(T10:T52) -> 835 | U9: =+T9/$Q9*100 -> 58.10716771 | V9: =SUM(V10:V52) -> 1260 | W9: =SUM(W10:W52) -> 735 | X9: =+W9/$V9*100 -> 58.33333333 | Y9: =SUM(Y10:Y52) -> 525 | Z9: =+Y9/$V9*100 -> 41.66666667
A10: ACCESIBILIDAD SIN EXCLUSIÓN | B10: =+C10+E10 -> 239 | C10: 116 | D10: =+C10/$B10*100 -> 48.53556485 | E10: 123 | F10: =+E10/$B10*100 -> 51.46443515 | G10: =+H10+J10 -> 81 | H10: 35 | I10: =+H10/$G10*100 -> 43.20987654 | J10: 46 | K10: =+J10/$G10*100 -> 56.79012346 | L10: =+M10+O10 -> 66 | M10: 35 | N10: =+M10/$L10*100 -> 53.03030303 | O10: 31 | P10: =+O10/$L10*100 -> 46.96969697 | Q10: =+R10+T10 -> 49 | R10: 26 | S10: =+R10/$Q10*100 -> 53.06122449 | T10: 23 | U10: =+T10/$Q10*100 -> 46.93877551 | V10: =+W10+Y10 -> 43 | W10: 20 | X10: =+W10/$V10*100 -> 46.51162791 | Y10: 23 | Z10: =+Y10/$V10*100 -> 53.48837209
A11: ACCIÓN CANTONAL SIQUIRRES INDEPENDIENTE | B11: 20 | C11: 10 | D11: 50 | E11: 10 | F11: 50 | G11: =+H11+J11 -> 6 | H11: 2 | I11: 33.33333333 | J11: 4 | K11: 66.66666667 | L11: 5 | M11: 3 | N11: 60 | O11: 2 | P11: 40 | Q11: 4 | R11: 2 | S11: =+R11/$Q11*100 -> 50 | T11: 2 | U11: =+T11/$Q11*100 -> 50 | V11: =+W11+Y11 -> 5 | W11: 3 | X11: =+W11/$V11*100 -> 60 | Y11: 2 | Z11: =+Y11/$V11*100 -> 40
A12: ACCIÓN CIUDADANA | B12: 851 | C12: 418 | D12: 49.1186839 | E12: 433 | F12: 50.8813161 | G12: 257 | H12: 119 | I12: 46.30350195 | J12: 138 | K12: 53.69649805 | L12: 232 | M12: 117 | N12: 50.43103448 | O12: 115 | P12: 49.56896552 | Q12: 206 | R12: 99 | S12: 48.05825243 | T12: 107 | U12: 51.94174757 | V12: 156 | W12: 83 | X12: 53.20512821 | Y12: 73 | Z12: 46.79487179
A13: ACCIÓN QUEPEÑA | B13: 9 | C13: 4 | D13: 44.44444444 | E13: 5 | F13: 55.55555556 | G13: 3 | H13: 2 | I13: 66.66666667 | J13: 1 | K13: 33.33333333 | L13: 2 | M13: 0 | N13: 0 | O13: 2 | P13: 100 | Q13: 2 | R13: 2 | S13: 100 | T13: 0 | U13: 0 | V13: 2 | W13: 0 | X13: 0 | Y13: 2 | Z13: 100
A14: ACUERDO CANTONAL DESAMPARADEÑO | B14: 52 | C14: 26 | D14: 50 | E14: 26 | F14: 50 | G14: 13 | H14: 5 | I14: 38.46153846 | J14: 8 | K14: 61.53846154 | L14: 13 | M14: 8 | N14: 61.53846154 | O14: 5 | P14: 38.46153846 | Q14: 13 | R14: 5 | S14: 38.46153846 | T14: 8 | U14: 61.53846154 | V14: 13 | W14: 8 | X14: 61.53846154 | Y14: 5 | Z14: 38.46153846
A15: ALIANZA PATRIÓTICA | B15: 44 | C15: 24 | D15: 54.54545455 | E15: 20 | F15: 45.45454545 | G15: 15 | H15: 13 | I15: 86.66666667 | J15: 2 | K15: 13.33333333 | L15: 12 | M15: 2 | N15: 16.66666667 | O15: 10 | P15: 83.33333333 | Q15: 9 | R15: 8 | S15: 88.88888889 | T15: 1 | U15: 11.11111111 | V15: 8 | W15: 1 | X15: 12.5 | Y15: 7 | Z15: 87.5
A16: AUTÉNTICO LABRADOR DE CORONADO | B16: 11 | C16: 5 | D16: 45.45454545 | E16: 6 | F16: 54.54545455 | G16: 5 | H16: 2 | I16: 40 | J16: 3 | K16: 60 | L16: 3 | M16: 2 | N16: 66.66666667 | O16: 1 | P16: 33.33333333 | Q16: 3 | R16: 1 | S16: 33.33333333 | T16: 2 | U16: 66.66666667 | V16: 0 | W16: 0 | X16: 0 | Y16: 0 | Z16: 0
A17: AUTÓNOMO OROMONTANO | B17: 11 | C17: 5 | D17: 45.45454545 | E17: 6 | F17: 54.54545455 | G17: 3 | H17: 3 | I17: 100 | J17: 0 | K17: 0 | L17: 3 | M17: 0 | N17: 0 | O17: 3 | P17: 100 | Q17: 2 | R17: 2 | S17: 100 | T17: 0 | U17: 0 | V17: 3 | W17: 0 | X17: 0 | Y17: 3 | Z17: 100
A18: CÍVICO DE TIBÁS FUENTEOVEJUNA | B18: 7 | C18: 3 | D18: 42.85714286 | E18: 4 | F18: 57.14285714 | G18: 1 | H18: 1 | I18: 100 | J18: 0 | K18: 0 | L18: 2 | M18: 0 | N18: 0 | O18: 2 | P18: 100 | Q18: 2 | R18: 2 | S18: 100 | T18: 0 | U18: 0 | V18: 2 | W18: 0 | X18: 0 | Y18: 2 | Z18: 100
A19: COALICIÓN BARVA UNIDA | B19: 16 | C19: 8 | D19: 50 | E19: 8 | F19: 50 | G19: 5 | H19: 4 | I19: 80 | J19: 1 | K19: 20 | L19: 5 | M19: 1 | N19: 20 | O19: 4 | P19: 80 | Q19: 4 | R19: 3 | S19: 75 | T19: 1 | U19: 25 | V19: 2 | W19: 0 | X19: 0 | Y19: 2 | Z19: 100
A20: COALICIÓN CARTAGO UNIDO | B20: 44 | C20: 22 | D20: 50 | E20: 22 | F20: 50 | G20: 11 | H20: 2 | I20: 18.18181818 | J20: 9 | K20: 81.81818182 | L20: 11 | M20: 9 | N20: 81.81818182 | O20: 2 | P20: 18.18181818 | Q20: 11 | R20: 2 | S20: 18.18181818 | T20: 9 | U20: 81.81818182 | V20: 11 | W20: 9 | X20: 81.81818182 | Y20: 2 | Z20: 18.18181818
A21: COALICIÓN MONTES DE OCA UNIDA | B21: 14 | C21: 8 | D21: 57.14285714 | E21: 6 | F21: 42.85714286 | G21: 4 | H21: 3 | I21: 75 | J21: 1 | K21: 25 | L21: 3 | M21: 1 | N21: 33.33333333 | O21: 2 | P21: 66.66666667 | Q21: 4 | R21: 3 | S21: 75 | T21: 1 | U21: 25 | V21: 3 | W21: 1 | X21: 33.33333333 | Y21: 2 | Z21: 66.66666667
A22: COALICIÓN PARTIDO ALIANZA ZARCEREÑA | C22: 14 | E22: 13 | G22: 7 | H22: 5 | I22: 71.42857143 | J22: 2 | K22: 28.57142857 | L22: 7 | M22: 2 | N22: 28.57142857 | O22: 5 | P22: 71.42857143 | Q22: 6 | R22: 5 | S22: 83.33333333 | T22: 1 | U22: 16.66666667 | V22: 7 | W22: 2 | X22: 28.57142857 | Y22: 5 | Z22: 71.42857143
A23: COALICIÓN RAMONENSE | B23: 43 | C23: 21 | D23: 48.8372093 | E23: 22 | F23: 51.1627907 | G23: 12 | H23: 10 | I23: 83.33333333 | J23: 2 | K23: 16.66666667 | L23: 10 | M23: 1 | N23: 10 | O23: 9 | P23: 90 | Q23: 11 | R23: 9 | S23: 81.81818182 | T23: 2 | U23: 18.18181818 | V23: 10 | W23: 1 | X23: 10 | Y23: 9 | Z23: 90
A24: COALICIÓN UNIDOS POR SAN CARLOS | B24: 51 | C24: 25 | D24: 49.01960784 | E24: 26 | F24: 50.98039216 | G24: 13 | H24: 11 | I24: 84.61538462 | J24: 2 | K24: 15.38461538 | L24: 13 | M24: 2 | N24: 15.38461538 | O24: 11 | P24: 84.61538462 | Q24: 12 | R24: 10 | S24: 83.33333333 | T24: 2 | U24: 16.66666667 | V24: 13 | W24: 2 | X24: 15.38461538 | Y24: 11 | Z24: 84.61538462
A25: COALICIÓN UNIÓN LIBERIANA | B25: 15 | C25: 9 | D25: 60 | E25: 6 | F25: 40 | G25: 4 | H25: 3 | I25: 75 | J25: 1 | K25: 25 | L25: 4 | M25: 1 | N25: 25 | O25: 3 | P25: 75 | Q25: 5 | R25: 4 | S25: 80 | T25: 1 | U25: 20 | V25: 2 | W25: 1 | X25: 50 | Y25: 1 | Z25: 50
A26: CURRIDABAT SIGLO XXI | B26: 16 | C26: 8 | D26: 50 | E26: 8 | F26: 50 | G26: 4 | H26: 4 | I26: 100 | J26: 0 | K26: 0 | L26: 4 | M26: 0 | N26: 0 | O26: 4 | P26: 100 | Q26: 4 | R26: 4 | S26: 100 | T26: 0 | U26: 0 | V26: 4 | W26: 0 | X26: 0 | Y26: 4 | Z26: 100
A27: DEL SOL | B27: 23 | C27: 11 | D27: 47.82608696 | E27: 12 | F27: 52.17391304 | G27: 6 | H27: 3 | I27: 50 | J27: 3 | K27: 50 | L27: 6 | M27: 3 | N27: 50 | O27: 3 | P27: 50 | Q27: 6 | R27: 3 | S27: 50 | T27: 3 | U27: 50 | V27: 5 | W27: 2 | X27: 40 | Y27: 3 | Z27: 60
A28: EL PUENTE Y LOS CAMINOS DE MORA | B28: 19 | C28: 10 | D28: 52.63157895 | E28: 9 | F28: 47.36842105 | G28: 5 | H28: 1 | I28: 20 | J28: 4 | K28: 80 | L28: 5 | M28: 4 | N28: 80 | O28: 1 | P28: 20 | Q28: 4 | R28: 1 | S28: 25 | T28: 3 | U28: 75 | V28: 5 | W28: 4 | X28: 80 | Y28: 1 | Z28: 20
A29: FRENTE AMPLIO | B29: 89 | C29: 45 | D29: 50.56179775 | E29: 44 | F29: 49.43820225 | G29: 28 | H29: 14 | I29: 50 | J29: 14 | K29: 50 | L29: 22 | M29: 12 | N29: 54.54545455 | O29: 10 | P29: 45.45454545 | Q29: 21 | R29: 10 | S29: 47.61904762 | T29: 11 | U29: 52.38095238 | V29: 18 | W29: 9 | X29: 50 | Y29: 9 | Z29: 50
A30: GARABITO ECOLÓGICO | B30: 7 | C30: 3 | D30: 42.85714286 | E30: 4 | F30: 57.14285714 | G30: 2 | H30: 0 | I30: 0 | J30: 2 | K30: 100 | L30: 2 | M30: 2 | N30: 100 | O30: 0 | P30: 0 | Q30: 2 | R30: 0 | S30: 0 | T30: 2 | U30: 100 | V30: 1 | W30: 1 | X30: 100 | Y30: 0 | Z30: 0
A31: GOICOECHEA EN ACCIÓN | B31: 24 | C31: 12 | D31: 50 | E31: 12 | F31: 50 | G31: 5 | H31: 1 | I31: 20 | J31: 4 | K31: 80 | L31: 7 | M31: 5 | N31: 71.42857143 | O31: 2 | P31: 28.57142857 | Q31: 7 | R31: 2 | S31: 28.57142857 | T31: 5 | U31: 71.42857143 | V31: 5 | W31: 4 | X31: 80 | Y31: 1 | Z31: 20
A32: INDEPENDIENTE BELEMITA | B32: 9 | C32: 5 | D32: 55.55555556 | E32: 4 | F32: 44.44444444 | G32: 3 | H32: 2 | I32: 66.66666667 | J32: 1 | K32: 33.33333333 | L32: 3 | M32: 1 | N32: 33.33333333 | O32: 2 | P32: 66.66666667 | Q32: 1 | R32: 0 | S32: 0 | T32: 1 | U32: 100 | V32: 2 | W32: 2 | X32: 100 | Y32: 0 | Z32: 0
A33: INTEGRACIÓN NACIONAL | B33: 140 | C33: 65 | D33: 46.42857143 | E33: 75 | F33: 53.57142857 | G33: 47 | H33: 10 | I33: 21.27659574 | J33: 37 | K33: 78.72340426 | L33: 36 | M33: 26 | N33: 72.22222222 | O33: 10 | P33: 27.77777778 | Q33: 33 | R33: 8 | S33: 24.24242424 | T33: 25 | U33: 75.75757576 | V33: 24 | W33: 21 | X33: 87.5 | Y33: 3 | Z33: 12.5
A34: LIBERACIÓN NACIONAL | B34: 1782 | C34: 889 | D34: 49.88776655 | E34: 893 | F34: 50.11223345 | G34: 453 | H34: 178 | I34: 39.29359823 | J34: 275 | K34: 60.70640177 | L34: 451 | M34: 275 | N34: 60.97560976 | O34: 176 | P34: 39.02439024 | Q34: 440 | R34: 171 | S34: 38.86363636 | T34: 269 | U34: 61.13636364 | V34: 438 | W34: 265 | X34: 60.50228311 | Y34: 173 | Z34: 39.49771689
A35: MOVIMIENTO AVANCE SANTO DOMINGO | B35: 24 | C35: 12 | D35: 50 | E35: 12 | F35: 50 | G35: 8 | H35: 4 | I35: 50 | J35: 4 | K35: 50 | L35: 8 | M35: 4 | N35: 50 | O35: 4 | P35: 50 | Q35: 7 | R35: 4 | S35: 57.14285714 | T35: 3 | U35: 42.85714286 | V35: 1 | W35: 0 | X35: 0 | Y35: 1 | Z35: 100
A36: MOVIMIENTO DE TRABAJADORES Y CAMPESINOS | B36: 11 | C36: 6 | D36: 54.54545455 | E36: 5 | F36: 45.45454545 | G36: 6 | H36: 3 | I36: 50 | J36: 3 | K36: 50 | L36: 1 | M36: 1 | N36: 100 | O36: 0 | P36: 0 | Q36: 2 | R36: 0 | S36: 0 | T36: 2 | U36: 100 | V36: 2 | W36: 2 | X36: 100 | Y36: 0 | Z36: 0
A37: MOVIMIENTO LIBERTARIO | B37: 903 | C37: 445 | D37: 49.28017719 | E37: 458 | F37: 50.71982281 | G37: 266 | H37: 102 | I37: 38.34586466 | J37: 164 | K37: 61.65413534 | L37: 238 | M37: 145 | N37: 60.92436975 | O37: 93 | P37: 39.07563025 | Q37: 215 | R37: 80 | S37: 37.20930233 | T37: 135 | U37: 62.79069767 | V37: 184 | W37: 118 | X37: 64.13043478 | Y37: 66 | Z37: 35.86956522
A38: ORGANIZACIÓN LABORISTA DE AGUIRRE | B38: 11 | C38: 6 | D38: 54.54545455 | E38: 5 | F38: 45.45454545 | G38: 3 | H38: 1 | I38: 33.33333333 | J38: 2 | K38: 66.66666667 | L38: 3 | M38: 2 | N38: 66.66666667 | O38: 1 | P38: 33.33333333 | Q38: 3 | R38: 1 | S38: 33.33333333 | T38: 2 | U38: 66.66666667 | V38: 2 | W38: 2 | X38: 100 | Y38: 0 | Z38: 0
A39: ORGANIZACIÓN SOCIAL ACTIVA | B39: 19 | C39: 9 | D39: 47.36842105 | E39: 10 | F39: 52.63157895 | G39: 5 | H39: 4 | I39: 80 | J39: 1 | K39: 20 | L39: 5 | M39: 1 | N39: 20 | O39: 4 | P39: 80 | Q39: 5 | R39: 4 | S39: 80 | T39: 1 | U39: 20 | V39: 4 | W39: 0 | X39: 0 | Y39: 4 | Z39: 100
A40: RENOVACIÓN COSTARRICENSE | B40: 289 | C40: 145 | D40: 50.17301038 | E40: 144 | F40: 49.82698962 | G40: 73 | H40: 36 | I40: 49.31506849 | J40: 37 | K40: 50.68493151 | L40: 74 | M40: 39 | N40: 52.7027027 | O40: 35 | P40: 47.2972973 | Q40: 71 | R40: 33 | S40: 46.47887324 | T40: 38 | U40: 53.52112676 | V40: 71 | W40: 37 | X40: 52.11267606 | Y40: 34 | Z40: 47.88732394
A41: RENOVEMOS ALAJUELA | B41: 51 | C41: 23 | D41: 45.09803922 | E41: 28 | F41: 54.90196078 | G41: 13 | H41: 4 | I41: 30.76923077 | J41: 9 | K41: 69.23076923 | L41: 14 | M41: 9 | N41: 64.28571429 | O41: 5 | P41: 35.71428571 | Q41: 12 | R41: 3 | S41: 25 | T41: 9 | U41: 75 | V41: 12 | W41: 7 | X41: 58.33333333 | Y41: 5 | Z41: 41.66666667
A42: RESTAURACIÓN HEREDIANA | B42: 21 | C42: 12 | D42: 57.14285714 | E42: 9 | F42: 42.85714286 | G42: 7 | H42: 4 | I42: 57.14285714 | J42: 3 | K42: 42.85714286 | L42: 6 | M42: 3 | N42: 50 | O42: 3 | P42: 50 | Q42: 5 | R42: 3 | S42: 60 | T42: 2 | U42: 40 | V42: 3 | W42: 2 | X42: 66.66666667 | Y42: 1 | Z42: 33.33333333
A43: TALAMANCA UNIDA | B43: 5 | C43: 1 | D43: 20 | E43: 4 | F43: 80 | G43: 4 | H43: 0 | I43: 0 | J43: 4 | K43: 100 | L43: 1 | M43: 1 | N43: 100 | O43: 0 | P43: 0 | Q43: 0 | R43: 0 | S43: 0 | T43: 0 | U43: 0 | V43: 0 | W43: 0 | X43: 0 | Y43: 0 | Z43: 0
A44: TARRAZÚ PRIMERO | B44: 11 | C44: 5 | D44: 45.45454545 | E44: 6 | F44: 54.54545455 | G44: 3 | H44: 1 | I44: 33.33333333 | J44: 2 | K44: 66.66666667 | L44: 3 | M44: 2 | N44: 66.66666667 | O44: 1 | P44: 33.33333333 | Q44: 2 | R44: 0 | S44: 0 | T44: 2 | U44: 100 | V44: 3 | W44: 2 | X44: 66.66666667 | Y44: 1 | Z44: 33.33333333
A45: TODO POR FLORES | B45: 12 | C45: 6 | D45: 50 | E45: 6 | F45: 50 | G45: 3 | H45: 1 | I45: 33.33333333 | J45: 2 | K45: 66.66666667 | L45: 3 | M45: 2 | N45: 66.66666667 | O45: 1 | P45: 33.33333333 | Q45: 3 | R45: 1 | S45: 33.33333333 | T45: 2 | U45: 66.66666667 | V45: 3 | W45: 2 | X45: 66.66666667 | Y45: 1 | Z45: 33.33333333
A46: ÚNICO ABANGAREÑO | B46: 16 | C46: 8 | D46: 50 | E46: 8 | F46: 50 | G46: 4 | H46: 2 | I46: 50 | J46: 2 | K46: 50 | L46: 4 | M46: 2 | N46: 50 | O46: 2 | P46: 50 | Q46: 4 | R46: 2 | S46: 50 | T46: 2 | U46: 50 | V46: 4 | W46: 2 | X46: 50 | Y46: 2 | Z46: 50
A47: UNIDAD SOCIAL CRISTIANA | B47: 890 | C47: 441 | D47: 49.5505618 | E47: 449 | F47: 50.4494382 | G47: 261 | H47: 108 | I47: 41.37931034 | J47: 153 | K47: 58.62068966 | L47: 242 | M47: 145 | N47: 59.91735537 | O47: 97 | P47: 40.08264463 | Q47: 222 | R47: 82 | S47: 36.93693694 | T47: 140 | U47: 63.06306306 | V47: 165 | W47: 106 | X47: 64.24242424 | Y47: 59 | Z47: 35.75757576
A48: UNIÓN AGRÍCOLA CARTAGINÉS | B48: 32 | C48: 16 | D48: 50 | E48: 16 | F48: 50 | G48: 8 | H48: 2 | I48: 25 | J48: 6 | K48: 75 | L48: 8 | M48: 6 | N48: 75 | O48: 2 | P48: 25 | Q48: 8 | R48: 2 | S48: 25 | T48: 6 | U48: 75 | V48: 8 | W48: 6 | X48: 75 | Y48: 2 | Z48: 25
A49: UNIÓN ATENIENSE | B49: 27 | C49: 13 | D49: 48.14814815 | E49: 14 | F49: 51.85185185 | G49: 7 | H49: 0 | I49: 0 | J49: 7 | K49: 100 | L49: 7 | M49: 7 | N49: 100 | O49: 0 | P49: 0 | Q49: 7 | R49: 0 | S49: 0 | T49: 7 | U49: 100 | V49: 6 | W49: 6 | X49: 100 | Y49: 0 | Z49: 0
A50: UNIÓN PALMAREÑA | B50: 28 | C50: 14 | D50: 50 | E50: 14 | F50: 50 | G50: 7 | H50: 4 | I50: 57.14285714 | J50: 3 | K50: 42.85714286 | L50: 7 | M50: 3 | N50: 42.85714286 | O50: 4 | P50: 57.14285714 | Q50: 7 | R50: 4 | S50: 57.14285714 | T50: 3 | U50: 42.85714286 | V50: 7 | W50: 3 | X50: 42.85714286 | Y50: 4 | Z50: 57.14285714
A51: UNIÓN POASEÑA | B51: 8 | C51: 3 | D51: 37.5 | E51: 5 | F51: 62.5 | G51: 5 | H51: 1 | I51: 20 | J51: 4 | K51: 80 | L51: 2 | M51: 2 | N51: 100 | O51: 0 | P51: 0 | Q51: 1 | R51: 0 | S51: 0 | T51: 1 | U51: 100 | V51: 0 | W51: 0 | X51: 0 | Y51: 0 | Z51: 0
A52: YUNTA PROGRESISTA ESCAZUCEÑA | B52: 11 | C52: 5 | D52: 45.45454545 | E52: 6 | F52: 54.54545455 | G52: 3 | H52: 2 | I52: 66.66666667 | J52: 1 | K52: 33.33333333 | L52: 3 | M52: 1 | N52: 33.33333333 | O52: 2 | P52: 66.66666667 | Q52: 2 | R52: 1 | S52: 50 | T52: 1 | U52: 50 | V52: 3 | W52: 1 | X52: 33.33333333 | Y52: 2 | Z52: 66.66666667
A55: 1/ Incluye Concejales de Distrito y Concejales Municipales de Distrito.
A56: Fuente: Tribunal Supremo de Elecciones.

Sheet 1.7
A1: CUADRO 1.7 COSTA RICA: CANDIDATOS(AS) ELECTOS(AS) EN PROPIEDAD Y SUPLENCIA
A2: POR SEXO, SEGÚN TIPO DE CANDIDATURA, ELECCIONES DICIEMBRE 2010
A3: (cifras absolutas y relativas)
A5: TIPO DE CANDIDATURA | B5: TOTAL | G5: EN PROPIEDAD | L5: EN SUPLENCIA
B6: TOTAL | C6: MUJERES | E6: HOMBRES | G6: TOTAL | H6: MUJERES | J6: HOMBRES | L6: TOTAL | M6: MUJERES | O6: HOMBRES
C7: Absoluto | D7: % | E7: Absoluto | F7: % | H7: Absoluto | I7: % | J7: Absoluto | K7: % | M7: Absoluto | N7: % | O7: Absoluto | P7: %
A9: TOTAL | B9: =SUM(B11:B18) -> 4910 | C9: =SUM(C11:C18) -> 2373 | D9: =+C9/$B9*100 -> 48.3299389 | E9: 2537 | F9: =+E9/$B9*100 -> 51.6700611 | G9: 2536 | H9: 1125 | I9: =+H9/$G9*100 -> 44.36119874 | J9: 1411 | K9: =+J9/$G9*100 -> 55.63880126 | L9: 2374 | M9: 1248 | N9: =+M9/$L9*100 -> 52.56950295 | O9: 1126 | P9: =+O9/$L9*100 -> 47.43049705
A11: ALACALDE(SA) | B11: =+G11+L11 -> 81 | C11: 10 | D11: =+C11/$B11*100 -> 12.34567901 | E11: =+J11+O11 -> 71 | F11: =+E11/$B11*100 -> 87.65432099 | G11: =+H11+J11 -> 81 | H11: 10 | I11: =+H11/$G11*100 -> 12.34567901 | J11: 71 | K11: =+J11/$G11*100 -> 87.65432099 | L11: =+M11+O11 -> 0 | M11: 0 | N11: 0 | O11: 0 | P11: 0
A12: VICEALCALDE(SA) PRIMERO(A) | B12: 81 | C12: 71 | D12: 87.65432099 | E12: 10 | F12: 12.34567901 | G12: 81 | H12: 71 | I12: =+H12/$G12*100 -> 87.65432099 | J12: 10 | K12: =+J12/$G12*100 -> 12.34567901 | L12: 0 | M12: 0 | N12: 0 | O12: 0 | P12: 0
A13: VICEALCALDE(SA) SEGUNDO(A) | B13: 79 | C13: 14 | D13: 17.72151899 | E13: 65 | F13: 82.27848101 | G13: 0 | H13: 0 | I13: 0 | J13: 0 | K13: 0 | L13: 79 | M13: 14 | N13: =+M13/$L13*100 -> 17.72151899 | O13: 65 | P13: =+O13/$L13*100 -> 82.27848101
A14: CONCEJAL DE DISTRITO | B14: 3662 | C14: 1782 | D14: 48.66193337 | E14: 1880 | F14: 51.33806663 | G14: 1856 | H14: 894 | I14: =+H14/$G14*100 -> 48.16810345 | J14: 962 | K14: =+J14/$G14*100 -> 51.83189655 | L14: 1806 | M14: 888 | N14: =+M14/$L14*100 -> 49.16943522 | O14: 918 | P14: =+O14/$L14*100 -> 50.83056478
A15: CONCEJAL MUNICIPAL DE DISTRITO | B15: 64 | C15: 27 | D15: 42.1875 | E15: 37 | F15: 57.8125 | G15: 32 | H15: 14 | I15: =+H15/$G15*100 -> 43.75 | J15: 18 | K15: =+J15/$G15*100 -> 56.25 | L15: 32 | M15: 13 | N15: =+M15/$L15*100 -> 40.625 | O15: 19 | P15: =+O15/$L15*100 -> 59.375
A16: INTENDENTE | B16: 8 | C16: 2 | D16: 25 | E16: 6 | F16: 75 | G16: 8 | H16: 2 | I16: =+H16/$G16*100 -> 25 | J16: 6 | K16: =+J16/$G16*100 -> 75 | L16: 0 | M16: 0 | N16: 0 | O16: 0 | P16: 0
A17: VICEINTENDENTE | B17: 8 | C17: 6 | D17: 75 | E17: 2 | F17: 25 | G17: 8 | H17: 6 | I17: =+H17/$G17*100 -> 75 | J17: 2 | K17: =+J17/$G17*100 -> 25 | L17: 0 | M17: 0 | N17: 0 | O17: 0 | P17: 0
A18: SÍNDICO(A) | B18: 927 | C18: 461 | D18: 49.73031284 | E18: 466 | F18: 50.26968716 | G18: 470 | H18: 128 | I18: =+H18/$G18*100 -> 27.23404255 | J18: 342 | K18: =+J18/$G18*100 -> 72.76595745 | L18: 457 | M18: 333 | N18: =+M18/$L18*100 -> 72.86652079 | O18: 124 | P18: =+O18/$L18*100 -> 27.13347921
A21: Fuente: Tribunal Supremo de Elecciones.

Sheet 1.8
A1: CUADRO 1.8 COSTA RICA: ALCALDES(AS) Y VICEALCALDES(AS) ELECTOS(AS), POR SEXO
A2: SEGÚN PARTIDO POLÍTICO, ELECCIONES DICIEMBRE 2010
A3: (cifras absolutas y relativas)
A5: PARTIDO POLÍTICO | B5: ALCALDES(AS) | G5: VICEALCALDES(AS) PRIMEROS(AS) | L5: VICEALCALDES(AS) SEGUNDOS(AS) 1/
B6: TOTAL | C6: MUJERES | E6: HOMBRES | G6: TOTAL | H6: MUJERES | J6: HOMBRES | L6: TOTAL | M6: MUJERES | O6: HOMBRES
C7: Absoluto | D7: % | E7: Absoluto | F7: % | H7: Absoluto | I7: % | J7: Absoluto | K7: % | M7: Absoluto | N7: % | O7: Absoluto | P7: %
A9: TOTAL | B9: =SUM(B11:B18) -> 81 | C9: =SUM(C11:C18) -> 10 | D9: =+C9/$B9*100 -> 12.34567901 | E9: 71 | F9: =+E9/$B9*100 -> 87.65432099 | G9: 81 | H9: 71 | I9: =+H9/$G9*100 -> 87.65432099 | J9: 10 | K9: =+J9/$G9*100 -> 12.34567901 | L9: 79 | M9: 14 | N9: =+M9/$L9*100 -> 17.72151899 | O9: 65 | P9: =+O9/$L9*100 -> 82.27848101
A11: ACCESIBILIDAD SIN EXCLUSIÓN | B11: =+C11+E11 -> 2 | C11: 1 | D11: =+C11/$B11*100 -> 50 | E11: 1 | F11: =+E11/$B11*100 -> 50 | G11: =+H11+J11 -> 2 | H11: 1 | I11: =+H11/$G11*100 -> 50 | J11: 1 | K11: =+J11/$G11*100 -> 50 | L11: =+M11+O11 -> 2 | M11: 0 | N11: =+M11/$L11*100 -> 0 | O11: 2 | P11: =+O11/$L11*100 -> 100
A12: ACCIÓN CIUDADANA | B12: 6 | C12: 0 | D12: 0 | E12: 6 | F12: 100 | G12: 6 | H12: 6 | I12: 100 | J12: 0 | K12: 0 | L12: 4 | M12: 1 | N12: 25 | O12: 3 | P12: 75
A13: CURRIDABAT SIGLO XXI | B13: 1 | C13: 0 | D13: 0 | E13: 1 | F13: 100 | G13: 1 | H13: 1 | I13: 100 | J13: 0 | K13: 0 | L13: 1 | M13: 0 | N13: 0 | O13: 1 | P13: 100
A14: LIBERACIÓN NACIONAL | B14: 59 | C14: 8 | D14: 13.55932203 | E14: 51 | F14: 86.44067797 | G14: 59 | H14: 51 | I14: 86.44067797 | J14: 8 | K14: 13.55932203 | L14: 59 | M14: 11 | N14: 18.6440678 | O14: 48 | P14: 81.3559322
A15: MOVIMIENTO LIBERTARIO | B15: 2 | C15: 0 | D15: 0 | E15: 2 | F15: 100 | G15: 2 | H15: 2 | I15: 100 | J15: 0 | K15: 0 | L15: 2 | M15: 0 | N15: 0 | O15: 2 | P15: 100
A16: RENOVACIÓN COSTARRICENSE | B16: 1 | C16: 0 | D16: 0 | E16: 1 | F16: 100 | G16: 1 | H16: 1 | I16: 100 | J16: 0 | K16: 0 | L16: 1 | M16: 0 | N16: 0 | O16: 1 | P16: 100
A17: UNIDAD SOCIAL CRISTIANA | B17: 9 | C17: 1 | D17: 11.11111111 | E17: 8 | F17: 88.88888889 | G17: 9 | H17: 8 | I17: 88.88888889 | J17: 1 | K17: 11.11111111 | L17: 9 | M17: 1 | N17: 11.11111111 | O17: 8 | P17: 88.88888889
A18: YUNTA PROGRESISTA ESCAZUCEÑA | B18: 1 | C18: 0 | D18: 0 | E18: 1 | F18: 100 | G18: 1 | H18: 1 | I18: 100 | J18: 0 | K18: 0 | L18: 1 | M18: 1 | N18: 100 | O18: 0 | P18: 0
A21: 1/ En los cantones de Aserrí y Hojancha el partido ganador fue Acción Ciudadana, pero no propuso candidaturas para Vicealcalde(sa) Segundo(a).
A22: Fuente: Tribunal Supremo de Elecciones.

Sheet G1.1
A5: PARTIDO POLÍTICO
A6: TOTAL | B6: =SUM(B7:B14) -> 81
A7: CURRIDABAT SIGLO XXI | B7: 1
A8: RENOVACIÓN COSTARRICENSE | B8: 1
A9: YUNTA PROGRESISTA ESCAZUCEÑA | B9: 1
A10: ACCESIBILIDAD SIN EXCLUSIÓN | B10: 2
A11: MOVIMIENTO LIBERTARIO | B11: 2
A12: ACCIÓN CIUDADANA | B12: 6
A13: UNIDAD SOCIAL CRISTIANA | B13: 9
A14: LIBERACIÓN NACIONAL | B14: 59
A17: Fuente: Tribunal Supremo de Elecciones.
A22: Liberación Nacional: San José, Desamparados, Puriscal, Tarrazú, Mora, Goicoechea, Santa Ana, Vázquez de Coronado, Acosta, Tibás, Moravia, Turrubares, Dota, Pérez Zeledón, León Cortés, Alajuela, San Ramón, Grecia, San Mateo, Naranjo, Palmares, Poás, Orotina, San Carlos, Upala, Cartago, La Unión, Turrialba, Alvarado, Oreamuno, El Guarco, Heredia, Barva, Santo Domingo, Santa Bárbara, San Rafael, San Isidro, Flores, Sarapiquí, Nicoya, Santa Cruz, Bagaces, Carrillo, Abangares, La Cruz, Puntarenas, Esparza, Buenos Aires, Montes de Oro, Osa, Aguirre, Golfito, Parrita, Corredores, Garabito, Limón, Pococí, Talamanca y Guácimo.
A23: Unidad Social Cristiana: Alajuelita, Atenas, Zarcero, Paraíso, Jiménez, Belén, San Pablo, Tilarán y Coto Brus.
A24: Acción Ciudadana: Aserrí, Los Chiles, Guatuso, Cañas, Hojancha y Matina.
A25: Movimiento Libertario: Valverde Vega y Nandayure.
A26: Accesibilidad Sin Exclusión: Liberia y Siquirres.
A27: Yunta Progresita Escazuceña: Escazú.
A28: Renovación Costarricense: Montes de Oca.
A29: Curridabat Siglo XXI: Curridabat.
A31: Fuente: Tribunal Supremo de Elecciones.

Sheet 1.9
A2: CUADRO 1.9 COSTA RICA: SÍNDICOS(AS) ELECTOS(AS), POR CARGO Y SEXO, SEGÚN PARTIDO POLÍTICO
A3: ELECCIONES DICIEMBRE 2010
A4: (cifras absolutas y relativas)
A6: PARTIDO POLÍTICO | B6: TOTAL | G6: EN PROPIEDAD | L6: EN SUPLENCIA
B7: TOTAL | C7: MUJERES | E7: HOMBRES | G7: TOTAL | H7: MUJERES | J7: HOMBRES | L7: TOTAL | M7: MUJERES | O7: HOMBRES
C8: Absoluto | D8: % | E8: Absoluto | F8: % | H8: Absoluto | I8: % | J8: Absoluto | K8: % | M8: Absoluto | N8: % | O8: Absoluto | P8: %
A10: TOTAL | B10: =+G10+L10 -> 927 | C10: =+H10+M10 -> 461 | D10: =+C10/$B10*100 -> 49.73031284 | E10: =+J10+O10 -> 466 | F10: =+E10/$B10*100 -> 50.26968716 | G10: 470 | H10: 128 | I10: =+H10/$G10*100 -> 27.23404255 | J10: 342 | K10: =+J10/$G10*100 -> 72.76595745 | L10: 457 | M10: 333 | N10: =+M10/$L10*100 -> 72.86652079 | O10: 124 | P10: =+O10/$L10*100 -> 27.13347921
A12: ACCESIBILIDAD SIN EXCLUSIÓN | B12: =+G12+L12 -> 6 | C12: 4 | D12: =+C12/$B12*100 -> 66.66666667 | E12: 2 | F12: =+E12/$B12*100 -> 33.33333333 | G12: 2 | H12: 1 | I12: =+H12/$G12*100 -> 50 | J12: 1 | K12: =+J12/$G12*100 -> 50 | L12: 4 | M12: 3 | N12: =+M12/$L12*100 -> 75 | O12: 1 | P12: =+O12/$L12*100 -> 25
A13: ACCIÓN CIUDADANA | B13: 50 | C13: 24 | D13: =+C13/$B13*100 -> 48 | E13: 26 | F13: 52 | G13: 27 | H13: 9 | I13: =+H13/$G13*100 -> 33.33333333 | J13: 18 | K13: 66.66666667 | L13: 23 | M13: 15 | N13: =+M13/$L13*100 -> 65.2173913 | O13: 8 | P13: 34.7826087
A14: AUTÓNOMO OROMONTANO | B14: 2 | C14: 1 | D14: 50 | E14: 1 | F14: 50 | G14: 1 | H14: 0 | I14: 0 | J14: 1 | K14: 100 | L14: 1 | M14: 1 | N14: 100 | O14: 0 | P14: 0
A15: CÍVICO DE TIBÁS FUENTEOVEJUNA | B15: 2 | C15: 1 | D15: 50 | E15: 1 | F15: 50 | G15: 1 | H15: 0 | I15: 0 | J15: 1 | K15: 100 | L15: 1 | M15: 1 | N15: 100 | O15: 0 | P15: 0
A16: COALICIÓN CARTAGO UNIDO | B16: 10 | C16: 5 | D16: 50 | E16: 5 | F16: 50 | G16: 5 | H16: 0 | I16: 0 | J16: 5 | K16: 100 | L16: 5 | M16: 5 | N16: 100 | O16: 0 | P16: 0
A17: COALICIÓN RAMONENSE | B17: 2 | C17: 1 | D17: 50 | E17: 1 | F17: 50 | G17: 1 | H17: 0 | I17: 0 | J17: 1 | K17: 100 | L17: 1 | M17: 1 | N17: 100 | O17: 0 | P17: 0
A18: COALICIÓN UNIDOS POR SAN CARLOS | B18: 6 | C18: 3 | D18: 50 | E18: 3 | F18: 50 | G18: 3 | H18: 0 | I18: 0 | J18: 3 | K18: 100 | L18: 3 | M18: 3 | N18: 100 | O18: 0 | P18: 0
A19: CURRIDABAT SIGLO XXI | B19: 8 | C19: 4 | D19: 50 | E19: 4 | F19: 50 | G19: 4 | H19: 2 | I19: 50 | J19: 2 | K19: 50 | L19: 4 | M19: 2 | N19: 50 | O19: 2 | P19: 50
A20: EL PUENTE Y LOS CAMINOS DE MORA | B20: 2 | C20: 1 | D20: 50 | E20: 1 | F20: 50 | G20: 1 | H20: 0 | I20: 0 | J20: 1 | K20: 100 | L20: 1 | M20: 1 | N20: 100 | O20: 0 | P20: 0
A21: GARABITO ECOLÓGICO | B21: 1 | C21: 1 | D21: 100 | E21: 0 | F21: 0 | G21: 1 | H21: 1 | I21: 100 | J21: 0 | K21: 0 | L21: 0 | M21: 0 | N21: 0 | O21: 0 | P21: 0
A22: INTEGRACIÓN NACIONAL | B22: 10 | C22: 5 | D22: 50 | E22: 5 | F22: 50 | G22: 5 | H22: 1 | I22: 20 | J22: 4 | K22: 80 | L22: 5 | M22: 4 | N22: 80 | O22: 1 | P22: 20
A23: LIBERACIÓN NACIONAL | B23: 685 | C23: 341 | D23: 49.7810219 | E23: 344 | F23: 50.2189781 | G23: 346 | H23: 91 | I23: 26.30057803 | J23: 255 | K23: 73.69942197 | L23: 339 | M23: 250 | N23: 73.74631268 | O23: 89 | P23: 26.25368732
A24: MOVIMIENTO AVANCE SANTO DOMINGO | B24: 2 | C24: 1 | D24: 50 | E24: 1 | F24: 50 | G24: 1 | H24: 0 | I24: 0 | J24: 1 | K24: 100 | L24: 1 | M24: 1 | N24: 100 | O24: 0 | P24: 0
A25: MOVIMIENTO LIBERTARIO | B25: 28 | C25: 13 | D25: 46.42857143 | E25: 15 | F25: 53.57142857 | G25: 15 | H25: 4 | I25: 26.66666667 | J25: 11 | K25: 73.33333333 | L25: 13 | M25: 9 | N25: 69.23076923 | O25: 4 | P25: 30.76923077
A26: RENOVACIÓN COSTARRICENSE | B26: 8 | C26: 4 | D26: 50 | E26: 4 | F26: 50 | G26: 4 | H26: 3 | I26: 75 | J26: 1 | K26: 25 | L26: 4 | M26: 1 | N26: 25 | O26: 3 | P26: 75
A27: RENOVEMOS ALAJUELA | B27: 4 | C27: 2 | D27: 50 | E27: 2 | F27: 50 | G27: 2 | H27: 0 | I27: 0 | J27: 2 | K27: 100 | L27: 2 | M27: 2 | N27: 100 | O27: 0 | P27: 0
A28: TODO POR FLORES | B28: 2 | C28: 1 | D28: 50 | E28: 1 | F28: 50 | G28: 1 | H28: 1 | I28: 100 | J28: 0 | K28: 0 | L28: 1 | M28: 0 | N28: 0 | O28: 1 | P28: 100
A29: UNIDAD SOCIAL CRISTIANA | B29: 87 | C29: 43 | D29: 49.42528736 | E29: 44 | F29: 50.57471264 | G29: 44 | H29: 14 | I29: 31.81818182 | J29: 30 | K29: 68.18181818 | L29: 43 | M29: 29 | N29: 67.44186047 | O29: 14 | P29: 32.55813953
A30: UNIÓN AGRÍCOLA CARTAGINÉS | B30: 2 | C30: 1 | D30: 50 | E30: 1 | F30: 50 | G30: 1 | H30: 0 | I30: 0 | J30: 1 | K30: 100 | L30: 1 | M30: 1 | N30: 100 | O30: 0 | P30: 0
A31: UNIÓN ATENIENSE | B31: 4 | C31: 2 | D31: 50 | E31: 2 | F31: 50 | G31: 2 | H31: 0 | I31: 0 | J31: 2 | K31: 100 | L31: 2 | M31: 2 | N31: 100 | O31: 0 | P31: 0
A32: UNIÓN PALMAREÑA | B32: 2 | C32: 1 | D32: 50 | E32: 1 | F32: 50 | G32: 1 | H32: 1 | I32: 100 | J32: 0 | K32: 0 | L32: 1 | M32: 0 | N32: 0 | O32: 1 | P32: 100
A33: YUNTA PROGRESISTA ESCAZUCEÑA | B33: 4 | C33: 2 | D33: 50 | E33: 2 | F33: 50 | G33: 2 | H33: 0 | I33: 0 | J33: 2 | K33: 100 | L33: 2 | M33: 2 | N33: 100 | O33: 0 | P33: 0
A36: Fuente: Tribunal Supremo de Elecciones.

Sheet 1.10
A2: CUADRO 1.10 COSTA RICA: CONCEJALES 1/ ELECTOS(AS), POR CARGO Y SEXO, SEGÚN PARTIDO POLÍTICO
A3: ELECCIONES DICIEMBRE 2010
A4: (cifras absolutas y relativas)
A6: PARTIDO POLÍTICO | B6: TOTAL | G6: EN PROPIEDAD | L6: EN SUPLENCIA
B7: TOTAL | C7: MUJERES | E7: HOMBRES | G7: TOTAL | H7: MUJERES | J7: HOMBRES | L7: TOTAL | M7: MUJERES | O7: HOMBRES
C8: Absoluto | D8: % | E8: Absoluto | F8: % | H8: Absoluto | I8: % | J8: Absoluto | K8: % | M8: Absoluto | N8: % | O8: Absoluto | P8: %
A10: TOTAL | B10: =+G10+L10 -> 3726 | C10: =+H10+M10 -> 1809 | D10: =+C10/B10*100 -> 48.55072464 | E10: =+J10+O10 -> 1917 | F10: =+E10/B10*100 -> 51.44927536 | G10: =SUM(G12:G50) -> 1888 | H10: =SUM(H12:H50) -> 908 | I10: =+H10/$G10*100 -> 48.09322034 | J10: =SUM(J12:J50) -> 980 | K10: =+J10/$G10*100 -> 51.90677966 | L10: =SUM(L12:L50) -> 1838 | M10: =SUM(M12:M50) -> 901 | N10: =+M10/L10*100 -> 49.02067465 | O10: =SUM(O12:O50) -> 937 | P10: =+O10/L10*100 -> 50.97932535
A12: ACCESIBILIDAD SIN EXCLUSIÓN | B12: =+G12+L12 -> 78 | C12: 38 | D12: =+C12/B12*100 -> 48.71794872 | E12: 40 | F12: =+E12/B12*100 -> 51.28205128 | G12: =+H12+J12 -> 40 | H12: =17+0 -> 17 | I12: =+H12/$G12*100 -> 42.5 | J12: =22+1 -> 23 | K12: =+J12/$G12*100 -> 57.5 | L12: =+M12+O12 -> 38 | M12: =20+1 -> 21 | N12: =+M12/L12*100 -> 55.26315789 | O12: =17+0 -> 17 | P12: =+O12/L12*100 -> 44.73684211
A13: ACCIÓN CANTONAL SIQUIRRES INDEPENDIENTE | B13: 4 | C13: 2 | D13: =+C13/B13*100 -> 50 | E13: 2 | F13: =+E13/B13*100 -> 50 | G13: 2 | H13: 1 | I13: =+H13/$G13*100 -> 50 | J13: 1 | K13: 50 | L13: 2 | M13: 1 | N13: =+M13/L13*100 -> 50 | O13: 1 | P13: =+O13/L13*100 -> 50
A14: ACCIÓN CIUDADANA | B14: 440 | C14: 217 | D14: 49.31818182 | E14: 223 | F14: 50.68181818 | G14: =+H14+J14 -> 225 | H14: =106+2 -> 108 | I14: 48 | J14: =116+1 -> 117 | K14: 52 | L14: =+M14+O14 -> 215 | M14: =108+1 -> 109 | N14: 50.69767442 | O14: =104+2 -> 106 | P14: 49.30232558
A15: ACUERDO CANTONAL DESAMPARADEÑO | B15: 6 | C15: 3 | D15: 50 | E15: 3 | F15: 50 | G15: 3 | H15: 1 | I15: 33.33333333 | J15: 2 | K15: 66.66666667 | L15: 3 | M15: 2 | N15: 66.66666667 | O15: 1 | P15: 33.33333333
A16: ALIANZA PATRIÓTICA | B16: 12 | C16: 5 | D16: 41.66666667 | E16: 7 | F16: 58.33333333 | G16: 6 | H16: 5 | I16: 83.33333333 | J16: 1 | K16: 16.66666667 | L16: 6 | M16: 0 | N16: 0 | O16: 6 | P16: 100
A17: AUTÉNTICO LABRADOR DE CORONADO | B17: 8 | C17: 5 | D17: 62.5 | E17: 3 | F17: 37.5 | G17: 4 | H17: 1 | I17: 25 | J17: 3 | K17: 75 | L17: 4 | M17: 4 | N17: 100 | O17: 0 | P17: 0
A18: AUTÓNOMO OROMONTANO | B18: 6 | C18: 3 | D18: 50 | E18: 3 | F18: 50 | G18: 3 | H18: 2 | I18: 66.66666667 | J18: 1 | K18: 33.33333333 | L18: 3 | M18: 1 | N18: 33.33333333 | O18: 2 | P18: 66.66666667
A19: CÍVICO DE TIBÁS FUENTEOVEJUNA | B19: 2 | C19: 2 | D19: 100 | E19: 0 | F19: 0 | G19: 1 | H19: 1 | I19: 100 | J19: 0 | K19: 0 | L19: 1 | M19: 1 | N19: 100 | O19: 0 | P19: 0
A20: COALICIÓN BARVA UNIDA | B20: 4 | C20: 2 | D20: 50 | E20: 2 | F20: 50 | G20: 2 | H20: 2 | I20: 100 | J20: 0 | K20: 0 | L20: 2 | M20: 0 | N20: 0 | O20: 2 | P20: 100
A21: COALICIÓN CARTAGO UNIDO | B21: 38 | C21: 19 | D21: 50 | E21: 19 | F21: 50 | G21: 19 | H21: 9 | I21: 47.36842105 | J21: 10 | K21: 52.63157895 | L21: 19 | M21: 10 | N21: 52.63157895 | O21: 9 | P21: 47.36842105
A22: COALICIÓN MONTES DE OCA UNIDA | B22: 8 | C22: 4 | D22: 50 | E22: 4 | F22: 50 | G22: 4 | H22: 3 | I22: 75 | J22: 1 | K22: 25 | L22: 4 | M22: 1 | N22: 25 | O22: 3 | P22: 75
A23: COALICIÓN PARTIDO ALIANZA ZARCEREÑA | B23: 4 | C23: 2 | D23: 50 | E23: 2 | F23: 50 | G23: 2 | H23: 1 | I23: 50 | J23: 1 | K23: 50 | L23: 2 | M23: 1 | N23: 50 | O23: 1 | P23: 50
A24: COALICIÓN RAMONENSE | B24: 33 | C24: 16 | D24: 48.48484848 | E24: 17 | F24: 51.51515152 | G24: 17 | H24: 11 | I24: 64.70588235 | J24: 6 | K24: 35.29411765 | L24: 16 | M24: 5 | N24: 31.25 | O24: 11 | P24: 68.75
A25: COALICIÓN UNIDOS POR SAN CARLOS | B25: 48 | C25: 25 | D25: 52.08333333 | E25: 23 | F25: 47.91666667 | G25: 24 | H25: 13 | I25: 54.16666667 | J25: 11 | K25: 45.83333333 | L25: 24 | M25: 12 | N25: 50 | O25: 12 | P25: 50
A26: COALICIÓN UNIÓN LIBERIANA | B26: 2 | C26: 1 | D26: 50 | E26: 1 | F26: 50 | G26: 1 | H26: 1 | I26: 100 | J26: 0 | K26: 0 | L26: 1 | M26: 0 | N26: 0 | O26: 1 | P26: 100
A27: CURRIDABAT SIGLO XXI | B27: 24 | C27: 16 | D27: 66.66666667 | E27: 8 | F27: 33.33333333 | G27: 12 | H27: 8 | I27: 66.66666667 | J27: 4 | K27: 33.33333333 | L27: 12 | M27: 8 | N27: 66.66666667 | O27: 4 | P27: 33.33333333
A28: DEL SOL | B28: 22 | C28: 10 | D28: 45.45454545 | E28: 12 | F28: 54.54545455 | G28: 11 | H28: 5 | I28: 45.45454545 | J28: 6 | K28: 54.54545455 | L28: 11 | M28: 5 | N28: 45.45454545 | O28: 6 | P28: 54.54545455
A29: EL PUENTE Y LOS CAMINOS DE MORA | B29: 8 | C29: 4 | D29: 50 | E29: 4 | F29: 50 | G29: 4 | H29: 2 | I29: 50 | J29: 2 | K29: 50 | L29: 4 | M29: 2 | N29: 50 | O29: 2 | P29: 50
A30: FRENTE AMPLIO | B30: 8 | C30: 4 | D30: 50 | E30: 4 | F30: 50 | G30: 4 | H30: 3 | I30: 75 | J30: 1 | K30: 25 | L30: 4 | M30: 1 | N30: 25 | O30: 3 | P30: 75
A31: GARABITO ECOLÓGICO | B31: 6 | C31: 3 | D31: 50 | E31: 3 | F31: 50 | G31: 3 | H31: 1 | I31: 33.33333333 | J31: 2 | K31: 66.66666667 | L31: 3 | M31: 2 | N31: 66.66666667 | O31: 1 | P31: 33.33333333
A32: GOICOECHEA EN ACCIÓN | B32: 8 | C32: 3 | D32: 37.5 | E32: 5 | F32: 62.5 | G32: 4 | H32: 1 | I32: 25 | J32: 3 | K32: 75 | L32: 4 | M32: 2 | N32: 50 | O32: 2 | P32: 50
A33: INDEPENDIENTE BELEMITA | B33: 4 | C33: 1 | D33: 25 | E33: 3 | F33: 75 | G33: 2 | H33: 1 | I33: 50 | J33: 1 | K33: 50 | L33: 2 | M33: 0 | N33: 0 | O33: 2 | P33: 100
A34: INTEGRACIÓN NACIONAL | B34: 46 | C34: 20 | D34: 43.47826087 | E34: 26 | F34: 56.52173913 | G34: 24 | H34: 10 | I34: 41.66666667 | J34: 14 | K34: 58.33333333 | L34: 22 | M34: 10 | N34: 45.45454545 | O34: 12 | P34: 54.54545455
A35: LIBERACIÓN NACIONAL | B35: 1847 | C35: 902 | D35: 48.83595019 | E35: 945 | F35: 51.16404981 | G35: =+H35+J35 -> 931 | H35: =452+6 -> 458 | I35: 49.19441461 | J35: =465+8 -> 473 | K35: 50.80558539 | L35: =+M35+O35 -> 916 | M35: =439+5 -> 444 | N35: 48.47161572 | O35: =463+9 -> 472 | P35: 51.52838428
A36: MOVIMIENTO AVANCE SANTO DOMINGO | B36: 18 | C36: 9 | D36: 50 | E36: 9 | F36: 50 | G36: 9 | H36: 5 | I36: 55.55555556 | J36: 4 | K36: 44.44444444 | L36: 9 | M36: 4 | N36: 44.44444444 | O36: 5 | P36: 55.55555556
A37: MOVIMIENTO DE TRABAJADORES Y CAMPESINOS | B37: 2 | C37: 0 | D37: 0 | E37: 2 | F37: 100 | G37: 1 | H37: 0 | I37: 0 | J37: 1 | K37: 100 | L37: 1 | M37: 0 | N37: 0 | O37: 1 | P37: 100
A38: MOVIMIENTO LIBERTARIO | B38: 296 | C38: 137 | D38: 46.28378378 | E38: 159 | F38: 53.71621622 | G38: =+H38+J38 -> 149 | H38: =59+3 -> 62 | I38: 41.61073826 | J38: =85+2 -> 87 | K38: 58.38926174 | L38: =+M38+O38 -> 147 | M38: =73+2 -> 75 | N38: 51.02040816 | O38: =69+3 -> 72 | P38: 48.97959184
A39: ORGANIZACIÓN SOCIAL ACTIVA | B39: 8 | C39: 7 | D39: 87.5 | E39: 1 | F39: 12.5 | G39: 4 | H39: 4 | I39: 100 | J39: 0 | K39: 0 | L39: 4 | M39: 3 | N39: 75 | O39: 1 | P39: 25
A40: RENOVACIÓN COSTARRICENSE | B40: 49 | C40: 24 | D40: 48.97959184 | E40: 25 | F40: 51.02040816 | G40: 25 | H40: 13 | I40: 52 | J40: 12 | K40: 48 | L40: 24 | M40: 11 | N40: 45.83333333 | O40: 13 | P40: 54.16666667
A41: RENOVEMOS ALAJUELA | B41: 22 | C41: 11 | D41: 50 | E41: 11 | F41: 50 | G41: 11 | H41: 5 | I41: 45.45454545 | J41: 6 | K41: 54.54545455 | L41: 11 | M41: 6 | N41: 54.54545455 | O41: 5 | P41: 45.45454545
A42: TARRAZÚ PRIMERO | B42: 6 | C42: 1 | D42: 16.66666667 | E42: 5 | F42: 83.33333333 | G42: 3 | H42: 1 | I42: 33.33333333 | J42: 2 | K42: 66.66666667 | L42: 3 | M42: 0 | N42: 0 | O42: 3 | P42: 100
A43: TODO POR FLORES | B43: 8 | C43: 4 | D43: 50 | E43: 4 | F43: 50 | G43: 4 | H43: 1 | I43: 25 | J43: 3 | K43: 75 | L43: 4 | M43: 3 | N43: 75 | O43: 1 | P43: 25
A44: ÚNICO ABANGAREÑO | B44: 6 | C44: 4 | D44: 66.66666667 | E44: 2 | F44: 33.33333333 | G44: =+H44+J44 -> 3 | H44: =1+1 -> 2 | I44: 66.66666667 | J44: =1+0 -> 1 | K44: 33.33333333 | L44: =+M44+O44 -> 3 | M44: =2+0 -> 2 | N44: 66.66666667 | O44: 1 | P44: 33.33333333
A45: UNIDAD SOCIAL CRISTIANA | B45: 555 | C45: 264 | D45: 47.56756757 | E45: 291 | F45: 52.43243243 | G45: =+H45+J45 -> 283 | H45: =129+1 -> 130 | I45: 45.93639576 | J45: =148+5 -> 153 | K45: 54.06360424 | L45: =+M45+O45 -> 272 | M45: =131+3 -> 134 | N45: 49.26470588 | O45: =135+3 -> 138 | P45: 50.73529412
A46: UNIÓN AGRÍCOLA CARTAGINÉS | B46: 18 | C46: 9 | D46: 50 | E46: 9 | F46: 50 | G46: =+H46+J46 -> 9 | H46: =2+1 -> 3 | I46: 33.33333333 | J46: =5+1 -> 6 | K46: 66.66666667 | L46: =+M46+O46 -> 9 | M46: =5+1 -> 6 | N46: 66.66666667 | O46: =2+1 -> 3 | P46: 33.33333333
A47: UNIÓN ATENIENSE | B47: 30 | C47: 13 | D47: 43.33333333 | E47: 17 | F47: 56.66666667 | G47: 16 | H47: 5 | I47: 31.25 | J47: 11 | K47: 68.75 | L47: 14 | M47: 8 | N47: 57.14285714 | O47: 6 | P47: 42.85714286
A48: UNIÓN PALMAREÑA | B48: 20 | C48: 9 | D48: 45 | E48: 11 | F48: 55 | G48: 10 | H48: 5 | I48: 50 | J48: 5 | K48: 50 | L48: 10 | M48: 4 | N48: 40 | O48: 6 | P48: 60
A49: UNIÓN POASEÑA | B49: 12 | C49: 5 | D49: 41.66666667 | E49: 7 | F49: 58.33333333 | G49: 8 | H49: 4 | I49: 50 | J49: 4 | K49: 50 | L49: 4 | M49: 1 | N49: 25 | O49: 3 | P49: 75
A50: YUNTA PROGRESISTA ESCAZUCEÑA | B50: 10 | C50: 5 | D50: 50 | E50: 5 | F50: 50 | G50: 5 | H50: 3 | I50: 60 | J50: 2 | K50: 40 | L50: 5 | M50: 2 | N50: 40 | O50: 3 | P50: 60
A53: 1/ Incluye Concejales de Distrito y Concejales Municipales de Distrito.
A54: Fuente: Tribunal Supremo de Elecciones.

Sheet 1.11
A2: CUADRO 1.11 COSTA RICA: INTENDENTES Y VICEINTENDENTES ELECTOS(AS)
A3: POR SEXO, SEGÚN PARTIDO POLÍTICO
A4: ELECCIONES DICIEMBRE 2010
A5: (cifras absolutas y relativas)
A7: PARTIDO POLÍTICO | B7: INTENDENTE | G7: VICEINTENDENTE
B8: TOTAL | C8: MUJERES | E8: HOMBRES | G8: TOTAL | H8: MUJERES | J8: HOMBRES
C9: Absoluto | D9: % | E9: Absoluto | F9: % | H9: Absoluto | I9: % | J9: Absoluto | K9: %
A11: TOTAL | B11: 8 | C11: 2 | D11: =+C11/$B11*100 -> 25 | E11: 6 | F11: =+E11/$B11*100 -> 75 | G11: 8 | H11: 6 | I11: =+H11/$G11*100 -> 75 | J11: 2 | K11: =+J11/$G11*100 -> 25
A13: LIBERACIÓN NACIONAL | B13: 4 | C13: 0 | D13: =+C13/$B13*100 -> 0 | E13: 4 | F13: =+E13/$B13*100 -> 100 | G13: 4 | H13: 4 | I13: =+H13/$G13*100 -> 100 | J13: 0 | K13: =+J13/$G13*100 -> 0
A14: UNIDAD SOCIAL CRISTIANA | B14: 1 | C14: 0 | D14: =+C14/$B14*100 -> 0 | E14: 1 | F14: =+E14/$B14*100 -> 100 | G14: 1 | H14: 1 | I14: =+H14/$G14*100 -> 100 | J14: 0 | K14: =+J14/$G14*100 -> 0
A15: MOVIMIENTO LIBERTARIO | B15: 1 | C15: 1 | D15: =+C15/$B15*100 -> 100 | E15: 0 | F15: =+E15/$B15*100 -> 0 | G15: 1 | H15: 0 | I15: =+H15/$G15*100 -> 0 | J15: 1 | K15: =+J15/$G15*100 -> 100
A16: ACCIÓN CIUDADANA | B16: 1 | C16: 1 | D16: =+C16/$B16*100 -> 100 | E16: 0 | F16: =+E16/$B16*100 -> 0 | G16: 1 | H16: 0 | I16: =+H16/$G16*100 -> 0 | J16: 1 | K16: =+J16/$G16*100 -> 100
A17: UNIÓN AGRÍCOLA CARTAGINÉS | B17: 1 | C17: 0 | D17: =+C17/$B17*100 -> 0 | E17: 1 | F17: =+E17/$B17*100 -> 100 | G17: 1 | H17: 1 | I17: =+H17/$G17*100 -> 100 | J17: 0 | K17: =+J17/$G17*100 -> 0
A20: Fuente: Tribunal Supremo de Elecciones.

Sheet 1.12
A1: CUADRO 1.12 COSTA RICA: ALCALDES(AS) Y VICEALCALDES(AS) ELECTOS(AS)
A2: POR SEXO, SEGÚN PROVINCIA, ELECCIONES DICIEMBRE 2010
A3: (cifras absolutas y relativas)
A5: PROVINCIA | B5: ALCALDES(AS) | G5: VICEALCALDES(AS) PRIMEROS(AS) | L5: VICEALCALDES(AS) SEGUNDOS(AS) 1/
B6: TOTAL | C6: MUJERES | E6: HOMBRES | G6: TOTAL | H6: MUJERES | J6: HOMBRES | L6: TOTAL | M6: MUJERES | O6: HOMBRES
C7: Absoluto | D7: % | E7: Absoluto | F7: % | H7: Absoluto | I7: % | J7: Absoluto | K7: % | M7: Absoluto | N7: % | O7: Absoluto | P7: %
A9: TOTAL | B9: =SUM(B11:B17) -> 81 | C9: =SUM(C11:C17) -> 10 | D9: =+C9/$B9*100 -> 12.34567901 | E9: =SUM(E11:E17) -> 71 | F9: =+E9/$B9*100 -> 87.65432099 | G9: =SUM(G11:G17) -> 81 | H9: =SUM(H11:H17) -> 71 | I9: =+H9/$G9*100 -> 87.65432099 | J9: =SUM(J11:J17) -> 10 | K9: =+J9/$G9*100 -> 12.34567901 | L9: =SUM(L11:L17) -> 79 | M9: =SUM(M11:M17) -> 14 | N9: =+M9/$L9*100 -> 17.72151899 | O9: =SUM(O11:O17) -> 65 | P9: =+O9/$L9*100 -> 82.27848101
A11: SAN JOSÉ | B11: 20 | C11: 1 | D11: =+C11/$B11*100 -> 5 | E11: 19 | F11: =+E11/$B11*100 -> 95 | G11: 20 | H11: 19 | I11: =+H11/$G11*100 -> 95 | J11: 1 | K11: =+J11/$G11*100 -> 5 | L11: 19 | M11: 4 | N11: =+M11/$L11*100 -> 21.05263158 | O11: 15 | P11: =+O11/$L11*100 -> 78.94736842
A12: ALAJUELA | B12: 15 | C12: 3 | D12: 20 | E12: 12 | F12: 80 | G12: 15 | H12: 12 | I12: 80 | J12: 3 | K12: 20 | L12: 15 | M12: 4 | N12: 26.66666667 | O12: 11 | P12: 73.33333333
A13: CARTAGO | B13: 8 | C13: 1 | D13: 12.5 | E13: 7 | F13: 87.5 | G13: 8 | H13: 7 | I13: 87.5 | J13: 1 | K13: 12.5 | L13: 8 | M13: 0 | N13: 0 | O13: 8 | P13: 100
A14: HEREDIA | B14: 10 | C14: 3 | D14: 30 | E14: 7 | F14: 70 | G14: 10 | H14: 7 | I14: 70 | J14: 3 | K14: 30 | L14: 10 | M14: 1 | N14: 10 | O14: 9 | P14: 90
A15: GUANACASTE | B15: 11 | C15: 0 | D15: 0 | E15: 11 | F15: 100 | G15: 11 | H15: 11 | I15: 100 | J15: 0 | K15: 0 | L15: 10 | M15: 1 | N15: 10 | O15: 9 | P15: 90
A16: PUNTARENAS | B16: 11 | C16: 1 | D16: 9.090909091 | E16: 10 | F16: 90.90909091 | G16: 11 | H16: 10 | I16: 90.90909091 | J16: 1 | K16: 9.090909091 | L16: 11 | M16: 2 | N16: 18.18181818 | O16: 9 | P16: 81.81818182
A17: LIMÓN | B17: 6 | C17: 1 | D17: 16.66666667 | E17: 5 | F17: 83.33333333 | G17: 6 | H17: 5 | I17: 83.33333333 | J17: 1 | K17: 16.66666667 | L17: 6 | M17: 2 | N17: 33.33333333 | O17: 4 | P17: 66.66666667
A20: 1/ En los cantones de Aserrí y Hojancha el partido ganador fue Acción Ciudadana, pero no propuso candidaturas para Vicealcalde(sa) Segundo(a).
A21: Fuente: Tribunal Supremo de Elecciones.

Sheet 1.13
A2: CUADRO 1.13 COSTA RICA: SÍNDICOS(AS) ELECTOS(AS), POR CARGO Y SEXO, SEGÚN PROVINCIA
A3: ELECCIONES DICIEMBRE 2010
A4: (cifras absolutas y relativas)
A6: PROVINCIA | B6: TOTAL | G6: EN PROPIEDAD | L6: EN SUPLENCIA
B7: TOTAL | C7: MUJERES | E7: HOMBRES | G7: TOTAL | H7: MUJERES | J7: HOMBRES | L7: TOTAL | M7: MUJERES | O7: HOMBRES
C8: Absoluto | D8: % | E8: Absoluto | F8: % | H8: Absoluto | I8: % | J8: Absoluto | K8: % | M8: Absoluto | N8: % | O8: Absoluto | P8: %
A9: TOTAL | B9: 1806 | C9: 888 | D9: =+C9/$B9*100 -> 49.16943522 | E9: 918 | F9: =+E9/$B9*100 -> 50.83056478 | G9: 470 | H9: 128 | I9: =+H9/$G9*100 -> 27.23404255 | J9: 342 | K9: =+J9/$G9*100 -> 72.76595745 | L9: 457 | M9: 333 | N9: =+M9/$L9*100 -> 72.86652079 | O9: 124 | P9: =+O9/$L9*100 -> 27.13347921
A10: SAN JOSÉ | B10: 461 | C10: 230 | D10: 49.89154013 | E10: 231 | F10: 50.10845987 | G10: 120 | H10: 38 | I10: 31.66666667 | J10: 82 | K10: 68.33333333 | L10: 119 | M10: 81 | N10: 68.06722689 | O10: 38 | P10: 31.93277311
A11: ALAJUELA | B11: 414 | C11: 193 | D11: 46.61835749 | E11: 221 | F11: 53.38164251 | G11: 111 | H11: 27 | I11: 24.32432432 | J11: 84 | K11: 75.67567568 | L11: 108 | M11: 81 | N11: 75 | O11: 27 | P11: 25
A12: CARTAGO | B12: 196 | C12: 98 | D12: 50 | E12: 98 | F12: 50 | G12: 51 | H12: 11 | I12: 21.56862745 | J12: 40 | K12: 78.43137255 | L12: 49 | M12: 39 | N12: 79.59183673 | O12: 10 | P12: 20.40816327
A13: HEREDIA | B13: 185 | C13: 93 | D13: 50.27027027 | E13: 92 | F13: 49.72972973 | G13: 46 | H13: 17 | I13: 36.95652174 | J13: 29 | K13: 63.04347826 | L13: 47 | M13: 30 | N13: 63.82978723 | O13: 17 | P13: 36.17021277
A14: GUANACASTE | B14: 231 | C14: 116 | D14: 50.21645022 | E14: 115 | F14: 49.78354978 | G14: 59 | H14: 15 | I14: 25.42372881 | J14: 44 | K14: 74.57627119 | L14: 55 | M14: 41 | N14: 74.54545455 | O14: 14 | P14: 25.45454545
A15: PUNTARENAS | B15: 207 | C15: 98 | D15: 47.34299517 | E15: 109 | F15: 52.65700483 | G15: 56 | H15: 13 | I15: 23.21428571 | J15: 43 | K15: 76.78571429 | L15: 52 | M15: 41 | N15: 78.84615385 | O15: 11 | P15: 21.15384615
A16: LIMÓN | B16: 112 | C16: 60 | D16: 53.57142857 | E16: 52 | F16: 46.42857143 | G16: 27 | H16: 7 | I16: 25.92592593 | J16: 20 | K16: 74.07407407 | L16: 27 | M16: 20 | N16: 74.07407407 | O16: 7 | P16: 25.92592593
A19: Fuente: Tribunal Supremo de Elecciones.

Sheet 1.14
A2: CUADRO 1.14 COSTA RICA: CONCEJALES 1/ ELECTOS(AS), POR CARGO Y SEXO, SEGÚN PROVINCIA
A3: ELECCIONES DICIEMBRE 2010
A4: (cifras absolutas y relativas)
A6: PROVINCIA | B6: TOTAL | G6: EN PROPIEDAD | L6: EN SUPLENCIA
B7: TOTAL | C7: MUJERES | E7: HOMBRES | G7: TOTAL | H7: MUJERES | J7: HOMBRES | L7: TOTAL | M7: MUJERES | O7: HOMBRES
C8: Absoluto | D8: % | E8: Absoluto | F8: % | H8: Absoluto | I8: % | J8: Absoluto | K8: % | M8: Absoluto | N8: % | O8: Absoluto | P8: %
A10: TOTAL | B10: =+G10+L10 -> 3502 | C10: =+H10+M10 -> 1695 | D10: =+C10/B10*100 -> 48.40091376 | E10: =+J10+O10 -> 1807 | F10: =+E10/B10*100 -> 51.59908624 | G10: =SUM(G12:G17) -> 1776 | H10: =SUM(H12:H17) -> 854 | I10: =+H10/G10*100 -> 48.08558559 | J10: =SUM(J12:J17) -> 922 | K10: =+J10/G10*100 -> 51.91441441 | L10: =+M10+O10 -> 1726 | M10: =SUM(M12:M17) -> 841 | N10: =+M10/L10*100 -> 48.72537659 | O10: =SUM(O12:O17) -> 885 | P10: =+O10/L10*100 -> 51.27462341
A12: SAN JOSÉ | B12: =+C12+E12 -> 941 | C12: 460 | D12: =+C12/B12*100 -> 48.88416578 | E12: 481 | F12: =+E12/B12*100 -> 51.11583422 | G12: =+H12+J12 -> 480 | H12: 230 | I12: =+H12/G12*100 -> 47.91666667 | J12: 250 | K12: =+J12/G12*100 -> 52.08333333 | L12: =+M12+O12 -> 461 | M12: 230 | N12: =+M12/L12*100 -> 49.89154013 | O12: 231 | P12: =+O12/L12*100 -> 50.10845987
A13: ALAJUELA | B13: =+C13+E13 -> 862 | C13: 408 | D13: =+C13/B13*100 -> 47.33178654 | E13: 454 | F13: =+E13/B13*100 -> 52.66821346 | G13: =+H13+J13 -> 444 | H13: 213 | I13: =+H13/G13*100 -> 47.97297297 | J13: 231 | K13: =+J13/G13*100 -> 52.02702703 | L13: =+M13+O13 -> 418 | M13: 195 | N13: =+M13/L13*100 -> 46.6507177 | O13: 223 | P13: =+O13/L13*100 -> 53.3492823
A14: CARTAGO | B14: 408 | C14: 199 | D14: 48.7745098 | E14: 209 | F14: 51.2254902 | G14: 204 | H14: 98 | I14: 48.03921569 | J14: 106 | K14: 51.96078431 | L14: 204 | M14: 101 | N14: 49.50980392 | O14: 103 | P14: 50.49019608
A15: HEREDIA | B15: 373 | C15: 184 | D15: 49.32975871 | E15: 189 | F15: 50.67024129 | G15: 188 | H15: 91 | I15: 48.40425532 | J15: 97 | K15: 51.59574468 | L15: 185 | M15: 93 | N15: 50.27027027 | O15: 92 | P15: 49.72972973
A16: GUANACASTE | B16: 471 | C16: 237 | D16: 50.31847134 | E16: 234 | F16: 49.68152866 | G16: 236 | H16: 120 | I16: 50.84745763 | J16: 116 | K16: 49.15254237 | L16: 235 | M16: 117 | N16: 49.78723404 | O16: 118 | P16: 50.21276596
A17: PUNTARENAS | B17: 447 | C17: 207 | D17: 46.30872483 | E17: 240 | F17: 53.69127517 | G17: 224 | H17: 102 | I17: 45.53571429 | J17: 122 | K17: 54.46428571 | L17: 223 | M17: 105 | N17: 47.08520179 | O17: 118 | P17: 52.91479821
A18: LIMÓN | B18: 224 | C18: 114 | D18: 50.89285714 | E18: 110 | F18: 49.10714286 | G18: 112 | H18: 54 | I18: 48.21428571 | J18: 58 | K18: 51.78571429 | L18: 112 | M18: 60 | N18: 53.57142857 | O18: 52 | P18: 46.42857143
A21: 1/ Incluye Concejales de Distrito y Concejales Municipales de Distrito.
A22: Fuente: Tribunal Supremo de Elecciones.

Sheet 1.15
A2: CUADRO 1.15 COSTA RICA: INTENDENTES Y VICEINTENDENTES ELECTOS(AS)
A3: POR SEXO, SEGÚN PROVINCIA
A4: ELECCIONES DICIEMBRE 2010
A5: (cifras absolutas y relativas)
A7: PROVINCIA | B7: INTENDENTE | G7: VICEINTENDENTE
B8: TOTAL | C8: MUJERES | E8: HOMBRES | G8: TOTAL | H8: MUJERES | J8: HOMBRES
C9: Absoluto | D9: % | E9: Absoluto | F9: % | H9: Absoluto | I9: % | J9: Absoluto | K9: %
A11: TOTAL | B11: 8 | C11: 2 | D11: =+C11/$B11*100 -> 25 | E11: 6 | F11: =+E11/$B11*100 -> 75 | G11: 8 | H11: 6 | I11: =+H11/$G11*100 -> 75 | J11: 2 | K11: =+J11/$G11*100 -> 25
A13: ALAJUELA | B13: 1 | C13: 0 | D13: =+C13/$B13*100 -> 0 | E13: 1 | F13: =+E13/$B13*100 -> 100 | G13: 1 | H13: 1 | I13: =+H13/$G13*100 -> 100 | J13: 0 | K13: =+J13/$G13*100 -> 0
A14: CARTAGO | B14: 2 | C14: 0 | D14: =+C14/$B14*100 -> 0 | E14: 2 | F14: =+E14/$B14*100 -> 100 | G14: 2 | H14: 2 | I14: =+H14/$G14*100 -> 100 | J14: 0 | K14: =+J14/$G14*100 -> 0
A15: GUANACASTE | B15: 1 | C15: 1 | D15: =+C15/$B15*100 -> 100 | E15: 0 | F15: =+E15/$B15*100 -> 0 | G15: 1 | H15: 0 | I15: =+H15/$G15*100 -> 0 | J15: 1 | K15: =+J15/$G15*100 -> 100
A16: PUNTARENAS | B16: 4 | C16: 1 | D16: =+C16/$B16*100 -> 25 | E16: 3 | F16: =+E16/$B16*100 -> 75 | G16: 4 | H16: 3 | I16: =+H16/$G16*100 -> 75 | J16: 1 | K16: =+J16/$G16*100 -> 25
A19: Fuente: Tribunal Supremo de Elecciones.

Sheet 1.16
A1: CUADRO 1.16 COSTA RICA: CANDIDATOS(AS) ELECTOS(AS) ALCALDES(SAS), INTENDENTES, SÍNDICOS(AS) EN PROPIEDAD
A2: Y CONCEJALES EN PROPIEDAD, SEGÚN GRUPOS DE EDAD, ELECCIONES DICIEMBRE 2010
A3: (cifras absolutas y relativas)
A5: GRUPOS DE EDAD | B5: ALCALDES(AS) | D5: SÍNDICOS(AS) EN PROPIEDAD | F5: CONCEJALES EN PROPIEDAD 1/ | H5: INTENDENTES
B6: Absoluto | C6: % | D6: Absoluto | E6: % | F6: Absoluto | G6: % | H6: Absoluto | I6: %
A8: TOTAL | B8: =SUM(B9:B21) -> 81 | C8: =+B8/B$8*100 -> 100 | D8: =SUM(D9:D21) -> 470 | E8: =+D8/D$8*100 -> 100 | F8: =SUM(F9:F21) -> 1888 | G8: =+F8/F$8*100 -> 100 | H8: =SUM(H9:H21) -> 8 | I8: =+H8/H$8*100 -> 100
A9: MENOS DE 25 AÑOS | B9: 0 | C9: =+B9/B$8*100 -> 0 | D9: 13 | E9: 2.765957447 | F9: 85 | G9: =+F9/F$8*100 -> 4.502118644 | H9: 0 | I9: 0
A10: DE 25 A 29 AÑOS | B10: 0 | C10: 0 | D10: 11 | E10: 2.340425532 | F10: 127 | G10: 6.726694915 | H10: 1 | I10: 12.5
A11: DE 30 A 34 AÑOS | B11: 1 | C11: 1.234567901 | D11: 21 | E11: 4.468085106 | F11: 167 | G11: 8.845338983 | H11: 0 | I11: 0
A12: DE 35 A 39 AÑOS | B12: 5 | C12: 6.172839506 | D12: 39 | E12: 8.29787234 | F12: 209 | G12: 11.06991525 | H12: 1 | I12: 12.5
A13: DE 40 A 44 AÑOS | B13: 14 | C13: 17.28395062 | D13: 58 | E13: 12.34042553 | F13: 293 | G13: 15.5190678 | H13: 2 | I13: 25
A14: DE 45 A 49 AÑOS | B14: 19 | C14: 23.45679012 | D14: 106 | E14: 22.55319149 | F14: 299 | G14: 15.83686441 | H14: 1 | I14: 12.5
A15: DE 50 A 54 AÑOS | B15: 22 | C15: 27.16049383 | D15: 80 | E15: 17.0212766 | F15: 260 | G15: 13.77118644 | H15: 1 | I15: 12.5
A16: DE 55 A 59 AÑOS | B16: 13 | C16: 16.04938272 | D16: 63 | E16: 13.40425532 | F16: 200 | G16: 10.59322034 | H16: 1 | I16: 12.5
A17: DE 60 A 64 AÑOS | B17: 5 | C17: 6.172839506 | D17: 36 | E17: 7.659574468 | F17: 132 | G17: 6.991525424 | H17: 1 | I17: 12.5
A18: DE 65 A 69 AÑOS | B18: 1 | C18: 1.234567901 | D18: 33 | E18: 7.021276596 | F18: 76 | G18: 4.025423729 | H18: 0 | I18: 0
A19: DE 70 A 74 AÑOS | B19: 1 | C19: 1.234567901 | D19: 9 | E19: 1.914893617 | F19: 27 | G19: 1.430084746 | H19: 0 | I19: 0
A20: DE 75 A 79 AÑOS | B20: 0 | C20: 0 | D20: 1 | E20: 0.2127659574 | F20: 10 | G20: 0.5296610169 | H20: 0 | I20: 0
A21: DE 80 A 84 AÑOS | B21: 0 | C21: 0 | D21: 0 | E21: 0 | F21: 3 | G21: 0.1588983051 | H21: 0 | I21: 0
A24: 1/ Incluye Concejales de Distrito y Concejales Municipales de Distrito.
A25: Fuente: Tribunal Supremo de Elecciones.

Sheet 1.17
A2: CUADRO 1.17 COSTA RICA: SÍNDICOS(AS) EN PROPIEDAD Y CONCEJALES EN PROPIEDAD ELECTOS(AS)
A3: POR SEXO, SEGÚN PROVINCIA Y CANTÓN
A4: ELECCIONES DICIEMBRE 2010
A5: (cifras absolutas y relativas)
A7: PROVINCIA Y CANTÓN | B7: SÍNDICOS(AS) EN PROPIEDAD | G7: CONCEJALES EN PROPIEDAD 1/
B8: TOTAL | C8: MUJERES | E8: HOMBRES | G8: TOTAL | H8: MUJERES | J8: HOMBRES
C9: Absoluto | D9: % | E9: Absoluto | F9: % | H9: Absoluto | I9: % | J9: Absoluto | K9: %
A11: COSTA RICA | B11: =+C11+E11 -> 470 | C11: =+C12+C33+C49+C58+C69+C81+C93 -> 128 | D11: =+C11/$B11*100 -> 27.23404255 | E11: =+E12+E33+E49+E58+E69+E81+E93 -> 342 | F11: =+E11/$B11*100 -> 72.76595745 | G11: =+H11+J11 -> 1888 | H11: =+H12+H33+H49+H58+H69+H81+H93 -> 908 | I11: =+H11/$G11*100 -> 48.09322034 | J11: =+J12+J33+J49+J58+J69+J81+J93 -> 980 | K11: =+J11/$G11*100 -> 51.90677966
A12: SAN JOSÉ | B12: =+C12+E12 -> 120 | C12: 38 | D12: =+C12/$B12*100 -> 31.66666667 | E12: 82 | F12: =+E12/$B12*100 -> 68.33333333 | G12: =+H12+J12 -> 480 | H12: 230 | I12: =+H12/$G12*100 -> 47.91666667 | J12: 250 | K12: =+J12/$G12*100 -> 52.08333333
A13: SAN JOSÉ | B13: =+C13+E13 -> 11 | C13: 5 | D13: =+C13/$B13*100 -> 45.45454545 | E13: 6 | F13: =+E13/$B13*100 -> 54.54545455 | G13: =+H13+J13 -> 44 | H13: 21 | I13: =+H13/$G13*100 -> 47.72727273 | J13: 23 | K13: =+J13/$G13*100 -> 52.27272727
A14: ESCAZÚ | B14: 3 | C14: 0 | D14: 0 | E14: 3 | F14: 100 | G14: 12 | H14: 8 | I14: =+H14/$G14*100 -> 66.66666667 | J14: 4 | K14: =+J14/$G14*100 -> 33.33333333
A15: DESAMPARADOS | B15: 13 | C15: 3 | D15: 23.07692308 | E15: 10 | F15: 76.92307692 | G15: 52 | H15: 23 | I15: 44.23076923 | J15: 29 | K15: 55.76923077
A16: PURISCAL | B16: 9 | C16: 3 | D16: 33.33333333 | E16: 6 | F16: 66.66666667 | G16: 36 | H16: 17 | I16: 47.22222222 | J16: 19 | K16: 52.77777778
A17: TARRAZÚ | B17: 3 | C17: 1 | D17: 33.33333333 | E17: 2 | F17: 66.66666667 | G17: 12 | H17: 4 | I17: 33.33333333 | J17: 8 | K17: 66.66666667
A18: ASERRÍ | B18: 7 | C18: 2 | D18: 28.57142857 | E18: 5 | F18: 71.42857143 | G18: 28 | H18: 13 | I18: 46.42857143 | J18: 15 | K18: 53.57142857
A19: MORA | B19: 5 | C19: 2 | D19: 40 | E19: 3 | F19: 60 | G19: 20 | H19: 11 | I19: 55 | J19: 9 | K19: 45
A20: GOICOECHEA | B20: 7 | C20: 2 | D20: 28.57142857 | E20: 5 | F20: 71.42857143 | G20: 28 | H20: 13 | I20: 46.42857143 | J20: 15 | K20: 53.57142857
A21: SANTA ANA | B21: 6 | C21: 2 | D21: 33.33333333 | E21: 4 | F21: 66.66666667 | G21: 24 | H21: 12 | I21: 50 | J21: 12 | K21: 50
A22: ALAJUELITA | B22: 5 | C22: 5 | D22: 100 | E22: 0 | F22: 0 | G22: 20 | H22: 11 | I22: 55 | J22: 9 | K22: 45
A23: VÁZQUEZ DE CORONADO | B23: 5 | C23: 3 | D23: 60 | E23: 2 | F23: 40 | G23: 20 | H23: 8 | I23: 40 | J23: 12 | K23: 60
A24: ACOSTA | B24: 5 | C24: 1 | D24: 20 | E24: 4 | F24: 80 | G24: 20 | H24: 8 | I24: 40 | J24: 12 | K24: 60
A25: TIBÁS | B25: 5 | C25: 1 | D25: 20 | E25: 4 | F25: 80 | G25: 20 | H25: 12 | I25: 60 | J25: 8 | K25: 40
A26: MORAVIA | B26: 3 | C26: 2 | D26: 66.66666667 | E26: 1 | F26: 33.33333333 | G26: 12 | H26: 6 | I26: 50 | J26: 6 | K26: 50
A27: MONTES DE OCA | B27: 4 | C27: 1 | D27: 25 | E27: 3 | F27: 75 | G27: 16 | H27: 12 | I27: 75 | J27: 4 | K27: 25
A28: TURRUBARES | B28: 5 | C28: 0 | D28: 0 | E28: 5 | F28: 100 | G28: 20 | H28: 10 | I28: 50 | J28: 10 | K28: 50
A29: DOTA | B29: 3 | C29: 1 | D29: 33.33333333 | E29: 2 | F29: 66.66666667 | G29: 12 | H29: 5 | I29: 41.66666667 | J29: 7 | K29: 58.33333333
A30: CURRIDABAT | B30: 4 | C30: 2 | D30: 50 | E30: 2 | F30: 50 | G30: 16 | H30: 9 | I30: 56.25 | J30: 7 | K30: 43.75
A31: PÉREZ ZELEDÓN | B31: 11 | C31: 0 | D31: 0 | E31: 11 | F31: 100 | G31: 44 | H31: 15 | I31: 34.09090909 | J31: 29 | K31: 65.90909091
A32: LEÓN CORTÉS | B32: 6 | C32: 2 | D32: 33.33333333 | E32: 4 | F32: 66.66666667 | G32: 24 | H32: 12 | I32: 50 | J32: 12 | K32: 50
A33: ALAJUELA | B33: 111 | C33: 27 | D33: 24.32432432 | E33: 84 | F33: 75.67567568 | G33: 444 | H33: 213 | I33: 47.97297297 | J33: 231 | K33: 52.02702703
A34: ALAJUELA | B34: 14 | C34: 4 | D34: 28.57142857 | E34: 10 | F34: 71.42857143 | G34: 56 | H34: 28 | I34: 50 | J34: 28 | K34: 50
A35: SAN RAMÓN | B35: 13 | C35: 1 | D35: 7.692307692 | E35: 12 | F35: 92.30769231 | G35: 52 | H35: 26 | I35: 50 | J35: 26 | K35: 50
A36: GRECIA | B36: 8 | C36: 3 | D36: 37.5 | E36: 5 | F36: 62.5 | G36: 32 | H36: 15 | I36: 46.875 | J36: 17 | K36: 53.125
A37: SAN MATEO | B37: 3 | C37: 0 | D37: 0 | E37: 3 | F37: 100 | G37: 12 | H37: 7 | I37: 58.33333333 | J37: 5 | K37: 41.66666667
A38: ATENAS | B38: 8 | C38: 1 | D38: 12.5 | E38: 7 | F38: 87.5 | G38: 32 | H38: 12 | I38: 37.5 | J38: 20 | K38: 62.5
A39: NARANJO | B39: 8 | C39: 2 | D39: 25 | E39: 6 | F39: 75 | G39: 32 | H39: 17 | I39: 53.125 | J39: 15 | K39: 46.875
A40: PALMARES | B40: 7 | C40: 4 | D40: 57.14285714 | E40: 3 | F40: 42.85714286 | G40: 28 | H40: 14 | I40: 50 | J40: 14 | K40: 50
A41: POÁS | B41: 5 | C41: 1 | D41: 20 | E41: 4 | F41: 80 | G41: 20 | H41: 8 | I41: 40 | J41: 12 | K41: 60
A42: OROTINA | B42: 5 | C42: 0 | D42: 0 | E42: 5 | F42: 100 | G42: 20 | H42: 9 | I42: 45 | J42: 11 | K42: 55
A43: SAN CARLOS | B43: 13 | C43: 3 | D43: 23.07692308 | E43: 10 | F43: 76.92307692 | G43: 52 | H43: 28 | I43: 53.84615385 | J43: 24 | K43: 46.15384615
A44: ZARCERO | B44: 7 | C44: 2 | D44: 28.57142857 | E44: 5 | F44: 71.42857143 | G44: 28 | H44: 15 | I44: 53.57142857 | J44: 13 | K44: 46.42857143
A45: VALVERDE VEGA | B45: 5 | C45: 2 | D45: 40 | E45: 3 | F45: 60 | G45: 20 | H45: 11 | I45: 55 | J45: 9 | K45: 45
A46: UPALA | B46: 7 | C46: 2 | D46: 28.57142857 | E46: 5 | F46: 71.42857143 | G46: 28 | H46: 13 | I46: 46.42857143 | J46: 15 | K46: 53.57142857
A47: LOS CHILES | B47: 4 | C47: 0 | D47: 0 | E47: 4 | F47: 100 | G47: 16 | H47: 6 | I47: 37.5 | J47: 10 | K47: 62.5
A48: GUATUSO | B48: 4 | C48: 2 | D48: 50 | E48: 2 | F48: 50 | G48: 16 | H48: 4 | I48: 25 | J48: 12 | K48: 75
A49: CARTAGO | B49: 51 | C49: 11 | D49: 21.56862745 | E49: 40 | F49: 78.43137255 | G49: 204 | H49: 98 | I49: 48.03921569 | J49: 106 | K49: 51.96078431
A50: CARTAGO | B50: 11 | C50: 3 | D50: 27.27272727 | E50: 8 | F50: 72.72727273 | G50: 44 | H50: 22 | I50: 50 | J50: 22 | K50: 50
A51: PARAÍSO | B51: 5 | C51: 1 | D51: 20 | E51: 4 | F51: 80 | G51: 20 | H51: 10 | I51: 50 | J51: 10 | K51: 50
A52: LA UNIÓN | B52: 8 | C52: 3 | D52: 37.5 | E52: 5 | F52: 62.5 | G52: 32 | H52: 17 | I52: 53.125 | J52: 15 | K52: 46.875
A53: JIMÉNEZ | B53: 3 | C53: 0 | D53: 0 | E53: 3 | F53: 100 | G53: 12 | H53: 6 | I53: 50 | J53: 6 | K53: 50
A54: TURRIALBA | B54: 12 | C54: 3 | D54: 25 | E54: 9 | F54: 75 | G54: 48 | H54: 21 | I54: 43.75 | J54: 27 | K54: 56.25
A55: ALVARADO | B55: 3 | C55: 0 | D55: 0 | E55: 3 | F55: 100 | G55: 12 | H55: 6 | I55: 50 | J55: 6 | K55: 50
A56: OREAMUNO | B56: 5 | C56: 0 | D56: 0 | E56: 5 | F56: 100 | G56: 20 | H56: 9 | I56: 45 | J56: 11 | K56: 55
A57: EL GUARCO | B57: 4 | C57: 1 | D57: 25 | E57: 3 | F57: 75 | G57: 16 | H57: 7 | I57: 43.75 | J57: 9 | K57: 56.25
A58: HEREDIA | B58: 46 | C58: 17 | D58: 36.95652174 | E58: 29 | F58: 63.04347826 | G58: 188 | H58: 91 | I58: 48.40425532 | J58: 97 | K58: 51.59574468
A59: HEREDIA | B59: 5 | C59: 1 | D59: 20 | E59: 4 | F59: 80 | G59: 20 | H59: 11 | I59: 55 | J59: 9 | K59: 45
A60: BARVA | B60: 6 | C60: 3 | D60: 50 | E60: 3 | F60: 50 | G60: 24 | H60: 13 | I60: 54.16666667 | J60: 11 | K60: 45.83333333
A61: SANTO DOMINGO | B61: 8 | C61: 4 | D61: 50 | E61: 4 | F61: 50 | G61: 32 | H61: 14 | I61: 43.75 | J61: 18 | K61: 56.25
A62: SANTA BÁRBARA | B62: 5 | C62: 4 | D62: 80 | E62: 1 | F62: 20 | G62: 24 | H62: 12 | I62: 50 | J62: 12 | K62: 50
A63: SAN RAFAEL | B63: 5 | C63: 1 | D63: 20 | E63: 4 | F63: 80 | G63: 20 | H63: 8 | I63: 40 | J63: 12 | K63: 60
A64: SAN ISIDRO | B64: 4 | C64: 1 | D64: 25 | E64: 3 | F64: 75 | G64: 16 | H64: 9 | I64: 56.25 | J64: 7 | K64: 43.75
A65: BELÉN | B65: 3 | C65: 2 | D65: 66.66666667 | E65: 1 | F65: 33.33333333 | G65: 12 | H65: 6 | I65: 50 | J65: 6 | K65: 50
A66: FLORES | B66: 3 | C66: 1 | D66: 33.33333333 | E66: 2 | F66: 66.66666667 | G66: 12 | H66: 5 | I66: 41.66666667 | J66: 7 | K66: 58.33333333
A67: SAN PABLO | B67: 2 | C67: 0 | D67: 0 | E67: 2 | F67: 100 | G67: 8 | H67: 3 | I67: 37.5 | J67: 5 | K67: 62.5
A68: SARAPIQUÍ | B68: 5 | C68: 0 | D68: 0 | E68: 5 | F68: 100 | G68: 20 | H68: 10 | I68: 50 | J68: 10 | K68: 50
A69: GUANACASTE | B69: 59 | C69: 15 | D69: 25.42372881 | E69: 44 | F69: 74.57627119 | G69: 236 | H69: 120 | I69: 50.84745763 | J69: 116 | K69: 49.15254237
A70: LIBERIA | B70: 5 | C70: 3 | D70: 60 | E70: 2 | F70: 40 | G70: 20 | H70: 12 | I70: 60 | J70: 8 | K70: 40
A71: NICOYA | B71: 7 | C71: 2 | D71: 28.57142857 | E71: 5 | F71: 71.42857143 | G71: 28 | H71: 12 | I71: 42.85714286 | J71: 16 | K71: 57.14285714
A72: SANTA CRUZ | B72: 9 | C72: 2 | D72: 22.22222222 | E72: 7 | F72: 77.77777778 | G72: 36 | H72: 18 | I72: 50 | J72: 18 | K72: 50
A73: BAGACES | B73: 4 | C73: 1 | D73: 25 | E73: 3 | F73: 75 | G73: 16 | H73: 8 | I73: 50 | J73: 8 | K73: 50
A74: CARRILLO | B74: 4 | C74: 2 | D74: 50 | E74: 2 | F74: 50 | G74: 16 | H74: 10 | I74: 62.5 | J74: 6 | K74: 37.5
A75: CAÑAS | B75: 5 | C75: 0 | D75: 0 | E75: 5 | F75: 100 | G75: 20 | H75: 10 | I75: 50 | J75: 10 | K75: 50
A76: ABANGARES | B76: 4 | C76: 1 | D76: 25 | E76: 3 | F76: 75 | G76: 16 | H76: 8 | I76: 50 | J76: 8 | K76: 50
A77: TILARÁN | B77: =+C77+E77 -> 7 | C77: 0 | D77: =+C77/$B77*100 -> 0 | E77: 7 | F77: =+E77/$B77*100 -> 100 | G77: =+H77+J77 -> 28 | H77: 15 | I77: 53.57142857 | J77: 13 | K77: 46.42857143
A78: NANDAYURE | B78: 6 | C78: 1 | D78: 16.66666667 | E78: 5 | F78: 83.33333333 | G78: 24 | H78: 11 | I78: =+H78/$G78*100 -> 45.83333333 | J78: 13 | K78: =+J78/$G78*100 -> 54.16666667
A79: LA CRUZ | B79: 4 | C79: 1 | D79: 25 | E79: 3 | F79: 75 | G79: 16 | H79: 8 | I79: 50 | J79: 8 | K79: 50
A80: HOJANCHA | B80: 4 | C80: 2 | D80: 50 | E80: 2 | F80: 50 | G80: 16 | H80: 8 | I80: 50 | J80: 8 | K80: 50
A81: PUNTARENAS | B81: 56 | C81: 13 | D81: 23.21428571 | E81: 43 | F81: 76.78571429 | G81: 224 | H81: 102 | I81: 45.53571429 | J81: 122 | K81: 54.46428571
A82: PUNTARENAS | B82: 15 | C82: 5 | D82: 33.33333333 | E82: 10 | F82: 66.66666667 | G82: 60 | H82: 23 | I82: 38.33333333 | J82: 37 | K82: 61.66666667
A83: ESPARZA | B83: 5 | C83: 2 | D83: 40 | E83: 3 | F83: 60 | G83: 20 | H83: 11 | I83: 55 | J83: 9 | K83: 45
A84: BUENOS AIRES | B84: 9 | C84: 1 | D84: 11.11111111 | E84: 8 | F84: 88.88888889 | G84: 36 | H84: 12 | I84: 33.33333333 | J84: 24 | K84: 66.66666667
A85: MONTES DE ORO | B85: 3 | C85: 2 | D85: 66.66666667 | E85: 1 | F85: 33.33333333 | G85: 12 | H85: 7 | I85: 58.33333333 | J85: 5 | K85: 41.66666667
A86: OSA | B86: 5 | C86: 1 | D86: 20 | E86: 4 | F86: 80 | G86: 20 | H86: 13 | I86: 65 | J86: 7 | K86: 35
A87: AGUIRRE | B87: 3 | C87: 1 | D87: 33.33333333 | E87: 2 | F87: 66.66666667 | G87: 12 | H87: 5 | I87: 41.66666667 | J87: 7 | K87: 58.33333333
A88: GOLFITO | B88: 4 | C88: 0 | D88: 0 | E88: 4 | F88: 100 | G88: 16 | H88: 9 | I88: 56.25 | J88: 7 | K88: 43.75
A89: COTO BRUS | B89: 5 | C89: 0 | D89: 0 | E89: 5 | F89: 100 | G89: 20 | H89: 9 | I89: 45 | J89: 11 | K89: 55
A90: PARRITA | B90: 1 | C90: 0 | D90: 0 | E90: 1 | F90: 100 | G90: 4 | H90: 1 | I90: 25 | J90: 3 | K90: 75
A91: CORREDORES | B91: 4 | C91: 0 | D91: 0 | E91: 4 | F91: 100 | G91: 16 | H91: 8 | I91: 50 | J91: 8 | K91: 50
A92: GARABITO | B92: 2 | C92: 1 | D92: 50 | E92: 1 | F92: 50 | G92: 8 | H92: 4 | I92: 50 | J92: 4 | K92: 50
A93: LIMÓN | B93: 27 | C93: 7 | D93: 25.92592593 | E93: 20 | F93: 74.07407407 | G93: 112 | H93: 54 | I93: 48.21428571 | J93: 58 | K93: 51.78571429
A94: LIMÓN | B94: 4 | C94: 1 | D94: 25 | E94: 3 | F94: 75 | G94: 16 | H94: 8 | I94: 50 | J94: 8 | K94: 50
A95: POCOCÍ | B95: 6 | C95: 1 | D95: 16.66666667 | E95: 5 | F95: 83.33333333 | G95: 24 | H95: 11 | I95: 45.83333333 | J95: 13 | K95: 54.16666667
A96: SIQUIRRES | B96: 5 | C96: 1 | D96: 20 | E96: 4 | F96: 80 | G96: 24 | H96: 12 | I96: 50 | J96: 12 | K96: 50
A97: TALAMANCA | B97: 4 | C97: 0 | D97: 0 | E97: 4 | F97: 100 | G97: 16 | H97: 7 | I97: 43.75 | J97: 9 | K97: 56.25
A98: MATINA | B98: 3 | C98: 3 | D98: 100 | E98: 0 | F98: 0 | G98: 12 | H98: 5 | I98: 41.66666667 | J98: 7 | K98: 58.33333333
A99: GUÁCIMO | B99: 5 | C99: 1 | D99: 20 | E99: 4 | F99: 80 | G99: 20 | H99: 11 | I99: 55 | J99: 9 | K99: 45
A102: 1/ Incluye Concejales de Distrito y Concejales Municipales de Distrito.
A103: Fuente: Tribunal Supremo de Elecciones.

Sheet 2.1
A1: CUADRO 2.1 COSTA RICA: JUNTAS, ELECTORADO, PARTICIPACIÓN, VOTOS POR PARTIDO, NULOS, BLANCOS Y ABSTENCIONISMO
A2: PARA ALCALDÍAS, POR PROVINCIA, ELECCIONES MUNICIPALES DICIEMBRE 2010
A4: JUNTAS, ELECTORADO, PARTICIPACIÓN, VOTOS POR PARTIDO, NULOS, BLANCOS Y ABSTENCIONISMO | B4: TOTAL | C4: PROVINCIA
C5: SAN JOSÉ | D5: ALAJUELA | E5: CARTAGO | F5: HEREDIA | G5: GUANACASTE | H5: PUNTARENAS | I5: LIMÓN
A7: JUNTAS | B7: 5250 | C7: 1705 | D7: 993 | E7: 581 | F7: 468 | G7: 471 | H7: 602 | I7: 430
A8: ELECTORADO | B8: 2865509 | C8: 1016678 | D8: 533285 | E8: 334473 | F8: 283771 | G8: 203614 | H8: 265197 | I8: 228491
A9: VOTOS RECIBIDOS | B9: 799171 | C9: 235843 | D9: 161326 | E9: 92234 | F9: 75259 | G9: 81513 | H9: 88825 | I9: 64171
A10: PORCENTAJE DE PARTICIPACIÓN | B10: =+B9/B8*100 -> 27.88932089 | C10: 23.19741354 | D10: 30.25136653 | E10: 27.57591794 | F10: 26.5210328 | G10: 40.03310185 | H10: 33.49396863 | I10: 28.0846948
A11: VOTOS POR PARTIDO | B11: 782354 | C11: 232232 | D11: 158341 | E11: 90155 | F11: 73949 | G11: 79626 | H11: 86240 | I11: 61811
A12: ACCESIBILIDAD SIN EXCLUSIÓN | B12: 26163 | C12: 8121 | D12: 4303 | E12: 971 | F12: 1624 | G12: 5713 | H12: 2493 | I12: 2938
A13: ACCIÓN CANTONAL SIQUIRRES INDEPENDIENTE | B13: 773 | C13: 0 | D13: 0 | E13: 0 | F13: 0 | G13: 0 | H13: 0 | I13: 773
A14: ACCIÓN CIUDADANA | B14: 98719 | C14: 38552 | D14: 17376 | E14: 10031 | F14: 6419 | G14: 14440 | H14: 5624 | I14: 6277
A15: ACCIÓN NARANJEÑA | B15: 987 | C15: 0 | D15: 987 | E15: 0 | F15: 0 | G15: 0 | H15: 0 | I15: 0
A16: ACCIÓN QUEPEÑA | B16: 278 | C16: 0 | D16: 0 | E16: 0 | F16: 0 | G16: 0 | H16: 278 | I16: 0
A17: ACUERDO CANTONAL DESAMPARADEÑO | B17: 1687 | C17: 1687 | D17: 0 | E17: 0 | F17: 0 | G17: 0 | H17: 0 | I17: 0
A18: ALIANZA PATRIÓTICA | B18: 2277 | C18: 441 | D18: 541 | E18: 0 | F18: 0 | G18: 0 | H18: 1295 | I18: 0
A19: AUTÓNOMO OROMONTANO | B19: 835 | C19: 0 | D19: 0 | E19: 0 | F19: 0 | G19: 0 | H19: 835 | I19: 0
A20: CÍVICO DE TIBÁS FUENTEOVEJUNA | B20: 2080 | C20: 2080 | D20: 0 | E20: 0 | F20: 0 | G20: 0 | H20: 0 | I20: 0
A21: COALICIÓN BARVA UNIDA | B21: 811 | C21: 0 | D21: 0 | E21: 0 | F21: 811 | G21: 0 | H21: 0 | I21: 0
A22: COALICIÓN CARTAGO UNIDO | B22: 11353 | C22: 0 | D22: 0 | E22: 11353 | F22: 0 | G22: 0 | H22: 0 | I22: 0
A23: COALICIÓN MONTES DE OCA UNIDA | B23: 1248 | C23: 1248 | D23: 0 | E23: 0 | F23: 0 | G23: 0 | H23: 0 | I23: 0
A24: COALICIÓN PARTIDO ALIANZA ZARCEREÑA | B24: 570 | C24: 0 | D24: 570 | E24: 0 | F24: 0 | G24: 0 | H24: 0 | I24: 0
A25: COALICIÓN RAMONENSE | B25: 4804 | C25: 0 | D25: 4804 | E25: 0 | F25: 0 | G25: 0 | H25: 0 | I25: 0
A26: COALICIÓN UNIDOS POR SAN CARLOS | B26: 13097 | C26: 0 | D26: 13097 | E26: 0 | F26: 0 | G26: 0 | H26: 0 | I26: 0
A27: COALICIÓN UNION LIBERIANA | B27: 1234 | C27: 0 | D27: 0 | E27: 0 | F27: 0 | G27: 1234 | H27: 0 | I27: 0
A28: CURRIDABAT SIGLO XXI | B28: 7412 | C28: 7412 | D28: 0 | E28: 0 | F28: 0 | G28: 0 | H28: 0 | I28: 0
A29: DEL SOL | B29: 2334 | C29: 2334 | D29: 0 | E29: 0 | F29: 0 | G29: 0 | H29: 0 | I29: 0
A30: EL PUENTE Y LOS CAMINOS DE MORA | B30: 1315 | C30: 1315 | D30: 0 | E30: 0 | F30: 0 | G30: 0 | H30: 0 | I30: 0
A31: FRENTE AMPLIO | B31: 5354 | C31: 828 | D31: 95 | E31: 418 | F31: 0 | G31: 0 | H31: 0 | I31: 4013
A32: GARABITO ECOLÓGICO | B32: 884 | C32: 0 | D32: 0 | E32: 0 | F32: 0 | G32: 0 | H32: 884 | I32: 0
A33: GOICOECHEA EN ACCIÓN | B33: 2047 | C33: 2047 | D33: 0 | E33: 0 | F33: 0 | G33: 0 | H33: 0 | I33: 0
A34: INDEPENDIENTE BELEMITA | B34: 740 | C34: 0 | D34: 0 | E34: 0 | F34: 740 | G34: 0 | H34: 0 | I34: 0
A35: INTEGRACIÓN BARBAREÑA | B35: 873 | C35: 0 | D35: 0 | E35: 0 | F35: 873 | G35: 0 | H35: 0 | I35: 0
A36: INTEGRACIÓN NACIONAL | B36: 9434 | C36: 2054 | D36: 1300 | E36: 0 | F36: 0 | G36: 3392 | H36: 2604 | I36: 84
A37: LIBERACIÓN NACIONAL | B37: 342563 | C37: 100136 | D37: 73993 | E37: 39527 | F37: 34867 | G37: 32162 | H37: 36871 | I37: 25007
A38: MOVIMIENTO AVANCE SANTO DOMINGO | B38: 2164 | C38: 0 | D38: 0 | E38: 0 | F38: 2164 | G38: 0 | H38: 0 | I38: 0
A39: MOVIMIENTO DE TRABAJADORES Y CAMPESINOS | B39: 1208 | C39: 0 | D39: 0 | E39: 0 | F39: 0 | G39: 0 | H39: 0 | I39: 1208
A40: MOVIMIENTO LIBERTARIO | B40: 75441 | C40: 17006 | D40: 13334 | E40: 6592 | F40: 11615 | G40: 8024 | H40: 11036 | I40: 7834
A41: ORGANIZACIÓN LABORISTA DE AGUIRRE | B41: 52 | C41: 0 | D41: 0 | E41: 0 | F41: 0 | G41: 0 | H41: 52 | I41: 0
A42: ORGANIZACIÓN SOCIAL ACTIVA | B42: 960 | C42: 0 | D42: 0 | E42: 0 | F42: 0 | G42: 0 | H42: 960 | I42: 0
A43: RENOVACIÓN COSTARRICENSE | B43: 20512 | C43: 9224 | D43: 1433 | E43: 0 | F43: 658 | G43: 0 | H43: 4760 | I43: 4437
A44: RENOVEMOS ALAJUELA | B44: 8504 | C44: 0 | D44: 8504 | E44: 0 | F44: 0 | G44: 0 | H44: 0 | I44: 0
A45: RESTAURACIÓN HEREDIANA | B45: 625 | C45: 0 | D45: 0 | E45: 0 | F45: 625 | G45: 0 | H45: 0 | I45: 0
A46: TALAMANCA UNIDA | B46: 219 | C46: 0 | D46: 0 | E46: 0 | F46: 0 | G46: 0 | H46: 0 | I46: 219
A47: TARRAZÚ PRIMERO | B47: 906 | C47: 906 | D47: 0 | E47: 0 | F47: 0 | G47: 0 | H47: 0 | I47: 0
A48: TODO POR FLORES | B48: 1732 | C48: 0 | D48: 0 | E48: 0 | F48: 1732 | G48: 0 | H48: 0 | I48: 0
A49: TRANSPARENCIA CARTAGINÉS | B49: 976 | C49: 0 | D49: 0 | E49: 976 | F49: 0 | G49: 0 | H49: 0 | I49: 0
A50: ÚNICO ABANGAREÑO | B50: 1090 | C50: 0 | D50: 0 | E50: 0 | F50: 0 | G50: 1090 | H50: 0 | I50: 0
A51: UNIDAD SOCIAL CRISTIANA | B51: 113394 | C51: 31894 | D51: 12362 | E51: 16177 | F51: 11821 | G51: 13571 | H51: 18548 | I51: 9021
A52: UNIÓN AGRÍCOLA CARTAGINÉS | B52: 3498 | C52: 0 | D52: 0 | E52: 3498 | F52: 0 | G52: 0 | H52: 0 | I52: 0
A53: UNIÓN ATENIENSE | B53: 1838 | C53: 0 | D53: 1838 | E53: 0 | F53: 0 | G53: 0 | H53: 0 | I53: 0
A54: UNIÓN PALMAREÑA | B54: 2170 | C54: 0 | D54: 2170 | E54: 0 | F54: 0 | G54: 0 | H54: 0 | I54: 0
A55: UNIÓN POASEÑA | B55: 1634 | C55: 0 | D55: 1634 | E55: 0 | F55: 0 | G55: 0 | H55: 0 | I55: 0
A56: VERDE ECOLOGISTA | B56: 612 | C56: 0 | D56: 0 | E56: 612 | F56: 0 | G56: 0 | H56: 0 | I56: 0
A57: YUNTA PROGRESISTA ESCAZUCEÑA | B57: 4947 | C57: 4947 | D57: 0 | E57: 0 | F57: 0 | G57: 0 | H57: 0 | I57: 0
A58: VOTOS NULOS | B58: 13281 | C58: 2861 | D58: 2245 | E58: 1613 | F58: 1054 | G58: 1507 | H58: 1995 | I58: 2006
A59: VOTOS BLANCOS | B59: 3536 | C59: 750 | D59: 740 | E59: 466 | F59: 256 | G59: 380 | H59: 590 | I59: 354
A60: ABSTENCIONISMO | B60: =+B8-B9 -> 2066338 | C60: 780835 | D60: 371959 | E60: 242239 | F60: 208512 | G60: 122101 | H60: 176372 | I60: 164320
A61: % ABSTENCIONISMO | B61: =+B60/B8*100 -> 72.11067911 | C61: 76.80258646 | D61: 69.74863347 | E61: 72.42408206 | F61: 73.4789672 | G61: 59.96689815 | H61: 66.50603137 | I61: 71.9153052
A63: FUENTE: Tribunal Supremo de Elecciones.

Sheet 2.2
A1: REGRESAR
A2: CUADRO 2.2 PROVINCIA SAN JOSÉ: ELECTORADO, PARTICIPACIÓN, VOTOS POR PARTIDO, NULOS, BLANCOS Y ABSTENCIONISMO PARA ALCALDÍAS
A3: POR CANTÓN, ELECCIONES MUNICIPALES DICIEMBRE 2010
A5: JUNTAS, ELECTORADO, PARTICIPACIÓN, VOTOS POR PARTIDO, NULOS, BLANCOS Y ABSTENCIONISMO | B5: TOTAL | C5: CANTÓN
C6: SAN JOSÉ | D6: ESCAZÚ | E6: DESAMPARADOS | F6: PURISCAL | G6: TARRAZÚ | H6: ASERRÍ | I6: MORA | J6: GOICOECHEA | K6: SANTA ANA | L6: ALAJUELITA | M6: VÁZQUEZ DE CORONADO | N6: ACOSTA | O6: TIBÁS | P6: MORAVIA | Q6: MONTES DE OCA | R6: TURRUBARES | S6: DOTA | T6: CURRIDABAT | U6: PÉREZ ZELEDÓN | V6: LEÓN CORTÉS
A8: JUNTAS | B8: 1705 | C8: 342 | D8: 61 | E8: 233 | F8: 60 | G8: 25 | H8: 66 | I8: 37 | J8: 129 | K8: 45 | L8: 69 | M8: 68 | N8: 37 | O8: 84 | P8: 62 | Q8: 62 | R8: 15 | S8: 12 | T8: 68 | U8: 208 | V8: 22
A9: ELECTORADO | B9: =SUM(C9:V9) -> 1016678 | C9: 225542 | D9: 40526 | E9: 144901 | F9: 24663 | G9: 10616 | H9: 37616 | I9: 17413 | J9: 85797 | K9: 27941 | L9: 44907 | M9: 45831 | N9: 14354 | O9: 55315 | P9: 40392 | Q9: 41135 | R9: 4187 | S9: 4836 | T9: 44286 | U9: 98271 | V9: 8149
A10: VOTOS RECIBIDOS | B10: =B13+B32+B33 -> 235843 | C10: 41395 | D10: 11034 | E10: 22762 | F10: 7826 | G10: 3845 | H10: 11000 | I10: 6153 | J10: 16058 | K10: 8520 | L10: 8700 | M10: 11983 | N10: 4965 | O10: 9985 | P10: 8391 | Q10: 8304 | R10: 2819 | S10: 2097 | T10: 10207 | U10: 35650 | V10: 4149
A11: PORCENTAJE DE PARTICIPACIÓN | B11: =B10/B9*100 -> 23.19741354 | C11: 18.35356608 | D11: 27.2269654 | E11: 15.70865625 | F11: 31.73174391 | G11: 36.21891485 | H11: 29.24287537 | I11: 35.33566875 | J11: 18.71627213 | K11: 30.49282417 | L11: 19.37337163 | M11: 26.14605834 | N11: 34.58966142 | O11: 18.05116153 | P11: 20.77391563 | Q11: 20.18718853 | R11: 67.32744208 | S11: 43.36228288 | T11: 23.04791582 | U11: 36.27723336 | V11: 50.9142226
A13: VOTOS POR PARTIDO | B13: =SUM(C13:V13) -> 232232 | C13: =SUM(C14:C31) -> 40873 | D13: 10844 | E13: 22439 | F13: 7678 | G13: 3780 | H13: 10820 | I13: 6039 | J13: 15763 | K13: 8426 | L13: 8562 | M13: 11824 | N13: 4849 | O13: 9863 | P13: 8265 | Q13: 8214 | R13: 2783 | S13: 2062 | T13: 10080 | U13: 35028 | V13: 4040
A14: ACCESIBILIDAD SIN EXCLUSIÓN | B14: =SUM(C14:V14) -> 8121 | C14: 6277 | D14: 0 | E14: 0 | F14: 0 | G14: 0 | H14: 0 | I14: 0 | J14: 697 | K14: 0 | L14: 0 | M14: 0 | N14: 0 | O14: 0 | P14: 1147 | Q14: 0 | R14: 0 | S14: 0 | T14: 0 | U14: 0 | V14: 0
A15: ACCIÓN CIUDADANA | B15: =SUM(C15:V15) -> 38552 | C15: 6610 | D15: 0 | E15: 3229 | F15: 580 | H15: 5315 | J15: 2782 | K15: 0 | L15: 2419 | M15: 1575 | N15: 1448 | O15: 2159 | P15: 1885 | Q15: 1660 | R15: 0 | S15: 630 | T15: 1039 | U15: 7221 | V15: 0
A16: ACUERDO CANTONAL DESAMPARADEÑO | B16: 1687 | C16: 0 | D16: 0 | E16: 1687 | F16: 0 | G16: 0 | H16: 0 | I16: 0 | J16: 0 | K16: 0 | L16: 0 | M16: 0 | N16: 0 | O16: 0 | P16: 0 | Q16: 0 | R16: 0 | S16: 0 | T16: 0 | U16: 0 | V16: 0
A17: ALIANZA PATRIÓTICA | B17: 441 | C17: 0 | D17: 0 | E17: 0 | F17: 0 | G17: 0 | H17: 0 | I17: 0 | J17: 0 | K17: 0 | L17: 0 | M17: 0 | N17: 0 | O17: 0 | P17: 441 | Q17: 0 | R17: 0 | S17: 0 | T17: 0 | U17: 0 | V17: 0
A18: CÍVICO DE TÍBAS FUENTEOVEJUNA | B18: 2080 | C18: 0 | D18: 0 | E18: 0 | F18: 0 | G18: 0 | H18: 0 | I18: 0 | J18: 0 | K18: 0 | L18: 0 | M18: 0 | N18: 0 | O18: 2080 | P18: 0 | Q18: 0 | R18: 0 | S18: 0 | T18: 0 | U18: 0 | V18: 0
A19: COALICIÓN MONTES DE OCA UNIDA | B19: 1248 | C19: 0 | D19: 0 | E19: 0 | F19: 0 | G19: 0 | H19: 0 | I19: 0 | J19: 0 | K19: 0 | L19: 0 | M19: 0 | N19: 0 | O19: 0 | P19: 0 | Q19: 1248 | R19: 0 | S19: 0 | T19: 0 | U19: 0 | V19: 0
A20: CURRIDABAT SIGLO XXI | B20: 7412 | C20: 0 | D20: 0 | E20: 0 | F20: 0 | G20: 0 | H20: 0 | I20: 0 | J20: 0 | K20: 0 | L20: 0 | M20: 0 | N20: 0 | O20: 0 | P20: 0 | Q20: 0 | R20: 0 | T20: 7412 | U20: 0 | V20: 0
A21: DEL SOL | B21: 2334 | C21: 0 | D21: 0 | E21: 0 | F21: 0 | G21: 0 | H21: 0 | I21: 0 | J21: 0 | K21: 2334 | L21: 0 | M21: 0 | N21: 0 | O21: 0 | P21: 0 | Q21: 0 | R21: 0 | S21: 0 | T21: 0 | U21: 0 | V21: 0
A22: EL PUENTE Y LOS CAMINOS DE MORA | B22: 1315 | C22: 0 | D22: 0 | E22: 0 | F22: 0 | G22: 0 | H22: 0 | I22: 1315 | J22: 0 | K22: 0 | L22: 0 | M22: 0 | N22: 0 | O22: 0 | P22: 0 | Q22: 0 | R22: 0 | S22: 0 | T22: 0 | U22: 0 | V22: 0
A23: FRENTE AMPLIO | B23: 828 | C23: 0 | D23: 0 | E23: 0 | F23: 0 | G23: 0 | H23: 828 | I23: 0 | J23: 0 | K23: 0 | L23: 0 | M23: 0 | N23: 0 | O23: 0 | P23: 0 | Q23: 0 | R23: 0 | S23: 0 | T23: 0 | U23: 0 | V23: 0
A24: GOICOECHEA EN ACCIÓN | B24: 2047 | C24: 0 | D24: 0 | E24: 0 | F24: 0 | G24: 0 | H24: 0 | I24: 0 | J24: 2047 | K24: 0 | L24: 0 | M24: 0 | N24: 0 | O24: 0 | P24: 0 | Q24: 0 | R24: 0 | S24: 0 | T24: 0 | U24: 0 | V24: 0
A25: INTEGRACIÓN NACIONAL | B25: 2054 | C25: 1626 | D25: 0 | E25: 0 | F25: 0 | G25: 0 | H25: 235 | I25: 0 | J25: 146 | K25: 0 | L25: 0 | M25: 0 | N25: 0 | O25: 0 | P25: 47 | Q25: 0 | R25: 0 | S25: 0 | T25: 0 | U25: 0 | V25: 0
A26: LIBERACIÓN NACIONAL | B26: 100136 | C26: 25206 | D26: 3517 | E26: 11154 | F26: 4169 | G26: 2081 | H26: 4201 | I26: 3283 | J26: 5272 | K26: 4674 | L26: 2184 | M26: 5565 | N26: 3401 | O26: 3085 | P26: 2125 | Q26: 2197 | R26: 1507 | S26: 1222 | T26: 1629 | U26: 11778 | V26: 1886
A27: MOVIMIENTO LIBERTARIO | B27: 17006 | C27: 1154 | D27: 1534 | E27: 3067 | F27: 0 | G27: 0 | H27: 241 | I27: 0 | J27: 1691 | K27: 385 | L27: 0 | M27: 0 | N27: 0 | O27: 1245 | P27: 687 | Q27: 0 | R27: 0 | S27: 28 | T27: 0 | U27: 6293 | V27: 681
A28: RENOVACIÓN COSTARRICENSE | B28: 9224 | C28: 0 | D28: 701 | E28: 1466 | F28: 0 | G28: 0 | H28: 0 | I28: 0 | J28: 2490 | K28: 385 | L28: 476 | M28: 0 | N28: 0 | O28: 451 | P28: 590 | Q28: 2665 | R28: 0 | S28: 0 | T28: 0 | U28: 0 | V28: 0
A29: TARRAZÚ PRIMERO | B29: 906 | C29: 0 | D29: 0 | E29: 0 | F29: 0 | G29: 906 | H29: 0 | I29: 0 | J29: 0 | K29: 0 | L29: 0 | M29: 0 | N29: 0 | O29: 0 | Q29: 0 | R29: 0 | S29: 0 | T29: 0 | U29: 0 | V29: 0
A30: UNIDAD SOCIAL CRISTIANA | B30: 31894 | C30: 0 | D30: 145 | E30: 1836 | F30: 2929 | G30: 793 | H30: 0 | I30: 1441 | J30: 638 | K30: 648 | L30: 3483 | M30: 4684 | N30: 0 | O30: 843 | P30: 1343 | Q30: 444 | R30: 1276 | S30: 182 | T30: 0 | U30: 9736 | V30: 1473
A31: YUNTA PROGRESISTA ESCAZUCEÑA | B31: 4947 | C31: 0 | D31: 4947 | E31: 0 | F31: 0 | G31: 0 | H31: 0 | I31: 0 | J31: 0 | K31: 0 | L31: 0 | M31: 0 | N31: 0 | O31: 0 | P31: 0 | Q31: 0 | R31: 0 | S31: 0 | T31: 0 | U31: 0 | V31: 0
A32: VOTOS NULOS | B32: =SUM(C32:V32) -> 2861 | C32: 404 | D32: 164 | E32: 258 | F32: 111 | G32: 48 | H32: 148 | I32: 88 | J32: 239 | K32: 73 | L32: 118 | M32: 130 | N32: 82 | O32: 93 | P32: 107 | Q32: 73 | R32: 24 | S32: 22 | T32: 110 | U32: 490 | V32: 79
A33: VOTOS EN BLANCO | B33: =SUM(C33:V33) -> 750 | C33: 118 | D33: 26 | E33: 65 | F33: 37 | G33: 17 | H33: 32 | I33: 26 | J33: 56 | K33: 21 | L33: 20 | M33: 29 | N33: 34 | O33: 29 | P33: 19 | Q33: 17 | R33: 12 | S33: 13 | T33: 17 | U33: 132 | V33: 30
A34: ABSTENCIONISMO | B34: =+B9-B10 -> 780835 | C34: =+C9-C10 -> 184147 | D34: 29492 | E34: 122139 | F34: 16837 | G34: 6771 | H34: 26616 | I34: 11260 | J34: 69739 | K34: 19421 | L34: 36207 | M34: 33848 | N34: 9389 | O34: 45330 | P34: 32001 | Q34: 32831 | R34: 1368 | S34: 2739 | T34: 34079 | U34: 62621 | V34: 4000
A35: % ABSTENCIONISMO | B35: =+B34/B9*100 -> 76.80258646 | C35: 81.64643392 | D35: 72.7730346 | E35: 84.29134375 | F35: 68.26825609 | G35: 63.78108515 | H35: 70.75712463 | I35: 64.66433125 | J35: 81.28372787 | K35: 69.50717583 | L35: 80.62662837 | M35: 73.85394166 | N35: 65.41033858 | O35: 81.94883847 | P35: 79.22608437 | Q35: 79.81281147 | R35: 32.67255792 | S35: 56.63771712 | T35: 76.95208418 | U35: 63.72276664 | V35: 49.0857774
A37: FUENTE: Tribunal Supremo de Elecciones.

Sheet 2.3
A2: CUADRO 2.3 PROVINCIA ALAJUELA: JUNTAS, ELECTORADO, PARTICIPACIÓN, VOTOS POR PARTIDO, NULOS, BLANCOS Y ABSTENCIONISMO PARA ALCALDÍAS
A3: POR CANTÓN, ELECCIONES MUNICIPALES DICIEMBRE 2010
A5: JUNTAS, ELECTORADO, PARTICIPACIÓN, VOTOS POR PARTIDO, NULOS, BLANCOS Y ABSTENCIONISMO | B5: TOTAL | C5: CANTÓN
C6: ALAJUELA | D6: SAN RAMÓN | E6: GRECIA | F6: SAN MATEO | G6: ATENAS | H6: NARANJO | I6: PALMARES | J6: POÁS | K6: OROTINA | L6: SAN CARLOS | M6: ZARCERO | N6: VALVERDE VEGA | O6: UPALA | P6: LOS CHILES | Q6: GUATUSO
A8: JUNTAS | B8: 993 | C8: 282 | D8: 105 | E8: 94 | F8: 10 | G8: 32 | H8: 53 | I8: 42 | J8: 30 | K8: 24 | L8: 178 | M8: 20 | N8: 23 | O8: 53 | P8: 26 | Q8: 21
A9: ELECTORADO | B9: =SUM(C9:Q9) -> 533285 | C9: 173149 | D9: 53851 | E9: 50974 | F9: 3822 | G9: 17658 | H9: 28029 | I9: 25315 | J9: 18233 | K9: 12953 | L9: 88519 | M9: 7973 | N9: 12819 | O9: 21797 | P9: 9243 | Q9: 8950
A10: VOTOS RECIBIDOS | B10: =B12+B31+B32 -> 161326 | C10: =C12+C31+C32 -> 36610 | D10: 14143 | E10: 14692 | F10: 2068 | G10: 8326 | H10: 9796 | I10: 8720 | J10: 3953 | K10: 4806 | L10: 31891 | M10: 4583 | N10: 5907 | O10: 7770 | P10: 4244 | Q10: 3817
A11: PORCENTAJE DE PARTICIPACIÓN | B11: =B10/B9*100 -> 30.25136653 | C11: 21.14363929 | D11: 26.26320774 | E11: 28.82253698 | F11: 54.10779696 | G11: 47.15143278 | H11: 34.94951657 | I11: 34.44598064 | J11: 21.68046948 | K11: 37.10337374 | L11: 36.02729358 | M11: 57.48150006 | N11: 46.08003744 | O11: 35.6471074 | P11: 45.91582819 | Q11: 42.64804469
A12: VOTOS POR PARTIDO | B12: =SUM(C12:Q12) -> 158341 | C12: =SUM(C13:C29) -> 36096 | D12: =SUM(D13:D29) -> 13754 | E12: 14442 | F12: 2021 | G12: 8214 | H12: 9573 | I12: 8526 | J12: 3864 | K12: 4726 | L12: 31353 | M12: 4527 | N12: 5829 | O12: 7551 | P12: 4142 | Q12: 3723
A13: ACCESIBILIDAD SIN EXCLUSIÓN | B13: =SUM(C13:Q13) -> 4303 | C13: 2888 | D13: 0 | E13: 0 | F13: 0 | G13: 510 | H13: 211 | I13: 694 | J13: 0 | K13: 0 | L13: 0 | M13: 0 | N13: 0 | O13: 0 | P13: 0 | Q13: 0
A14: ACCIÓN CIUDADANA | B14: =SUM(C14:Q14) -> 17376 | C14: 7063 | D14: 0 | E14: 943 | F14: 0 | G14: 1052 | H14: 923 | I14: 0 | J14: 0 | K14: 359 | L14: 0 | M14: 0 | N14: 0 | O14: 3481 | P14: 1693 | Q14: 1862
A15: ACCIÓN NARANJEÑA | B15: 987 | C15: 0 | D15: 0 | E15: 0 | F15: 0 | G15: 0 | H15: 987 | I15: 0 | J15: 0 | K15: 0 | L15: 0 | M15: 0 | N15: 0 | O15: 0 | P15: 0 | Q15: 0
A16: ALIANZA PATRIÓTICA | B16: 541 | C16: 0 | D16: 0 | E16: 0 | F16: 256 | G16: 0 | H16: 0 | I16: 0 | J16: 0 | K16: 285 | L16: 0 | M16: 0 | N16: 0 | O16: 0 | P16: 0 | Q16: 0
A17: COALICIÓN PARTIDO ALIANZA ZARCEREÑA | B17: 570 | C17: 0 | D17: 0 | E17: 0 | F17: 0 | G17: 0 | H17: 0 | I17: 0 | J17: 0 | K17: 0 | L17: 0 | M17: 570 | N17: 0 | O17: 0 | P17: 0 | Q17: 0
A18: COALICIÓN RAMONENSE | B18: 4804 | C18: 0 | D18: 4804 | E18: 0 | F18: 0 | G18: 0 | H18: 0 | I18: 0 | J18: 0 | K18: 0 | L18: 0 | M18: 0 | N18: 0 | O18: 0 | P18: 0 | Q18: 0
A19: COALICIÓN UNIDOS POR SAN CARLOS | B19: 13097 | C19: 0 | D19: 0 | E19: 0 | F19: 0 | G19: 0 | H19: 0 | I19: 0 | J19: 0 | K19: 0 | L19: 13097 | N19: 0 | O19: 0 | P19: 0 | Q19: 0
A20: FRENTE AMPLIO | B20: 95 | C20: 0 | D20: 0 | E20: 0 | F20: 0 | G20: 0 | H20: 0 | I20: 0 | J20: 0 | K20: 0 | L20: 0 | M20: 0 | N20: 0 | O20: 0 | P20: 0 | Q20: 95
A21: INTEGRACIÓN NACIONAL | B21: 1300 | C21: 0 | D21: 0 | E21: 0 | F21: 0 | G21: 0 | H21: 858 | I21: 0 | J21: 0 | K21: 0 | L21: 0 | M21: 0 | N21: 442 | O21: 0 | P21: 0 | Q21: 0
A22: LIBERACIÓN NACIONAL | B22: 73993 | C22: 16339 | D22: 8950 | E22: 7559 | F22: 1141 | G22: 2270 | H22: 4176 | I22: 3495 | J22: 2230 | K22: 2080 | L22: 17117 | M22: 1945 | N22: 613 | O22: 3675 | P22: 1477 | Q22: 926
A23: MOVIMIENTO LIBERTARIO | B23: 13334 | C23: 1302 | D23: 0 | E23: 4958 | F23: 404 | G23: 0 | H23: 379 | I23: 1103 | J23: 0 | K23: 118 | L23: 1139 | N23: 2875 | O23: 395 | P23: 0 | Q23: 661
A24: RENOVACIÓN COSTARRICENSE | B24: 1433 | C24: 0 | D24: 0 | E24: 982 | F24: 0 | G24: 0 | H24: 0 | I24: 0 | J24: 0 | K24: 0 | L24: 0 | M24: 0 | N24: 0 | O24: 0 | P24: 451 | Q24: 0
A25: RENOVEMOS ALAJUELA | B25: 8504 | C25: 8504 | D25: 0 | E25: 0 | F25: 0 | G25: 0 | H25: 0 | I25: 0 | J25: 0 | K25: 0 | L25: 0 | M25: 0 | N25: 0 | O25: 0 | P25: 0 | Q25: 0
A26: UNIDAD SOCIAL CRISTIANA | B26: 12362 | C26: 0 | D26: 0 | E26: 0 | F26: 220 | G26: 2544 | H26: 2039 | I26: 1064 | J26: 0 | K26: 1884 | L26: 0 | M26: 2012 | N26: 1899 | O26: 0 | P26: 521 | Q26: 179
A27: UNIÓN ATENIENSE | B27: 1838 | C27: 0 | D27: 0 | E27: 0 | F27: 0 | G27: 1838 | H27: 0 | I27: 0 | J27: 0 | K27: 0 | L27: 0 | M27: 0 | N27: 0 | O27: 0 | P27: 0 | Q27: 0
A28: UNION PALMAREÑA | B28: 2170 | C28: 0 | D28: 0 | E28: 0 | F28: 0 | G28: 0 | H28: 0 | I28: 2170 | J28: 0 | K28: 0 | L28: 0 | M28: 0 | N28: 0 | O28: 0 | P28: 0 | Q28: 0
A29: UNIÓN POASEÑA | B29: 1634 | C29: 0 | D29: 0 | E29: 0 | F29: 0 | G29: 0 | H29: 0 | I29: 0 | J29: 1634 | K29: 0 | L29: 0 | M29: 0 | N29: 0 | O29: 0 | P29: 0 | Q29: 0
A31: VOTOS NULOS | B31: 2245 | C31: 395 | D31: 205 | E31: 201 | F31: 41 | G31: 85 | H31: 176 | I31: 145 | J31: 70 | K31: 60 | L31: 445 | M31: 41 | N31: 64 | O31: 159 | P31: 83 | Q31: 75
A32: VOTOS EN BLANCO | B32: 740 | C32: 119 | D32: 184 | E32: 49 | F32: 6 | G32: 27 | H32: 47 | I32: 49 | J32: 19 | K32: 20 | L32: 93 | M32: 15 | N32: 14 | O32: 60 | P32: 19 | Q32: 19
A33: ABSTENCIONISMO | B33: =+B9-B10 -> 371959 | C33: =+C9-C10 -> 136539 | D33: 39708 | E33: 36282 | F33: 1754 | G33: 9332 | H33: 18233 | I33: 16595 | J33: 14280 | K33: 8147 | L33: 56628 | M33: 3390 | N33: 6912 | O33: 14027 | P33: 4999 | Q33: 5133
A34: % ABSTENCIONISMO | B34: =+B33/B9*100 -> 69.74863347 | C34: =+C33/C9*100 -> 78.85636071 | D34: 73.73679226 | E34: 71.17746302 | F34: 45.89220304 | G34: 52.84856722 | H34: 65.05048343 | I34: 65.55401936 | J34: 78.31953052 | K34: 62.89662626 | L34: 63.97270642 | M34: 42.51849994 | N34: 53.91996256 | O34: 64.3528926 | P34: 54.08417181 | Q34: 57.35195531
A36: FUENTE: Tribunal Supremo de Elecciones.

Sheet 2.4
A2: CUADRO 2.4 PROVINCIA CARTAGO: JUNTAS, ELECTORADO, PARTICIPACIÓN, VOTOS POR PARTIDO, NULOS, BLANCOS Y ABSTENCIONISMO
A3: PARA ALCALDÍAS, POR CANTÓN, ELECCIONES MUNICIPALES DICIEMBRE 2010
A5: JUNTAS, ELECTORADO, PARTICIPACIÓN, VOTOS POR PARTIDO, NULOS, BLANCOS Y ABSTENCIONISMO | B5: TOTAL | C5: CANTÓN
C6: CARTAGO | D6: PARAÍSO | E6: LA UNIÓN | F6: JIMÉNEZ | G6: TURRIALBA | H6: ALVARADO | I6: OREAMUNO | J6: EL GUARCO
A8: JUNTAS | B8: =SUM(C8:J8) -> 581 | C8: 168 | D8: 68 | E8: 95 | F8: 20 | G8: 115 | H8: 17 | I8: 51 | J8: 47
A9: ELECTORADO | B9: =SUM(C9:J9) -> 334473 | C9: 106013 | D9: 39836 | E9: 59152 | F9: 10600 | G9: 51904 | H9: 8697 | I9: 30700 | J9: 27571
A10: VOTOS RECIBIDOS | B10: =B12+B23+B24 -> 92234 | C10: 24575 | D10: =D12+D23+D24 -> 14188 | E10: 12877 | F10: 5573 | G10: 16121 | H10: 3611 | I10: 8151 | J10: 7138
A11: PORCENTAJE DE PARTICIPACIÓN | B11: =B10/B9*100 -> 27.57591794 | C11: 23.1811193 | D11: 35.61602571 | E11: 21.76934001 | F11: 52.5754717 | G11: 31.05926326 | H11: 41.52006439 | I11: 26.5504886 | J11: 25.8895216
A12: VOTOS POR PARTIDO | B12: =SUM(C12:J12) -> 90155 | C12: =SUM(C13:C22) -> 24106 | D12: 13807 | E12: 12679 | F12: 5440 | G12: 15778 | H12: 3433 | I12: 7911 | J12: 7001
A13: ACCESIBILIDAD SIN EXCLUSIÓN | B13: =SUM(C13:J13) -> 971 | C13: 0 | D13: 0 | E13: 0 | F13: 0 | G13: 0 | H13: 0 | I13: 971 | J13: 0
A14: ACCIÓN CIUDADANA | B14: 10031 | C14: 0 | D14: 0 | E14: 1994 | F14: 0 | G14: 3895 | H14: 0 | I14: 660 | J14: 3482
A15: COALICIÓN CARTAGO UNIDO | B15: 11353 | C15: 11353 | D15: 0 | E15: 0 | F15: 0 | G15: 0 | H15: 0 | I15: 0 | J15: 0
A16: FRENTE AMPLIO | B16: 418 | C16: 0 | D16: 418 | E16: 0 | F16: 0 | G16: 0 | H16: 0 | I16: 0 | J16: 0
A17: LIBERACIÓN NACIONAL | B17: 39527 | C17: 12753 | D17: 2694 | E17: 6575 | F17: 2393 | G17: 6915 | H17: 1798 | I17: 2880 | J17: 3519
A18: MOVIMIENTO LIBERTARIO | B18: 6592 | C18: 0 | D18: 2893 | E18: 802 | F18: 630 | G18: 2170 | H18: 0 | I18: 97 | J18: 0
A19: TRANSPARENCIA CARTAGINÉS | B19: 976 | C19: 0 | D19: 0 | E19: 0 | F19: 0 | G19: 0 | H19: 0 | I19: 976 | J19: 0
A20: UNIDAD SOCIAL CRISTIANA | B20: 16177 | C20: 0 | D20: 5327 | E20: 3308 | F20: 2417 | G20: 2798 | H20: 0 | I20: 2327 | J20: 0
A21: UNIÓN AGRÍCOLA CARTAGINÉS | B21: 3498 | C21: 0 | D21: 1863 | E21: 0 | F21: 0 | G21: 0 | H21: 1635 | I21: 0 | J21: 0
A22: VERDE ECOLOGISTA | B22: 612 | C22: 0 | D22: 612 | E22: 0 | F22: 0 | G22: 0 | H22: 0 | I22: 0 | J22: 0
A23: VOTOS NULOS | B23: =SUM(C23:J23) -> 1613 | C23: 356 | D23: 326 | E23: 160 | F23: 105 | G23: 285 | H23: 70 | I23: 200 | J23: 111
A24: VOTOS EN BLANCO | B24: =SUM(C24:J24) -> 466 | C24: 113 | D24: 55 | E24: 38 | F24: 28 | G24: 58 | H24: 108 | I24: 40 | J24: 26
A25: ABSTENCIONISMO | B25: =+B9-B10 -> 242239 | C25: =+C9-C10 -> 81438 | D25: 25648 | E25: 46275 | F25: 5027 | G25: 35783 | H25: 5086 | I25: 22549 | J25: 20433
A26: % ABSTENCIONISMO | B26: =+B25/B9*100 -> 72.42408206 | C26: 76.8188807 | D26: 64.38397429 | E26: 78.23065999 | F26: 47.4245283 | G26: 68.94073674 | H26: 58.47993561 | I26: 73.4495114 | J26: 74.1104784
A28: FUENTE: Tribunal Supremo de Elecciones.

Sheet 2.5
A2: CUADRO 2.5 PROVINCIA HEREDIA: ELECTORADO, PARTICIPACIÓN, VOTOS POR PARTIDO, NULOS, BLANCOS Y ABSTENCIONISMO
A3: PARA ALCALDÍAS, POR CANTÓN, ELECCIONES MUNICIPALES DICIEMBRE 2010
A5: JUNTAS, ELECTORADO, PARTICIPACIÓN, VOTOS POR PARTIDO, NULOS, BLANCOS Y ABSTENCIONISMO | B5: TOTAL | C5: CANTÓN
C6: HEREDIA | D6: BARVA | E6: SANTO DOMINGO | F6: SANTA BÁRBARA | G6: SAN RAFAEL | H6: SAN ISIDRO | I6: BELÉN | J6: FLORES | K6: SAN PABLO | L6: SARAPIQUÍ
A8: JUNTAS | B8: =SUM(C8:L8) -> 468 | C8: 129 | D8: 46 | E8: 49 | F8: 38 | G8: 46 | H8: 22 | I8: 24 | J8: 22 | K8: 28 | L8: 64
A9: ELECTORADO | B9: =SUM(C9:L9) -> 283771 | C9: 85356 | D9: 27552 | E9: 30722 | F9: 22788 | G9: 29538 | H9: 13112 | I9: 15982 | J9: 13761 | K9: 18343 | L9: 26617
A10: VOTOS RECIBIDOS | B10: =B12+B25+B26 -> 75259 | C10: 15404 | D10: 10017 | E10: 9803 | F10: 6056 | G10: 5897 | H10: 4596 | I10: 5869 | J10: 5012 | K10: 5694 | L10: 6911
A11: PORCENTAJE DE PARTICIPACIÓN | B11: =B10/B9*100 -> 26.5210328 | C11: 18.04676883 | D11: 36.35670732 | E11: 31.9087299 | F11: 26.57539056 | G11: 19.96411402 | H11: 35.05186089 | I11: 36.72256288 | J11: 36.42177167 | K11: 31.04181432 | L11: 25.96460908
A12: VOTOS POR PARTIDO | B12: =SUM(C12:L12) -> 73949 | C12: =SUM(C13:C24) -> 15227 | D12: =SUM(D13:D24) -> 9785 | E12: 9657 | F12: 5926 | G12: 5772 | H12: 4515 | I12: 5780 | J12: 4917 | K12: 5620 | L12: 6750
A13: ACCESIBILIDAD SIN EXCLUSIÓN | B13: =SUM(C13:L13) -> 1624 | C13: 0 | D13: 0 | E13: 0 | F13: 1624 | G13: 0 | H13: 0 | I13: 0 | J13: 0 | K13: 0 | L13: 0
A14: ACCIÓN CIUDADANA | B14: =SUM(C14:L14) -> 6419 | C14: 1766 | D14: 850 | E14: 680 | F14: 0 | G14: 1122 | H14: 1419 | I14: 0 | J14: 0 | K14: 582 | L14: 0
A15: COALICIÓN BARVA UNIDA | B15: 811 | C15: 0 | D15: 811 | E15: 0 | F15: 0 | G15: 0 | H15: 0 | I15: 0 | J15: 0 | K15: 0 | L15: 0
A16: INDEPENDIENTE BELEMITA | B16: 740 | C16: 0 | D16: 0 | E16: 0 | F16: 0 | G16: 0 | H16: 0 | I16: 740 | J16: 0 | K16: 0 | L16: 0
A17: INTEGRACIÓN BARBAREÑA | B17: 873 | C17: 0 | D17: 0 | E17: 0 | F17: 873 | G17: 0 | H17: 0 | I17: 0 | J17: 0 | K17: 0 | L17: 0
A18: LIBERACIÓN NACIONAL | B18: 34867 | C18: 9990 | D18: 4030 | E18: 3438 | F18: 2082 | G18: 2826 | H18: 1765 | I18: 1814 | J18: 1748 | K18: 1631 | L18: 5543
A19: MOVIMIENTO AVANCE SANTO DOMINGO | B19: 2164 | C19: 0 | D19: 0 | E19: 2164 | F19: 0 | G19: 0 | H19: 0 | I19: 0 | J19: 0 | K19: 0 | L19: 0
A20: MOVIMIENTO LIBERTARIO | B20: 11615 | C20: 3013 | D20: 725 | E20: 3375 | F20: 919 | G20: 1824 | H20: 178 | I20: 0 | J20: 0 | K20: 374 | L20: 1207
A21: RENOVACIÓN COSTARRICENSE | B21: 658 | C21: 0 | D21: 658 | E21: 0 | F21: 0 | G21: 0 | H21: 0 | I21: 0 | J21: 0 | K21: 0 | L21: 0
A22: RESTAURACIÓN HEREDIANA | B22: 625 | C22: 458 | D22: 167 | E22: 0 | F22: 0 | G22: 0 | H22: 0 | I22: 0 | J22: 0 | K22: 0 | L22: 0
A23: TODO POR FLORES | B23: 1732 | C23: 0 | D23: 0 | E23: 0 | F23: 0 | G23: 0 | H23: 0 | I23: 0 | J23: 1732 | K23: 0 | L23: 0
A24: UNIDAD SOCIAL CRISTIANA | B24: 11821 | C24: 0 | D24: 2544 | E24: 0 | F24: 428 | G24: 0 | H24: 1153 | I24: 3226 | J24: 1437 | K24: 3033 | L24: 0
A25: VOTOS NULOS | B25: 1054 | C25: 137 | D25: 194 | E25: 117 | F25: 104 | G25: 107 | H25: 64 | I25: 72 | J25: 82 | K25: 67 | L25: 110
A26: VOTOS EN BLANCO | B26: 256 | C26: 40 | D26: 38 | E26: 29 | F26: 26 | G26: 18 | H26: 17 | I26: 17 | J26: 13 | K26: 7 | L26: 51
A27: ABSTENCIONISMO | B27: =+B9-B10 -> 208512 | C27: =+C9-C10 -> 69952 | D27: 17535 | E27: 20919 | F27: 16732 | G27: 23641 | H27: 8516 | I27: 10113 | J27: 8749 | K27: 12649 | L27: 19706
A28: % ABSTENCIONISMO | B28: =+B27/B9*100 -> 73.4789672 | C28: =+C27/C9*100 -> 81.95323117 | D28: 63.64329268 | E28: 68.0912701 | F28: 73.42460944 | G28: 80.03588598 | H28: 64.94813911 | I28: 63.27743712 | J28: 63.57822833 | K28: 68.95818568 | L28: 74.03539092
A30: FUENTE: Tribunal Supremo de Elecciones.

Sheet 2.6
A2: CUADRO 2.6 PROVINCIA GUANACASTE: ELECTORADO, PARTICIPACIÓN, VOTOS POR PARTIDO, NULOS, BLANCOS Y ABSTENCIONISMO
A3: PARA ALCALDÍAS, POR CANTÓN, ELECCIONES MUNICIPALES DICIEMBRE 2010
A5: JUNTAS, ELECTORADO, PARTICIPACIÓN, VOTOS POR PARTIDO, NULOS, BLANCOS Y ABSTENCIONISMO | B5: TOTAL | C5: CANTÓN
C6: LIBERIA | D6: NICOYA | E6: SANTA CRUZ | F6: BAGACES | G6: CARRILLO | H6: CAÑAS | I6: ABANGARES | J6: TILARÁN | K6: NANDAYURE | L6: LA CRUZ | M6: HOJANCHA
A8: JUNTAS | B8: =SUM(C8:M8) -> 471 | C8: 66 | D8: 92 | E8: 72 | F8: 27 | G8: 42 | H8: 34 | I8: 34 | J8: 35 | K8: 28 | L8: 24 | M8: 17
A9: ELECTORADO | B9: =SUM(C9:M9) -> 203614 | C9: 37797 | D9: 35669 | E9: 34567 | F9: 11245 | G9: 20050 | H9: 17344 | I9: 11763 | J9: 13309 | K9: 7489 | L9: 9262 | M9: 5119
A10: VOTOS RECIBIDOS | B10: =B12+B21+B22 -> 81513 | C10: 10888 | D10: 12936 | E10: 13200 | F10: 4011 | G10: 8832 | H10: 6226 | I10: 6482 | J10: 5994 | K10: 4882 | L10: 4442 | M10: 3620
A11: PORCENTAJE DE PARTICIPACIÓN | B11: =B10/B9*100 -> 40.03310185 | C11: 28.80651904 | D11: 36.26678629 | E11: 38.18670987 | F11: 35.66918631 | G11: 44.04987531 | H11: 35.89714022 | I11: 55.10499022 | J11: 45.03719288 | K11: 65.18894378 | L11: 47.95940402 | M11: 70.7169369
A12: VOTOS POR PARTIDO | B12: =SUM(C12:M12) -> 79626 | C12: =SUM(C13:C20) -> 10694 | D12: 12600 | E12: 12773 | F12: 3920 | G12: 8631 | H12: 6132 | I12: 6308 | J12: 5861 | K12: =SUM(K13:K20) -> 4770 | L12: 4382 | M12: 3555
A13: ACCESIBILIDAD SIN EXCLUSIÓN | B13: =SUM(C13:M13) -> 5713 | C13: 4279 | D13: 689 | E13: 386 | F13: 0 | G13: 0 | H13: 0 | I13: 0 | J13: 359 | K13: 0 | L13: 0 | M13: 0
A14: ACCIÓN CIUDADANA | B14: =SUM(C14:M14) -> 14440 | C14: 1522 | D14: 1166 | E14: 1985 | F14: 1081 | G14: 106 | H14: 3631 | I14: 2136 | J14: 799 | K14: 0 | L14: 0 | M14: 2014
A15: COALICIÓN UNIÓN LIBERIANA | B15: 1234 | C15: 1234 | D15: 0 | E15: 0 | F15: 0 | G15: 0 | H15: 0 | I15: 0 | J15: 0 | K15: 0 | L15: 0 | M15: 0
A16: INTEGRACIÓN NACIONAL | B16: 3392 | C16: 0 | D16: 0 | E16: 1921 | F16: 0 | G16: 0 | H16: 0 | I16: 0 | J16: 0 | K16: 1471 | L16: 0 | M16: 0
A17: LIBERACIÓN NACIONAL | B17: 32162 | C17: 3659 | D17: 5609 | E17: 4114 | F17: 2630 | G17: 3496 | H17: 2501 | I17: 3082 | J17: 2237 | K17: 1033 | L17: 2393 | M17: 1408
A18: MOVIMIENTO LIBERTARIO | B18: 8024 | C18: 0 | D18: 2442 | E18: 1261 | F18: 209 | G18: 1713 | H18: 0 | I18: 0 | J18: 0 | K18: 2266 | L18: 0 | M18: 133
A19: ÚNICO ABANGAREÑO | B19: 1090 | C19: 0 | D19: 0 | E19: 0 | F19: 0 | G19: 0 | H19: 0 | I19: 1090 | J19: 0 | K19: 0 | L19: 0 | M19: 0
A20: UNIDAD SOCIAL CRISTIANA | B20: 13571 | C20: 0 | D20: 2694 | E20: 3106 | F20: 0 | G20: 3316 | H20: 0 | I20: 0 | J20: 2466 | K20: 0 | L20: 1989 | M20: 0
A21: VOTOS NULOS | B21: 1507 | C21: 156 | D21: 288 | E21: 320 | F21: 76 | G21: 160 | H21: 69 | I21: 137 | J21: 114 | K21: 91 | L21: 44 | M21: 52
A22: VOTOS EN BLANCO | B22: 380 | C22: 38 | D22: 48 | E22: 107 | F22: 15 | G22: 41 | H22: 25 | I22: 37 | J22: 19 | K22: 21 | L22: 16 | M22: 13
A23: ABSTENCIONISMO | B23: =+B9-B10 -> 122101 | C23: 26909 | D23: 22733 | E23: 21367 | F23: 7234 | G23: 11218 | H23: 11118 | I23: 5281 | J23: 7315 | K23: 2607 | L23: 4820 | M23: 1499
A24: % ABSTENCIONISMO | B24: =+B23/B9*100 -> 59.96689815 | C24: 71.19348096 | D24: 63.73321371 | E24: 61.81329013 | F24: 64.33081369 | G24: 55.95012469 | H24: 64.10285978 | I24: 44.89500978 | J24: 54.96280712 | K24: 34.81105622 | L24: 52.04059598 | M24: 29.2830631
A26: FUENTE: Tribunal Supremo de Elecciones.

Sheet 2.7
A2: CUADRO 2.7 PROVINCIA PUNTARENAS: ELECTORADO, PARTICIPACIÓN, VOTOS POR PARTIDO, NULOS, BLANCOS Y ABSTENCIONISMO
A3: PARA ALCALDÍAS, POR CANTÓN, ELECCIONES MUNICIPALES DICIEMBRE 2010
A5: JUNTAS, ELECTORADO, PARTICIPACIÓN, VOTOS POR PARTIDO, NULOS, BLANCOS Y ABSTENCIONISMO | B5: TOTAL | C5: CANTÓN
C6: PUNTARENAS | D6: ESPARZA | E6: BUENOS AIRES | F6: MONTES DE ORO | G6: OSA | H6: AGUIRRE | I6: GOLFITO | J6: COTO BRUS | K6: PARRITA | L6: CORREDORES | M6: GARABITO
A8: JUNTAS | B8: =SUM(C8:M8) -> 602 | C8: 163 | D8: 38 | E8: 70 | F8: 22 | G8: 47 | H8: 37 | I8: 57 | J8: 64 | K8: 30 | L8: 56 | M8: 18
A9: ELECTORADO | B9: =SUM(C9:M9) -> 265197 | C9: 77238 | D9: 18825 | E9: 27392 | F9: 8750 | G9: 18664 | H9: 16693 | I9: 25019 | J9: 26188 | K9: 9776 | L9: 27936 | M9: 8716
A10: VOTOS RECIBIDOS | B10: =B12+B26+B27 -> 88825 | C10: 22289 | D10: 8135 | E10: 8632 | F10: 4243 | G10: 7127 | H10: 6833 | I10: 7624 | J10: 8617 | K10: 5653 | L10: 6266 | M10: 3406
A11: PORCENTAJE DE PARTICIPACIÓN | B11: =B10/B9*100 -> 33.49396863 | C11: 28.85755716 | D11: 43.21381142 | E11: 31.51285047 | F11: 48.49142857 | G11: 38.18581226 | H11: 40.93332535 | I11: 30.47284064 | J11: 32.90438369 | K11: 57.82528642 | L11: 22.42983963 | M11: 39.07755851
A12: VOTOS POR PARTIDO | B12: =SUM(C12:M12) -> 86240 | C12: =SUM(C13:C25) -> 21564 | D12: =SUM(D13:D25) -> 8049 | E12: 8395 | F12: 4150 | G12: 6887 | H12: 6561 | I12: 7382 | J12: 8339 | K12: 5499 | L12: 6057 | M12: 3357
A13: ACCESIBILIDAD SIN EXCLUSIÓN | B13: =SUM(C13:M13) -> 2493 | C13: 1202 | D13: 0 | E13: 0 | F13: 0 | G13: 0 | H13: 1291 | I13: 0 | J13: 0 | K13: 0 | L13: 0 | M13: 0
A14: ACCIÓN CIUDADANA | B14: =SUM(C14:M14) -> 5624 | C14: 0 | D14: 544 | E14: 0 | F14: 940 | G14: 0 | H14: 0 | I14: 2197 | J14: 1386 | K14: 0 | L14: 0 | M14: 557
A15: ACCIÓN QUEPEÑA | B15: 278 | C15: 0 | D15: 0 | E15: 0 | F15: 0 | G15: 0 | H15: 278 | I15: 0 | J15: 0 | K15: 0 | L15: 0 | M15: 0
A16: ALIANZA PATRIÓTICA | B16: 1295 | C16: 0 | D16: 0 | E16: 0 | F16: 0 | G16: 1172 | H16: 0 | I16: 0 | J16: 0 | K16: 0 | L16: 123 | M16: 0
A17: AUTÓNOMO OROMONTANO | B17: 835 | C17: 0 | D17: 0 | E17: 0 | F17: 835 | G17: 0 | H17: 0 | I17: 0 | J17: 0 | K17: 0 | L17: 0 | M17: 0
A18: GARABITO ECOLÓGICO | B18: 884 | C18: 0 | D18: 0 | E18: 0 | F18: 0 | G18: 0 | H18: 0 | I18: 0 | J18: 0 | K18: 0 | L18: 0 | M18: 884
A19: INTEGRACIÓN NACIONAL | B19: 2604 | C19: 0 | D19: 0 | E19: 0 | F19: 0 | G19: 0 | H19: 789 | I19: 0 | J19: 0 | K19: 980 | L19: 835 | M19: 0
A20: LIBERACIÓN NACIONAL | B20: 36871 | C20: 9752 | D20: 3566 | E20: 4384 | F20: 2375 | G20: 4032 | H20: 2079 | I20: 2838 | J20: 2056 | K20: 1521 | L20: 2352 | M20: 1916
A21: MOVIMIENTO LIBERTARIO | B21: 11036 | C21: 3743 | D21: 306 | E21: 2126 | F21: 0 | G21: 723 | H21: 516 | I21: 2347 | J21: 272 | K21: 782 | L21: 221 | M21: 0
A22: ORGANIZACIÓN LABORISTA DE AGUIRRE | B22: 52 | C22: 0 | D22: 0 | E22: 0 | F22: 0 | G22: 0 | H22: 52 | I22: 0 | J22: 0 | K22: 0 | L22: 0 | M22: 0
A23: ORGANIZACIÓN SOCIAL ACTIVA | B23: 960 | C23: 0 | D23: 0 | E23: 0 | F23: 0 | G23: 960 | H23: 0 | I23: 0 | J23: 0 | K23: 0 | L23: 0 | M23: 0
A24: RENOVACIÓN COSTARRICENSE | B24: 4760 | C24: 749 | D24: 609 | E24: 0 | F24: 0 | G24: 0 | H24: 695 | I24: 0 | J24: 0 | K24: 1099 | L24: 1608 | M24: 0
A25: UNIDAD SOCIAL CRISTIANA | B25: 18548 | C25: 6118 | D25: 3024 | E25: 1885 | F25: 0 | G25: 0 | H25: 861 | I25: 0 | J25: 4625 | K25: 1117 | L25: 918 | M25: 0
A26: VOTOS NULOS | B26: 1995 | C26: 489 | D26: 70 | E26: 190 | F26: 72 | G26: 191 | H26: 232 | I26: 199 | J26: 220 | K26: 125 | L26: 169 | M26: 38
A27: VOTOS EN BLANCO | B27: 590 | C27: 236 | D27: 16 | E27: 47 | F27: 21 | G27: 49 | H27: 40 | I27: 43 | J27: 58 | K27: 29 | L27: 40 | M27: 11
A28: ABSTENCIONISMO | B28: =+B9-B10 -> 176372 | C28: =+C9-C10 -> 54949 | D28: 10690 | E28: 18760 | F28: 4507 | G28: 11537 | H28: 9860 | I28: 17395 | J28: 17571 | K28: 4123 | L28: 21670 | M28: 5310
A29: % ABSTENCIONISMO | B29: =+B28/B9*100 -> 66.50603137 | C29: 71.14244284 | D29: 56.78618858 | E29: 68.48714953 | F29: 51.50857143 | G29: 61.81418774 | H29: 59.06667465 | I29: 69.52715936 | J29: 67.09561631 | K29: 42.17471358 | L29: 77.57016037 | M29: 60.92244149
A31: FUENTE: Tribunal Supremo de Elecciones.

Sheet 2.8
A2: CUADRO 2.8 PROVINCIA LIMÓN: JUNTAS, ELECTORADO, PARTICIPACIÓN, VOTOS POR PARTIDO, NULOS, BLANCOS Y ABSTENCIONISMO
A3: PARA ALCALDÍAS, POR CANTÓN, ELECCIONES MUNICIPALES DICIEMBRE 2010
A5: JUNTAS, ELECTORADO, PARTICIPACIÓN, VOTOS POR PARTIDO, NULOS, BLANCOS Y ABSTENCIONISMO | B5: TOTAL | C5: CANTÓN
C6: LIMÓN | D6: POCOCÍ | E6: SIQUIRRES | F6: TALAMANCA | G6: MATINA | H6: GUÁCIMO
A8: JUNTAS | B8: 430 | C8: 114 | D8: 133 | E8: 69 | F8: 36 | G8: 35 | H8: 43
A9: ELECTORADO | B9: =SUM(C9:H9) -> 228491 | C9: 61603 | D9: 75016 | E9: 34544 | F9: 15458 | G9: 18313 | H9: 23557
A10: VOTOS RECIBIDOS | B10: =SUM(C10:H10) -> 64171 | C10: 14768 | D10: 18364 | E10: 9420 | F10: 7214 | G10: 7848 | H10: 6557
A11: PORCENTAJE DE PARTICIPACIÓN | B11: =B10/B9*100 -> 28.0846948 | C11: 23.97285846 | D11: 24.48011091 | E11: 27.26956925 | F11: 46.66839177 | G11: 42.8548026 | H11: 27.83461392
A12: VOTOS POR PARTIDO | B12: =SUM(C12:H12) -> 61811 | C12: 14122 | D12: 17822 | E12: 9007 | F12: 6919 | G12: 7570 | H12: 6371
A13: ACCESIBILIDAD SIN EXCLUSIÓN | B13: =SUM(C13:H13) -> 2938 | C13: 287 | D13: 0 | E13: 2651 | F13: 0 | G13: 0 | H13: 0
A14: ACCIÓN CANTONAL SIQUIRRES INDEPENDIENTE | B14: =SUM(C14:H14) -> 773 | C14: 0 | D14: 0 | E14: 773 | F14: 0 | G14: 0 | H14: 0
A15: ACCIÓN CIUDADANA | B15: 6277 | C15: 1211 | D15: 0 | E15: 615 | F15: 387 | G15: 2503 | H15: 1561
A16: FRENTE AMPLIO | B16: 4013 | C16: 1154 | D16: 852 | E16: 877 | F16: 0 | G16: 438 | H16: 692
A17: INTEGRACIÓN NACIONAL | B17: 84 | C17: 84 | D17: 0 | E17: 0 | F17: 0 | G17: 0 | H17: 0
A18: LIBERACIÓN NACIONAL | B18: 25007 | C18: 4195 | D18: 10212 | E18: 2233 | F18: 4185 | G18: 1336 | H18: 2846
A19: MOVIMIENTO DE TRABAJADORES Y CAMPESINOS | B19: 1208 | C19: 0 | D19: 1208 | E19: 0 | F19: 0 | G19: 0 | H19: 0
A20: MOVIMIENTO LIBERTARIO | B20: 7834 | C20: 1683 | D20: 5550 | E20: 412 | F20: 151 | G20: 38 | H20: 0
A21: RENOVACIÓN COSTARRICENSE | B21: 4437 | C21: 1563 | D21: 0 | E21: 0 | F21: 0 | G21: 2155 | H21: 719
A22: TALAMANCA UNIDA | B22: 219 | C22: 0 | D22: 0 | E22: 0 | F22: 219 | G22: 0 | H22: 0
A23: UNIDAD SOCIAL CRISTIANA | B23: 9021 | C23: 3945 | D23: 0 | E23: 1446 | F23: 1977 | G23: 1100 | H23: 553
A24: VOTOS NULOS | B24: 2006 | C24: 556 | D24: 451 | E24: 358 | F24: 249 | G24: 234 | H24: 158
A25: VOTOS EN BLANCO | B25: 354 | C25: 90 | D25: 91 | E25: 55 | F25: 46 | G25: 44 | H25: 28
A26: ABSTENCIONISMO | B26: =+B9-B10 -> 164320 | C26: =+C9-C10 -> 46835 | D26: 56652 | E26: 25124 | F26: 8244 | G26: 10465 | H26: 17000
A27: % ABSTENCIONISMO | B27: =+B26/B9*100 -> 71.9153052 | C27: =+C26/C9*100 -> 76.02714154 | D27: 75.51988909 | E27: 72.73043075 | F27: 53.33160823 | G27: 57.1451974 | H27: 72.16538608
A29: FUENTE: Tribunal Supremo de Elecciones.

Sheet 2.9
A2: CUADRO 2.9 PROVINCIA SAN JOSÉ: JUNTAS, ELECTORADO, PARTICIPACIÓN, VOTOS POR PARTIDO, NULOS, BLANCOS, Y ABSTENCIONISMO PARA ALCALDÍAS
A3: SEGÚN CANTÓN Y DISTRITO ADMINISTRATIVO, ELECCIONES MUNICIPALES DICIEMBRE 2010
A5: CANTÓN Y DISTRITO ADMINISTRATIVO | B5: JUNTAS | C5: ELECTORADO | D5: VOTOS RECIBIDOS | AA5: ABSTENCIONISMO
D6: TOTAL GENERAL | E6: % PARTICIPACIÓN | F6: VOTOS POR PARTIDO | Y6: VOTOS NULOS | Z6: VOTOS BLANCOS | AA6: ABSOLUTO | AB6: %
F7: TOTAL | G7: ACCESIBILIDAD SIN EXCLUSIÓN | H7: ACCIÓN CIUDADANA | I7: ACUERDO CANTONAL DESAMPARADEÑO | J7: ALIANZA PATRIÓTICA | K7: CÍVICO DE TIBAS FUENTEOVEJUNA | L7: COALICIÓN MONTES DE OCA UNIDA | M7: CURRIDABAT SIGLO XXI | N7: DEL SOL | O7: EL PUENTE Y LOS CAMINOS DE MORA | P7: FRENTE AMPLIO | Q7: GOICOECHEA EN ACCIÓN | R7: INTEGRACIÓN NACIONAL | S7: LIBERACIÓN NACIONAL | T7: MOVIMIENTO LIBERTARIO | U7: RENOVACIÓN COSTARRICENSE | V7: TARRAZÚ PRIMERO | W7: UNIDAD SOCIAL CRISTIANA | X7: YUNTA PROGRESISTA ESCAZUCEÑA
A9: SAN JOSÉ | B9: 1705 | C9: 1016678 | D9: 235843 | E9: =+D9/C9*100 -> 23.19741354 | F9: 232232 | G9: 8121 | H9: 38552 | I9: 1687 | J9: 441 | K9: 2080 | L9: 1248 | M9: 7412 | N9: 2334 | O9: 1315 | P9: 828 | Q9: 2047 | R9: 2054 | S9: 100136 | T9: 17006 | U9: 9224 | V9: 906 | W9: 31894 | X9: 4947 | Y9: 2861 | Z9: 750 | AA9: =+C9-D9 -> 780835 | AB9: =+AA9/C9*100 -> 76.80258646
A10: CANTÓN 1 SAN JOSÉ | B10: 342 | C10: 225542 | D10: 41395 | E10: =+D10/C10*100 -> 18.35356608 | F10: 40873 | G10: 6277 | H10: 6610 | I10: 0 | J10: 0 | K10: 0 | L10: 0 | M10: 0 | N10: 0 | O10: 0 | P10: 0 | Q10: 0 | R10: 1626 | S10: 25206 | T10: 1154 | U10: 0 | V10: 0 | W10: 0 | X10: 0 | Y10: 404 | Z10: 118 | AA10: =+C10-D10 -> 184147 | AB10: =+AA10/C10*100 -> 81.64643392
A11: CARMEN | B11: 8 | C11: 4622 | D11: 1022 | E11: 22.11163998 | F11: 998 | G11: 125 | H11: 178 | I11: 0 | J11: 0 | K11: 0 | L11: 0 | M11: 0 | N11: 0 | O11: 0 | P11: 0 | Q11: 0 | R11: 51 | S11: 608 | T11: 36 | U11: 0 | V11: 0 | W11: 0 | X11: 0 | Y11: 21 | Z11: 3 | AA11: 3600 | AB11: 77.88836002
A12: MERCED | B12: 15 | C12: 9678 | D12: 2235 | E12: 23.09361438 | F12: 2207 | G12: 357 | H12: 357 | I12: 0 | J12: 0 | K12: 0 | L12: 0 | M12: 0 | N12: 0 | O12: 0 | P12: 0 | Q12: 0 | R12: 131 | S12: 1241 | T12: 121 | U12: 0 | V12: 0 | W12: 0 | X12: 0 | Y12: 24 | Z12: 4 | AA12: 7443 | AB12: 76.90638562
A13: HOSPITAL | B13: 29 | C13: 18450 | D13: 3411 | E13: 18.48780488 | F13: 3360 | G13: 513 | H13: 413 | I13: 0 | J13: 0 | K13: 0 | L13: 0 | M13: 0 | N13: 0 | O13: 0 | P13: 0 | Q13: 0 | R13: 103 | S13: 2218 | T13: 113 | U13: 0 | V13: 0 | W13: 0 | X13: 0 | Y13: 35 | Z13: 16 | AA13: 15039 | AB13: 81.51219512
A14: CATEDRAL | B14: 24 | C14: 15251 | D14: 3284 | E14: 21.53301423 | F14: 3248 | G14: 357 | H14: 594 | I14: 0 | J14: 0 | K14: 0 | L14: 0 | M14: 0 | N14: 0 | O14: 0 | P14: 0 | Q14: 0 | R14: 234 | S14: 1951 | T14: 112 | U14: 0 | V14: 0 | W14: 0 | X14: 0 | Y14: 29 | Z14: 7 | AA14: 11967 | AB14: 78.46698577
A15: ZAPOTE | B15: 26 | C15: 17640 | D15: 3404 | E15: 19.29705215 | F15: 3358 | G15: 334 | H15: 721 | I15: 0 | J15: 0 | K15: 0 | L15: 0 | M15: 0 | N15: 0 | O15: 0 | P15: 0 | Q15: 0 | R15: 128 | S15: 2090 | T15: 85 | U15: 0 | V15: 0 | W15: 0 | X15: 0 | Y15: 39 | Z15: 7 | AA15: 14236 | AB15: 80.70294785
A16: SAN FRANCISCO DE DOS RÍOS | B16: 27 | C16: 18388 | D16: 3667 | E16: 19.94235371 | F16: 3634 | G16: 416 | H16: 636 | I16: 0 | J16: 0 | K16: 0 | L16: 0 | M16: 0 | N16: 0 | O16: 0 | P16: 0 | Q16: 0 | R16: 91 | S16: 2381 | T16: 110 | U16: 0 | V16: 0 | W16: 0 | X16: 0 | Y16: 22 | Z16: 11 | AA16: 14721 | AB16: 80.05764629
A17: URUCA | B17: 23 | C17: 13316 | D17: 2875 | E17: 21.59056774 | F17: 2823 | G17: 292 | H17: 470 | I17: 0 | J17: 0 | K17: 0 | L17: 0 | M17: 0 | N17: 0 | O17: 0 | P17: 0 | Q17: 0 | R17: 68 | S17: 1876 | T17: 117 | U17: 0 | V17: 0 | W17: 0 | X17: 0 | Y17: 39 | Z17: 13 | AA17: 10441 | AB17: 78.40943226
A18: MATA REDONDA | B18: 11 | C18: 7287 | D18: 1735 | E18: 23.80952381 | F18: 1716 | G18: 275 | H18: 267 | I18: 0 | J18: 0 | K18: 0 | L18: 0 | M18: 0 | N18: 0 | O18: 0 | P18: 0 | Q18: 0 | R18: 43 | S18: 1072 | T18: 59 | U18: 0 | V18: 0 | W18: 0 | X18: 0 | Y18: 13 | Z18: 6 | AA18: 5552 | AB18: 76.19047619
A19: PAVAS | B19: 70 | C19: 47851 | D19: 7457 | E19: 15.58379135 | F19: 7356 | G19: 1159 | H19: 1135 | I19: 0 | J19: 0 | K19: 0 | L19: 0 | M19: 0 | N19: 0 | O19: 0 | P19: 0 | Q19: 0 | R19: 400 | S19: 4454 | T19: 208 | U19: 0 | V19: 0 | W19: 0 | X19: 0 | Y19: 79 | Z19: 22 | AA19: 40394 | AB19: 84.41620865
A20: HATILLO | B20: 65 | C20: 43664 | D20: 6972 | E20: 15.96738732 | F20: 6912 | G20: 1450 | H20: 977 | I20: 0 | J20: 0 | K20: 0 | L20: 0 | M20: 0 | N20: 0 | O20: 0 | P20: 0 | Q20: 0 | R20: 258 | S20: 4155 | T20: 72 | U20: 0 | V20: 0 | W20: 0 | X20: 0 | Y20: 49 | Z20: 11 | AA20: 36692 | AB20: 84.03261268
A21: SAN SEBASTIÁN | B21: 44 | C21: 29395 | D21: 5333 | E21: 18.14254125 | F21: 5261 | G21: 999 | H21: 862 | I21: 0 | J21: 0 | K21: 0 | L21: 0 | M21: 0 | N21: 0 | O21: 0 | P21: 0 | Q21: 0 | R21: 119 | S21: 3160 | T21: 121 | U21: 0 | V21: 0 | W21: 0 | X21: 0 | Y21: 54 | Z21: 18 | AA21: 24062 | AB21: 81.85745875
A22: CANTÓN 2 ESCAZÚ | B22: 61 | C22: 40526 | D22: 11034 | E22: 27.2269654 | F22: 10844 | G22: 0 | H22: 0 | I22: 0 | J22: 0 | K22: 0 | L22: 0 | M22: 0 | N22: 0 | O22: 0 | P22: 0 | Q22: 0 | R22: 0 | S22: 3517 | T22: 1534 | U22: 701 | V22: 0 | W22: 145 | X22: 4947 | Y22: 164 | Z22: 26 | AA22: 29492 | AB22: 72.7730346
A23: ESCAZÚ | B23: 17 | C23: 11477 | D23: 3373 | E23: 29.38921321 | F23: 3307 | G23: 0 | H23: 0 | I23: 0 | J23: 0 | K23: 0 | L23: 0 | M23: 0 | N23: 0 | O23: 0 | P23: 0 | Q23: 0 | R23: 0 | S23: 1181 | T23: 487 | U23: 241 | V23: 0 | W23: 50 | X23: 1348 | Y23: 60 | Z23: 6 | AA23: 8104 | AB23: 70.61078679
A24: SAN ANTONIO | B24: 20 | C24: 12963 | D24: 3596 | E24: 27.74049217 | F24: 3515 | G24: 0 | H24: 0 | I24: 0 | J24: 0 | K24: 0 | L24: 0 | M24: 0 | N24: 0 | O24: 0 | P24: 0 | Q24: 0 | R24: 0 | S24: 1400 | T24: 511 | U24: 310 | V24: 0 | W24: 54 | X24: 1240 | Y24: 70 | Z24: 11 | AA24: 9367 | AB24: 72.25950783
A25: SAN RAFAEL | B25: 24 | C25: 16086 | D25: 4065 | E25: 25.27042148 | F25: 4022 | G25: 0 | H25: 0 | I25: 0 | J25: 0 | K25: 0 | L25: 0 | M25: 0 | N25: 0 | O25: 0 | P25: 0 | Q25: 0 | R25: 0 | S25: 936 | T25: 536 | U25: 150 | V25: 0 | W25: 41 | X25: 2359 | Y25: 34 | Z25: 9 | AA25: 12021 | AB25: 74.72957852
A26: CANTÓN 3 DESAMPARADOS | B26: 233 | C26: 144901 | D26: 22762 | E26: 15.70865625 | F26: 22439 | G26: 0 | H26: 3229 | I26: 1687 | J26: 0 | K26: 0 | L26: 0 | M26: 0 | N26: 0 | O26: 0 | P26: 0 | Q26: 0 | R26: 0 | S26: 11154 | T26: 3067 | U26: 1466 | V26: 0 | W26: 1836 | X26: 0 | Y26: 258 | Z26: 65 | AA26: 122139 | AB26: 84.29134375
A27: DESAMPARADOS | B27: 46 | C27: 29895 | D27: 4336 | E27: 14.50409768 | F27: 4295 | G27: 0 | H27: 615 | I27: 464 | J27: 0 | K27: 0 | L27: 0 | M27: 0 | N27: 0 | O27: 0 | P27: 0 | Q27: 0 | R27: 0 | S27: 1637 | T27: 874 | U27: 371 | V27: 0 | W27: 334 | X27: 0 | Y27: 31 | Z27: 10 | AA27: 25559 | AB27: 85.49590232
A28: SAN MIGUEL | B28: 40 | C28: 24287 | D28: 3265 | E28: 13.44340594 | F28: 3222 | G28: 0 | H28: 324 | I28: 136 | J28: 0 | K28: 0 | L28: 0 | M28: 0 | N28: 0 | O28: 0 | P28: 0 | Q28: 0 | R28: 0 | S28: 1773 | T28: 448 | U28: 346 | V28: 0 | W28: 195 | X28: 0 | Y28: 33 | Z28: 10 | AA28: 21022 | AB28: 86.55659406
A29: SAN JUAN DE DIOS | B29: 17 | C29: 11594 | D29: 1392 | E29: 12.00621011 | F29: 1365 | G29: 0 | H29: 150 | I29: 229 | J29: 0 | K29: 0 | L29: 0 | M29: 0 | N29: 0 | O29: 0 | P29: 0 | Q29: 0 | R29: 0 | S29: 669 | T29: 148 | U29: 67 | V29: 0 | W29: 102 | X29: 0 | Y29: 22 | Z29: 5 | AA29: 10202 | AB29: 87.99378989
A30: SAN RAFAEL ARRIBA | B30: 17 | C30: 10283 | D30: 1592 | E30: 15.48186327 | F30: 1565 | G30: 0 | H30: 276 | I30: 62 | J30: 0 | K30: 0 | L30: 0 | M30: 0 | N30: 0 | O30: 0 | P30: 0 | Q30: 0 | R30: 0 | S30: 597 | T30: 191 | U30: 60 | V30: 0 | W30: 379 | X30: 0 | Y30: 22 | Z30: 5 | AA30: 8691 | AB30: 84.51813673
A31: SAN ANTONIO | B31: 13 | C31: 8455 | D31: 1249 | E31: 14.77232407 | F31: 1236 | G31: 0 | H31: 212 | I31: 121 | J31: 0 | K31: 0 | L31: 0 | M31: 0 | N31: 0 | O31: 0 | P31: 0 | Q31: 0 | R31: 0 | S31: 525 | T31: 191 | U31: 59 | V31: 0 | W31: 128 | X31: 0 | Y31: 11 | Z31: 2 | AA31: 7206 | AB31: 85.22767593
A32: FRAILES | B32: 6 | C32: 2632 | D32: 955 | E32: 36.28419453 | F32: 945 | G32: 0 | H32: 55 | I32: 29 | J32: 0 | K32: 0 | L32: 0 | M32: 0 | N32: 0 | O32: 0 | P32: 0 | Q32: 0 | R32: 0 | S32: 796 | T32: 27 | U32: 18 | V32: 0 | W32: 20 | X32: 0 | Y32: 8 | Z32: 2 | AA32: 1677 | AB32: 63.71580547
A33: PATARRÁ | B33: 9 | C33: 5547 | D33: 1177 | E33: 21.21867676 | F33: 1162 | G33: 0 | H33: 68 | I33: 45 | J33: 0 | K33: 0 | L33: 0 | M33: 0 | N33: 0 | O33: 0 | P33: 0 | Q33: 0 | R33: 0 | S33: 832 | T33: 56 | U33: 46 | V33: 0 | W33: 115 | X33: 0 | Y33: 13 | Z33: 2 | AA33: 4370 | AB33: 78.78132324
A34: SAN CRISTÓBAL | B34: 7 | C34: 2847 | D34: 922 | E34: 32.38496663 | F34: 903 | G34: 0 | H34: 49 | I34: 36 | J34: 0 | K34: 0 | L34: 0 | M34: 0 | N34: 0 | O34: 0 | P34: 0 | Q34: 0 | R34: 0 | S34: 762 | T34: 30 | U34: 22 | V34: 0 | W34: 4 | X34: 0 | Y34: 15 | Z34: 4 | AA34: 1925 | AB34: 67.61503337
A35: ROSARIO | B35: 7 | C35: 2508 | D35: 807 | E35: 32.17703349 | F35: 791 | G35: 0 | H35: 70 | I35: 7 | J35: 0 | K35: 0 | L35: 0 | M35: 0 | N35: 0 | O35: 0 | P35: 0 | Q35: 0 | R35: 0 | S35: 641 | T35: 48 | U35: 10 | V35: 0 | W35: 15 | X35: 0 | Y35: 12 | Z35: 4 | AA35: 1701 | AB35: 67.82296651
A36: DAMAS | B36: 13 | C36: 8519 | D36: 1438 | E36: 16.87991548 | F36: 1410 | G36: 0 | H36: 221 | I36: 118 | J36: 0 | K36: 0 | L36: 0 | M36: 0 | N36: 0 | O36: 0 | P36: 0 | Q36: 0 | R36: 0 | S36: 719 | T36: 148 | U36: 144 | V36: 0 | W36: 60 | X36: 0 | Y36: 20 | Z36: 8 | AA36: 7081 | AB36: 83.12008452
A37: SAN RAFAEL ABAJO | B37: 22 | C37: 14696 | D37: 1966 | E37: 13.37778987 | F37: 1941 | G37: 0 | H37: 676 | I37: 58 | J37: 0 | K37: 0 | L37: 0 | M37: 0 | N37: 0 | O37: 0 | P37: 0 | Q37: 0 | R37: 0 | S37: 697 | T37: 332 | U37: 66 | V37: 0 | W37: 112 | X37: 0 | Y37: 22 | Z37: 3 | AA37: 12730 | AB37: 86.62221013
A38: GRAVILIAS | B38: 19 | C38: 12490 | D38: 2203 | E38: 17.63811049 | F38: 2181 | G38: 0 | H38: 401 | I38: 229 | J38: 0 | K38: 0 | L38: 0 | M38: 0 | N38: 0 | O38: 0 | P38: 0 | Q38: 0 | R38: 0 | S38: 653 | T38: 448 | U38: 152 | V38: 0 | W38: 298 | X38: 0 | Y38: 18 | Z38: 4 | AA38: 10287 | AB38: 82.36188951
A39: LOS GUIDO | B39: 17 | C39: 11148 | D39: 1460 | E39: 13.09651956 | F39: 1423 | G39: 0 | H39: 112 | I39: 153 | J39: 0 | K39: 0 | L39: 0 | M39: 0 | N39: 0 | O39: 0 | P39: 0 | Q39: 0 | R39: 0 | S39: 853 | T39: 126 | U39: 105 | V39: 0 | W39: 74 | X39: 0 | Y39: 31 | Z39: 6 | AA39: 9688 | AB39: 86.90348044
A40: CANTÓN 4 PURISCAL | B40: 60 | C40: 24663 | D40: 7826 | E40: 31.73174391 | F40: 7678 | G40: 0 | H40: 580 | I40: 0 | J40: 0 | K40: 0 | L40: 0 | M40: 0 | N40: 0 | O40: 0 | P40: 0 | Q40: 0 | R40: 0 | S40: 4169 | T40: 0 | U40: 0 | V40: 0 | W40: 2929 | X40: 0 | Y40: 111 | Z40: 37 | AA40: 16837 | AB40: 68.26825609
A41: SANTIAGO | B41: 17 | C41: 9465 | D41: 2435 | E41: 25.72636027 | F41: 2402 | G41: 0 | H41: 244 | I41: 0 | J41: 0 | K41: 0 | L41: 0 | M41: 0 | N41: 0 | O41: 0 | P41: 0 | Q41: 0 | R41: 0 | S41: 1060 | T41: 0 | U41: 0 | V41: 0 | W41: 1098 | X41: 0 | Y41: 28 | Z41: 5 | AA41: 7030 | AB41: 74.27363973
A42: MERCEDES SUR | B42: 12 | C42: 3764 | D42: 1464 | E42: 38.89479277 | F42: 1431 | G42: 0 | H42: 48 | I42: 0 | J42: 0 | K42: 0 | L42: 0 | M42: 0 | N42: 0 | O42: 0 | P42: 0 | Q42: 0 | R42: 0 | S42: 576 | T42: 0 | U42: 0 | V42: 0 | W42: 807 | X42: 0 | Y42: 24 | Z42: 9 | AA42: 2300 | AB42: 61.10520723
A43: BARBACOAS | B43: 6 | C43: 2956 | D43: 1337 | E43: 45.2300406 | F43: 1319 | G43: 0 | H43: 45 | I43: 0 | J43: 0 | K43: 0 | L43: 0 | M43: 0 | N43: 0 | O43: 0 | P43: 0 | Q43: 0 | R43: 0 | S43: 971 | T43: 0 | U43: 0 | V43: 0 | W43: 303 | X43: 0 | Y43: 11 | Z43: 7 | AA43: 1619 | AB43: 54.7699594
A44: GRIFO ALTO | B44: 3 | C44: 852 | D44: 333 | E44: 39.08450704 | F44: 322 | G44: 0 | H44: 1 | I44: 0 | J44: 0 | K44: 0 | L44: 0 | M44: 0 | N44: 0 | O44: 0 | P44: 0 | Q44: 0 | R44: 0 | S44: 274 | T44: 0 | U44: 0 | V44: 0 | W44: 47 | X44: 0 | Y44: 8 | Z44: 3 | AA44: 519 | AB44: 60.91549296
A45: SAN RAFAEL | B45: 3 | C45: 1179 | D45: 451 | E45: 38.25275657 | F45: 437 | G45: 0 | H45: 6 | I45: 0 | J45: 0 | K45: 0 | L45: 0 | M45: 0 | N45: 0 | O45: 0 | P45: 0 | Q45: 0 | R45: 0 | S45: 207 | T45: 0 | U45: 0 | V45: 0 | W45: 224 | X45: 0 | Y45: 10 | Z45: 4 | AA45: 728 | AB45: 61.74724343
A46: CANDELARITA | B46: 2 | C46: 1279 | D46: 374 | E46: 29.241595 | F46: 369 | G46: 0 | H46: 36 | I46: 0 | J46: 0 | K46: 0 | L46: 0 | M46: 0 | N46: 0 | O46: 0 | P46: 0 | Q46: 0 | R46: 0 | S46: 257 | T46: 0 | U46: 0 | V46: 0 | W46: 76 | X46: 0 | Y46: 1 | Z46: 4 | AA46: 905 | AB46: 70.758405
A47: DESAMPARADITOS | B47: 1 | C47: 490 | D47: 149 | E47: 30.40816327 | F47: 148 | G47: 0 | H47: 15 | I47: 0 | J47: 0 | K47: 0 | L47: 0 | M47: 0 | N47: 0 | O47: 0 | P47: 0 | Q47: 0 | R47: 0 | S47: 68 | T47: 0 | U47: 0 | V47: 0 | W47: 65 | X47: 0 | Y47: 1 | Z47: 0 | AA47: 341 | AB47: 69.59183673
A48: SAN ANTONIO | B48: 5 | C48: 2583 | D48: 594 | E48: 22.99651568 | F48: 577 | G48: 0 | H48: 170 | I48: 0 | J48: 0 | K48: 0 | L48: 0 | M48: 0 | N48: 0 | O48: 0 | P48: 0 | Q48: 0 | R48: 0 | S48: 246 | T48: 0 | U48: 0 | V48: 0 | W48: 161 | X48: 0 | Y48: 17 | Z48: 0 | AA48: 1989 | AB48: 77.00348432
A49: CHIRES | B49: 11 | C49: 2095 | D49: 689 | E49: 32.88782816 | F49: 673 | G49: 0 | H49: 15 | I49: 0 | J49: 0 | K49: 0 | L49: 0 | M49: 0 | N49: 0 | O49: 0 | P49: 0 | Q49: 0 | R49: 0 | S49: 510 | T49: 0 | U49: 0 | V49: 0 | W49: 148 | X49: 0 | Y49: 11 | Z49: 5 | AA49: 1406 | AB49: 67.11217184
A50: CANTÓN 5 TARRAZÚ | B50: 25 | C50: 10616 | D50: 3845 | E50: 36.21891485 | F50: 3780 | G50: 0 | H50: 0 | I50: 0 | J50: 0 | K50: 0 | L50: 0 | M50: 0 | N50: 0 | O50: 0 | P50: 0 | Q50: 0 | R50: 0 | S50: 2081 | T50: 0 | U50: 0 | V50: 906 | W50: 793 | X50: 0 | Y50: 48 | Z50: 17 | AA50: 6771 | AB50: 63.78108515
A51: SAN MARCOS | B51: 13 | C51: 6724 | D51: 2547 | E51: 37.87923855 | F51: 2510 | G51: 0 | H51: 0 | I51: 0 | J51: 0 | K51: 0 | L51: 0 | M51: 0 | N51: 0 | O51: 0 | P51: 0 | Q51: 0 | R51: 0 | S51: 1409 | T51: 0 | U51: 0 | V51: 590 | W51: 511 | X51: 0 | Y51: 27 | Z51: 10 | AA51: 4177 | AB51: 62.12076145
A52: SAN LORENZO | B52: 9 | C52: 2644 | D52: 906 | E52: 34.26626324 | F52: 886 | G52: 0 | H52: 0 | I52: 0 | J52: 0 | K52: 0 | L52: 0 | M52: 0 | N52: 0 | O52: 0 | P52: 0 | Q52: 0 | R52: 0 | S52: 472 | T52: 0 | U52: 0 | V52: 200 | W52: 214 | X52: 0 | Y52: 14 | Z52: 6 | AA52: 1738 | AB52: 65.73373676
A53: SAN CARLOS | B53: 3 | C53: 1248 | D53: 392 | E53: 31.41025641 | F53: 384 | G53: 0 | H53: 0 | I53: 0 | J53: 0 | K53: 0 | L53: 0 | M53: 0 | N53: 0 | O53: 0 | P53: 0 | Q53: 0 | R53: 0 | S53: 200 | T53: 0 | U53: 0 | V53: 116 | W53: 68 | X53: 0 | Y53: 7 | Z53: 1 | AA53: 856 | AB53: 68.58974359
A54: CANTÓN 6 ASERRÍ | B54: 66 | C54: 37616 | D54: 11000 | E54: 29.24287537 | F54: 10820 | G54: 0 | H54: 5315 | I54: 0 | J54: 0 | K54: 0 | L54: 0 | M54: 0 | N54: 0 | O54: 0 | P54: 828 | Q54: 0 | R54: 235 | S54: 4201 | T54: 241 | U54: 0 | V54: 0 | W54: 0 | X54: 0 | Y54: 148 | Z54: 32 | AA54: 26616 | AB54: 70.75712463
A55: ASERRÍ | B55: 32 | C55: 21462 | D55: 5546 | E55: 25.84102134 | F55: 5479 | G55: 0 | H55: 2906 | I55: 0 | J55: 0 | K55: 0 | L55: 0 | M55: 0 | N55: 0 | O55: 0 | P55: 564 | Q55: 0 | R55: 195 | S55: 1687 | T55: 127 | U55: 0 | V55: 0 | W55: 0 | X55: 0 | Y55: 55 | Z55: 12 | AA55: 15916 | AB55: 74.15897866
A56: TARBACA | B56: 4 | C56: 1562 | D56: 579 | E56: 37.06786172 | F56: 563 | G56: 0 | H56: 304 | I56: 0 | J56: 0 | K56: 0 | L56: 0 | M56: 0 | N56: 0 | O56: 0 | P56: 20 | Q56: 0 | R56: 4 | S56: 223 | T56: 12 | U56: 0 | V56: 0 | W56: 0 | X56: 0 | Y56: 12 | Z56: 4 | AA56: 983 | AB56: 62.93213828
A57: VUELTA DE JORCO | B57: 9 | C57: 4320 | D57: 1558 | E57: 36.06481481 | F57: 1530 | G57: 0 | H57: 635 | I57: 0 | J57: 0 | K57: 0 | L57: 0 | M57: 0 | N57: 0 | O57: 0 | P57: 22 | Q57: 0 | R57: 7 | S57: 823 | T57: 43 | U57: 0 | V57: 0 | W57: 0 | X57: 0 | Y57: 23 | Z57: 5 | AA57: 2762 | AB57: 63.93518519
A58: SAN GABRIEL | B58: 6 | C58: 3249 | D58: 1116 | E58: 34.34903047 | F58: 1093 | G58: 0 | H58: 493 | I58: 0 | J58: 0 | K58: 0 | L58: 0 | M58: 0 | N58: 0 | O58: 0 | P58: 38 | Q58: 0 | R58: 14 | S58: 519 | T58: 29 | U58: 0 | V58: 0 | W58: 0 | X58: 0 | Y58: 18 | Z58: 5 | AA58: 2133 | AB58: 65.65096953
A59: LEGUA | B59: 5 | C59: 1063 | D59: 580 | E59: 54.5625588 | F59: 565 | G59: 0 | H59: 291 | I59: 0 | J59: 0 | K59: 0 | L59: 0 | M59: 0 | N59: 0 | O59: 0 | P59: 31 | Q59: 0 | R59: 5 | S59: 237 | T59: 1 | U59: 0 | V59: 0 | W59: 0 | X59: 0 | Y59: 13 | Z59: 2 | AA59: 483 | AB59: 45.4374412
A60: MONTERREY | B60: 2 | C60: 679 | D60: 318 | E60: 46.83357879 | F60: 308 | G60: 0 | H60: 74 | I60: 0 | J60: 0 | K60: 0 | L60: 0 | M60: 0 | N60: 0 | O60: 0 | P60: 3 | Q60: 0 | R60: 0 | S60: 229 | T60: 2 | U60: 0 | V60: 0 | W60: 0 | X60: 0 | Y60: 8 | Z60: 2 | AA60: 361 | AB60: 53.16642121
A61: SALITRILLOS | B61: 8 | C61: 5281 | D61: 1303 | E61: 24.67335732 | F61: 1282 | G61: 0 | H61: 612 | I61: 0 | J61: 0 | K61: 0 | L61: 0 | M61: 0 | N61: 0 | O61: 0 | P61: 150 | Q61: 0 | R61: 10 | S61: 483 | T61: 27 | U61: 0 | V61: 0 | W61: 0 | X61: 0 | Y61: 19 | Z61: 2 | AA61: 3978 | AB61: 75.32664268
A62: CANTÓN 7 MORA | B62: 37 | C62: 17413 | D62: 6153 | E62: 35.33566875 | F62: 6039 | G62: 0 | H62: 0 | I62: 0 | J62: 0 | K62: 0 | L62: 0 | M62: 0 | N62: 0 | O62: 1315 | P62: 0 | Q62: 0 | R62: 0 | S62: 3283 | T62: 0 | U62: 0 | V62: 0 | W62: 1441 | X62: 0 | Y62: 88 | Z62: 26 | AA62: 11260 | AB62: 64.66433125
A63: COLÓN | B63: 20 | C63: 10793 | D63: 3692 | E63: 34.20735662 | F63: 3647 | G63: 0 | H63: 0 | I63: 0 | J63: 0 | K63: 0 | L63: 0 | M63: 0 | N63: 0 | O63: 1054 | P63: 0 | Q63: 0 | R63: 0 | S63: 2011 | T63: 0 | U63: 0 | V63: 0 | W63: 582 | X63: 0 | Y63: 34 | Z63: 11 | AA63: 7101 | AB63: 65.79264338
A64: GUAYABO | B64: 5 | C64: 2471 | D64: 783 | E64: 31.68757588 | F64: 765 | G64: 0 | H64: 0 | I64: 0 | J64: 0 | K64: 0 | L64: 0 | M64: 0 | N64: 0 | O64: 80 | P64: 0 | Q64: 0 | R64: 0 | S64: 457 | T64: 0 | U64: 0 | V64: 0 | W64: 228 | X64: 0 | Y64: 13 | Z64: 5 | AA64: 1688 | AB64: 68.31242412
A65: TABARCIA | B65: 9 | C65: 3420 | D65: 1293 | E65: 37.80701754 | F65: 1252 | G65: 0 | H65: 0 | I65: 0 | J65: 0 | K65: 0 | L65: 0 | M65: 0 | N65: 0 | O65: 97 | P65: 0 | Q65: 0 | R65: 0 | S65: 565 | T65: 0 | U65: 0 | V65: 0 | W65: 590 | X65: 0 | Y65: 35 | Z65: 6 | AA65: 2127 | AB65: 62.19298246
A66: PIEDRAS NEGRAS | B66: 1 | C66: 235 | D66: 115 | E66: 48.93617021 | F66: 113 | G66: 0 | H66: 0 | I66: 0 | J66: 0 | K66: 0 | L66: 0 | M66: 0 | N66: 0 | O66: 63 | P66: 0 | Q66: 0 | R66: 0 | S66: 44 | T66: 0 | U66: 0 | V66: 0 | W66: 6 | X66: 0 | Y66: 1 | Z66: 1 | AA66: 120 | AB66: 51.06382979
A67: PICAGRES | B67: 2 | C67: 494 | D67: 270 | E67: 54.65587045 | F67: 262 | G67: 0 | H67: 0 | I67: 0 | J67: 0 | K67: 0 | L67: 0 | M67: 0 | N67: 0 | O67: 21 | P67: 0 | Q67: 0 | R67: 0 | S67: 206 | T67: 0 | U67: 0 | V67: 0 | W67: 35 | X67: 0 | Y67: 5 | Z67: 3 | AA67: 224 | AB67: 45.34412955
A68: CANTÓN 8 GOICOECHEA | B68: 129 | C68: 85797 | D68: 16058 | E68: 18.71627213 | F68: 15763 | G68: 697 | H68: 2782 | I68: 0 | J68: 0 | K68: 0 | L68: 0 | M68: 0 | N68: 0 | O68: 0 | P68: 0 | Q68: 2047 | R68: 146 | S68: 5272 | T68: 1691 | U68: 2490 | V68: 0 | W68: 638 | X68: 0 | Y68: 239 | Z68: 56 | AA68: 69739 | AB68: 81.28372787
A69: GUADALUPE | B69: 31 | C69: 20766 | D69: 4066 | E69: 19.58008283 | F69: 4012 | G69: 129 | H69: 773 | I69: 0 | J69: 0 | K69: 0 | L69: 0 | M69: 0 | N69: 0 | O69: 0 | P69: 0 | Q69: 892 | R69: 42 | S69: 1240 | T69: 375 | U69: 421 | V69: 0 | W69: 140 | X69: 0 | Y69: 41 | Z69: 13 | AA69: 16700 | AB69: 80.41991717
A70: SAN FRANCISCO | B70: 4 | C70: 2123 | D70: 715 | E70: 33.67875648 | F70: 696 | G70: 19 | H70: 66 | I70: 0 | J70: 0 | K70: 0 | L70: 0 | M70: 0 | N70: 0 | O70: 0 | P70: 0 | Q70: 47 | R70: 32 | S70: 274 | T70: 46 | U70: 198 | V70: 0 | W70: 14 | X70: 0 | Y70: 17 | Z70: 2 | AA70: 1408 | AB70: 66.32124352
A71: CALLE BLANCOS | B71: 17 | C71: 11749 | D71: 2151 | E71: 18.3079411 | F71: 2113 | G71: 118 | H71: 355 | I71: 0 | J71: 0 | K71: 0 | L71: 0 | M71: 0 | N71: 0 | O71: 0 | P71: 0 | Q71: 312 | R71: 15 | S71: 716 | T71: 133 | U71: 370 | V71: 0 | W71: 94 | X71: 0 | Y71: 34 | Z71: 4 | AA71: 9598 | AB71: 81.6920589
A72: MATA DE PLÁTANO | B72: 17 | C72: 11701 | D72: 2173 | E72: 18.5710623 | F72: 2144 | G72: 44 | H72: 619 | I72: 0 | J72: 0 | K72: 0 | L72: 0 | M72: 0 | N72: 0 | O72: 0 | P72: 0 | Q72: 265 | R72: 10 | S72: 795 | T72: 147 | U72: 221 | V72: 0 | W72: 43 | X72: 0 | Y72: 23 | Z72: 6 | AA72: 9528 | AB72: 81.4289377
A73: IPÍS | B73: 32 | C73: 21376 | D73: 3564 | E73: 16.67290419 | F73: 3508 | G73: 213 | H73: 531 | I73: 0 | J73: 0 | K73: 0 | L73: 0 | M73: 0 | N73: 0 | O73: 0 | P73: 0 | Q73: 354 | R73: 28 | S73: 1185 | T73: 443 | U73: 580 | V73: 0 | W73: 174 | X73: 0 | Y73: 44 | Z73: 12 | AA73: 17812 | AB73: 83.32709581
A74: RANCHO REDONDO | B74: 5 | C74: 2811 | D74: 777 | E74: =+D74/C74*100 -> 27.64140875 | F74: 754 | G74: 45 | H74: 62 | I74: 0 | J74: 0 | K74: 0 | L74: 0 | M74: 0 | N74: 0 | O74: 0 | P74: 0 | Q74: 54 | R74: 7 | S74: 295 | T74: 117 | U74: 122 | V74: 0 | W74: 52 | X74: 0 | Y74: 20 | Z74: 3 | AA74: =+C74-D74 -> 2034 | AB74: =+AA74/C74*100 -> 72.35859125
A75: PURRAL | B75: 23 | C75: 15271 | D75: 2612 | E75: 17.10431537 | F75: 2536 | G75: 129 | H75: 376 | I75: 0 | J75: 0 | K75: 0 | L75: 0 | M75: 0 | N75: 0 | O75: 0 | P75: 0 | Q75: 123 | R75: 12 | S75: 767 | T75: 430 | U75: 578 | V75: 0 | W75: 121 | X75: 0 | Y75: 60 | Z75: 16 | AA75: 12659 | AB75: 82.89568463
A76: CANTÓN 9 SANTA ANA | B76: 45 | C76: 27941 | D76: 8520 | E76: 30.49282417 | F76: 8426 | G76: 0 | H76: 0 | I76: 0 | J76: 0 | K76: 0 | L76: 0 | M76: 0 | N76: 2334 | O76: 0 | P76: 0 | Q76: 0 | R76: 0 | S76: 4674 | T76: 385 | U76: 385 | V76: 0 | W76: 648 | X76: 0 | Y76: 73 | Z76: 21 | AA76: 19421 | AB76: 69.50717583
A77: SANTA ANA | B77: 12 | C77: 7502 | D77: 2632 | E77: 35.08397761 | F77: 2610 | G77: 0 | H77: 0 | I77: 0 | J77: 0 | K77: 0 | L77: 0 | M77: 0 | N77: 758 | O77: 0 | P77: 0 | Q77: 0 | R77: 0 | S77: 1372 | T77: 64 | U77: 171 | V77: 0 | W77: 245 | X77: 0 | Y77: 13 | Z77: 9 | AA77: 4870 | AB77: 64.91602239
A78: SALITRAL | B78: 5 | C78: 2367 | D78: 951 | E78: 40.1774398 | F78: 939 | G78: 0 | H78: 0 | I78: 0 | J78: 0 | K78: 0 | L78: 0 | M78: 0 | N78: 135 | O78: 0 | P78: 0 | Q78: 0 | R78: 0 | S78: 663 | T78: 6 | U78: 69 | V78: 0 | W78: 66 | X78: 0 | Y78: 10 | Z78: 2 | AA78: 1416 | AB78: 59.8225602
A79: POZOS | B79: 12 | C79: 8037 | D79: 1970 | E79: 24.51163369 | F79: 1936 | G79: 0 | H79: 0 | I79: 0 | J79: 0 | K79: 0 | L79: 0 | M79: 0 | N79: 613 | O79: 0 | P79: 0 | Q79: 0 | R79: 0 | S79: 1002 | T79: 92 | U79: 65 | V79: 0 | W79: 164 | X79: 0 | Y79: 27 | Z79: 7 | AA79: 6067 | AB79: 75.48836631
A80: URUCA | B80: 8 | C80: 4707 | D80: 1259 | E80: 26.74739749 | F80: 1247 | G80: 0 | H80: 0 | I80: 0 | J80: 0 | K80: 0 | L80: 0 | M80: 0 | N80: 359 | O80: 0 | P80: 0 | Q80: 0 | R80: 0 | S80: 694 | T80: 85 | U80: 44 | V80: 0 | W80: 65 | X80: 0 | Y80: 11 | Z80: 1 | AA80: 3448 | AB80: 73.25260251
A81: PIEDADES | B81: 6 | C81: 4107 | D81: 1281 | E81: 31.19065011 | F81: 1271 | G81: 0 | H81: 0 | I81: 0 | J81: 0 | K81: 0 | L81: 0 | M81: 0 | N81: 338 | O81: 0 | P81: 0 | Q81: 0 | R81: 0 | S81: 724 | T81: 114 | U81: 19 | V81: 0 | W81: 76 | X81: 0 | Y81: 8 | Z81: 2 | AA81: 2826 | AB81: 68.80934989
A82: BRASIL | B82: 2 | C82: 1221 | D82: 427 | E82: 34.97133497 | F82: 423 | G82: 0 | H82: 0 | I82: 0 | J82: 0 | K82: 0 | L82: 0 | M82: 0 | N82: 131 | O82: 0 | P82: 0 | Q82: 0 | R82: 0 | S82: 219 | T82: 24 | U82: 17 | V82: 0 | W82: 32 | X82: 0 | Y82: 4 | Z82: 0 | AA82: 794 | AB82: 65.02866503
A83: CANTÓN 10 ALAJUELITA | B83: 69 | C83: 44907 | D83: 8700 | E83: 19.37337163 | F83: 8562 | G83: 0 | H83: 2419 | I83: 0 | J83: 0 | K83: 0 | L83: 0 | M83: 0 | N83: 0 | O83: 0 | P83: 0 | Q83: 0 | R83: 0 | S83: 2184 | T83: 0 | U83: 476 | V83: 0 | W83: 3483 | X83: 0 | Y83: 118 | Z83: 20 | AA83: 36207 | AB83: 80.62662837
A84: ALAJUELITA | B84: 14 | C84: 9535 | D84: 1857 | E84: 19.47561615 | F84: 1832 | G84: 0 | H84: 311 | I84: 0 | J84: 0 | K84: 0 | L84: 0 | M84: 0 | N84: 0 | O84: 0 | P84: 0 | Q84: 0 | R84: 0 | S84: 649 | T84: 0 | U84: 95 | V84: 0 | W84: 777 | X84: 0 | Y84: 22 | Z84: 3 | AA84: 7678 | AB84: 80.52438385
A85: SAN JOSECITO | B85: 10 | C85: 6910 | D85: 1484 | E85: 21.47612156 | F85: 1462 | G85: 0 | H85: 307 | I85: 0 | J85: 0 | K85: 0 | L85: 0 | M85: 0 | N85: 0 | O85: 0 | P85: 0 | Q85: 0 | R85: 0 | S85: 382 | T85: 0 | U85: 70 | V85: 0 | W85: 703 | X85: 0 | Y85: 19 | Z85: 3 | AA85: 5426 | AB85: 78.52387844
A86: SAN ANTONIO | B86: 3 | C86: 1367 | D86: 351 | E86: 25.67666423 | F86: 344 | G86: 0 | H86: 101 | I86: 0 | J86: 0 | K86: 0 | L86: 0 | M86: 0 | N86: 0 | O86: 0 | P86: 0 | Q86: 0 | R86: 0 | S86: 95 | T86: 0 | U86: 9 | V86: 0 | W86: 139 | X86: 0 | Y86: 7 | Z86: 0 | AA86: 1016 | AB86: 74.32333577
A87: CONCEPCIÓN | B87: 17 | C87: 11313 | D87: 1645 | E87: 14.54079378 | F87: 1622 | G87: 0 | H87: 469 | I87: 0 | J87: 0 | K87: 0 | L87: 0 | M87: 0 | N87: 0 | O87: 0 | P87: 0 | Q87: 0 | R87: 0 | S87: 507 | T87: 0 | U87: 120 | V87: 0 | W87: 526 | X87: 0 | Y87: 20 | Z87: 3 | AA87: 9668 | AB87: 85.45920622
A88: SAN FELIPE | B88: 25 | C88: 15782 | D88: 3363 | E88: 21.3090863 | F88: 3302 | G88: 0 | H88: 1231 | I88: 0 | J88: 0 | K88: 0 | L88: 0 | M88: 0 | N88: 0 | O88: 0 | P88: 0 | Q88: 0 | R88: 0 | S88: 551 | T88: 0 | U88: 182 | V88: 0 | W88: 1338 | X88: 0 | Y88: 50 | Z88: 11 | AA88: 12419 | AB88: 78.6909137
A89: CANTÓN 11 VÁZQUEZ DE CORONADO | B89: 68 | C89: 45831 | D89: 11983 | E89: 26.14605834 | F89: 11824 | G89: 0 | H89: 1575 | I89: 0 | J89: 0 | K89: 0 | L89: 0 | M89: 0 | N89: 0 | O89: 0 | P89: 0 | Q89: 0 | R89: 0 | S89: 5565 | T89: 0 | U89: 0 | V89: 0 | W89: 4684 | X89: 0 | Y89: 130 | Z89: 29 | AA89: 33848 | AB89: 73.85394166
A90: SAN ISIDRO | B90: 20 | C90: 13645 | D90: 3848 | E90: 28.20080616 | F90: 3807 | G90: 0 | H90: 485 | I90: 0 | J90: 0 | K90: 0 | L90: 0 | M90: 0 | N90: 0 | O90: 0 | P90: 0 | Q90: 0 | R90: 0 | S90: 1666 | T90: 0 | U90: 0 | V90: 0 | W90: 1656 | X90: 0 | Y90: 36 | Z90: 5 | AA90: 9797 | AB90: 71.79919384
A91: SAN RAFAEL | B91: 8 | C91: 4935 | D91: 1904 | E91: 38.58156028 | F91: 1874 | G91: 0 | H91: 149 | I91: 0 | J91: 0 | K91: 0 | L91: 0 | M91: 0 | N91: 0 | O91: 0 | P91: 0 | Q91: 0 | R91: 0 | S91: 1164 | T91: 0 | U91: 0 | V91: 0 | W91: 561 | X91: 0 | Y91: 25 | Z91: 5 | AA91: 3031 | AB91: 61.41843972
A92: DULCE NOMBRE DE JESÚS | B92: 12 | C92: 8045 | D92: 1752 | E92: 21.77750155 | F92: 1733 | G92: 0 | H92: 346 | I92: 0 | J92: 0 | K92: 0 | L92: 0 | M92: 0 | N92: 0 | O92: 0 | P92: 0 | Q92: 0 | R92: 0 | S92: 713 | T92: 0 | U92: 0 | V92: 0 | W92: 674 | X92: 0 | Y92: 15 | Z92: 4 | AA92: 6293 | AB92: 78.22249845
A93: PATALILLO | B93: 21 | C93: 14530 | D93: 3049 | E93: 20.98417068 | F93: 3007 | G93: 0 | H93: 438 | I93: 0 | J93: 0 | K93: 0 | L93: 0 | M93: 0 | N93: 0 | O93: 0 | P93: 0 | Q93: 0 | R93: 0 | S93: 1331 | T93: 0 | U93: 0 | V93: 0 | W93: 1238 | X93: 0 | Y93: 31 | Z93: 11 | AA93: 11481 | AB93: 79.01582932
A94: CASCAJAL | B94: 7 | C94: 4676 | D94: 1430 | E94: 30.58169376 | F94: 1403 | G94: 0 | H94: 157 | I94: 0 | J94: 0 | K94: 0 | L94: 0 | M94: 0 | N94: 0 | O94: 0 | P94: 0 | Q94: 0 | R94: 0 | S94: 691 | T94: 0 | U94: 0 | V94: 0 | W94: 555 | X94: 0 | Y94: 23 | Z94: 4 | AA94: 3246 | AB94: 69.41830624
A95: CANTÓN 12 ACOSTA | B95: 37 | C95: 14354 | D95: 4965 | E95: 34.58966142 | F95: 4849 | G95: 0 | H95: 1448 | I95: 0 | J95: 0 | K95: 0 | L95: 0 | M95: 0 | N95: 0 | O95: 0 | P95: 0 | Q95: 0 | R95: 0 | S95: 3401 | T95: 0 | U95: 0 | V95: 0 | W95: 0 | X95: 0 | Y95: 82 | Z95: 34 | AA95: 9389 | AB95: 65.41033858
A96: SAN IGNACIO | B96: 12 | C96: 6177 | D96: 2213 | E96: 35.82645297 | F96: 2172 | G96: 0 | H96: 844 | I96: 0 | J96: 0 | K96: 0 | L96: 0 | M96: 0 | N96: 0 | O96: 0 | P96: 0 | Q96: 0 | R96: 0 | S96: 1328 | T96: 0 | U96: 0 | V96: 0 | W96: 0 | X96: 0 | Y96: 34 | Z96: 7 | AA96: 3964 | AB96: 64.17354703
A97: GUAITIL | B97: 5 | C97: 1823 | D97: 586 | E97: 32.14481624 | F97: 567 | G97: 0 | H97: 111 | I97: 0 | J97: 0 | K97: 0 | L97: 0 | M97: 0 | N97: 0 | O97: 0 | P97: 0 | Q97: 0 | R97: 0 | S97: 456 | T97: 0 | U97: 0 | V97: 0 | W97: 0 | X97: 0 | Y97: 12 | Z97: 7 | AA97: 1237 | AB97: 67.85518376
A98: PALMICHAL | B98: 7 | C98: 3228 | D98: 1041 | E98: 32.24907063 | F98: 1018 | G98: 0 | H98: 317 | I98: 0 | J98: 0 | K98: 0 | L98: 0 | M98: 0 | N98: 0 | O98: 0 | P98: 0 | Q98: 0 | R98: 0 | S98: 701 | T98: 0 | U98: 0 | V98: 0 | W98: 0 | X98: 0 | Y98: 15 | Z98: 8 | AA98: 2187 | AB98: 67.75092937
A99: CANGREJAL | B99: 5 | C99: 1369 | D99: 430 | E99: 31.40978817 | F99: 422 | G99: 0 | H99: 64 | I99: 0 | J99: 0 | K99: 0 | L99: 0 | M99: 0 | N99: 0 | O99: 0 | P99: 0 | Q99: 0 | R99: 0 | S99: 358 | T99: 0 | U99: 0 | V99: 0 | W99: 0 | X99: 0 | Y99: 5 | Z99: 3 | AA99: 939 | AB99: 68.59021183
A100: SABANILLAS | B100: 8 | C100: 1757 | D100: 695 | E100: 39.55606147 | F100: 670 | G100: 0 | H100: 112 | I100: 0 | J100: 0 | K100: 0 | L100: 0 | M100: 0 | N100: 0 | O100: 0 | P100: 0 | Q100: 0 | R100: 0 | S100: 558 | T100: 0 | U100: 0 | V100: 0 | W100: 0 | X100: 0 | Y100: 16 | Z100: 9 | AA100: 1062 | AB100: 60.44393853
A101: CANTÓN 13 TIBÁS | B101: 84 | C101: 55315 | D101: 9985 | E101: 18.05116153 | F101: 9863 | G101: 0 | H101: 2159 | I101: 0 | J101: 0 | K101: 2080 | L101: 0 | M101: 0 | N101: 0 | O101: 0 | P101: 0 | Q101: 0 | R101: 0 | S101: 3085 | T101: 1245 | U101: 451 | V101: 0 | W101: 843 | X101: 0 | Y101: 93 | Z101: 29 | AA101: 45330 | AB101: 81.94883847
A102: SAN JUAN | B102: 33 | C102: 21948 | D102: 4167 | E102: 18.98578458 | F102: 4122 | G102: 0 | H102: 970 | I102: 0 | J102: 0 | K102: 1130 | L102: 0 | M102: 0 | N102: 0 | O102: 0 | P102: 0 | Q102: 0 | R102: 0 | S102: 1240 | T102: 443 | U102: 140 | V102: 0 | W102: 199 | X102: 0 | Y102: 37 | Z102: 8 | AA102: 17781 | AB102: 81.01421542
A103: CINCO ESQUINAS | B103: 11 | C103: 7091 | D103: 1168 | E103: 16.4715837 | F103: 1150 | G103: 0 | H103: 201 | I103: 0 | J103: 0 | K103: 67 | L103: 0 | M103: 0 | N103: 0 | O103: 0 | P103: 0 | Q103: 0 | R103: 0 | S103: 485 | T103: 172 | U103: 44 | V103: 0 | W103: 181 | X103: 0 | Y103: 12 | Z103: 6 | AA103: 5923 | AB103: 83.5284163
A104: ANSELMO LLORENTE | B104: 13 | C104: 8654 | D104: 1644 | E104: 18.99699561 | F104: 1635 | G104: 0 | H104: 351 | I104: 0 | J104: 0 | K104: 404 | L104: 0 | M104: 0 | N104: 0 | O104: 0 | P104: 0 | Q104: 0 | R104: 0 | S104: 420 | T104: 271 | U104: 97 | V104: 0 | W104: 92 | X104: 0 | Y104: 5 | Z104: 4 | AA104: 7010 | AB104: 81.00300439
A105: LEÓN XIII | B105: 12 | C105: 7931 | D105: 1277 | E105: 16.10137435 | F105: 1247 | G105: 0 | H105: 320 | I105: 0 | J105: 0 | K105: 35 | L105: 0 | M105: 0 | N105: 0 | O105: 0 | P105: 0 | Q105: 0 | R105: 0 | S105: 396 | T105: 185 | U105: 82 | V105: 0 | W105: 229 | X105: 0 | Y105: 25 | Z105: 5 | AA105: 6654 | AB105: 83.89862565
A106: COLIMA | B106: 15 | C106: 9691 | D106: 1729 | E106: 17.84129605 | F106: 1709 | G106: 0 | H106: 317 | I106: 0 | J106: 0 | K106: 444 | L106: 0 | M106: 0 | N106: 0 | O106: 0 | P106: 0 | Q106: 0 | R106: 0 | S106: 544 | T106: 174 | U106: 88 | V106: 0 | W106: 142 | X106: 0 | Y106: 14 | Z106: 6 | AA106: 7962 | AB106: 82.15870395
A107: CANTÓN 14 MORAVIA | B107: 62 | C107: 40392 | D107: 8391 | E107: 20.77391563 | F107: 8265 | G107: 1147 | H107: 1885 | I107: 0 | J107: 441 | K107: 0 | L107: 0 | M107: 0 | N107: 0 | O107: 0 | P107: 0 | Q107: 0 | R107: 47 | S107: 2125 | T107: 687 | U107: 590 | V107: 0 | W107: 1343 | X107: 0 | Y107: 107 | Z107: 19 | AA107: 32001 | AB107: 79.22608437
A108: SAN VICENTE | B108: 39 | C108: 25404 | D108: 5411 | E108: 21.29979531 | F108: 5352 | G108: 713 | H108: 1273 | I108: 0 | J108: 398 | K108: 0 | L108: 0 | M108: 0 | N108: 0 | O108: 0 | P108: 0 | Q108: 0 | R108: 24 | S108: 1374 | T108: 459 | U108: 361 | V108: 0 | W108: 750 | X108: 0 | Y108: 52 | Z108: 7 | AA108: 19993 | AB108: 78.70020469
A109: SAN JERÓNIMO | B109: 5 | C109: 3412 | D109: 840 | E109: 24.61899179 | F109: 821 | G109: 98 | H109: 185 | I109: 0 | J109: 7 | K109: 0 | L109: 0 | M109: 0 | N109: 0 | O109: 0 | P109: 0 | Q109: 0 | R109: 4 | S109: 174 | T109: 113 | U109: 41 | V109: 0 | W109: 199 | X109: 0 | Y109: 15 | Z109: 4 | AA109: 2572 | AB109: 75.38100821
A110: LA TRINIDAD | B110: 18 | C110: 11576 | D110: 2140 | E110: 18.48652384 | F110: 2092 | G110: 336 | H110: 427 | I110: 0 | J110: 36 | K110: 0 | L110: 0 | M110: 0 | N110: 0 | O110: 0 | P110: 0 | Q110: 0 | R110: 19 | S110: 577 | T110: 115 | U110: 188 | V110: 0 | W110: 394 | X110: 0 | Y110: 40 | Z110: 8 | AA110: 9436 | AB110: 81.51347616
A111: CANTÓN 15 MONTES DE OCA | B111: 62 | C111: 41135 | D111: 8304 | E111: 20.18718853 | F111: 8214 | G111: 0 | H111: 1660 | I111: 0 | J111: 0 | K111: 0 | L111: 1248 | M111: 0 | N111: 0 | O111: 0 | P111: 0 | Q111: 0 | R111: 0 | S111: 2197 | T111: 0 | U111: 2665 | V111: 0 | W111: 444 | X111: 0 | Y111: 73 | Z111: 17 | AA111: 32831 | AB111: 79.81281147
A112: SAN PEDRO | B112: 31 | C112: 21021 | D112: 3931 | E112: 18.70034727 | F112: 3890 | G112: 0 | H112: 762 | I112: 0 | J112: 0 | K112: 0 | L112: 591 | M112: 0 | N112: 0 | O112: 0 | P112: 0 | Q112: 0 | R112: 0 | S112: 1038 | T112: 0 | U112: 1318 | V112: 0 | W112: 181 | X112: 0 | Y112: 37 | Z112: 4 | AA112: 17090 | AB112: 81.29965273
A113: SABANILLA | B113: 17 | C113: 11227 | D113: 2351 | E113: 20.94058965 | F113: 2332 | G113: 0 | H113: 544 | I113: 0 | J113: 0 | K113: 0 | L113: 330 | M113: 0 | N113: 0 | O113: 0 | P113: 0 | Q113: 0 | R113: 0 | S113: 588 | T113: 0 | U113: 698 | V113: 0 | W113: 172 | X113: 0 | Y113: 14 | Z113: 5 | AA113: 8876 | AB113: 79.05941035
A114: MERCEDES | B114: 5 | C114: 2995 | D114: 718 | E114: 23.97328881 | F114: 710 | G114: 0 | H114: 103 | I114: 0 | J114: 0 | K114: 0 | L114: 151 | M114: 0 | N114: 0 | O114: 0 | P114: 0 | Q114: 0 | R114: 0 | S114: 218 | T114: 0 | U114: 203 | V114: 0 | W114: 35 | X114: 0 | Y114: 5 | Z114: 3 | AA114: 2277 | AB114: 76.02671119
A115: SAN RAFAEL | B115: 9 | C115: 5892 | D115: 1304 | E115: 22.13170401 | F115: 1282 | G115: 0 | H115: 251 | I115: 0 | J115: 0 | K115: 0 | L115: 176 | M115: 0 | N115: 0 | O115: 0 | P115: 0 | Q115: 0 | R115: 0 | S115: 353 | T115: 0 | U115: 446 | V115: 0 | W115: 56 | X115: 0 | Y115: 17 | Z115: 5 | AA115: 4588 | AB115: 77.86829599
A116: CANTÓN 16 TURRUBARES | B116: 15 | C116: 4187 | D116: 2819 | E116: 67.32744208 | F116: 2783 | G116: 0 | H116: 0 | I116: 0 | J116: 0 | K116: 0 | L116: 0 | M116: 0 | N116: 0 | O116: 0 | P116: 0 | Q116: 0 | R116: 0 | S116: 1507 | T116: 0 | U116: 0 | V116: 0 | W116: 1276 | X116: 0 | Y116: 24 | Z116: 12 | AA116: 1368 | AB116: 32.67255792
A117: SAN PABLO | B117: 2 | C117: 1127 | D117: 791 | E117: 70.1863354 | F117: 782 | G117: 0 | H117: 0 | I117: 0 | J117: 0 | K117: 0 | L117: 0 | M117: 0 | N117: 0 | O117: 0 | P117: 0 | Q117: 0 | R117: 0 | S117: 403 | T117: 0 | U117: 0 | V117: 0 | W117: 379 | X117: 0 | Y117: 6 | Z117: 3 | AA117: 336 | AB117: 29.8136646
A118: SAN PEDRO | B118: 1 | C118: 437 | D118: 341 | E118: 78.03203661 | F118: 338 | G118: 0 | H118: 0 | I118: 0 | J118: 0 | K118: 0 | L118: 0 | M118: 0 | N118: 0 | O118: 0 | P118: 0 | Q118: 0 | R118: 0 | S118: 204 | T118: 0 | U118: 0 | V118: 0 | W118: 134 | X118: 0 | Y118: 1 | Z118: 2 | AA118: 96 | AB118: 21.96796339
A119: SAN JUAN DE MATA | B119: 2 | C119: 863 | D119: 508 | E119: 58.86442642 | F119: 503 | G119: 0 | H119: 0 | I119: 0 | J119: 0 | K119: 0 | L119: 0 | M119: 0 | N119: 0 | O119: 0 | P119: 0 | Q119: 0 | R119: 0 | S119: 276 | T119: 0 | U119: 0 | V119: 0 | W119: 227 | X119: 0 | Y119: 4 | Z119: 1 | AA119: 355 | AB119: 41.13557358
A120: SAN LUIS | B120: 4 | C120: 467 | D120: 314 | E120: 67.23768737 | F120: 313 | G120: 0 | H120: 0 | I120: 0 | J120: 0 | K120: 0 | L120: 0 | M120: 0 | N120: 0 | O120: 0 | P120: 0 | Q120: 0 | R120: 0 | S120: 167 | T120: 0 | U120: 0 | V120: 0 | W120: 146 | X120: 0 | Y120: 1 | Z120: 0 | AA120: 153 | AB120: 32.76231263
A121: CARARA | B121: 6 | C121: 1293 | D121: 865 | E121: 66.89868523 | F121: 847 | G121: 0 | H121: 0 | I121: 0 | J121: 0 | K121: 0 | L121: 0 | M121: 0 | N121: 0 | O121: 0 | P121: 0 | Q121: 0 | R121: 0 | S121: 457 | T121: 0 | U121: 0 | V121: 0 | W121: 390 | X121: 0 | Y121: 12 | Z121: 6 | AA121: 428 | AB121: 33.10131477
A122: CANTÓN 17 DOTA | B122: 12 | C122: 4836 | D122: 2097 | E122: 43.36228288 | F122: 2062 | G122: 0 | H122: 630 | I122: 0 | J122: 0 | K122: 0 | L122: 0 | M122: 0 | N122: 0 | O122: 0 | P122: 0 | Q122: 0 | R122: 0 | S122: 1222 | T122: 28 | U122: 0 | V122: 0 | W122: 182 | X122: 0 | Y122: 22 | Z122: 13 | AA122: 2739 | AB122: 56.63771712
A123: SANTA MARÍA | B123: 6 | C123: 3397 | D123: 1527 | E123: 44.95142773 | F123: 1503 | G123: 0 | H123: 442 | I123: 0 | J123: 0 | K123: 0 | L123: 0 | M123: 0 | N123: 0 | O123: 0 | P123: 0 | Q123: 0 | R123: 0 | S123: 927 | T123: 3 | U123: 0 | V123: 0 | W123: 131 | X123: 0 | Y123: 17 | Z123: 7 | AA123: 1870 | AB123: 55.04857227
A124: JARDÍN | B124: 1 | C124: 223 | D124: 42 | E124: 18.83408072 | F124: 41 | G124: 0 | H124: 11 | I124: 0 | J124: 0 | K124: 0 | L124: 0 | M124: 0 | N124: 0 | O124: 0 | P124: 0 | Q124: 0 | R124: 0 | S124: 19 | T124: 0 | U124: 0 | V124: 0 | W124: 11 | X124: 0 | Y124: 0 | Z124: 1 | AA124: 181 | AB124: 81.16591928
A125: COPEY | B125: 5 | C125: 1216 | D125: 528 | E125: 43.42105263 | F125: 518 | G125: 0 | H125: 177 | I125: 0 | J125: 0 | K125: 0 | L125: 0 | M125: 0 | N125: 0 | O125: 0 | P125: 0 | Q125: 0 | R125: 0 | S125: 276 | T125: 25 | U125: 0 | V125: 0 | W125: 40 | X125: 0 | Y125: 5 | Z125: 5 | AA125: 688 | AB125: 56.57894737
A126: CANTÓN 18 CURRIDABAT | B126: 68 | C126: 44286 | D126: 10207 | E126: 23.04791582 | F126: 10080 | G126: 0 | H126: 1039 | I126: 0 | J126: 0 | K126: 0 | L126: 0 | M126: 7412 | N126: 0 | O126: 0 | P126: 0 | Q126: 0 | R126: 0 | S126: 1629 | T126: 0 | U126: 0 | V126: 0 | W126: 0 | X126: 0 | Y126: 110 | Z126: 17 | AA126: 34079 | AB126: 76.95208418
A127: CURRIDABAT | B127: 36 | C127: 23437 | D127: 5534 | E127: 23.61223706 | F127: 5483 | G127: 0 | H127: 384 | I127: 0 | J127: 0 | K127: 0 | L127: 0 | M127: 4336 | N127: 0 | O127: 0 | P127: 0 | Q127: 0 | R127: 0 | S127: 763 | T127: 0 | U127: 0 | V127: 0 | W127: 0 | X127: 0 | Y127: 42 | Z127: 9 | AA127: 17903 | AB127: 76.38776294
A128: GRANADILLA | B128: 12 | C128: 7958 | D128: 1481 | E128: 18.61020357 | F128: 1460 | G128: 0 | H128: 270 | I128: 0 | J128: 0 | K128: 0 | L128: 0 | M128: 912 | N128: 0 | O128: 0 | P128: 0 | Q128: 0 | R128: 0 | S128: 278 | T128: 0 | U128: 0 | V128: 0 | W128: 0 | X128: 0 | Y128: 20 | Z128: 1 | AA128: 6477 | AB128: 81.38979643
A129: SÁNCHEZ | B129: 5 | C129: 3290 | D129: 882 | E129: 26.80851064 | F129: 873 | G129: 0 | H129: 46 | I129: 0 | J129: 0 | K129: 0 | L129: 0 | M129: 719 | N129: 0 | O129: 0 | P129: 0 | Q129: 0 | R129: 0 | S129: 108 | T129: 0 | U129: 0 | V129: 0 | W129: 0 | X129: 0 | Y129: 9 | Z129: 0 | AA129: 2408 | AB129: 73.19148936
A130: TIRRASES | B130: 15 | C130: 9601 | D130: 2310 | E130: 24.05999375 | F130: 2264 | G130: 0 | H130: 339 | I130: 0 | J130: 0 | K130: 0 | L130: 0 | M130: 1445 | N130: 0 | O130: 0 | P130: 0 | Q130: 0 | R130: 0 | S130: 480 | T130: 0 | U130: 0 | V130: 0 | W130: 0 | X130: 0 | Y130: 39 | Z130: 7 | AA130: 7291 | AB130: 75.94000625
A131: CANTÓN 19 PÉREZ ZELEDÓN | B131: 208 | C131: 98271 | D131: 35650 | E131: 36.27723336 | F131: 35028 | G131: 0 | H131: 7221 | I131: 0 | J131: 0 | K131: 0 | L131: 0 | M131: 0 | N131: 0 | O131: 0 | P131: 0 | Q131: 0 | R131: 0 | S131: 11778 | T131: 6293 | U131: 0 | V131: 0 | W131: 9736 | X131: 0 | Y131: 490 | Z131: 132 | AA131: 62621 | AB131: 63.72276664
A132: SAN ISIDRO DE EL GENERAL | B132: 65 | C132: 36156 | D132: 11777 | E132: 32.57274035 | F132: 11600 | G132: 0 | H132: 2628 | I132: 0 | J132: 0 | K132: 0 | L132: 0 | M132: 0 | N132: 0 | O132: 0 | P132: 0 | Q132: 0 | R132: 0 | S132: 3339 | T132: 2230 | U132: 0 | V132: 0 | W132: 3403 | X132: 0 | Y132: 130 | Z132: 47 | AA132: 24379 | AB132: 67.42725965
A133: EL GENERAL | B133: 10 | C133: 4400 | D133: 1786 | E133: 40.59090909 | F133: 1767 | G133: 0 | H133: 470 | I133: 0 | J133: 0 | K133: 0 | L133: 0 | M133: 0 | N133: 0 | O133: 0 | P133: 0 | Q133: 0 | R133: 0 | S133: 675 | T133: 299 | U133: 0 | V133: 0 | W133: 323 | X133: 0 | Y133: 14 | Z133: 5 | AA133: 2614 | AB133: 59.40909091
A134: DANIEL FLORES | B134: 41 | C134: 22967 | D134: 7411 | E134: 32.26803675 | F134: 7284 | G134: 0 | H134: 1378 | I134: 0 | J134: 0 | K134: 0 | L134: 0 | M134: 0 | N134: 0 | O134: 0 | P134: 0 | Q134: 0 | R134: 0 | S134: 2411 | T134: 1425 | U134: 0 | V134: 0 | W134: 2070 | X134: 0 | Y134: 107 | Z134: 20 | AA134: 15556 | AB134: 67.73196325
A135: RIVAS | B135: 14 | C135: 4594 | D135: 2198 | E135: 47.84501524 | F135: 2165 | G135: 0 | H135: 428 | I135: 0 | J135: 0 | K135: 0 | L135: 0 | M135: 0 | N135: 0 | O135: 0 | P135: 0 | Q135: 0 | R135: 0 | S135: 616 | T135: 266 | U135: 0 | V135: 0 | W135: 855 | X135: 0 | Y135: 25 | Z135: 8 | AA135: 2396 | AB135: 52.15498476
A136: SAN PEDRO | B136: 11 | C136: 5523 | D136: 2206 | E136: 39.94206047 | F136: 2130 | G136: 0 | H136: 399 | I136: 0 | J136: 0 | K136: 0 | L136: 0 | M136: 0 | N136: 0 | O136: 0 | P136: 0 | Q136: 0 | R136: 0 | S136: 736 | T136: 494 | U136: 0 | V136: 0 | W136: 501 | X136: 0 | Y136: 61 | Z136: 15 | AA136: 3317 | AB136: 60.05793953
A137: PLATANARES | B137: 14 | C137: 5605 | D137: 2715 | E137: 48.43889384 | F137: 2649 | G137: 0 | H137: 219 | I137: 0 | J137: 0 | K137: 0 | L137: 0 | M137: 0 | N137: 0 | O137: 0 | P137: 0 | Q137: 0 | R137: 0 | S137: 1098 | T137: 521 | U137: 0 | V137: 0 | W137: 811 | X137: 0 | Y137: 48 | Z137: 18 | AA137: 2890 | AB137: 51.56110616
A138: PEJIBAYE | B138: 17 | C138: 5465 | D138: 2107 | E138: =+D138/C138*100 -> 38.55443733 | F138: 2075 | G138: 0 | H138: 502 | I138: 0 | J138: 0 | K138: 0 | L138: 0 | M138: 0 | N138: 0 | O138: 0 | P138: 0 | Q138: 0 | R138: 0 | S138: 1019 | T138: 124 | U138: 0 | V138: 0 | W138: 430 | X138: 0 | Y138: 27 | Z138: 5 | AA138: =+C138-D138 -> 3358 | AB138: =+AA138/C138*100 -> 61.44556267
A139: CAJÓN | B139: 11 | C139: 6243 | D139: 2190 | E139: 35.0792888 | F139: 2147 | G139: 0 | H139: 572 | I139: 0 | J139: 0 | K139: 0 | L139: 0 | M139: 0 | N139: 0 | O139: 0 | P139: 0 | Q139: 0 | R139: 0 | S139: 514 | T139: 507 | U139: 0 | V139: 0 | W139: 554 | X139: 0 | Y139: 40 | Z139: 3 | AA139: 4053 | AB139: 64.9207112
A140: BARÚ | B140: 5 | C140: 1772 | D140: 704 | E140: 39.72911964 | F140: 687 | G140: 0 | H140: 120 | I140: 0 | J140: 0 | K140: 0 | L140: 0 | M140: 0 | N140: 0 | O140: 0 | P140: 0 | Q140: 0 | R140: 0 | S140: 214 | T140: 181 | U140: 0 | V140: 0 | W140: 172 | X140: 0 | Y140: 14 | Z140: 3 | AA140: 1068 | AB140: 60.27088036
A141: RÍO NUEVO | B141: 8 | C141: 2240 | D141: 1151 | E141: 51.38392857 | F141: 1146 | G141: 0 | H141: 251 | I141: 0 | J141: 0 | K141: 0 | L141: 0 | M141: 0 | N141: 0 | O141: 0 | P141: 0 | Q141: 0 | R141: 0 | S141: 531 | T141: 92 | U141: 0 | V141: 0 | W141: 272 | X141: 0 | Y141: 3 | Z141: 2 | AA141: 1089 | AB141: 48.61607143
A142: PÁRAMO | B142: 12 | C142: 3306 | D142: 1405 | E142: 42.4984876 | F142: 1378 | G142: 0 | H142: 254 | I142: 0 | J142: 0 | K142: 0 | L142: 0 | M142: 0 | N142: 0 | O142: 0 | P142: 0 | Q142: 0 | R142: 0 | S142: 625 | T142: 154 | U142: 0 | V142: 0 | W142: 345 | X142: 0 | Y142: 21 | Z142: 6 | AA142: 1901 | AB142: 57.5015124
A143: CANTÓN 20 LEÓN CORTÉS | B143: 22 | C143: 8149 | D143: 4149 | E143: 50.9142226 | F143: 4040 | G143: 0 | H143: 0 | I143: 0 | J143: 0 | K143: 0 | L143: 0 | M143: 0 | N143: 0 | O143: 0 | P143: 0 | Q143: 0 | R143: 0 | S143: 1886 | T143: 681 | U143: 0 | V143: 0 | W143: 1473 | X143: 0 | Y143: 79 | Z143: 30 | AA143: 4000 | AB143: 49.0857774
A144: SAN PABLO | B144: 5 | C144: 2856 | D144: 1531 | E144: 53.60644258 | F144: 1494 | G144: 0 | H144: 0 | I144: 0 | J144: 0 | K144: 0 | L144: 0 | M144: 0 | N144: 0 | O144: 0 | P144: 0 | Q144: 0 | R144: 0 | S144: 582 | T144: 360 | U144: 0 | V144: 0 | W144: 552 | X144: 0 | Y144: 28 | Z144: 9 | AA144: 1325 | AB144: 46.39355742
A145: SAN ANDRÉS | B145: 3 | C145: 999 | D145: 512 | E145: 51.25125125 | F145: 500 | G145: 0 | H145: 0 | I145: 0 | J145: 0 | K145: 0 | L145: 0 | M145: 0 | N145: 0 | O145: 0 | P145: 0 | Q145: 0 | R145: 0 | S145: 246 | T145: 75 | U145: 0 | V145: 0 | W145: 179 | X145: 0 | Y145: 5 | Z145: 7 | AA145: 487 | AB145: 48.74874875
A146: LLANO BONITO | B146: 4 | C146: 1312 | D146: 734 | E146: 55.94512195 | F146: 714 | G146: 0 | H146: 0 | I146: 0 | J146: 0 | K146: 0 | L146: 0 | M146: 0 | N146: 0 | O146: 0 | P146: 0 | Q146: 0 | R146: 0 | S146: 410 | T146: 54 | U146: 0 | V146: 0 | W146: 250 | X146: 0 | Y146: 16 | Z146: 4 | AA146: 578 | AB146: 44.05487805
A147: SAN ISIDRO | B147: 4 | C147: 1052 | D147: 471 | E147: 44.77186312 | F147: 457 | G147: 0 | H147: 0 | I147: 0 | J147: 0 | K147: 0 | L147: 0 | M147: 0 | N147: 0 | O147: 0 | P147: 0 | Q147: 0 | R147: 0 | S147: 252 | T147: 25 | U147: 0 | V147: 0 | W147: 180 | X147: 0 | Y147: 13 | Z147: 1 | AA147: 581 | AB147: 55.22813688
A148: SANTA CRUZ | B148: 4 | C148: 1221 | D148: 566 | E148: 46.35544636 | F148: 551 | G148: 0 | H148: 0 | I148: 0 | J148: 0 | K148: 0 | L148: 0 | M148: 0 | N148: 0 | O148: 0 | P148: 0 | Q148: 0 | R148: 0 | S148: 232 | T148: 133 | U148: 0 | V148: 0 | W148: 186 | X148: 0 | Y148: 10 | Z148: 5 | AA148: 655 | AB148: 53.64455364
A149: SAN ANTONIO | B149: 2 | C149: 709 | D149: 335 | E149: 47.24964739 | F149: 324 | G149: 0 | H149: 0 | I149: 0 | J149: 0 | K149: 0 | L149: 0 | M149: 0 | N149: 0 | O149: 0 | P149: 0 | Q149: 0 | R149: 0 | S149: 164 | T149: 34 | U149: 0 | V149: 0 | W149: 126 | X149: 0 | Y149: 7 | Z149: 4 | AA149: 374 | AB149: 52.75035261
A151: FUENTE: Tribunal Supremo de Elecciones.

Sheet 2.10
A2: CUADRO 2.10 PROVINCIA ALAJUELA: JUNTAS, ELECTORADO, PARTICIPACIÓN, VOTOS POR PARTIDO, NULOS, BLANCOS, Y ABSTENCIONISMO PARA ALCALDÍAS
A3: SEGÚN CANTÓN Y DISTRITO ADMINISTRATIVO, ELECCIONESMUNICIPALES DICIEMBRE 2010
A5: CANTÓN Y DISTRITO ADMINISTRATIVO | B5: JUNTAS | C5: ELECTORADO | D5: VOTOS RECIBIDOS | Z5: ABSTENCIONISMO
D6: TOTAL GENERAL | E6: % PARTICIPACIÓN | F6: VOTOS POR PARTIDO | X6: VOTOS NULOS | Y6: VOTOS BLANCOS | Z6: ABSOLUTO | AA6: %
F7: TOTAL | G7: ACCESIBILIDAD SIN EXCLUSIÓN | H7: ACCIÓN CIUDADANA | I7: ACCIÓN NARANJEÑA | J7: ALIANZA PATRIÓTICA | K7: COALICIÓN PARTIDO ALIANZA ZARCEREÑA | L7: COALICIÓN RAMONENSE | M7: COALICIÓN UNIDOS POR SAN CARLOS | N7: FRENTE AMPLIO | O7: INTEGRACIÓN NACIONAL | P7: LIBERACIÓN NACIONAL | Q7: MOVIMIENTO LIBERTARIO | R7: RENOVACIÓN COSTARRICENSE | S7: RENOVEMOS ALAJUELA | T7: UNIDAD SOCIAL CRISTIANA | U7: UNIÓN ATENIENSE | V7: UNIÓN PALMAREÑA | W7: UNIÓN POASEÑA
A9: ALAJUELA | B9: 993 | C9: 533285 | D9: 161326 | E9: =+D9/C9*100 -> 30.25136653 | F9: 158341 | G9: 4303 | H9: 17376 | I9: 987 | J9: 541 | K9: 570 | L9: 4804 | M9: 13097 | N9: 95 | O9: 1300 | P9: 73993 | Q9: 13334 | R9: 1433 | S9: 8504 | T9: 12362 | U9: 1838 | V9: 2170 | W9: 1634 | X9: 2245 | Y9: 740 | Z9: =+C9-D9 -> 371959 | AA9: =+Z9/C9*100 -> 69.74863347
A10: CANTÓN 1 ALAJUELA | B10: 282 | C10: 173149 | D10: 36610 | E10: =+D10/C10*100 -> 21.14363929 | F10: 36096 | G10: 2888 | H10: 7063 | I10: 0 | J10: 0 | K10: 0 | L10: 0 | M10: 0 | N10: 0 | O10: 0 | P10: 16339 | Q10: 1302 | R10: 0 | S10: 8504 | T10: 0 | U10: 0 | V10: 0 | W10: 0 | X10: 395 | Y10: 119 | Z10: =+C10-D10 -> 136539 | AA10: =+Z10/C10*100 -> 78.85636071
A11: ALAJUELA | B11: 57 | C11: 37965 | D11: 7950 | E11: 20.94033979 | F11: 7871 | G11: 367 | H11: 1310 | I11: 0 | J11: 0 | K11: 0 | L11: 0 | M11: 0 | N11: 0 | O11: 0 | P11: 2981 | Q11: 256 | R11: 0 | S11: 2957 | T11: 0 | U11: 0 | V11: 0 | W11: 0 | X11: 68 | Y11: 11 | Z11: 30015 | AA11: 79.05966021
A12: SAN JOSÉ | B12: 43 | C12: 28849 | D12: 4852 | E12: 16.81860723 | F12: 4801 | G12: 324 | H12: 842 | I12: 0 | J12: 0 | K12: 0 | L12: 0 | M12: 0 | N12: 0 | O12: 0 | P12: 1968 | Q12: 225 | R12: 0 | S12: 1442 | T12: 0 | U12: 0 | V12: 0 | W12: 0 | X12: 35 | Y12: 16 | Z12: 23997 | AA12: 83.18139277
A13: CARRIZAL | B13: 7 | C13: 4051 | D13: 1395 | E13: 34.43594174 | F13: 1346 | G13: 67 | H13: 337 | I13: 0 | J13: 0 | K13: 0 | L13: 0 | M13: 0 | N13: 0 | O13: 0 | P13: 746 | Q13: 35 | R13: 0 | S13: 161 | T13: 0 | U13: 0 | V13: 0 | W13: 0 | X13: 23 | Y13: 26 | Z13: 2656 | AA13: 65.56405826
A14: SAN ANTONIO | B14: 29 | C14: 19360 | D14: 3740 | E14: 19.31818182 | F14: 3688 | G14: 265 | H14: 1153 | I14: 0 | J14: 0 | K14: 0 | L14: 0 | M14: 0 | N14: 0 | O14: 0 | P14: 1382 | Q14: 129 | R14: 0 | S14: 759 | T14: 0 | U14: 0 | V14: 0 | W14: 0 | X14: 44 | Y14: 8 | Z14: 15620 | AA14: 80.68181818
A15: GUÁCIMA | B15: 19 | C15: 11058 | D15: 2974 | E15: 26.89455598 | F15: 2933 | G15: 302 | H15: 625 | I15: 0 | J15: 0 | K15: 0 | L15: 0 | M15: 0 | N15: 0 | O15: 0 | P15: 1574 | Q15: 71 | R15: 0 | S15: 361 | T15: 0 | U15: 0 | V15: 0 | W15: 0 | X15: 37 | Y15: 4 | Z15: 8084 | AA15: 73.10544402
A16: SAN ISIDRO | B16: 19 | C16: 10269 | D16: 2370 | E16: 23.07917032 | F16: 2327 | G16: 395 | H16: 548 | I16: 0 | J16: 0 | K16: 0 | L16: 0 | M16: 0 | N16: 0 | O16: 0 | P16: 850 | Q16: 66 | R16: 0 | S16: 468 | T16: 0 | U16: 0 | V16: 0 | W16: 0 | X16: 38 | Y16: 5 | Z16: 7899 | AA16: 76.92082968
A17: SABANILLA | B17: 9 | C17: 4551 | D17: 1231 | E17: 27.04900022 | F17: 1215 | G17: 59 | H17: 275 | I17: 0 | J17: 0 | K17: 0 | L17: 0 | M17: 0 | N17: 0 | O17: 0 | P17: 756 | Q17: 23 | R17: 0 | S17: 102 | T17: 0 | U17: 0 | V17: 0 | W17: 0 | X17: 13 | Y17: 3 | Z17: 3320 | AA17: 72.95099978
A18: SAN RAFAEL | B18: 27 | C18: 14893 | D18: 2645 | E18: 17.76002149 | F18: 2609 | G18: 308 | H18: 384 | I18: 0 | J18: 0 | K18: 0 | L18: 0 | M18: 0 | N18: 0 | O18: 0 | P18: 1332 | Q18: 208 | R18: 0 | S18: 377 | T18: 0 | U18: 0 | V18: 0 | W18: 0 | X18: 29 | Y18: 7 | Z18: 12248 | AA18: 82.23997851
A19: RÍO SEGUNDO | B19: 15 | C19: 8741 | D19: 1704 | E19: 19.49433703 | F19: 1682 | G19: 202 | H19: 185 | I19: 0 | J19: 0 | K19: 0 | L19: 0 | M19: 0 | N19: 0 | O19: 0 | P19: 812 | Q19: 45 | R19: 0 | S19: 438 | T19: 0 | U19: 0 | V19: 0 | W19: 0 | X19: 15 | Y19: 7 | Z19: 7037 | AA19: 80.50566297
A20: DESAMPARADOS | B20: 23 | C20: 15121 | D20: 2886 | E20: 19.08603928 | F20: 2828 | G20: 198 | H20: 581 | I20: 0 | J20: 0 | K20: 0 | L20: 0 | M20: 0 | N20: 0 | O20: 0 | P20: 1476 | Q20: 110 | R20: 0 | S20: 463 | T20: 0 | U20: 0 | V20: 0 | W20: 0 | X20: 47 | Y20: 11 | Z20: 12235 | AA20: 80.91396072
A21: TURRÚCARES | B21: 9 | C21: 4703 | D21: 1268 | E21: 26.96151393 | F21: 1254 | G21: 130 | H21: 148 | I21: 0 | J21: 0 | K21: 0 | L21: 0 | M21: 0 | N21: 0 | O21: 0 | P21: 828 | Q21: 24 | R21: 0 | S21: 124 | T21: 0 | U21: 0 | V21: 0 | W21: 0 | X21: 13 | Y21: 1 | Z21: 3435 | AA21: 73.03848607
A22: TAMBOR | B22: 13 | C22: 7821 | D22: 1937 | E22: 24.76665388 | F22: 1912 | G22: 153 | H22: 403 | I22: 0 | J22: 0 | K22: 0 | L22: 0 | M22: 0 | N22: 0 | O22: 0 | P22: 1040 | Q22: 53 | R22: 0 | S22: 263 | T22: 0 | U22: 0 | V22: 0 | W22: 0 | X22: 16 | Y22: 9 | Z22: 5884 | AA22: 75.23334612
A23: LA GARITA | B23: 7 | C23: 4151 | D23: 1080 | E23: 26.01782703 | F23: 1059 | G23: 47 | H23: 112 | I23: 0 | J23: 0 | K23: 0 | L23: 0 | M23: 0 | N23: 0 | O23: 0 | P23: 377 | Q23: 41 | R23: 0 | S23: 482 | T23: 0 | U23: 0 | V23: 0 | W23: 0 | X23: 14 | Y23: 7 | Z23: 3071 | AA23: 73.98217297
A24: SARAPIQUÍ | B24: 5 | C24: 1616 | D24: 578 | E24: 35.76732673 | F24: 571 | G24: 71 | H24: 160 | I24: 0 | J24: 0 | K24: 0 | L24: 0 | M24: 0 | N24: 0 | O24: 0 | P24: 217 | Q24: 16 | R24: 0 | S24: 107 | T24: 0 | U24: 0 | V24: 0 | W24: 0 | X24: 3 | Y24: 4 | Z24: 1038 | AA24: 64.23267327
A25: CANTÓN 2 SAN RAMÓN | B25: 105 | C25: 53851 | D25: 14143 | E25: 26.26320774 | F25: 13754 | G25: 0 | H25: 0 | I25: 0 | J25: 0 | K25: 0 | L25: 4804 | M25: 0 | N25: 0 | O25: 0 | P25: 8950 | Q25: 0 | R25: 0 | S25: 0 | T25: 0 | U25: 0 | V25: 0 | W25: 0 | X25: 205 | Y25: 184 | Z25: 39708 | AA25: 73.73679226
A26: SAN RAMÓN | B26: 19 | C26: 13013 | D26: 3114 | E26: 23.92991624 | F26: 3074 | G26: 0 | H26: 0 | I26: 0 | J26: 0 | K26: 0 | L26: 1189 | M26: 0 | N26: 0 | O26: 0 | P26: 1885 | Q26: 0 | R26: 0 | S26: 0 | T26: 0 | U26: 0 | V26: 0 | W26: 0 | X26: 34 | Y26: 6 | Z26: 9899 | AA26: 76.07008376
A27: SANTIAGO | B27: 7 | C27: 2966 | D27: 802 | E27: 27.03978422 | F27: 793 | G27: 0 | H27: 0 | I27: 0 | J27: 0 | K27: 0 | L27: 236 | M27: 0 | N27: 0 | O27: 0 | P27: 557 | Q27: 0 | R27: 0 | S27: 0 | T27: 0 | U27: 0 | V27: 0 | W27: 0 | X27: 3 | Y27: 6 | Z27: 2164 | AA27: 72.96021578
A28: SAN JUAN | B28: 13 | C28: 8213 | D28: 1366 | E28: 16.63216851 | F28: 1344 | G28: 0 | H28: 0 | I28: 0 | J28: 0 | K28: 0 | L28: 603 | M28: 0 | N28: 0 | O28: 0 | P28: 741 | Q28: 0 | R28: 0 | S28: 0 | T28: 0 | U28: 0 | V28: 0 | W28: 0 | X28: 17 | Y28: 5 | Z28: 6847 | AA28: 83.36783149
A29: PIEDADES NORTE | B29: 9 | C29: 4501 | D29: 1108 | E29: 24.61675183 | F29: 1082 | G29: 0 | H29: 0 | I29: 0 | J29: 0 | K29: 0 | L29: 368 | M29: 0 | N29: 0 | O29: 0 | P29: 714 | Q29: 0 | R29: 0 | S29: 0 | T29: 0 | U29: 0 | V29: 0 | W29: 0 | X29: 21 | Y29: 5 | Z29: 3393 | AA29: 75.38324817
A30: PIEDADES SUR | B30: 8 | C30: 2660 | D30: 1090 | E30: 40.97744361 | F30: 1066 | G30: 0 | H30: 0 | I30: 0 | J30: 0 | K30: 0 | L30: 252 | M30: 0 | N30: 0 | O30: 0 | P30: 814 | Q30: 0 | R30: 0 | S30: 0 | T30: 0 | U30: 0 | V30: 0 | W30: 0 | X30: 17 | Y30: 7 | Z30: 1570 | AA30: 59.02255639
A31: SAN RAFAEL | B31: 9 | C31: 5017 | D31: 1118 | E31: 22.28423361 | F31: 1089 | G31: 0 | H31: 0 | I31: 0 | J31: 0 | K31: 0 | L31: 313 | M31: 0 | N31: 0 | O31: 0 | P31: 776 | Q31: 0 | R31: 0 | S31: 0 | T31: 0 | U31: 0 | V31: 0 | W31: 0 | X31: 26 | Y31: 3 | Z31: 3899 | AA31: 77.71576639
A32: SAN ISIDRO | B32: 5 | C32: 2406 | D32: 618 | E32: 25.68578554 | F32: 604 | G32: 0 | H32: 0 | I32: 0 | J32: 0 | K32: 0 | L32: 250 | M32: 0 | N32: 0 | O32: 0 | P32: 354 | Q32: 0 | R32: 0 | S32: 0 | T32: 0 | U32: 0 | V32: 0 | W32: 0 | X32: 11 | Y32: 3 | Z32: 1788 | AA32: 74.31421446
A33: ÁNGELES | B33: 11 | C33: 4655 | D33: 1063 | E33: 22.83566058 | F33: 1042 | G33: 0 | H33: 0 | I33: 0 | J33: 0 | K33: 0 | L33: 428 | M33: 0 | N33: 0 | O33: 0 | P33: 614 | Q33: 0 | R33: 0 | S33: 0 | T33: 0 | U33: 0 | V33: 0 | W33: 0 | X33: 15 | Y33: 6 | Z33: 3592 | AA33: 77.16433942
A34: ALFARO | B34: 6 | C34: 3186 | D34: 777 | E34: 24.38794727 | F34: 761 | G34: 0 | H34: 0 | I34: 0 | J34: 0 | K34: 0 | L34: 256 | M34: 0 | N34: 0 | O34: 0 | P34: 505 | Q34: 0 | R34: 0 | S34: 0 | T34: 0 | U34: 0 | V34: 0 | W34: 0 | X34: 14 | Y34: 2 | Z34: 2409 | AA34: 75.61205273
A35: VOLIO | B35: 3 | C35: 1322 | D35: 288 | E35: 21.78517398 | F35: 280 | G35: 0 | H35: 0 | I35: 0 | J35: 0 | K35: 0 | L35: 71 | M35: 0 | N35: 0 | O35: 0 | P35: 209 | Q35: 0 | R35: 0 | S35: 0 | T35: 0 | U35: 0 | V35: 0 | W35: 0 | X35: 5 | Y35: 3 | Z35: 1034 | AA35: 78.21482602
A36: CONCEPCIÓN | B36: 3 | C36: 1487 | D36: 471 | E36: 31.67451244 | F36: 457 | G36: 0 | H36: 0 | I36: 0 | J36: 0 | K36: 0 | L36: 222 | M36: 0 | N36: 0 | O36: 0 | P36: 235 | Q36: 0 | R36: 0 | S36: 0 | T36: 0 | U36: 0 | V36: 0 | W36: 0 | X36: 9 | Y36: 5 | Z36: 1016 | AA36: 68.32548756
A37: ZAPOTAL | B37: 3 | C37: 293 | D37: 156 | E37: 53.24232082 | F37: 155 | G37: 0 | H37: 0 | I37: 0 | J37: 0 | K37: 0 | L37: 31 | M37: 0 | N37: 0 | O37: 0 | P37: 124 | Q37: 0 | R37: 0 | S37: 0 | T37: 0 | U37: 0 | V37: 0 | W37: 0 | X37: 1 | Y37: 0 | Z37: 137 | AA37: 46.75767918
A38: PEÑAS BLANCAS | B38: 9 | C38: 4132 | D38: 2172 | E38: 52.56534366 | F38: 2007 | G38: 0 | H38: 0 | I38: 0 | J38: 0 | K38: 0 | L38: 585 | M38: 0 | N38: 0 | O38: 0 | P38: 1422 | Q38: 0 | R38: 0 | S38: 0 | T38: 0 | U38: 0 | V38: 0 | W38: 0 | X38: 32 | Y38: 133 | Z38: 1960 | AA38: 47.43465634
A39: CANTÓN 3 GRECIA | B39: 94 | C39: 50974 | D39: 14692 | E39: 28.82253698 | F39: 14442 | G39: 0 | H39: 943 | I39: 0 | J39: 0 | K39: 0 | L39: 0 | M39: 0 | N39: 0 | O39: 0 | P39: 7559 | Q39: 4958 | R39: 982 | S39: 0 | T39: 0 | U39: 0 | V39: 0 | W39: 0 | X39: 201 | Y39: 49 | Z39: 36282 | AA39: 71.17746302
A40: GRECIA | B40: 20 | C40: 13731 | D40: 4079 | E40: 29.70650353 | F40: 4027 | G40: 0 | H40: 302 | I40: 0 | J40: 0 | K40: 0 | L40: 0 | M40: 0 | N40: 0 | O40: 0 | P40: 2299 | Q40: 1170 | R40: 256 | S40: 0 | T40: 0 | U40: 0 | V40: 0 | W40: 0 | X40: 38 | Y40: 14 | Z40: 9652 | AA40: 70.29349647
A41: SAN ISIDRO | B41: 7 | C41: 3806 | D41: 1208 | E41: 31.73935891 | F41: 1187 | G41: 0 | H41: 77 | I41: 0 | J41: 0 | K41: 0 | L41: 0 | M41: 0 | N41: 0 | O41: 0 | P41: 491 | Q41: 557 | R41: 62 | S41: 0 | T41: 0 | U41: 0 | V41: 0 | W41: 0 | X41: 17 | Y41: 4 | Z41: 2598 | AA41: 68.26064109
A42: SAN JOSÉ | B42: 10 | C42: 5391 | D42: 1531 | E42: 28.39918382 | F42: 1502 | G42: 0 | H42: 187 | I42: 0 | J42: 0 | K42: 0 | L42: 0 | M42: 0 | N42: 0 | O42: 0 | P42: 763 | Q42: 423 | R42: 129 | S42: 0 | T42: 0 | U42: 0 | V42: 0 | W42: 0 | X42: 24 | Y42: 5 | Z42: 3860 | AA42: 71.60081618
A43: SAN ROQUE | B43: 14 | C43: 7354 | D43: 2466 | E43: 33.53277128 | F43: 2417 | G43: 0 | H43: 145 | I43: 0 | J43: 0 | K43: 0 | L43: 0 | M43: 0 | N43: 0 | O43: 0 | P43: 1216 | Q43: 910 | R43: 146 | S43: 0 | T43: 0 | U43: 0 | V43: 0 | W43: 0 | X43: 39 | Y43: 10 | Z43: 4888 | AA43: 66.46722872
A44: TACARES | B44: 9 | C44: 4753 | D44: 1082 | E44: 22.76456975 | F44: 1060 | G44: 0 | H44: 47 | I44: 0 | J44: 0 | K44: 0 | L44: 0 | M44: 0 | N44: 0 | O44: 0 | P44: 618 | Q44: 346 | R44: 49 | S44: 0 | T44: 0 | U44: 0 | V44: 0 | W44: 0 | X44: 20 | Y44: 2 | Z44: 3671 | AA44: 77.23543025
A45: RÍO CUARTO | B45: 14 | C45: 4716 | D45: 845 | E45: 17.91772689 | F45: 825 | G45: 0 | H45: 37 | I45: 0 | J45: 0 | K45: 0 | L45: 0 | M45: 0 | N45: 0 | O45: 0 | P45: 452 | Q45: 264 | R45: 72 | S45: 0 | T45: 0 | U45: 0 | V45: 0 | W45: 0 | X45: 16 | Y45: 4 | Z45: 3871 | AA45: 82.08227311
A46: PUENTE DE PIEDRA | B46: 12 | C46: 6540 | D46: 2061 | E46: 31.51376147 | F46: 2031 | G46: 0 | H46: 82 | I46: 0 | J46: 0 | K46: 0 | L46: 0 | M46: 0 | N46: 0 | O46: 0 | P46: 1047 | Q46: 749 | R46: 153 | S46: 0 | T46: 0 | U46: 0 | V46: 0 | W46: 0 | X46: 24 | Y46: 6 | Z46: 4479 | AA46: 68.48623853
A47: BOLÍVAR | B47: 8 | C47: 4683 | D47: 1420 | E47: 30.32244288 | F47: 1393 | G47: 0 | H47: 66 | I47: 0 | J47: 0 | K47: 0 | L47: 0 | M47: 0 | N47: 0 | O47: 0 | P47: 673 | Q47: 539 | R47: 115 | S47: 0 | T47: 0 | U47: 0 | V47: 0 | W47: 0 | X47: 23 | Y47: 4 | Z47: 3263 | AA47: 69.67755712
A48: CANTÓN 4 SAN MATEO | B48: 10 | C48: 3822 | D48: 2068 | E48: 54.10779696 | F48: 2021 | G48: 0 | H48: 0 | I48: 0 | J48: 256 | K48: 0 | L48: 0 | M48: 0 | N48: 0 | O48: 0 | P48: 1141 | Q48: 404 | R48: 0 | S48: 0 | T48: 220 | U48: 0 | V48: 0 | W48: 0 | X48: 41 | Y48: 6 | Z48: 1754 | AA48: 45.89220304
A49: SAN MATEO | B49: 5 | C49: 1982 | D49: 1099 | E49: 55.44904137 | F49: 1075 | G49: 0 | H49: 0 | I49: 0 | J49: 63 | K49: 0 | L49: 0 | M49: 0 | N49: 0 | O49: 0 | P49: 584 | Q49: 288 | R49: 0 | S49: 0 | T49: 140 | U49: 0 | V49: 0 | W49: 0 | X49: 19 | Y49: 5 | Z49: 883 | AA49: 44.55095863
A50: DESMONTE | B50: 1 | C50: 388 | D50: 246 | E50: 63.40206186 | F50: 239 | G50: 0 | H50: 0 | I50: 0 | J50: 78 | K50: 0 | L50: 0 | M50: 0 | N50: 0 | O50: 0 | P50: 131 | Q50: 15 | R50: 0 | S50: 0 | T50: 15 | U50: 0 | V50: 0 | W50: 0 | X50: 6 | Y50: 1 | Z50: 142 | AA50: 36.59793814
A51: JESÚS MARÍA | B51: 4 | C51: 1452 | D51: 723 | E51: 49.79338843 | F51: 707 | G51: 0 | H51: 0 | I51: 0 | J51: 115 | K51: 0 | L51: 0 | M51: 0 | N51: 0 | O51: 0 | P51: 426 | Q51: 101 | R51: 0 | S51: 0 | T51: 65 | U51: 0 | V51: 0 | W51: 0 | X51: 16 | Y51: 0 | Z51: 729 | AA51: 50.20661157
A52: CANTÓN 5 ATENAS | B52: 32 | C52: 17658 | D52: 8326 | E52: 47.15143278 | F52: 8214 | G52: 510 | H52: 1052 | I52: 0 | J52: 0 | K52: 0 | L52: 0 | M52: 0 | N52: 0 | O52: 0 | P52: 2270 | Q52: 0 | R52: 0 | S52: 0 | T52: 2544 | U52: 1838 | V52: 0 | W52: 0 | X52: 85 | Y52: 27 | Z52: 9332 | AA52: 52.84856722
A53: ATENAS | B53: 10 | C53: 6091 | D53: 2870 | E53: 47.11869972 | F53: 2846 | G53: 295 | H53: 493 | I53: 0 | J53: 0 | K53: 0 | L53: 0 | M53: 0 | N53: 0 | O53: 0 | P53: 705 | Q53: 0 | R53: 0 | S53: 0 | T53: 800 | U53: 553 | V53: 0 | W53: 0 | X53: 20 | Y53: 4 | Z53: 3221 | AA53: 52.88130028
A54: JESÚS | B54: 5 | C54: 2650 | D54: 1303 | E54: 49.16981132 | F54: 1288 | G54: 64 | H54: 122 | I54: 0 | J54: 0 | K54: 0 | L54: 0 | M54: 0 | N54: 0 | O54: 0 | P54: 346 | Q54: 0 | R54: 0 | S54: 0 | T54: 376 | U54: 380 | V54: 0 | W54: 0 | X54: 9 | Y54: 6 | Z54: 1347 | AA54: 50.83018868
A55: MERCEDES | B55: 3 | C55: 1870 | D55: 866 | E55: 46.31016043 | F55: 850 | G55: 38 | H55: 76 | I55: 0 | J55: 0 | K55: 0 | L55: 0 | M55: 0 | N55: 0 | O55: 0 | P55: 199 | Q55: 0 | R55: 0 | S55: 0 | T55: 406 | U55: 131 | V55: 0 | W55: 0 | X55: 10 | Y55: 6 | Z55: 1004 | AA55: 53.68983957
A56: SAN ISIDRO | B56: 4 | C56: 1960 | D56: 965 | E56: 49.23469388 | F56: 948 | G56: 36 | H56: 61 | I56: 0 | J56: 0 | K56: 0 | L56: 0 | M56: 0 | N56: 0 | O56: 0 | P56: 463 | Q56: 0 | R56: 0 | S56: 0 | T56: 243 | U56: 145 | V56: 0 | W56: 0 | X56: 13 | Y56: 4 | Z56: 995 | AA56: 50.76530612
A57: CONCEPCIÓN | B57: 4 | C57: 2270 | D57: 963 | E57: 42.42290749 | F57: 954 | G57: 45 | H57: 161 | I57: 0 | J57: 0 | K57: 0 | L57: 0 | M57: 0 | N57: 0 | O57: 0 | P57: 233 | Q57: 0 | R57: 0 | S57: 0 | T57: 270 | U57: 245 | V57: 0 | W57: 0 | X57: 6 | Y57: 3 | Z57: 1307 | AA57: 57.57709251
A58: SAN JOSÉ | B58: 2 | C58: 1027 | D58: 547 | E58: 53.26192795 | F58: 540 | G58: 9 | H58: 34 | I58: 0 | J58: 0 | K58: 0 | L58: 0 | M58: 0 | N58: 0 | O58: 0 | P58: 98 | Q58: 0 | R58: 0 | S58: 0 | T58: 229 | U58: 170 | V58: 0 | W58: 0 | X58: 6 | Y58: 1 | Z58: 480 | AA58: 46.73807205
A59: SANTA EULALIA | B59: 2 | C59: 1212 | D59: 505 | E59: 41.66666667 | F59: 486 | G59: 14 | H59: 91 | I59: 0 | J59: 0 | K59: 0 | L59: 0 | M59: 0 | N59: 0 | O59: 0 | P59: 104 | Q59: 0 | R59: 0 | S59: 0 | T59: 144 | U59: 133 | V59: 0 | W59: 0 | X59: 17 | Y59: 2 | Z59: 707 | AA59: 58.33333333
A60: ESCOBAL | B60: 2 | C60: 578 | D60: 307 | E60: 53.11418685 | F60: 302 | G60: 9 | H60: 14 | I60: 0 | J60: 0 | K60: 0 | L60: 0 | M60: 0 | N60: 0 | O60: 0 | P60: 122 | Q60: 0 | R60: 0 | S60: 0 | T60: 76 | U60: 81 | V60: 0 | W60: 0 | X60: 4 | Y60: 1 | Z60: 271 | AA60: 46.88581315
A61: CANTÓN 6 NARANJO | B61: 53 | C61: 28029 | D61: 9796 | E61: 34.94951657 | F61: 9573 | G61: 211 | H61: 923 | I61: 987 | J61: 0 | K61: 0 | L61: 0 | M61: 0 | N61: 0 | O61: 858 | P61: 4176 | Q61: 379 | R61: 0 | S61: 0 | T61: 2039 | U61: 0 | V61: 0 | W61: 0 | X61: 176 | Y61: 47 | Z61: 18233 | AA61: 65.05048343
A62: NARANJO | B62: 20 | C62: 11677 | D62: 3954 | E62: 33.86143701 | F62: 3884 | G62: 119 | H62: 175 | I62: 576 | J62: 0 | K62: 0 | L62: 0 | M62: 0 | N62: 0 | O62: 140 | P62: 2037 | Q62: 180 | R62: 0 | S62: 0 | T62: 657 | U62: 0 | V62: 0 | W62: 0 | X62: 52 | Y62: 18 | Z62: 7723 | AA62: 66.13856299
A63: SAN MIGUEL | B63: 4 | C63: 2284 | D63: 723 | E63: 31.65499124 | F63: 703 | G63: 10 | H63: 41 | I63: 61 | J63: 0 | K63: 0 | L63: 0 | M63: 0 | N63: 0 | O63: 189 | P63: 285 | Q63: 29 | R63: 0 | S63: 0 | T63: 88 | U63: 0 | V63: 0 | W63: 0 | X63: 19 | Y63: 1 | Z63: 1561 | AA63: 68.34500876
A64: SAN JOSÉ | B64: 5 | C64: 2071 | D64: 697 | E64: 33.65523901 | F64: 687 | G64: 16 | H64: 41 | I64: 49 | J64: 0 | K64: 0 | L64: 0 | M64: 0 | N64: 0 | O64: 115 | P64: 348 | Q64: 24 | R64: 0 | S64: 0 | T64: 94 | U64: 0 | V64: 0 | W64: 0 | X64: 9 | Y64: 1 | Z64: 1374 | AA64: 66.34476099
A65: CIRRÍ SUR | B65: 6 | C65: 2851 | D65: 1034 | E65: 36.26797615 | F65: 996 | G65: 16 | H65: 199 | I65: 119 | J65: 0 | K65: 0 | L65: 0 | M65: 0 | N65: 0 | O65: 81 | P65: 388 | Q65: 80 | R65: 0 | S65: 0 | T65: 113 | U65: 0 | V65: 0 | W65: 0 | X65: 33 | Y65: 5 | Z65: 1817 | AA65: 63.73202385
A66: SAN JERÓNIMO | B66: 4 | C66: 1943 | D66: 764 | E66: 39.32063819 | F66: 742 | G66: 18 | H66: 64 | I66: 43 | J66: 0 | K66: 0 | L66: 0 | M66: 0 | N66: 0 | O66: 234 | P66: 215 | Q66: 12 | R66: 0 | S66: 0 | T66: 156 | U66: 0 | V66: 0 | W66: 0 | X66: 14 | Y66: 8 | Z66: 1179 | AA66: 60.67936181
A67: SAN JUAN | B67: 4 | C67: 2012 | D67: 613 | E67: 30.46719682 | F67: 610 | G67: 10 | H67: 23 | I67: 55 | J67: 0 | K67: 0 | L67: 0 | M67: 0 | N67: 0 | O67: 22 | P67: 350 | Q67: 27 | R67: 0 | S67: 0 | T67: 123 | U67: 0 | V67: 0 | W67: 0 | X67: 1 | Y67: 2 | Z67: 1399 | AA67: 69.53280318
A68: EL ROSARIO | B68: 5 | C68: 2256 | D68: 910 | E68: 40.33687943 | F68: 869 | G68: 11 | H68: 331 | I68: 47 | J68: 0 | K68: 0 | L68: 0 | M68: 0 | N68: 0 | O68: 42 | P68: 353 | Q68: 12 | R68: 0 | S68: 0 | T68: 73 | U68: 0 | V68: 0 | W68: 0 | X68: 33 | Y68: 8 | Z68: 1346 | AA68: 59.66312057
A69: PALMITOS | B69: 5 | C69: 2935 | D69: 1101 | E69: 37.51277683 | F69: 1082 | G69: 11 | H69: 49 | I69: 37 | J69: 0 | K69: 0 | L69: 0 | M69: 0 | N69: 0 | O69: 35 | P69: 200 | Q69: 15 | R69: 0 | S69: 0 | T69: 735 | U69: 0 | V69: 0 | W69: 0 | X69: 15 | Y69: 4 | Z69: 1834 | AA69: 62.48722317
A70: CANTÓN 7 PALMARES | B70: 42 | C70: 25315 | D70: 8720 | E70: 34.44598064 | F70: 8526 | G70: 694 | H70: 0 | I70: 0 | J70: 0 | K70: 0 | L70: 0 | M70: 0 | N70: 0 | O70: 0 | P70: 3495 | Q70: 1103 | R70: 0 | S70: 0 | T70: 1064 | U70: 0 | V70: 2170 | W70: 0 | X70: 145 | Y70: 49 | Z70: 16595 | AA70: 65.55401936
A71: PALMARES | B71: 7 | C71: 4889 | D71: 1886 | E71: 38.57639599 | F71: 1869 | G71: 155 | H71: 0 | I71: 0 | J71: 0 | K71: 0 | L71: 0 | M71: 0 | N71: 0 | O71: 0 | P71: 777 | Q71: 183 | R71: 0 | S71: 0 | T71: 166 | U71: 0 | V71: 588 | W71: 0 | X71: 11 | Y71: 6 | Z71: 3003 | AA71: 61.42360401
A72: ZARAGOZA | B72: 11 | C72: 6615 | D72: 2260 | E72: 34.16477702 | F72: 2202 | G72: 165 | H72: 0 | I72: 0 | J72: 0 | K72: 0 | L72: 0 | M72: 0 | N72: 0 | O72: 0 | P72: 841 | Q72: 208 | R72: 0 | S72: 0 | T72: 440 | U72: 0 | V72: 548 | W72: 0 | X72: 47 | Y72: 11 | Z72: 4355 | AA72: 65.83522298
A73: BUENOS AIRES | B73: 7 | C73: 4572 | D73: 1454 | E73: 31.80227472 | F73: 1427 | G73: 110 | H73: 0 | I73: 0 | J73: 0 | K73: 0 | L73: 0 | M73: 0 | N73: 0 | O73: 0 | P73: 530 | Q73: 362 | R73: 0 | S73: 0 | T73: 77 | U73: 0 | V73: 348 | W73: 0 | X73: 22 | Y73: 5 | Z73: 3118 | AA73: 68.19772528
A74: SANTIAGO | B74: 3 | C74: 1615 | D74: 515 | E74: =+D74/C74*100 -> 31.88854489 | F74: 490 | G74: 74 | H74: 0 | I74: 0 | J74: 0 | K74: 0 | L74: 0 | M74: 0 | N74: 0 | O74: 0 | P74: 188 | Q74: 48 | R74: 0 | S74: 0 | T74: 101 | U74: 0 | V74: 79 | W74: 0 | X74: 18 | Y74: 7 | Z74: =+C74-D74 -> 1100 | AA74: =+Z74/C74*100 -> 68.11145511
A75: CANDELARIA | B75: 3 | C75: 1426 | D75: 526 | E75: 36.88639551 | F75: 508 | G75: 59 | H75: 0 | I75: 0 | J75: 0 | K75: 0 | L75: 0 | M75: 0 | N75: 0 | O75: 0 | P75: 192 | Q75: 42 | R75: 0 | S75: 0 | T75: 31 | U75: 0 | V75: 184 | W75: 0 | X75: 14 | Y75: 4 | Z75: 900 | AA75: 63.11360449
A76: ESQUIPULAS | B76: 6 | C76: 3550 | D76: 963 | E76: 27.12676056 | F76: 938 | G76: 70 | H76: 0 | I76: 0 | J76: 0 | K76: 0 | L76: 0 | M76: 0 | N76: 0 | O76: 0 | P76: 342 | Q76: 135 | R76: 0 | S76: 0 | T76: 155 | U76: 0 | V76: 236 | W76: 0 | X76: 22 | Y76: 3 | Z76: 2587 | AA76: 72.87323944
A77: LA GRANJA | B77: 5 | C77: 2648 | D77: 1116 | E77: 42.14501511 | F77: 1092 | G77: 61 | H77: 0 | I77: 0 | J77: 0 | K77: 0 | L77: 0 | M77: 0 | N77: 0 | O77: 0 | P77: 625 | Q77: 125 | R77: 0 | S77: 0 | T77: 94 | U77: 0 | V77: 187 | W77: 0 | X77: 11 | Y77: 13 | Z77: 1532 | AA77: 57.85498489
A78: CANTÓN 8 POÁS | B78: 30 | C78: 18233 | D78: 3953 | E78: 21.68046948 | F78: 3864 | G78: 0 | H78: 0 | I78: 0 | J78: 0 | K78: 0 | L78: 0 | M78: 0 | N78: 0 | O78: 0 | P78: 2230 | Q78: 0 | R78: 0 | S78: 0 | T78: 0 | U78: 0 | V78: 0 | W78: 1634 | X78: 70 | Y78: 19 | Z78: 14280 | AA78: 78.31953052
A79: SAN PEDRO | B79: 11 | C79: 6451 | D79: 1812 | E79: 28.08866842 | F79: 1759 | G79: 0 | H79: 0 | I79: 0 | J79: 0 | K79: 0 | L79: 0 | M79: 0 | N79: 0 | O79: 0 | P79: 919 | Q79: 0 | R79: 0 | S79: 0 | T79: 0 | U79: 0 | V79: 0 | W79: 840 | X79: 41 | Y79: 12 | Z79: 4639 | AA79: 71.91133158
A80: SAN JUAN | B80: 3 | C80: 1924 | D80: 481 | E80: 25 | F80: 471 | G80: 0 | H80: 0 | I80: 0 | J80: 0 | K80: 0 | L80: 0 | M80: 0 | N80: 0 | O80: 0 | P80: 266 | Q80: 0 | R80: 0 | S80: 0 | T80: 0 | U80: 0 | V80: 0 | W80: 205 | X80: 8 | Y80: 2 | Z80: 1443 | AA80: 75
A81: SAN RAFAEL | B81: 5 | C81: 3186 | D81: 727 | E81: 22.81858129 | F81: 715 | G81: 0 | H81: 0 | I81: 0 | J81: 0 | K81: 0 | L81: 0 | M81: 0 | N81: 0 | O81: 0 | P81: 501 | Q81: 0 | R81: 0 | S81: 0 | T81: 0 | U81: 0 | V81: 0 | W81: 214 | X81: 10 | Y81: 2 | Z81: 2459 | AA81: 77.18141871
A82: CARRILLOS | B82: 9 | C82: 5313 | D82: 734 | E82: 13.81517034 | F82: 725 | G82: 0 | H82: 0 | I82: 0 | J82: 0 | K82: 0 | L82: 0 | M82: 0 | N82: 0 | O82: 0 | P82: 444 | Q82: 0 | R82: 0 | S82: 0 | T82: 0 | U82: 0 | V82: 0 | W82: 281 | X82: 7 | Y82: 2 | Z82: 4579 | AA82: 86.18482966
A83: SABANA REDONDA | B83: 2 | C83: 1359 | D83: 199 | E83: 14.64311994 | F83: 194 | G83: 0 | H83: 0 | I83: 0 | J83: 0 | K83: 0 | L83: 0 | M83: 0 | N83: 0 | O83: 0 | P83: 100 | Q83: 0 | R83: 0 | S83: 0 | T83: 0 | U83: 0 | V83: 0 | W83: 94 | X83: 4 | Y83: 1 | Z83: 1160 | AA83: 85.35688006
A84: CANTÓN 9 OROTINA | B84: 24 | C84: 12953 | D84: 4806 | E84: 37.10337374 | F84: 4726 | G84: 0 | H84: 359 | I84: 0 | J84: 285 | K84: 0 | L84: 0 | M84: 0 | N84: 0 | O84: 0 | P84: 2080 | Q84: 118 | R84: 0 | S84: 0 | T84: 1884 | U84: 0 | V84: 0 | W84: 0 | X84: 60 | Y84: 20 | Z84: 8147 | AA84: 62.89662626
A85: OROTINA | B85: 11 | C85: 6988 | D85: 2695 | E85: 38.56611334 | F85: 2663 | G85: 0 | H85: 158 | I85: 0 | J85: 177 | K85: 0 | L85: 0 | M85: 0 | N85: 0 | O85: 0 | P85: 1031 | Q85: 72 | R85: 0 | S85: 0 | T85: 1225 | U85: 0 | V85: 0 | W85: 0 | X85: 26 | Y85: 6 | Z85: 4293 | AA85: 61.43388666
A86: EL MASTATE | B86: 2 | C86: 1260 | D86: 431 | E86: 34.20634921 | F86: 421 | G86: 0 | H86: 17 | I86: 0 | J86: 15 | K86: 0 | L86: 0 | M86: 0 | N86: 0 | O86: 0 | P86: 214 | Q86: 18 | R86: 0 | S86: 0 | T86: 157 | U86: 0 | V86: 0 | W86: 0 | X86: 9 | Y86: 1 | Z86: 829 | AA86: 65.79365079
A87: HACIENDA VIEJA | B87: 2 | C87: 771 | D87: 266 | E87: 34.50064851 | F87: 263 | G87: 0 | H87: 30 | I87: 0 | J87: 8 | K87: 0 | L87: 0 | M87: 0 | N87: 0 | O87: 0 | P87: 140 | Q87: 4 | R87: 0 | S87: 0 | T87: 81 | U87: 0 | V87: 0 | W87: 0 | X87: 2 | Y87: 1 | Z87: 505 | AA87: 65.49935149
A88: COYOLAR | B88: 6 | C88: 2903 | D88: 972 | E88: 33.4826042 | F88: 954 | G88: 0 | H88: 53 | I88: 0 | J88: 78 | K88: 0 | L88: 0 | M88: 0 | N88: 0 | O88: 0 | P88: 515 | Q88: 16 | R88: 0 | S88: 0 | T88: 292 | U88: 0 | V88: 0 | W88: 0 | X88: 13 | Y88: 5 | Z88: 1931 | AA88: 66.5173958
A89: LA CEIBA | B89: 3 | C89: 1031 | D89: 442 | E89: 42.87099903 | F89: 425 | G89: 0 | H89: 101 | I89: 0 | J89: 7 | K89: 0 | L89: 0 | M89: 0 | N89: 0 | O89: 0 | P89: 180 | Q89: 8 | R89: 0 | S89: 0 | T89: 129 | U89: 0 | V89: 0 | W89: 0 | X89: 10 | Y89: 7 | Z89: 589 | AA89: 57.12900097
A90: CANTÓN 10 SAN CARLOS | B90: 178 | C90: 88519 | D90: 31891 | E90: 36.02729358 | F90: 31353 | G90: 0 | H90: 0 | I90: 0 | J90: 0 | K90: 0 | L90: 0 | M90: 13097 | N90: 0 | O90: 0 | P90: 17117 | Q90: 1139 | R90: 0 | S90: 0 | T90: 0 | U90: 0 | V90: 0 | W90: 0 | X90: 445 | Y90: 93 | Z90: 56628 | AA90: 63.97270642
A91: QUESADA | B91: 48 | C91: 29127 | D91: 10705 | E91: 36.75284101 | F91: 10575 | G91: 0 | H91: 0 | I91: 0 | J91: 0 | K91: 0 | L91: 0 | M91: 5021 | N91: 0 | O91: 0 | P91: 5236 | Q91: 318 | R91: 0 | S91: 0 | T91: 0 | U91: 0 | V91: 0 | W91: 0 | X91: 110 | Y91: 20 | Z91: 18422 | AA91: 63.24715899
A92: FLORENCIA | B92: 19 | C92: 8904 | D92: 3066 | E92: 34.43396226 | F92: 3008 | G92: 0 | H92: 0 | I92: 0 | J92: 0 | K92: 0 | L92: 0 | M92: 1288 | N92: 0 | O92: 0 | P92: 1507 | Q92: 213 | R92: 0 | S92: 0 | T92: 0 | U92: 0 | V92: 0 | W92: 0 | X92: 54 | Y92: 4 | Z92: 5838 | AA92: 65.56603774
A93: BUENAVISTA | B93: 1 | C93: 289 | D93: 166 | E93: 57.43944637 | F93: 160 | G93: 0 | H93: 0 | I93: 0 | J93: 0 | K93: 0 | L93: 0 | M93: 87 | N93: 0 | O93: 0 | P93: 68 | Q93: 5 | R93: 0 | S93: 0 | T93: 0 | U93: 0 | V93: 0 | W93: 0 | X93: 6 | Y93: 0 | Z93: 123 | AA93: 42.56055363
A94: AGUAS ZARCAS | B94: 18 | C94: 10421 | D94: 2963 | E94: 28.43297188 | F94: 2913 | G94: 0 | H94: 0 | I94: 0 | J94: 0 | K94: 0 | L94: 0 | M94: 1050 | N94: 0 | O94: 0 | P94: 1784 | Q94: 79 | R94: 0 | S94: 0 | T94: 0 | U94: 0 | V94: 0 | W94: 0 | X94: 35 | Y94: 15 | Z94: 7458 | AA94: 71.56702812
A95: VENECIA | B95: 10 | C95: 5180 | D95: 1842 | E95: 35.55984556 | F95: 1808 | G95: 0 | H95: 0 | I95: 0 | J95: 0 | K95: 0 | L95: 0 | M95: 632 | N95: 0 | O95: 0 | P95: 1129 | Q95: 47 | R95: 0 | S95: 0 | T95: 0 | U95: 0 | V95: 0 | W95: 0 | X95: 26 | Y95: 8 | Z95: 3338 | AA95: 64.44015444
A96: PITAL | B96: 15 | C96: 7794 | D96: 2525 | E96: 32.39671542 | F96: 2488 | G96: 0 | H96: 0 | I96: 0 | J96: 0 | K96: 0 | L96: 0 | M96: 932 | N96: 0 | O96: 0 | P96: 1489 | Q96: 67 | R96: 0 | S96: 0 | T96: 0 | U96: 0 | V96: 0 | W96: 0 | X96: 31 | Y96: 6 | Z96: 5269 | AA96: 67.60328458
A97: LA FORTUNA | B97: 14 | C97: 6992 | D97: 2084 | E97: 29.80549199 | F97: 2063 | G97: 0 | H97: 0 | I97: 0 | J97: 0 | K97: 0 | L97: 0 | M97: 871 | N97: 0 | O97: 0 | P97: 1104 | Q97: 88 | R97: 0 | S97: 0 | T97: 0 | U97: 0 | V97: 0 | W97: 0 | X97: 18 | Y97: 3 | Z97: 4908 | AA97: 70.19450801
A98: LA TIGRA | B98: 7 | C98: 3420 | D98: 1609 | E98: 47.04678363 | F98: 1562 | G98: 0 | H98: 0 | I98: 0 | J98: 0 | K98: 0 | L98: 0 | M98: 530 | N98: 0 | O98: 0 | P98: 993 | Q98: 39 | R98: 0 | S98: 0 | T98: 0 | U98: 0 | V98: 0 | W98: 0 | X98: 39 | Y98: 8 | Z98: 1811 | AA98: 52.95321637
A99: LA PALMERA | B99: 7 | C99: 3231 | D99: 1375 | E99: 42.55648406 | F99: 1337 | G99: 0 | H99: 0 | I99: 0 | J99: 0 | K99: 0 | L99: 0 | M99: 286 | N99: 0 | O99: 0 | P99: 994 | Q99: 57 | R99: 0 | S99: 0 | T99: 0 | U99: 0 | V99: 0 | W99: 0 | X99: 34 | Y99: 4 | Z99: 1856 | AA99: 57.44351594
A100: VENADO | B100: 2 | C100: 996 | D100: 530 | E100: 53.21285141 | F100: 509 | G100: 0 | H100: 0 | I100: 0 | J100: 0 | K100: 0 | L100: 0 | M100: 285 | N100: 0 | O100: 0 | P100: 189 | Q100: 35 | R100: 0 | S100: 0 | T100: 0 | U100: 0 | V100: 0 | W100: 0 | X100: 16 | Y100: 5 | Z100: 466 | AA100: 46.78714859
A101: CUTRIS | B101: 13 | C101: 3909 | D101: 1649 | E101: 42.18470197 | F101: 1627 | G101: 0 | H101: 0 | I101: 0 | J101: 0 | K101: 0 | L101: 0 | M101: 588 | N101: 0 | O101: 0 | P101: 970 | Q101: 69 | R101: 0 | S101: 0 | T101: 0 | U101: 0 | V101: 0 | W101: 0 | X101: 15 | Y101: 7 | Z101: 2260 | AA101: 57.81529803
A102: MONTERREY | B102: 6 | C102: 1900 | D102: 1024 | E102: 53.89473684 | F102: 1006 | G102: 0 | H102: 0 | I102: 0 | J102: 0 | K102: 0 | L102: 0 | M102: 591 | N102: 0 | O102: 0 | P102: 396 | Q102: 19 | R102: 0 | S102: 0 | T102: 0 | U102: 0 | V102: 0 | W102: 0 | X102: 14 | Y102: 4 | Z102: 876 | AA102: 46.10526316
A103: POCOSOL | B103: 18 | C103: 6356 | D103: 2353 | E103: 37.02013845 | F103: 2297 | G103: 0 | H103: 0 | I103: 0 | J103: 0 | K103: 0 | L103: 0 | M103: 936 | N103: 0 | O103: 0 | P103: 1258 | Q103: 103 | R103: 0 | S103: 0 | T103: 0 | U103: 0 | V103: 0 | W103: 0 | X103: 47 | Y103: 9 | Z103: 4003 | AA103: 62.97986155
A104: CANTÓN 11 ZARCERO | B104: 20 | C104: 7973 | D104: 4583 | E104: 57.48150006 | F104: 4527 | G104: 0 | H104: 0 | I104: 0 | J104: 0 | K104: 570 | L104: 0 | M104: 0 | N104: 0 | O104: 0 | P104: 1945 | Q104: 0 | R104: 0 | S104: 0 | T104: 2012 | U104: 0 | V104: 0 | W104: 0 | X104: 41 | Y104: 15 | Z104: 3390 | AA104: 42.51849994
A105: ZARCERO | B105: 6 | C105: 3374 | D105: 1775 | E105: 52.6081802 | F105: 1756 | G105: 0 | H105: 0 | I105: 0 | J105: 0 | K105: 343 | L105: 0 | M105: 0 | N105: 0 | O105: 0 | P105: 815 | Q105: 0 | R105: 0 | S105: 0 | T105: 598 | U105: 0 | V105: 0 | W105: 0 | X105: 14 | Y105: 5 | Z105: 1599 | AA105: 47.3918198
A106: LAGUNA | B106: 2 | C106: 1025 | D106: 707 | E106: 68.97560976 | F106: 698 | G106: 0 | H106: 0 | I106: 0 | J106: 0 | K106: 32 | L106: 0 | M106: 0 | N106: 0 | O106: 0 | P106: 115 | Q106: 0 | R106: 0 | S106: 0 | T106: 551 | U106: 0 | V106: 0 | W106: 0 | X106: 8 | Y106: 1 | Z106: 318 | AA106: 31.02439024
A107: TAPESCO | B107: 2 | C107: 809 | D107: 495 | E107: 61.18665019 | F107: 489 | G107: 0 | H107: 0 | I107: 0 | J107: 0 | K107: 22 | L107: 0 | M107: 0 | N107: 0 | O107: 0 | P107: 228 | Q107: 0 | R107: 0 | S107: 0 | T107: 239 | U107: 0 | V107: 0 | W107: 0 | X107: 4 | Y107: 2 | Z107: 314 | AA107: 38.81334981
A108: GUADALUPE | B108: 3 | C108: 424 | D108: 276 | E108: 65.09433962 | F108: 271 | G108: 0 | H108: 0 | I108: 0 | J108: 0 | K108: 21 | L108: 0 | M108: 0 | N108: 0 | O108: 0 | P108: 81 | Q108: 0 | R108: 0 | S108: 0 | T108: 169 | U108: 0 | V108: 0 | W108: 0 | X108: 3 | Y108: 2 | Z108: 148 | AA108: 34.90566038
A109: PALMIRA | B109: 2 | C109: 811 | D109: 509 | E109: 62.76202219 | F109: 502 | G109: 0 | H109: 0 | I109: 0 | J109: 0 | K109: 76 | L109: 0 | M109: 0 | N109: 0 | O109: 0 | P109: 250 | Q109: 0 | R109: 0 | S109: 0 | T109: 176 | U109: 0 | V109: 0 | W109: 0 | X109: 6 | Y109: 1 | Z109: 302 | AA109: 37.23797781
A110: ZAPOTE | B110: 2 | C110: 421 | D110: 208 | E110: 49.40617577 | F110: 206 | G110: 0 | H110: 0 | I110: 0 | J110: 0 | K110: 31 | L110: 0 | M110: 0 | N110: 0 | O110: 0 | P110: 134 | Q110: 0 | R110: 0 | S110: 0 | T110: 41 | U110: 0 | V110: 0 | W110: 0 | X110: 0 | Y110: 2 | Z110: 213 | AA110: 50.59382423
A111: BRISAS | B111: 3 | C111: 1109 | D111: 613 | E111: 55.27502254 | F111: 605 | G111: 0 | H111: 0 | I111: 0 | J111: 0 | K111: 45 | L111: 0 | M111: 0 | N111: 0 | O111: 0 | P111: 322 | Q111: 0 | R111: 0 | S111: 0 | T111: 238 | U111: 0 | V111: 0 | W111: 0 | X111: 6 | Y111: 2 | Z111: 496 | AA111: 44.72497746
A112: CANTÓN 12 VALVERDE VEGA | B112: 23 | C112: 12819 | D112: 5907 | E112: 46.08003744 | F112: 5829 | G112: 0 | H112: 0 | I112: 0 | J112: 0 | K112: 0 | L112: 0 | M112: 0 | N112: 0 | O112: 442 | P112: 613 | Q112: 2875 | R112: 0 | S112: 0 | T112: 1899 | U112: 0 | V112: 0 | W112: 0 | X112: 64 | Y112: 14 | Z112: 6912 | AA112: 53.91996256
A113: SARCHÍ NORTE | B113: 10 | C113: 5544 | D113: 2621 | E113: 47.27633478 | F113: 2592 | G113: 0 | H113: 0 | I113: 0 | J113: 0 | K113: 0 | L113: 0 | M113: 0 | N113: 0 | O113: 200 | P113: 298 | Q113: 1233 | R113: 0 | S113: 0 | T113: 861 | U113: 0 | V113: 0 | W113: 0 | X113: 26 | Y113: 3 | Z113: 2923 | AA113: 52.72366522
A114: SARCHÍ SUR | B114: 6 | C114: 3908 | D114: 1510 | E114: 38.63868987 | F114: 1499 | G114: 0 | H114: 0 | I114: 0 | J114: 0 | K114: 0 | L114: 0 | M114: 0 | N114: 0 | O114: 110 | P114: 162 | Q114: 732 | R114: 0 | S114: 0 | T114: 495 | U114: 0 | V114: 0 | W114: 0 | X114: 9 | Y114: 2 | Z114: 2398 | AA114: 61.36131013
A115: TORO AMARILLO | B115: 1 | C115: 156 | D115: 94 | E115: 60.25641026 | F115: 91 | G115: 0 | H115: 0 | I115: 0 | J115: 0 | K115: 0 | L115: 0 | M115: 0 | N115: 0 | O115: 31 | P115: 4 | Q115: 32 | R115: 0 | S115: 0 | T115: 24 | U115: 0 | V115: 0 | W115: 0 | X115: 2 | Y115: 1 | Z115: 62 | AA115: 39.74358974
A116: SAN PEDRO | B116: 3 | C116: 1964 | D116: 974 | E116: 49.59266802 | F116: 952 | G116: 0 | H116: 0 | I116: 0 | J116: 0 | K116: 0 | L116: 0 | M116: 0 | N116: 0 | O116: 41 | P116: 107 | Q116: 574 | R116: 0 | S116: 0 | T116: 230 | U116: 0 | V116: 0 | W116: 0 | X116: 16 | Y116: 6 | Z116: 990 | AA116: 50.40733198
A117: RODRÍGUEZ | B117: 3 | C117: 1247 | D117: 708 | E117: 56.77626303 | F117: 695 | G117: 0 | H117: 0 | I117: 0 | J117: 0 | K117: 0 | L117: 0 | M117: 0 | N117: 0 | O117: 60 | P117: 42 | Q117: 304 | R117: 0 | S117: 0 | T117: 289 | U117: 0 | V117: 0 | W117: 0 | X117: 11 | Y117: 2 | Z117: 539 | AA117: 43.22373697
A118: CANTÓN 13 UPALA | B118: 53 | C118: 21797 | D118: 7770 | E118: 35.6471074 | F118: 7551 | G118: 0 | H118: 3481 | I118: 0 | J118: 0 | K118: 0 | L118: 0 | M118: 0 | N118: 0 | O118: 0 | P118: 3675 | Q118: 395 | R118: 0 | S118: 0 | T118: 0 | U118: 0 | V118: 0 | W118: 0 | X118: 159 | Y118: 60 | Z118: 14027 | AA118: 64.3528926
A119: UPALA | B119: 17 | C119: 8440 | D119: 3022 | E119: 35.8056872 | F119: 2946 | G119: 0 | H119: 1437 | I119: 0 | J119: 0 | K119: 0 | L119: 0 | M119: 0 | N119: 0 | O119: 0 | P119: 1321 | Q119: 188 | R119: 0 | S119: 0 | T119: 0 | U119: 0 | V119: 0 | W119: 0 | X119: 55 | Y119: 21 | Z119: 5418 | AA119: 64.1943128
A120: AGUAS CLARAS | B120: 9 | C120: 2865 | D120: 1055 | E120: 36.82373473 | F120: 1019 | G120: 0 | H120: 340 | I120: 0 | J120: 0 | K120: 0 | L120: 0 | M120: 0 | N120: 0 | O120: 0 | P120: 652 | Q120: 27 | R120: 0 | S120: 0 | T120: 0 | U120: 0 | V120: 0 | W120: 0 | X120: 26 | Y120: 10 | Z120: 1810 | AA120: 63.17626527
A121: SAN JOSÉ (PIZOTE) | B121: 8 | C121: 3172 | D121: 993 | E121: 31.30517024 | F121: 968 | G121: 0 | H121: 372 | I121: 0 | J121: 0 | K121: 0 | L121: 0 | M121: 0 | N121: 0 | O121: 0 | P121: 554 | Q121: 42 | R121: 0 | S121: 0 | T121: 0 | U121: 0 | V121: 0 | W121: 0 | X121: 15 | Y121: 10 | Z121: 2179 | AA121: 68.69482976
A122: BIJAGUA | B122: 7 | C122: 2500 | D122: 1041 | E122: 41.64 | F122: 1011 | G122: 0 | H122: 630 | I122: 0 | J122: 0 | K122: 0 | L122: 0 | M122: 0 | N122: 0 | O122: 0 | P122: 366 | Q122: 15 | R122: 0 | S122: 0 | T122: 0 | U122: 0 | V122: 0 | W122: 0 | X122: 21 | Y122: 9 | Z122: 1459 | AA122: 58.36
A123: DELICIAS | B123: 4 | C123: 1695 | D123: 656 | E123: 38.7020649 | F123: 643 | G123: 0 | H123: 288 | I123: 0 | J123: 0 | K123: 0 | L123: 0 | M123: 0 | N123: 0 | O123: 0 | P123: 337 | Q123: 18 | R123: 0 | S123: 0 | T123: 0 | U123: 0 | V123: 0 | W123: 0 | X123: 10 | Y123: 3 | Z123: 1039 | AA123: 61.2979351
A124: DOS RÍOS | B124: 4 | C124: 1474 | D124: 445 | E124: 30.18995929 | F124: 421 | G124: 0 | H124: 185 | I124: 0 | J124: 0 | K124: 0 | L124: 0 | M124: 0 | N124: 0 | O124: 0 | P124: 187 | Q124: 49 | R124: 0 | S124: 0 | T124: 0 | U124: 0 | V124: 0 | W124: 0 | X124: 20 | Y124: 4 | Z124: 1029 | AA124: 69.81004071
A125: YOLILLAL | B125: 4 | C125: 1651 | D125: 558 | E125: 33.79769836 | F125: 543 | G125: 0 | H125: 229 | I125: 0 | J125: 0 | K125: 0 | L125: 0 | M125: 0 | N125: 0 | O125: 0 | P125: 258 | Q125: 56 | R125: 0 | S125: 0 | T125: 0 | U125: 0 | V125: 0 | W125: 0 | X125: 12 | Y125: 3 | Z125: 1093 | AA125: 66.20230164
A126: CANTÓN 14 LOS CHILES | B126: 26 | C126: 9243 | D126: 4244 | E126: 45.91582819 | F126: 4142 | G126: 0 | H126: 1693 | I126: 0 | J126: 0 | K126: 0 | L126: 0 | M126: 0 | N126: 0 | O126: 0 | P126: 1477 | Q126: 0 | R126: 451 | S126: 0 | T126: 521 | U126: 0 | V126: 0 | W126: 0 | X126: 83 | Y126: 19 | Z126: 4999 | AA126: 54.08417181
A127: LOS CHILES | B127: 13 | C127: 4633 | D127: 2220 | E127: 47.91711634 | F127: 2169 | G127: 0 | H127: 851 | I127: 0 | J127: 0 | K127: 0 | L127: 0 | M127: 0 | N127: 0 | O127: 0 | P127: 649 | Q127: 0 | R127: 299 | S127: 0 | T127: 370 | U127: 0 | V127: 0 | W127: 0 | X127: 43 | Y127: 8 | Z127: 2413 | AA127: 52.08288366
A128: CAÑO NEGRO | B128: 2 | C128: 909 | D128: 406 | E128: 44.66446645 | F128: 399 | G128: 0 | H128: 169 | I128: 0 | J128: 0 | K128: 0 | L128: 0 | M128: 0 | N128: 0 | O128: 0 | P128: 165 | Q128: 0 | R128: 45 | S128: 0 | T128: 20 | U128: 0 | V128: 0 | W128: 0 | X128: 4 | Y128: 3 | Z128: 503 | AA128: 55.33553355
A129: EL AMPARO | B129: 7 | C129: 2417 | D129: 1044 | E129: 43.1940422 | F129: 1018 | G129: 0 | H129: 435 | I129: 0 | J129: 0 | K129: 0 | L129: 0 | M129: 0 | N129: 0 | O129: 0 | P129: 433 | Q129: 0 | R129: 60 | S129: 0 | T129: 90 | U129: 0 | V129: 0 | W129: 0 | X129: 19 | Y129: 7 | Z129: 1373 | AA129: 56.8059578
A130: SAN JORGE | B130: 4 | C130: 1284 | D130: 574 | E130: 44.70404984 | F130: 556 | G130: 0 | H130: 238 | I130: 0 | J130: 0 | K130: 0 | L130: 0 | M130: 0 | N130: 0 | O130: 0 | P130: 230 | Q130: 0 | R130: 47 | S130: 0 | T130: 41 | U130: 0 | V130: 0 | W130: 0 | X130: 17 | Y130: 1 | Z130: 710 | AA130: 55.29595016
A131: CANTÓN 15 GUATUSO | B131: 21 | C131: 8950 | D131: 3817 | E131: 42.64804469 | F131: 3723 | G131: 0 | H131: 1862 | I131: 0 | J131: 0 | K131: 0 | L131: 0 | M131: 0 | N131: 95 | O131: 0 | P131: 926 | Q131: 661 | R131: 0 | S131: 0 | T131: 179 | U131: 0 | V131: 0 | W131: 0 | X131: 75 | Y131: 19 | Z131: 5133 | AA131: 57.35195531
A132: SAN RAFAEL | B132: 12 | C132: 4558 | D132: 2052 | E132: 45.0197455 | F132: 2007 | G132: 0 | H132: 1073 | I132: 0 | J132: 0 | K132: 0 | L132: 0 | M132: 0 | N132: 79 | O132: 0 | P132: 438 | Q132: 318 | R132: 0 | S132: 0 | T132: 99 | U132: 0 | V132: 0 | W132: 0 | X132: 38 | Y132: 7 | Z132: 2506 | AA132: 54.9802545
A133: BUENAVISTA | B133: 3 | C133: 930 | D133: 455 | E133: 48.92473118 | F133: 441 | G133: 0 | H133: 322 | I133: 0 | J133: 0 | K133: 0 | L133: 0 | M133: 0 | N133: 1 | O133: 0 | P133: 57 | Q133: 57 | R133: 0 | S133: 0 | T133: 4 | U133: 0 | V133: 0 | W133: 0 | X133: 12 | Y133: 2 | Z133: 475 | AA133: 51.07526882
A134: COTE | B134: 1 | C134: 526 | D134: 227 | E134: 43.15589354 | F134: 221 | G134: 0 | H134: 74 | I134: 0 | J134: 0 | K134: 0 | L134: 0 | M134: 0 | N134: 1 | O134: 0 | P134: 40 | Q134: 83 | R134: 0 | S134: 0 | T134: 23 | U134: 0 | V134: 0 | W134: 0 | X134: 4 | Y134: 2 | Z134: 299 | AA134: 56.84410646
A135: KATIRA | B135: 5 | C135: 2936 | D135: 1083 | E135: 36.88692098 | F135: 1054 | G135: 0 | H135: 393 | I135: 0 | J135: 0 | K135: 0 | L135: 0 | M135: 0 | N135: 14 | O135: 0 | P135: 391 | Q135: 203 | R135: 0 | S135: 0 | T135: 53 | U135: 0 | V135: 0 | W135: 0 | X135: 21 | Y135: 8 | Z135: 1853 | AA135: 63.11307902
A137: FUENTE: Tribunal Supremo de Elecciones.

Sheet 2.11
A2: CUADRO 2.11 PROVINCIA CARTAGO: JUNTAS, ELECTORADO, PARTICIPACIÓN, VOTOS POR PARTIDO, NULOS, BLANCOS, Y ABSTENCIONISMO PARA ALCALDÍAS
A3: SEGÚN CANTÓN Y DISTRITO ADMINISTRATIVO, ELECCIONES MUNICIPALES DICIEMBRE 2010
A5: CANTÓN Y DISTRITO ADMINISTRATIVO | B5: JUNTAS | C5: ELECTORADO | D5: VOTOS RECIBIDOS | S5: ABSTENCIONISMO
D6: TOTAL GENERAL | E6: % PARTICIPACIÓN | F6: VOTOS POR PARTIDO | Q6: VOTOS NULOS | R6: VOTOS BLANCOS | S6: ABSOLUTO | T6: %
F7: TOTAL | G7: ACCESIBILIDAD SIN EXCLUSIÓN | H7: ACCIÓN CIUDADANA | I7: COALICIÓN CARTAGO UNIDO | J7: FRENTE AMPLIO | K7: LIBERACIÓN NACIONAL | L7: MOVIMIENTO LIBERTARIO | M7: TRANSPARENCIA CARTAGINÉS | N7: UNIDAD SOCIAL CRISTIANA | O7: UNIÓN AGRÍCOLA CARTAGINÉS | P7: VERDE ECOLOGISTA
A9: CARTAGO | B9: 581 | C9: 334473 | D9: 92234 | E9: =+D9/C9*100 -> 27.57591794 | F9: 90155 | G9: 971 | H9: 10031 | I9: 11353 | J9: 418 | K9: 39527 | L9: 6592 | M9: 976 | N9: 16177 | O9: 3498 | P9: 612 | Q9: 1613 | R9: 466 | S9: =+C9-D9 -> 242239 | T9: =+S9/C9*100 -> 72.42408206
A10: CANTÓN 1 CARTAGO | B10: 168 | C10: 106013 | D10: 24575 | E10: =+D10/C10*100 -> 23.1811193 | F10: 24106 | G10: 0 | H10: 0 | I10: 11353 | J10: 0 | K10: 12753 | L10: 0 | M10: 0 | N10: 0 | O10: 0 | P10: 0 | Q10: 356 | R10: 113 | S10: =+C10-D10 -> 81438 | T10: =+S10/C10*100 -> 76.8188807
A11: ORIENTAL | B11: 20 | C11: 13328 | D11: 3094 | E11: 23.21428571 | F11: 3056 | G11: 0 | H11: 0 | I11: 1946 | J11: 0 | K11: 1110 | L11: 0 | M11: 0 | N11: 0 | O11: 0 | P11: 0 | Q11: 32 | R11: 6 | S11: 10234 | T11: 76.78571429
A12: OCCIDENTAL | B12: 15 | C12: 9600 | D12: 2406 | E12: 25.0625 | F12: 2368 | G12: 0 | H12: 0 | I12: 1512 | J12: 0 | K12: 856 | L12: 0 | M12: 0 | N12: 0 | O12: 0 | P12: 0 | Q12: 29 | R12: 9 | S12: 7194 | T12: 74.9375
A13: CARMEN | B13: 18 | C13: 11938 | D13: 2527 | E13: 21.16769978 | F13: 2482 | G13: 0 | H13: 0 | I13: 1292 | J13: 0 | K13: 1190 | L13: 0 | M13: 0 | N13: 0 | O13: 0 | P13: 0 | Q13: 36 | R13: 9 | S13: 9411 | T13: 78.83230022
A14: SAN NICOLÁS | B14: 27 | C14: 16351 | D14: 3339 | E14: 20.42076937 | F14: 3276 | G14: 0 | H14: 0 | I14: 1503 | J14: 0 | K14: 1773 | L14: 0 | M14: 0 | N14: 0 | O14: 0 | P14: 0 | Q14: 49 | R14: 14 | S14: 13012 | T14: 79.57923063
A15: AGUACALIENTE O SAN FRANCISCO | B15: 32 | C15: 20725 | D15: 3416 | E15: 16.48250905 | F15: 3350 | G15: 0 | H15: 0 | I15: 1523 | J15: 0 | K15: 1827 | L15: 0 | M15: 0 | N15: 0 | O15: 0 | P15: 0 | Q15: 57 | R15: 9 | S15: 17309 | T15: 83.51749095
A16: GUADALUPE O ARENILLA | B16: 15 | C16: 10191 | D16: 2152 | E16: 21.11667157 | F16: 2114 | G16: 0 | H16: 0 | I16: 1135 | J16: 0 | K16: 979 | L16: 0 | M16: 0 | N16: 0 | O16: 0 | P16: 0 | Q16: 32 | R16: 6 | S16: 8039 | T16: 78.88332843
A17: CORRALILLO | B17: 13 | C17: 7298 | D17: 2778 | E17: 38.06522335 | F17: 2724 | G17: 0 | H17: 0 | I17: 891 | J17: 0 | K17: 1833 | L17: 0 | M17: 0 | N17: 0 | O17: 0 | P17: 0 | Q17: 34 | R17: 20 | S17: 4520 | T17: 61.93477665
A18: TIERRA BLANCA | B18: 6 | C18: 3923 | D18: 1467 | E18: 37.39485088 | F18: 1439 | G18: 0 | H18: 0 | I18: 447 | J18: 0 | K18: 992 | L18: 0 | M18: 0 | N18: 0 | O18: 0 | P18: 0 | Q18: 19 | R18: 9 | S18: 2456 | T18: 62.60514912
A19: DULCE NOMBRE | B19: 10 | C19: 6302 | D19: 1389 | E19: 22.04062202 | F19: 1358 | G19: 0 | H19: 0 | I19: 578 | J19: 0 | K19: 780 | L19: 0 | M19: 0 | N19: 0 | O19: 0 | P19: 0 | Q19: 21 | R19: 10 | S19: 4913 | T19: 77.95937798
A20: LLANO GRANDE | B20: 5 | C20: 2830 | D20: 716 | E20: 25.30035336 | F20: 695 | G20: 0 | H20: 0 | I20: 227 | J20: 0 | K20: 468 | L20: 0 | M20: 0 | N20: 0 | O20: 0 | P20: 0 | Q20: 17 | R20: 4 | S20: 2114 | T20: 74.69964664
A21: QUEBRADILLA | B21: 7 | C21: 3527 | D21: 1291 | E21: 36.60334562 | F21: 1244 | G21: 0 | H21: 0 | I21: 299 | J21: 0 | K21: 945 | L21: 0 | M21: 0 | N21: 0 | O21: 0 | P21: 0 | Q21: 30 | R21: 17 | S21: 2236 | T21: 63.39665438
A22: CANTÓN 2 PARAÍSO | B22: 68 | C22: 39836 | D22: 14188 | E22: 35.61602571 | F22: 13807 | G22: 0 | H22: 0 | I22: 0 | J22: 418 | K22: 2694 | L22: 2893 | M22: 0 | N22: 5327 | O22: 1863 | P22: 612 | Q22: 326 | R22: 55 | S22: 25648 | T22: 64.38397429
A23: PARAÍSO | B23: 26 | C23: 16734 | D23: 6581 | E23: 39.32711844 | F23: 6449 | G23: 0 | H23: 0 | I23: 0 | J23: 255 | K23: 872 | L23: 1161 | M23: 0 | N23: 2767 | O23: 1097 | P23: 297 | Q23: 101 | R23: 31 | S23: 10153 | T23: 60.67288156
A24: SANTIAGO | B24: 7 | C24: 3408 | D24: 1042 | E24: 30.57511737 | F24: 1020 | G24: 0 | H24: 0 | I24: 0 | J24: 16 | K24: 249 | L24: 186 | M24: 0 | N24: 392 | O24: 121 | P24: 56 | Q24: 18 | R24: 4 | S24: 2366 | T24: 69.42488263
A25: OROSI | B25: 12 | C25: 6303 | D25: 2378 | E25: 37.728066 | F25: 2259 | G25: 0 | H25: 0 | I25: 0 | J25: 19 | K25: 301 | L25: 1052 | M25: 0 | N25: 661 | O25: 188 | P25: 38 | Q25: 114 | R25: 5 | S25: 3925 | T25: 62.271934
A26: CACHÍ | B26: 9 | C26: 3978 | D26: 1334 | E26: 33.53443942 | F26: 1299 | G26: 0 | H26: 0 | I26: 0 | J26: 21 | K26: 371 | L26: 245 | M26: 0 | N26: 485 | O26: 115 | P26: 62 | Q26: 29 | R26: 6 | S26: 2644 | T26: 66.46556058
A27: LLANOS DE SANTA LUCÍA | B27: 14 | C27: 9413 | D27: 2853 | E27: 30.30914692 | F27: 2780 | G27: 0 | H27: 0 | I27: 0 | J27: 107 | K27: 901 | L27: 249 | M27: 0 | N27: 1022 | O27: 342 | P27: 159 | Q27: 64 | R27: 9 | S27: 6560 | T27: 69.69085308
A28: CANTÓN 3 LA UNIÓN | B28: 95 | C28: 59152 | D28: 12877 | E28: 21.76934001 | F28: 12679 | G28: 0 | H28: 1994 | I28: 0 | J28: 0 | K28: 6575 | L28: 802 | M28: 0 | N28: 3308 | O28: 0 | P28: 0 | Q28: 160 | R28: 38 | S28: 46275 | T28: 78.23065999
A29: TRES RÍOS | B29: 15 | C29: 10389 | D29: 3243 | E29: 31.21570892 | F29: 3200 | G29: 0 | H29: 394 | I29: 0 | J29: 0 | K29: 1993 | L29: 101 | M29: 0 | N29: 712 | O29: 0 | P29: 0 | Q29: 34 | R29: 9 | S29: 7146 | T29: 68.78429108
A30: SAN DIEGO | B30: 18 | C30: 11332 | D30: 2148 | E30: 18.9551712 | F30: 2109 | G30: 0 | H30: 266 | I30: 0 | J30: 0 | K30: 1021 | L30: 96 | M30: 0 | N30: 726 | O30: 0 | P30: 0 | Q30: 35 | R30: 4 | S30: 9184 | T30: 81.0448288
A31: SAN JUAN | B31: 11 | C31: 7022 | D31: 1292 | E31: 18.39931643 | F31: 1269 | G31: 0 | H31: 303 | I31: 0 | J31: 0 | K31: 755 | L31: 87 | M31: 0 | N31: 124 | O31: 0 | P31: 0 | Q31: 15 | R31: 8 | S31: 5730 | T31: 81.60068357
A32: SAN RAFAEL | B32: 12 | C32: 7276 | D32: 1551 | E32: 21.3166575 | F32: 1531 | G32: 0 | H32: 168 | I32: 0 | J32: 0 | K32: 849 | L32: 96 | M32: 0 | N32: 418 | O32: 0 | P32: 0 | Q32: 17 | R32: 3 | S32: 5725 | T32: 78.6833425
A33: CONCEPCIÓN | B33: 16 | C33: 9533 | D33: 1972 | E33: 20.68603797 | F33: 1945 | G33: 0 | H33: 570 | I33: 0 | J33: 0 | K33: 694 | L33: 229 | M33: 0 | N33: 452 | O33: 0 | P33: 0 | Q33: 24 | R33: 3 | S33: 7561 | T33: 79.31396203
A34: DULCE NOMBRE | B34: 9 | C34: 5286 | D34: 1334 | E34: 25.2364737 | F34: 1316 | G34: 0 | H34: 128 | I34: 0 | J34: 0 | K34: 540 | L34: 64 | M34: 0 | N34: 584 | O34: 0 | P34: 0 | Q34: 16 | R34: 2 | S34: 3952 | T34: 74.7635263
A35: SAN RAMÓN | B35: 5 | C35: 3045 | D35: 473 | E35: 15.53366174 | F35: 462 | G35: 0 | H35: 132 | I35: 0 | J35: 0 | K35: 230 | L35: 53 | M35: 0 | N35: 47 | O35: 0 | P35: 0 | Q35: 10 | R35: 1 | S35: 2572 | T35: 84.46633826
A36: RÍO AZUL | B36: 9 | C36: 5269 | D36: 864 | E36: 16.39779844 | F36: 847 | G36: 0 | H36: 33 | I36: 0 | J36: 0 | K36: 493 | L36: 76 | M36: 0 | N36: 245 | O36: 0 | P36: 0 | Q36: 9 | R36: 8 | S36: 4405 | T36: 83.60220156
A37: CANTÓN 4 JIMÉNEZ | B37: 20 | C37: 10600 | D37: 5573 | E37: 52.5754717 | F37: 5440 | G37: 0 | H37: 0 | I37: 0 | J37: 0 | K37: 2393 | L37: 630 | M37: 0 | N37: 2417 | O37: 0 | P37: 0 | Q37: 105 | R37: 28 | S37: 5027 | T37: 47.4245283
A38: JUAN VIÑAS | B38: 10 | C38: 4941 | D38: 2544 | E38: 51.48755313 | F38: 2493 | G38: 0 | H38: 0 | I38: 0 | J38: 0 | K38: 1337 | L38: 489 | M38: 0 | N38: 667 | O38: 0 | P38: 0 | Q38: 34 | R38: 17 | S38: 2397 | T38: 48.51244687
A39: TUCURRIQUE | B39: 5 | C39: 3173 | D39: 1684 | E39: 53.07280176 | F39: 1633 | G39: 0 | H39: 0 | I39: 0 | J39: 0 | K39: 668 | L39: 78 | M39: 0 | N39: 887 | O39: 0 | P39: 0 | Q39: 43 | R39: 8 | S39: 1489 | T39: 46.92719824
A40: PEJIBAYE | B40: 5 | C40: 2486 | D40: 1345 | E40: 54.10297667 | F40: 1314 | G40: 0 | H40: 0 | I40: 0 | J40: 0 | K40: 388 | L40: 63 | M40: 0 | N40: 863 | O40: 0 | P40: 0 | Q40: 28 | R40: 3 | S40: 1141 | T40: 45.89702333
A41: CANTÓN 5 TURRIALBA | B41: 115 | C41: 51904 | D41: 16121 | E41: 31.05926326 | F41: 15778 | G41: 0 | H41: 3895 | I41: 0 | J41: 0 | K41: 6915 | L41: 2170 | M41: 0 | N41: 2798 | O41: 0 | P41: 0 | Q41: 285 | R41: 58 | S41: 35783 | T41: 68.94073674
A42: TURRIALBA | B42: 38 | C42: 20905 | D42: 6356 | E42: 30.40420952 | F42: 6261 | G42: 0 | H42: 2029 | I42: 0 | J42: 0 | K42: 2647 | L42: 726 | M42: 0 | N42: 859 | O42: 0 | P42: 0 | Q42: 80 | R42: 15 | S42: 14549 | T42: 69.59579048
A43: LA SUIZA | B43: 14 | C43: 6152 | D43: 1763 | E43: 28.6573472 | F43: 1725 | G43: 0 | H43: 380 | I43: 0 | J43: 0 | K43: 811 | L43: 267 | M43: 0 | N43: 267 | O43: 0 | P43: 0 | Q43: 29 | R43: 9 | S43: 4389 | T43: 71.3426528
A44: PERALTA | B44: 1 | C44: 300 | D44: 99 | E44: 33 | F44: 94 | G44: 0 | H44: 3 | I44: 0 | J44: 0 | K44: 50 | L44: 7 | M44: 0 | N44: 34 | O44: 0 | P44: 0 | Q44: 5 | R44: 0 | S44: 201 | T44: 67
A45: SANTA CRUZ | B45: 7 | C45: 2428 | D45: 750 | E45: 30.88962109 | F45: 742 | G45: 0 | H45: 146 | I45: 0 | J45: 0 | K45: 289 | L45: 168 | M45: 0 | N45: 139 | O45: 0 | P45: 0 | Q45: 6 | R45: 2 | S45: 1678 | T45: 69.11037891
A46: SANTA TERESITA | B46: 11 | C46: 3539 | D46: 1253 | E46: 35.40548177 | F46: 1225 | G46: 0 | H46: 199 | I46: 0 | J46: 0 | K46: 774 | L46: 76 | M46: 0 | N46: 176 | O46: 0 | P46: 0 | Q46: 23 | R46: 5 | S46: 2286 | T46: 64.59451823
A47: PAVONES | B47: 7 | C47: 3217 | D47: 969 | E47: 30.12123096 | F47: 954 | G47: 0 | H47: 206 | I47: 0 | J47: 0 | K47: 375 | L47: 207 | M47: 0 | N47: 166 | O47: 0 | P47: 0 | Q47: 13 | R47: 2 | S47: 2248 | T47: 69.87876904
A48: TUIS | B48: 5 | C48: 1717 | D48: 612 | E48: 35.64356436 | F48: 586 | G48: 0 | H48: 167 | I48: 0 | J48: 0 | K48: 174 | L48: 114 | M48: 0 | N48: 131 | O48: 0 | P48: 0 | Q48: 19 | R48: 7 | S48: 1105 | T48: 64.35643564
A49: TAYUTIC | B49: 4 | C49: 1679 | D49: 724 | E49: 43.1209053 | F49: 705 | G49: 0 | H49: 164 | I49: 0 | J49: 0 | K49: 362 | L49: 70 | M49: 0 | N49: 109 | O49: 0 | P49: 0 | Q49: 15 | R49: 4 | S49: 955 | T49: 56.8790947
A50: SANTA ROSA | B50: 7 | C50: 3823 | D50: 1236 | E50: 32.33063039 | F50: 1211 | G50: 0 | H50: 264 | I50: 0 | J50: 0 | K50: 544 | L50: 111 | M50: 0 | N50: 292 | O50: 0 | P50: 0 | Q50: 22 | R50: 3 | S50: 2587 | T50: 67.66936961
A51: TRES EQUIS | B51: 3 | C51: 1273 | D51: 371 | E51: 29.14375491 | F51: 359 | G51: 0 | H51: 28 | I51: 0 | J51: 0 | K51: 215 | L51: 77 | M51: 0 | N51: 39 | O51: 0 | P51: 0 | Q51: 10 | R51: 2 | S51: 902 | T51: 70.85624509
A52: LA ISABEL | B52: 8 | C52: 4431 | D52: 1611 | E52: 36.35748138 | F52: 1578 | G52: 0 | H52: 260 | I52: 0 | J52: 0 | K52: 547 | L52: 275 | M52: 0 | N52: 496 | O52: 0 | P52: 0 | Q52: 31 | R52: 2 | S52: 2820 | T52: 63.64251862
A53: CHIRRIPÓ | B53: 10 | C53: 2440 | D53: 377 | E53: 15.45081967 | F53: 338 | G53: 0 | H53: 49 | I53: 0 | J53: 0 | K53: 127 | L53: 72 | M53: 0 | N53: 90 | O53: 0 | P53: 0 | Q53: 32 | R53: 7 | S53: 2063 | T53: 84.54918033
A54: CANTÓN 6 ALVARADO | B54: 17 | C54: 8697 | D54: 3611 | E54: 41.52006439 | F54: 3433 | G54: 0 | H54: 0 | I54: 0 | J54: 0 | K54: 1798 | L54: 0 | M54: 0 | N54: 0 | O54: 1635 | P54: 0 | Q54: 70 | R54: 108 | S54: 5086 | T54: 58.47993561
A55: PACAYAS | B55: 8 | C55: 3764 | D55: 1725 | E55: 45.82890542 | F55: 1697 | G55: 0 | H55: 0 | I55: 0 | J55: 0 | K55: 999 | L55: 0 | M55: 0 | N55: 0 | O55: 698 | P55: 0 | Q55: 24 | R55: 4 | S55: 2039 | T55: 54.17109458
A56: CERVANTES | B56: 5 | C56: 3488 | D56: 1321 | E56: 37.87270642 | F56: 1185 | G56: 0 | H56: 0 | I56: 0 | J56: 0 | K56: 453 | L56: 0 | M56: 0 | N56: 0 | O56: 732 | P56: 0 | Q56: 38 | R56: 98 | S56: 2167 | T56: 62.12729358
A57: CAPELLADES | B57: 4 | C57: 1445 | D57: 565 | E57: 39.10034602 | F57: 551 | G57: 0 | H57: 0 | I57: 0 | J57: 0 | K57: 346 | L57: 0 | M57: 0 | N57: 0 | O57: 205 | P57: 0 | Q57: 8 | R57: 6 | S57: 880 | T57: 60.89965398
A58: CANTÓN 7 OREAMUNO | B58: 51 | C58: 30700 | D58: 8151 | E58: 26.5504886 | F58: 7911 | G58: 971 | H58: 660 | I58: 0 | J58: 0 | K58: 2880 | L58: 97 | M58: 976 | N58: 2327 | O58: 0 | P58: 0 | Q58: 200 | R58: 40 | S58: 22549 | T58: 73.4495114
A59: SAN RAFAEL | B59: 29 | C59: 19210 | D59: 4512 | E59: 23.48776679 | F59: 4429 | G59: 770 | H59: 490 | I59: 0 | J59: 0 | K59: 2044 | L59: 56 | M59: 129 | N59: 940 | O59: 0 | P59: 0 | Q59: 66 | R59: 17 | S59: 14698 | T59: 76.51223321
A60: COT | B60: 10 | C60: 5868 | D60: 2222 | E60: 37.866394 | F60: 2120 | G60: 87 | H60: 62 | I60: 0 | J60: 0 | K60: 302 | L60: 20 | M60: 749 | N60: 900 | O60: 0 | P60: 0 | Q60: 88 | R60: 14 | S60: 3646 | T60: 62.133606
A61: POTRERO CERRADO | B61: 3 | C61: 1249 | D61: 345 | E61: 27.62209768 | F61: 332 | G61: 29 | H61: 46 | I61: 0 | J61: 0 | K61: 123 | L61: 6 | M61: 9 | N61: 119 | O61: 0 | P61: 0 | Q61: 11 | R61: 2 | S61: 904 | T61: 72.37790232
A62: CIPRESES | B62: 4 | C62: 2269 | D62: 656 | E62: 28.91141472 | F62: 636 | G62: 32 | H62: 10 | I62: 0 | J62: 0 | K62: 255 | L62: 12 | M62: 16 | N62: 311 | O62: 0 | P62: 0 | Q62: 16 | R62: 4 | S62: 1613 | T62: 71.08858528
A63: SANTA ROSA | B63: 5 | C63: 2104 | D63: 416 | E63: 19.77186312 | F63: 394 | G63: 53 | H63: 52 | I63: 0 | J63: 0 | K63: 156 | L63: 3 | M63: 73 | N63: 57 | O63: 0 | P63: 0 | Q63: 19 | R63: 3 | S63: 1688 | T63: 80.22813688
A64: CANTÓN 8 EL GUARCO | B64: 47 | C64: 27571 | D64: 7138 | E64: 25.8895216 | F64: 7001 | G64: 0 | H64: 3482 | I64: 0 | J64: 0 | K64: 3519 | L64: 0 | M64: 0 | N64: 0 | O64: 0 | P64: 0 | Q64: 111 | R64: 26 | S64: 20433 | T64: 74.1104784
A65: EL TEJAR | B65: 24 | C65: 15998 | D65: 3441 | E65: 21.50893862 | F65: 3372 | G65: 0 | H65: 1814 | I65: 0 | J65: 0 | K65: 1558 | L65: 0 | M65: 0 | N65: 0 | O65: 0 | P65: 0 | Q65: 55 | R65: 14 | S65: 12557 | T65: 78.49106138
A66: SAN ISIDRO | B66: 13 | C66: 6847 | D66: 2013 | E66: 29.39973711 | F66: 1977 | G66: 0 | H66: 1130 | I66: 0 | J66: 0 | K66: 847 | L66: 0 | M66: 0 | N66: 0 | O66: 0 | P66: 0 | Q66: 28 | R66: 8 | S66: 4834 | T66: 70.60026289
A67: TOBOSI | B67: 8 | C67: 4352 | D67: 1465 | E67: 33.66268382 | F67: 1435 | G67: 0 | H67: 426 | I67: 0 | J67: 0 | K67: 1009 | L67: 0 | M67: 0 | N67: 0 | O67: 0 | P67: 0 | Q67: 26 | R67: 4 | S67: 2887 | T67: 66.33731618
A68: PATIO DE AGUA | B68: 2 | C68: 374 | D68: 219 | E68: 58.55614973 | F68: 217 | G68: 0 | H68: 112 | I68: 0 | J68: 0 | K68: 105 | L68: 0 | M68: 0 | N68: 0 | O68: 0 | P68: 0 | Q68: 2 | R68: 0 | S68: 155 | T68: 41.44385027
A70: FUENTE: Tribunal Supremo de Elecciones.

Sheet 2.12
A2: CUADRO 2.12 PROVINCIA HEREDIA: JUNTAS, ELECTORADO, PARTICIPACIÓN, VOTOS POR PARTIDO, NULOS, BLANCOS, Y ABSTENCIONISMO PARA ALCALDÍAS
A3: SEGÚN CANTÓN Y DISTRITO ADMINISTRATIVO, ELECCIONES MUNICIPALES DICIEMBRE 2010
A5: CANTÓN Y DISTRITO ADMINISTRATIVO | B5: JUNTAS | C5: ELECTORADO | D5: VOTOS RECIBIDOS | U5: ABSTENCIONISMO
D6: TOTAL GENRAL | E6: % PARTICIPACIÓN | F6: VOTOS POR PARTIDO | S6: VOTOS NULOS | T6: VOTOS BLANCOS | U6: ABSOLUTO | V6: %
B7: JUNTAS | F7: TOTAL | G7: ACCESIBILIDAD SIN EXCLUSIÓN | H7: ACCIÓN CIUDADANA | I7: COALICIÓN BARVA UNIDA | J7: INDEPENDIENTE BELEMITA | K7: INTEGRACIÓN BARBAREÑA | L7: LIBERACIÓN NACIONAL | M7: MOVIMIENTO AVANCE SANTO DOMINGO | N7: MOVIMIENTO LIBERTARIO | O7: RENOVACIÓN COSTARRICENSE | P7: RESTAURACIÓN HEREDIANA | Q7: TODO POR FLORES | R7: UNIDAD SOCIAL CRISTIANA
A9: HEREDIA | B9: 468 | C9: 283771 | D9: 75259 | E9: =+D9/C9*100 -> 26.5210328 | F9: 73949 | G9: 1624 | H9: 6419 | I9: 811 | J9: 740 | K9: 873 | L9: 34867 | M9: 2164 | N9: 11615 | O9: 658 | P9: 625 | Q9: 1732 | R9: 11821 | S9: 1054 | T9: 256 | U9: =+C9-D9 -> 208512 | V9: =+U9/C9*100 -> 73.4789672
A10: CANTÓN 1 HEREDIA | B10: 129 | C10: 85356 | D10: 15404 | E10: =+D10/C10*100 -> 18.04676883 | F10: 15227 | G10: 0 | H10: 1766 | I10: 0 | J10: 0 | K10: 0 | L10: 9990 | M10: 0 | N10: 3013 | O10: 0 | P10: 458 | Q10: 0 | R10: 0 | S10: 137 | T10: 40 | U10: =+C10-D10 -> 69952 | V10: =+U10/C10*100 -> 81.95323117
A11: HEREDIA | B11: 27 | C11: 18124 | D11: 3457 | E11: 19.07415582 | F11: 3427 | G11: 0 | H11: 402 | I11: 0 | J11: 0 | K11: 0 | L11: 2124 | M11: 0 | N11: 774 | O11: 0 | P11: 127 | Q11: 0 | R11: 0 | S11: 27 | T11: 3 | U11: 14667 | V11: 80.92584418
A12: MERCEDES | B12: 28 | C12: 18519 | D12: 4270 | E12: 23.05740051 | F12: 4244 | G12: 0 | H12: 412 | I12: 0 | J12: 0 | K12: 0 | L12: 3196 | M12: 0 | N12: 552 | O12: 0 | P12: 84 | Q12: 0 | R12: 0 | S12: 23 | T12: 3 | U12: 14249 | V12: 76.94259949
A13: SAN FRANCISCO | B13: 47 | C13: 31417 | D13: 4620 | E13: 14.70541427 | F13: 4549 | G13: 0 | H13: 594 | I13: 0 | J13: 0 | K13: 0 | L13: 2812 | M13: 0 | N13: 978 | O13: 0 | P13: 165 | Q13: 0 | R13: 0 | S13: 50 | T13: 21 | U13: 26797 | V13: 85.29458573
A14: ULLOA | B14: 25 | C14: 16794 | D14: 2789 | E14: 16.60712159 | F14: 2746 | G14: 0 | H14: 355 | I14: 0 | J14: 0 | K14: 0 | L14: 1744 | M14: 0 | N14: 565 | O14: 0 | P14: 82 | Q14: 0 | R14: 0 | S14: 32 | T14: 11 | U14: 14005 | V14: 83.39287841
A15: VARABLANCA | B15: 2 | C15: 502 | D15: 268 | E15: 53.38645418 | F15: 261 | G15: 0 | H15: 3 | I15: 0 | J15: 0 | K15: 0 | L15: 114 | M15: 0 | N15: 144 | O15: 0 | P15: 0 | Q15: 0 | R15: 0 | S15: 5 | T15: 2 | U15: 234 | V15: 46.61354582
A16: CANTÓN 2 BARVA | B16: 46 | C16: 27552 | D16: 10017 | E16: 36.35670732 | F16: 9785 | G16: 0 | H16: 850 | I16: 811 | J16: 0 | K16: 0 | L16: 4030 | M16: 0 | N16: 725 | O16: 658 | P16: 167 | Q16: 0 | R16: 2544 | S16: 194 | T16: 38 | U16: 17535 | V16: 63.64329268
A17: BARVA | B17: 9 | C17: 5655 | D17: 2481 | E17: 43.87267905 | F17: 2448 | G17: 0 | H17: 273 | I17: 241 | J17: 0 | K17: 0 | L17: 1062 | M17: 0 | N17: 159 | O17: 151 | P17: 53 | Q17: 0 | R17: 509 | S17: 23 | T17: 10 | U17: 3174 | V17: 56.12732095
A18: SAN PEDRO | B18: 11 | C18: 6882 | D18: 2210 | E18: 32.11275792 | F18: 2159 | G18: 0 | H18: 76 | I18: 150 | J18: 0 | K18: 0 | L18: 857 | M18: 0 | N18: 187 | O18: 115 | P18: 21 | Q18: 0 | R18: 753 | S18: 46 | T18: 5 | U18: 4672 | V18: 67.88724208
A19: SAN PABLO | B19: 7 | C19: 4751 | D19: 1849 | E19: 38.9181225 | F19: 1817 | G19: 0 | H19: 137 | I19: 188 | J19: 0 | K19: 0 | L19: 743 | M19: 0 | N19: 159 | O19: 106 | P19: 15 | Q19: 0 | R19: 469 | S19: 24 | T19: 8 | U19: 2902 | V19: 61.0818775
A20: SAN ROQUE | B20: 4 | C20: 2223 | D20: 700 | E20: 31.48897886 | F20: 685 | G20: 0 | H20: 52 | I20: 52 | J20: 0 | K20: 0 | L20: 357 | M20: 0 | N20: 42 | O20: 53 | P20: 55 | Q20: 0 | R20: 74 | S20: 14 | T20: 1 | U20: 1523 | V20: 68.51102114
A21: SANTA LUCÍA | B21: 7 | C21: 4367 | D21: 1103 | E21: 25.25761392 | F21: 1063 | G21: 0 | H21: 238 | I21: 125 | J21: 0 | K21: 0 | L21: 387 | M21: 0 | N21: 104 | O21: 84 | P21: 17 | Q21: 0 | R21: 108 | S21: 37 | T21: 3 | U21: 3264 | V21: 74.74238608
A22: SAN JOSÉ DE LA MONTAÑA | B22: 8 | C22: 3674 | D22: 1674 | E22: 45.56341862 | F22: 1613 | G22: 0 | H22: 74 | I22: 55 | J22: 0 | K22: 0 | L22: 624 | M22: 0 | N22: 74 | O22: 149 | P22: 6 | Q22: 0 | R22: 631 | S22: 50 | T22: 11 | U22: 2000 | V22: 54.43658138
A23: CANTÓN 3 SANTO DOMINGO | B23: 49 | C23: 30722 | D23: 9803 | E23: 31.9087299 | F23: 9657 | G23: 0 | H23: 680 | I23: 0 | J23: 0 | K23: 0 | L23: 3438 | M23: 2164 | N23: 3375 | O23: 0 | P23: 0 | Q23: 0 | R23: 0 | S23: 117 | T23: 29 | U23: 20919 | V23: 68.0912701
A24: SANTO DOMINGO | B24: 12 | C24: 7837 | D24: 2686 | E24: 34.27331887 | F24: 2661 | G24: 0 | H24: 120 | I24: 0 | J24: 0 | K24: 0 | L24: 855 | M24: 775 | N24: 911 | O24: 0 | P24: 0 | Q24: 0 | R24: 0 | S24: 20 | T24: 5 | U24: 5151 | V24: 65.72668113
A25: SAN VICENTE | B25: 6 | C25: 3549 | D25: 1145 | E25: 32.26260919 | F25: 1139 | G25: 0 | H25: 76 | I25: 0 | J25: 0 | K25: 0 | L25: 321 | M25: 389 | N25: 353 | O25: 0 | P25: 0 | Q25: 0 | R25: 0 | S25: 4 | T25: 2 | U25: 2404 | V25: 67.73739081
A26: SAN MIGUEL | B26: 8 | C26: 4605 | D26: 1464 | E26: 31.79153094 | F26: 1442 | G26: 0 | H26: 116 | I26: 0 | J26: 0 | K26: 0 | L26: 390 | M26: 143 | N26: 793 | O26: 0 | P26: 0 | Q26: 0 | R26: 0 | S26: 20 | T26: 2 | U26: 3141 | V26: 68.20846906
A27: PARACITO | B27: 3 | C27: 1986 | D27: 636 | E27: 32.02416918 | F27: 610 | G27: 0 | H27: 16 | I27: 0 | J27: 0 | K27: 0 | L27: 437 | M27: 90 | N27: 67 | O27: 0 | P27: 0 | Q27: 0 | R27: 0 | S27: 19 | T27: 7 | U27: 1350 | V27: 67.97583082
A28: SANTO TOMÁS | B28: 5 | C28: 3417 | D28: 1099 | E28: 32.16271583 | F28: 1091 | G28: 0 | H28: 82 | I28: 0 | J28: 0 | K28: 0 | L28: 343 | M28: 276 | N28: 390 | O28: 0 | P28: 0 | Q28: 0 | R28: 0 | S28: 7 | T28: 1 | U28: 2318 | V28: 67.83728417
A29: SANTA ROSA | B29: 7 | C29: 4494 | D29: 1337 | E29: 29.75077882 | F29: 1304 | G29: 0 | H29: 40 | I29: 0 | J29: 0 | K29: 0 | L29: 609 | M29: 252 | N29: 403 | O29: 0 | P29: 0 | Q29: 0 | R29: 0 | S29: 26 | T29: 7 | U29: 3157 | V29: 70.24922118
A30: TURES | B30: 4 | C30: 2521 | D30: 882 | E30: 34.98611662 | F30: 869 | G30: 0 | H30: 137 | I30: 0 | J30: 0 | K30: 0 | L30: 286 | M30: 130 | N30: 316 | O30: 0 | P30: 0 | Q30: 0 | R30: 0 | S30: 12 | T30: 1 | U30: 1639 | V30: 65.01388338
A31: PARÁ | B31: 4 | C31: 2313 | D31: 554 | E31: 23.95157804 | F31: 541 | G31: 0 | H31: 93 | I31: 0 | J31: 0 | K31: 0 | L31: 197 | M31: 109 | N31: 142 | O31: 0 | P31: 0 | Q31: 0 | R31: 0 | S31: 9 | T31: 4 | U31: 1759 | V31: 76.04842196
A32: CANTÓN 4 SANTA BÁRBARA | B32: 38 | C32: 22788 | D32: 6056 | E32: 26.57539056 | F32: 5926 | G32: 1624 | H32: 0 | I32: 0 | J32: 0 | K32: 873 | L32: 2082 | M32: 0 | N32: 919 | O32: 0 | P32: 0 | Q32: 0 | R32: 428 | S32: 104 | T32: 26 | U32: 16732 | V32: 73.42460944
A33: SANTA BÁRBARA | B33: 9 | C33: 6054 | D33: 1995 | E33: 32.95341923 | F33: 1963 | G33: 625 | H33: 0 | I33: 0 | J33: 0 | K33: 313 | L33: 753 | M33: 0 | N33: 152 | O33: 0 | P33: 0 | Q33: 0 | R33: 120 | S33: 26 | T33: 6 | U33: 4059 | V33: 67.04658077
A34: SAN PEDRO | B34: 4 | C34: 2460 | D34: 668 | E34: 27.15447154 | F34: 653 | G34: 137 | H34: 0 | I34: 0 | J34: 0 | K34: 107 | L34: 287 | M34: 0 | N34: 33 | O34: 0 | P34: 0 | Q34: 0 | R34: 89 | S34: 11 | T34: 4 | U34: 1792 | V34: 72.84552846
A35: SAN JUAN | B35: 7 | C35: 4518 | D35: 1150 | E35: 25.45374059 | F35: 1126 | G35: 219 | H35: 0 | I35: 0 | J35: 0 | K35: 87 | L35: 208 | M35: 0 | N35: 547 | O35: 0 | P35: 0 | Q35: 0 | R35: 65 | S35: 18 | T35: 6 | U35: 3368 | V35: 74.54625941
A36: JESÚS | B36: 9 | C36: 5146 | D36: 1114 | E36: 21.64788185 | F36: 1078 | G36: 362 | H36: 0 | I36: 0 | J36: 0 | K36: 230 | L36: 338 | M36: 0 | N36: 86 | O36: 0 | P36: 0 | Q36: 0 | R36: 62 | S36: 29 | T36: 7 | U36: 4032 | V36: 78.35211815
A37: SANTO DOMINGO | B37: 4 | C37: 2047 | D37: 510 | E37: 24.91450904 | F37: 499 | G37: 113 | H37: 0 | I37: 0 | J37: 0 | K37: 48 | L37: 226 | M37: 0 | N37: 66 | O37: 0 | P37: 0 | Q37: 0 | R37: 46 | S37: 9 | T37: 2 | U37: 1537 | V37: 75.08549096
A38: PURABÁ | B38: 5 | C38: 2563 | D38: 619 | E38: 24.1513851 | F38: 607 | G38: 168 | H38: 0 | I38: 0 | J38: 0 | K38: 88 | L38: 270 | M38: 0 | N38: 35 | O38: 0 | P38: 0 | Q38: 0 | R38: 46 | S38: 11 | T38: 1 | U38: 1944 | V38: 75.8486149
A39: CANTÓN 5 SAN RAFAEL | B39: 46 | C39: 29538 | D39: 5897 | E39: 19.96411402 | F39: 5772 | G39: 0 | H39: 1122 | I39: 0 | J39: 0 | K39: 0 | L39: 2826 | M39: 0 | N39: 1824 | O39: 0 | P39: 0 | Q39: 0 | R39: 0 | S39: 107 | T39: 18 | U39: 23641 | V39: 80.03588598
A40: SAN RAFAEL | B40: 12 | C40: 8243 | D40: 1928 | E40: 23.38954264 | F40: 1882 | G40: 0 | H40: 371 | I40: 0 | J40: 0 | K40: 0 | L40: 820 | M40: 0 | N40: 691 | O40: 0 | P40: 0 | Q40: 0 | R40: 0 | S40: 42 | T40: 4 | U40: 6315 | V40: 76.61045736
A41: SAN JOSECITO | B41: 10 | C41: 6759 | D41: 989 | E41: 14.63234206 | F41: 965 | G41: 0 | H41: 135 | I41: 0 | J41: 0 | K41: 0 | L41: 540 | M41: 0 | N41: 290 | O41: 0 | P41: 0 | Q41: 0 | R41: 0 | S41: 19 | T41: 5 | U41: 5770 | V41: 85.36765794
A42: SANTIAGO | B42: 8 | C42: 4922 | D42: 956 | E42: 19.42299878 | F42: 944 | G42: 0 | H42: 169 | I42: 0 | J42: 0 | K42: 0 | L42: 558 | M42: 0 | N42: 217 | O42: 0 | P42: 0 | Q42: 0 | R42: 0 | S42: 11 | T42: 1 | U42: 3966 | V42: 80.57700122
A43: LOS ÁNGELES | B43: 12 | C43: 7360 | D43: 1476 | E43: 20.05434783 | F43: 1444 | G43: 0 | H43: 326 | I43: 0 | J43: 0 | K43: 0 | L43: 671 | M43: 0 | N43: 447 | O43: 0 | P43: 0 | Q43: 0 | R43: 0 | S43: 25 | T43: 7 | U43: 5884 | V43: 79.94565217
A44: CONCEPCIÓN | B44: 4 | C44: 2254 | D44: 548 | E44: 24.31233363 | F44: 537 | G44: 0 | H44: 121 | I44: 0 | J44: 0 | K44: 0 | L44: 237 | M44: 0 | N44: 179 | O44: 0 | P44: 0 | Q44: 0 | R44: 0 | S44: 10 | T44: 1 | U44: 1706 | V44: 75.68766637
A45: CANTÓN 6 SAN ISIDRO | B45: 22 | C45: 13112 | D45: 4596 | E45: 35.05186089 | F45: 4515 | G45: 0 | H45: 1419 | I45: 0 | J45: 0 | K45: 0 | L45: 1765 | M45: 0 | N45: 178 | O45: 0 | P45: 0 | Q45: 0 | R45: 1153 | S45: 64 | T45: 17 | U45: 8516 | V45: 64.94813911
A46: SAN ISIDRO | B46: 10 | C46: 6872 | D46: 2414 | E46: 35.12805588 | F46: 2373 | G46: 0 | H46: 890 | I46: 0 | J46: 0 | K46: 0 | L46: 808 | M46: 0 | N46: 95 | O46: 0 | P46: 0 | Q46: 0 | R46: 580 | S46: 33 | T46: 8 | U46: 4458 | V46: 64.87194412
A47: SAN JOSÉ | B47: 6 | C47: 3081 | D47: 984 | E47: 31.93768257 | F47: 968 | G47: 0 | H47: 275 | I47: 0 | J47: 0 | K47: 0 | L47: 378 | M47: 0 | N47: 38 | O47: 0 | P47: 0 | Q47: 0 | R47: 277 | S47: 15 | T47: 1 | U47: 2097 | V47: 68.06231743
A48: CONCEPCIÓN | B48: 3 | C48: 1703 | D48: 736 | E48: 43.21785085 | F48: 717 | G48: 0 | H48: 125 | I48: 0 | J48: 0 | K48: 0 | L48: 388 | M48: 0 | N48: 13 | O48: 0 | P48: 0 | Q48: 0 | R48: 191 | S48: 13 | T48: 6 | U48: 967 | V48: 56.78214915
A49: SAN FRANCISCO | B49: 3 | C49: 1456 | D49: 462 | E49: 31.73076923 | F49: 457 | G49: 0 | H49: 129 | I49: 0 | J49: 0 | K49: 0 | L49: 191 | M49: 0 | N49: 32 | O49: 0 | P49: 0 | Q49: 0 | R49: 105 | S49: 3 | T49: 2 | U49: 994 | V49: 68.26923077
A50: CANTÓN 7 BELÉN | B50: 24 | C50: 15982 | D50: 5869 | E50: 36.72256288 | F50: 5780 | G50: 0 | H50: 0 | I50: 0 | J50: 740 | K50: 0 | L50: 1814 | M50: 0 | N50: 0 | O50: 0 | P50: 0 | Q50: 0 | R50: 3226 | S50: 72 | T50: 17 | U50: 10113 | V50: 63.27743712
A51: SAN ANTONIO | B51: 11 | C51: 7489 | D51: 2771 | E51: 37.0009347 | F51: 2725 | G51: 0 | H51: 0 | I51: 0 | J51: 439 | K51: 0 | L51: 766 | M51: 0 | N51: 0 | O51: 0 | P51: 0 | Q51: 0 | R51: 1520 | S51: 40 | T51: 6 | U51: 4718 | V51: 62.9990653
A52: LA RIBERA | B52: 8 | C52: 5429 | D52: 1935 | E52: 35.64192301 | F52: 1905 | G52: 0 | H52: 0 | I52: 0 | J52: 197 | K52: 0 | L52: 574 | M52: 0 | N52: 0 | O52: 0 | P52: 0 | Q52: 0 | R52: 1134 | S52: 21 | T52: 9 | U52: 3494 | V52: 64.35807699
A53: LA ASUNCIÓN | B53: 5 | C53: 3064 | D53: 1163 | E53: 37.95691906 | F53: 1150 | G53: 0 | H53: 0 | I53: 0 | J53: 104 | K53: 0 | L53: 474 | M53: 0 | N53: 0 | O53: 0 | P53: 0 | Q53: 0 | R53: 572 | S53: 11 | T53: 2 | U53: 1901 | V53: 62.04308094
A54: CANTÓN 8 FLORES | B54: 22 | C54: 13761 | D54: 5012 | E54: 36.42177167 | F54: 4917 | G54: 0 | H54: 0 | I54: 0 | J54: 0 | K54: 0 | L54: 1748 | M54: 0 | N54: 0 | O54: 0 | P54: 0 | Q54: 1732 | R54: 1437 | S54: 82 | T54: 13 | U54: 8749 | V54: 63.57822833
A55: SAN JOAQUÍN | B55: 11 | C55: 7209 | D55: 2586 | E55: 35.87182688 | F55: 2537 | G55: 0 | H55: 0 | I55: 0 | J55: 0 | K55: 0 | L55: 900 | M55: 0 | N55: 0 | O55: 0 | P55: 0 | Q55: 778 | R55: 859 | S55: 46 | T55: 3 | U55: 4623 | V55: 64.12817312
A56: BARRANTES | B56: 4 | C56: 2093 | D56: 897 | E56: 42.85714286 | F56: 875 | G56: 0 | H56: 0 | I56: 0 | J56: 0 | K56: 0 | L56: 305 | M56: 0 | N56: 0 | O56: 0 | P56: 0 | Q56: 433 | R56: 137 | S56: 18 | T56: 4 | U56: 1196 | V56: 57.14285714
A57: LLORENTE | B57: 7 | C57: 4459 | D57: 1529 | E57: 34.2901996 | F57: 1505 | G57: 0 | H57: 0 | I57: 0 | J57: 0 | K57: 0 | L57: 543 | M57: 0 | N57: 0 | O57: 0 | P57: 0 | Q57: 521 | R57: 441 | S57: 18 | T57: 6 | U57: 2930 | V57: 65.7098004
A58: CANTÓN 9 SAN PABLO | B58: 28 | C58: 18343 | D58: 5694 | E58: 31.04181432 | F58: 5620 | G58: 0 | H58: 582 | I58: 0 | J58: 0 | K58: 0 | L58: 1631 | M58: 0 | N58: 374 | O58: 0 | P58: 0 | Q58: 0 | R58: 3033 | S58: 67 | T58: 7 | U58: 12649 | V58: 68.95818568
A59: SAN PABLO | B59: 20 | C59: 13797 | D59: 4291 | E59: 31.10096398 | F59: 4235 | G59: 0 | H59: 428 | I59: 0 | J59: 0 | K59: 0 | L59: 1265 | M59: 0 | N59: 286 | O59: 0 | P59: 0 | Q59: 0 | R59: 2256 | S59: 51 | T59: 5 | U59: 9506 | V59: 68.89903602
A60: RINCÓN DE SABANILLA | B60: 8 | C60: 4546 | D60: 1403 | E60: 30.86229652 | F60: 1385 | G60: 0 | H60: 154 | I60: 0 | J60: 0 | K60: 0 | L60: 366 | M60: 0 | N60: 88 | O60: 0 | P60: 0 | Q60: 0 | R60: 777 | S60: 16 | T60: 2 | U60: 3143 | V60: 69.13770348
A61: CANTÓN 10 SARAPIQUÍ | B61: 64 | C61: 26617 | D61: 6911 | E61: 25.96460908 | F61: 6750 | G61: 0 | H61: 0 | I61: 0 | J61: 0 | K61: 0 | L61: 5543 | M61: 0 | N61: 1207 | O61: 0 | P61: 0 | Q61: 0 | R61: 0 | S61: 110 | T61: 51 | U61: 19706 | V61: 74.03539092
A62: PUERTO VIEJO | B62: 20 | C62: 8069 | D62: 2048 | E62: 25.38108812 | F62: 1998 | G62: 0 | H62: 0 | I62: 0 | J62: 0 | K62: 0 | L62: 1666 | M62: 0 | N62: 332 | O62: 0 | P62: 0 | Q62: 0 | R62: 0 | S62: 35 | T62: 15 | U62: 6021 | V62: 74.61891188
A63: LA VIRGEN | B63: 13 | C63: 4883 | D63: 1285 | E63: 26.31578947 | F63: 1257 | G63: 0 | H63: 0 | I63: 0 | J63: 0 | K63: 0 | L63: 973 | M63: 0 | N63: 284 | O63: 0 | P63: 0 | Q63: 0 | R63: 0 | S63: 19 | T63: 9 | U63: 3598 | V63: 73.68421053
A64: HORQUETAS | B64: 28 | C64: 13133 | D64: 3366 | E64: 25.63009213 | F64: 3288 | G64: 0 | H64: 0 | I64: 0 | J64: 0 | K64: 0 | L64: 2749 | M64: 0 | N64: 539 | O64: 0 | P64: 0 | Q64: 0 | R64: 0 | S64: 54 | T64: 24 | U64: 9767 | V64: 74.36990787
A65: LLANURAS DEL GASPAR | B65: 1 | C65: 299 | D65: 110 | E65: 36.78929766 | F65: 108 | G65: 0 | H65: 0 | I65: 0 | J65: 0 | K65: 0 | L65: 88 | M65: 0 | N65: 20 | O65: 0 | P65: 0 | Q65: 0 | R65: 0 | S65: 1 | T65: 1 | U65: 189 | V65: 63.21070234
A66: CUREÑA | B66: 2 | C66: 233 | D66: 102 | E66: 43.77682403 | F66: 99 | G66: 0 | H66: 0 | I66: 0 | J66: 0 | K66: 0 | L66: 67 | M66: 0 | N66: 32 | O66: 0 | P66: 0 | Q66: 0 | R66: 0 | S66: 1 | T66: 2 | U66: 131 | V66: 56.22317597
A68: FUENTE: Tribunal Supremo de Elecciones.

Sheet 2.13
A2: CUADRO 2.13 PROVINCIA GUANACASTE: JUNTAS, ELECTORADO, PARTICIPACIÓN, VOTOS POR PARTIDO, NULOS, BLANCOS
A3: Y ABSTENCIONISMO PARA ALCALDÍAS, SEGÚN CANTÓN Y DISTRITO ADMINISTRATIVO
A4: ELECCIONES MUNICIPALES DICIEMBRE 2010
A6: CANTÓN Y DISTRITO ADMINISTRATIVO | B6: JUNTAS | C6: ELECTORADO | D6: VOTOS RECIBIDOS | Q6: ABSTENCIONISMO
D7: TOTAL GENERAL | E7: % PARTICIPACIÓN | F7: VOTOS POR PARTIDO | O7: VOTOS NULOS | P7: VOTOS BLANCOS | Q7: ABSOLUTO | R7: %
B8: JUNTAS | F8: TOTAL | G8: ACCESIBILIDAD SIN EXCLUSIÓN | H8: ACCIÓN CIUDADANA | I8: COALICIÓN UNION LIBERIANA | J8: INTEGRACIÓN NACIONAL | K8: LIBERACIÓN NACIONAL | L8: MOVIMIENTO LIBERTARIO | M8: ÚNICO ABANGAREÑO | N8: UNIDAD SOCIAL CRISTIANA
A10: GUANACASTE | B10: 471 | C10: 203614 | D10: 81513 | E10: =+D10/C10*100 -> 40.03310185 | F10: 79626 | G10: 5713 | H10: 14440 | I10: 1234 | J10: 3392 | K10: 32162 | L10: 8024 | M10: 1090 | N10: 13571 | O10: 1507 | P10: 380 | Q10: =+C10-D10 -> 122101 | R10: =+Q10/C10*100 -> 59.96689815
A11: CANTÓN 1 LIBERIA | B11: 66 | C11: 37797 | D11: 10888 | E11: =+D11/C11*100 -> 28.80651904 | F11: 10694 | G11: 4279 | H11: 1522 | I11: 1234 | J11: 0 | K11: 3659 | L11: 0 | M11: 0 | N11: 0 | O11: 156 | P11: 38 | Q11: =+C11-D11 -> 26909 | R11: =+Q11/C11*100 -> 71.19348096
A12: LIBERIA | B12: 53 | C12: 32268 | D12: 8767 | E12: 27.16933185 | F12: 8641 | G12: 3599 | H12: 1212 | I12: 1042 | J12: 0 | K12: 2788 | L12: 0 | M12: 0 | N12: 0 | O12: 98 | P12: 28 | Q12: 23501 | R12: 72.83066815
A13: CAÑAS DULCES | B13: 5 | C13: 1875 | D13: 866 | E13: 46.18666667 | F13: 839 | G13: 368 | H13: 96 | I13: 69 | J13: 0 | K13: 306 | L13: 0 | M13: 0 | N13: 0 | O13: 24 | P13: 3 | Q13: 1009 | R13: 53.81333333
A14: MAYORGA | B14: 2 | C14: 873 | D14: 314 | E14: 35.96792669 | F14: 299 | G14: 31 | H14: 87 | I14: 44 | J14: 0 | K14: 137 | L14: 0 | M14: 0 | N14: 0 | O14: 11 | P14: 4 | Q14: 559 | R14: 64.03207331
A15: NACASCOLO | B15: 2 | C15: 1373 | D15: 424 | E15: 30.88128186 | F15: 417 | G15: 112 | H15: 37 | I15: 42 | J15: 0 | K15: 226 | L15: 0 | M15: 0 | N15: 0 | O15: 6 | P15: 1 | Q15: 949 | R15: 69.11871814
A16: CURUBANDÉ | B16: 4 | C16: 1408 | D16: 517 | E16: 36.71875 | F16: 498 | G16: 169 | H16: 90 | I16: 37 | J16: 0 | K16: 202 | L16: 0 | M16: 0 | N16: 0 | O16: 17 | P16: 2 | Q16: 891 | R16: 63.28125
A17: CANTÓN 2 NICOYA | B17: 92 | C17: 35669 | D17: 12936 | E17: 36.26678629 | F17: 12600 | G17: 689 | H17: 1166 | I17: 0 | J17: 0 | K17: 5609 | L17: 2442 | M17: 0 | N17: 2694 | O17: 288 | P17: 48 | Q17: 22733 | R17: 63.73321371
A18: NICOYA | B18: 38 | C18: 18410 | D18: 6141 | E18: 33.35687127 | F18: 6010 | G18: 427 | H18: 653 | I18: 0 | J18: 0 | K18: 2030 | L18: 1809 | M18: 0 | N18: 1091 | O18: 111 | P18: 20 | Q18: 12269 | R18: 66.64312873
A19: MANSIÓN | B19: 10 | C19: 3678 | D19: 1494 | E19: 40.61990212 | F19: 1464 | G19: 111 | H19: 96 | I19: 0 | J19: 0 | K19: 837 | L19: 98 | M19: 0 | N19: 322 | O19: 29 | P19: 1 | Q19: 2184 | R19: 59.38009788
A20: SAN ANTONIO | B20: 16 | C20: 5099 | D20: 2026 | E20: 39.73328104 | F20: 1972 | G20: 63 | H20: 84 | I20: 0 | J20: 0 | K20: 1264 | L20: 269 | M20: 0 | N20: 292 | O20: 46 | P20: 8 | Q20: 3073 | R20: 60.26671896
A21: QUEBRADA HONDA | B21: 6 | C21: 2038 | D21: 889 | E21: 43.62119725 | F21: 870 | G21: 34 | H21: 113 | I21: 0 | J21: 0 | K21: 344 | L21: 169 | M21: 0 | N21: 210 | O21: 15 | P21: 4 | Q21: 1149 | R21: 56.37880275
A22: SÁMARA | B22: 7 | C22: 2130 | D22: 625 | E22: 29.342723 | F22: 607 | G22: 13 | H22: 64 | I22: 0 | J22: 0 | K22: 344 | L22: 21 | M22: 0 | N22: 165 | O22: 15 | P22: 3 | Q22: 1505 | R22: 70.657277
A23: NOSARA | B23: 7 | C23: 2546 | D23: 783 | E23: 30.75412412 | F23: 733 | G23: 25 | H23: 87 | I23: 0 | J23: 0 | K23: 395 | L23: 56 | M23: 0 | N23: 170 | O23: 48 | P23: 2 | Q23: 1763 | R23: 69.24587588
A24: BELÉN DE NOSARITA | B24: 8 | C24: 1768 | D24: 978 | E24: 55.31674208 | F24: 944 | G24: 16 | H24: 69 | I24: 0 | J24: 0 | K24: 395 | L24: 20 | M24: 0 | N24: 444 | O24: 24 | P24: 10 | Q24: 790 | R24: 44.68325792
A25: CANTÓN 3 SANTA CRUZ | B25: 72 | C25: 34567 | D25: 13200 | E25: 38.18670987 | F25: 12773 | G25: 386 | H25: 1985 | I25: 0 | J25: 1921 | K25: 4114 | L25: 1261 | M25: 0 | N25: 3106 | O25: 320 | P25: 107 | Q25: 21367 | R25: 61.81329013
A26: SANTA CRUZ | B26: 27 | C26: 15206 | D26: 5200 | E26: 34.19702749 | F26: 5074 | G26: 223 | H26: 913 | I26: 0 | J26: 948 | K26: 1224 | L26: 522 | M26: 0 | N26: 1244 | O26: 98 | P26: 28 | Q26: 10006 | R26: 65.80297251
A27: BOLSÓN | B27: 3 | C27: 1237 | D27: 643 | E27: 51.98059822 | F27: 624 | G27: 29 | H27: 112 | I27: 0 | J27: 67 | K27: 264 | L27: 49 | M27: 0 | N27: 103 | O27: 15 | P27: 4 | Q27: 594 | R27: 48.01940178
A28: VEINTISIETE DE ABRIL | B28: 11 | C28: 4425 | D28: 1674 | E28: 37.83050847 | F28: 1615 | G28: 34 | H28: 113 | I28: 0 | J28: 82 | K28: 617 | L28: 138 | M28: 0 | N28: 631 | O28: 45 | P28: 14 | Q28: 2751 | R28: 62.16949153
A29: TEMPATE | B29: 5 | C29: 2621 | D29: 1014 | E29: 38.68752385 | F29: 996 | G29: 3 | H29: 318 | I29: 0 | J29: 26 | K29: 341 | L29: 131 | M29: 0 | N29: 177 | O29: 13 | P29: 5 | Q29: 1607 | R29: 61.31247615
A30: CARTAGENA | B30: 5 | C30: 2539 | D30: 920 | E30: 36.23473809 | F30: 891 | G30: 49 | H30: 206 | I30: 0 | J30: 48 | K30: 320 | L30: 65 | M30: 0 | N30: 203 | O30: 23 | P30: 6 | Q30: 1619 | R30: 63.76526191
A31: CUAJINIQUIL | B31: 6 | C31: 1181 | D31: 695 | E31: 58.84843353 | F31: 649 | G31: 6 | H31: 91 | I31: 0 | J31: 45 | K31: 248 | L31: 114 | M31: 0 | N31: 145 | O31: 26 | P31: 20 | Q31: 486 | R31: 41.15156647
A32: DIRIÁ | B32: 6 | C32: 2768 | D32: 1444 | E32: 52.16763006 | F32: 1390 | G32: 16 | H32: 84 | I32: 0 | J32: 614 | K32: 411 | L32: 105 | M32: 0 | N32: 160 | O32: 44 | P32: 10 | Q32: 1324 | R32: 47.83236994
A33: CABO VELAS | B33: 3 | C33: 1628 | D33: 578 | E33: 35.5036855 | F33: 562 | G33: 1 | H33: 49 | I33: 0 | J33: 46 | K33: 330 | L33: 34 | M33: 0 | N33: 102 | O33: 10 | P33: 6 | Q33: 1050 | R33: 64.4963145
A34: TAMARINDO | B34: 6 | C34: 2962 | D34: 1032 | E34: 34.84132343 | F34: 972 | G34: 25 | H34: 99 | I34: 0 | J34: 45 | K34: 359 | L34: 103 | M34: 0 | N34: 341 | O34: 46 | P34: 14 | Q34: 1930 | R34: 65.15867657
A35: CANTÓN 4 BAGACES | B35: 27 | C35: 11245 | D35: 4011 | E35: 35.66918631 | F35: 3920 | G35: 0 | H35: 1081 | I35: 0 | J35: 0 | K35: 2630 | L35: 209 | M35: 0 | N35: 0 | O35: 76 | P35: 15 | Q35: 7234 | R35: 64.33081369
A36: BAGACES | B36: 15 | C36: 6621 | D36: 2328 | E36: 35.16085184 | F36: 2274 | G36: 0 | H36: 409 | I36: 0 | J36: 0 | K36: 1712 | L36: 153 | M36: 0 | N36: 0 | O36: 42 | P36: 12 | Q36: 4293 | R36: 64.83914816
A37: LA FORTUNA | B37: 5 | C37: 1812 | D37: 611 | E37: 33.7196468 | F37: 602 | G37: 0 | H37: 237 | I37: 0 | J37: 0 | K37: 321 | L37: 44 | M37: 0 | N37: 0 | O37: 9 | P37: 0 | Q37: 1201 | R37: 66.2803532
A38: MOGOTE | B38: 5 | C38: 2149 | D38: 785 | E38: 36.52861796 | F38: 764 | G38: 0 | H38: 341 | I38: 0 | J38: 0 | K38: 415 | L38: 8 | M38: 0 | N38: 0 | O38: 20 | P38: 1 | Q38: 1364 | R38: 63.47138204
A39: RÍO NARANJO | B39: 2 | C39: 663 | D39: 287 | E39: 43.28808446 | F39: 280 | G39: 0 | H39: 94 | I39: 0 | J39: 0 | K39: 182 | L39: 4 | M39: 0 | N39: 0 | O39: 5 | P39: 2 | Q39: 376 | R39: 56.71191554
A40: CANTÓN 5 CARRILLO | B40: 42 | C40: 20050 | D40: 8832 | E40: 44.04987531 | F40: 8631 | G40: 0 | H40: 106 | I40: 0 | J40: 0 | K40: 3496 | L40: 1713 | M40: 0 | N40: 3316 | O40: 160 | P40: 41 | Q40: 11218 | R40: 55.95012469
A41: FILADELFIA | B41: 9 | C41: 5131 | D41: 2776 | E41: 54.10251413 | F41: 2722 | G41: 0 | H41: 36 | I41: 0 | J41: 0 | K41: 1376 | L41: 146 | M41: 0 | N41: 1164 | O41: 42 | P41: 12 | Q41: 2355 | R41: 45.89748587
A42: PALMIRA | B42: 6 | C42: 2741 | D42: 1266 | E42: 46.1875228 | F42: 1223 | G42: 0 | H42: 15 | I42: 0 | J42: 0 | K42: 506 | L42: 118 | M42: 0 | N42: 584 | O42: 38 | P42: 5 | Q42: 1475 | R42: 53.8124772
A43: SARDINAL | B43: 16 | C43: 7354 | D43: 2783 | E43: 37.84335056 | F43: 2733 | G43: 0 | H43: 39 | I43: 0 | J43: 0 | K43: 766 | L43: 1218 | M43: 0 | N43: 710 | O43: 44 | P43: 6 | Q43: 4571 | R43: 62.15664944
A44: BELÉN | B44: 11 | C44: 4824 | D44: 2007 | E44: 41.60447761 | F44: 1953 | G44: 0 | H44: 16 | I44: 0 | J44: 0 | K44: 848 | L44: 231 | M44: 0 | N44: 858 | O44: 36 | P44: 18 | Q44: 2817 | R44: 58.39552239
A45: CANTÓN 6 CAÑAS | B45: 34 | C45: 17344 | D45: 6226 | E45: 35.89714022 | F45: 6132 | G45: 0 | H45: 3631 | I45: 0 | J45: 0 | K45: 2501 | L45: 0 | M45: 0 | N45: 0 | O45: 69 | P45: 25 | Q45: 11118 | R45: 64.10285978
A46: CAÑAS | B46: 24 | C46: 13979 | D46: 4695 | E46: 33.58609343 | F46: 4623 | G46: 0 | H46: 2892 | I46: 0 | J46: 0 | K46: 1731 | L46: 0 | M46: 0 | N46: 0 | O46: 50 | P46: 22 | Q46: 9284 | R46: 66.41390657
A47: PALMIRA | B47: 2 | C47: 634 | D47: 345 | E47: 54.41640379 | F47: 338 | G47: 0 | H47: 172 | I47: 0 | J47: 0 | K47: 166 | L47: 0 | M47: 0 | N47: 0 | O47: 6 | P47: 1 | Q47: 289 | R47: 45.58359621
A48: SAN MIGUEL | B48: 4 | C48: 1119 | D48: 483 | E48: 43.16353887 | F48: 479 | G48: 0 | H48: 251 | I48: 0 | J48: 0 | K48: 228 | L48: 0 | M48: 0 | N48: 0 | O48: 2 | P48: 2 | Q48: 636 | R48: 56.83646113
A49: BEBEDERO | B49: 2 | C49: 1155 | D49: 365 | E49: 31.6017316 | F49: 359 | G49: 0 | H49: 130 | I49: 0 | J49: 0 | K49: 229 | L49: 0 | M49: 0 | N49: 0 | O49: 6 | P49: 0 | Q49: 790 | R49: 68.3982684
A50: POROZAL | B50: 2 | C50: 457 | D50: 338 | E50: 73.96061269 | F50: 333 | G50: 0 | H50: 186 | I50: 0 | J50: 0 | K50: 147 | L50: 0 | M50: 0 | N50: 0 | O50: 5 | P50: 0 | Q50: 119 | R50: 26.03938731
A51: CANTÓN 7 ABANGARES | B51: 34 | C51: 11763 | D51: 6482 | E51: 55.10499022 | F51: 6308 | G51: 0 | H51: 2136 | I51: 0 | J51: 0 | K51: 3082 | L51: 0 | M51: 1090 | N51: 0 | O51: 137 | P51: 37 | Q51: 5281 | R51: 44.89500978
A52: LAS JUNTAS | B52: 14 | C52: 6277 | D52: 3261 | E52: 51.95156922 | F52: 3184 | G52: 0 | H52: 956 | I52: 0 | J52: 0 | K52: 1719 | L52: 0 | M52: 509 | N52: 0 | O52: 57 | P52: 20 | Q52: 3016 | R52: 48.04843078
A53: SIERRA | B53: 7 | C53: 1413 | D53: 719 | E53: 50.8846426 | F53: 700 | G53: 0 | H53: 234 | I53: 0 | J53: 0 | K53: 402 | L53: 0 | M53: 64 | N53: 0 | O53: 15 | P53: 4 | Q53: 694 | R53: 49.1153574
A54: SAN JUAN | B54: 4 | C54: 1194 | D54: 614 | E54: 51.42378559 | F54: 592 | G54: 0 | H54: 123 | I54: 0 | J54: 0 | K54: 330 | L54: 0 | M54: 139 | N54: 0 | O54: 20 | P54: 2 | Q54: 580 | R54: 48.57621441
A55: COLORADO | B55: 9 | C55: 2879 | D55: 1888 | E55: 65.57832581 | F55: 1832 | G55: 0 | H55: 823 | I55: 0 | J55: 0 | K55: 631 | L55: 0 | M55: 378 | N55: 0 | O55: 45 | P55: 11 | Q55: 991 | R55: 34.42167419
A56: CANTÓN 8 TILARÁN | B56: 35 | C56: 13309 | D56: 5994 | E56: 45.03719288 | F56: 5861 | G56: 359 | H56: 799 | I56: 0 | J56: 0 | K56: 2237 | L56: 0 | M56: 0 | N56: 2466 | O56: 114 | P56: 19 | Q56: 7315 | R56: 54.96280712
A57: TILARÁN | B57: 12 | C57: 6395 | D57: 2883 | E57: 45.08209539 | F57: 2831 | G57: 246 | H57: 503 | I57: 0 | J57: 0 | K57: 896 | L57: 0 | M57: 0 | N57: 1186 | O57: 43 | P57: 9 | Q57: 3512 | R57: 54.91790461
A58: QUEBRADA GRANDE | B58: 6 | C58: 1716 | D58: 797 | E58: 46.44522145 | F58: 776 | G58: 19 | H58: 63 | I58: 0 | J58: 0 | K58: 350 | L58: 0 | M58: 0 | N58: 344 | O58: 18 | P58: 3 | Q58: 919 | R58: 53.55477855
A59: TRONADORA | B59: 4 | C59: 1103 | D59: 457 | E59: 41.43245694 | F59: 450 | G59: 12 | H59: 85 | I59: 0 | J59: 0 | K59: 134 | L59: 0 | M59: 0 | N59: 219 | O59: 6 | P59: 1 | Q59: 646 | R59: 58.56754306
A60: SANTA ROSA | B60: 3 | C60: 1083 | D60: 353 | E60: 32.59464451 | F60: 348 | G60: 11 | H60: 73 | I60: 0 | J60: 0 | K60: 143 | L60: 0 | M60: 0 | N60: 121 | O60: 5 | P60: 0 | Q60: 730 | R60: 67.40535549
A61: LÍBANO | B61: 3 | C61: 598 | D61: 378 | E61: 63.21070234 | F61: 369 | G61: 63 | H61: 16 | I61: 0 | J61: 0 | K61: 116 | L61: 0 | M61: 0 | N61: 174 | O61: 9 | P61: 0 | Q61: 220 | R61: 36.78929766
A62: TIERRAS MORENAS | B62: 3 | C62: 935 | D62: 407 | E62: 43.52941176 | F62: 394 | G62: 7 | H62: 47 | I62: 0 | J62: 0 | K62: 192 | L62: 0 | M62: 0 | N62: 148 | O62: 9 | P62: 4 | Q62: 528 | R62: 56.47058824
A63: ARENAL | B63: 4 | C63: 1479 | D63: 719 | E63: 48.61392833 | F63: 693 | G63: 1 | H63: 12 | I63: 0 | J63: 0 | K63: 406 | L63: 0 | M63: 0 | N63: 274 | O63: 24 | P63: 2 | Q63: 760 | R63: 51.38607167
A64: CANTÓN 9 NANDAYURE | B64: 28 | C64: 7489 | D64: 4882 | E64: 65.18894378 | F64: 4770 | G64: 0 | H64: 0 | I64: 0 | J64: 1471 | K64: 1033 | L64: 2266 | M64: 0 | N64: 0 | O64: 91 | P64: 21 | Q64: 2607 | R64: 34.81105622
A65: CARMONA | B65: 3 | C65: 1668 | D65: 1224 | E65: 73.38129496 | F65: 1211 | G65: 0 | H65: 0 | I65: 0 | J65: 256 | K65: 183 | L65: 772 | M65: 0 | N65: 0 | O65: 8 | P65: 5 | Q65: 444 | R65: 26.61870504
A66: SANTA RITA | B66: 4 | C66: 1134 | D66: 789 | E66: 69.57671958 | F66: 780 | G66: 0 | H66: 0 | I66: 0 | J66: 120 | K66: 137 | L66: 523 | M66: 0 | N66: 0 | O66: 6 | P66: 3 | Q66: 345 | R66: 30.42328042
A67: ZAPOTAL | B67: 5 | C67: 870 | D67: 575 | E67: 66.09195402 | F67: 556 | G67: 0 | H67: 0 | I67: 0 | J67: 176 | K67: 151 | L67: 229 | M67: 0 | N67: 0 | O67: 18 | P67: 1 | Q67: 295 | R67: 33.90804598
A68: SAN PABLO | B68: 3 | C68: 1160 | D68: 741 | E68: 63.87931034 | F68: 720 | G68: 0 | H68: 0 | I68: 0 | J68: 207 | K68: 227 | L68: 286 | M68: 0 | N68: 0 | O68: 17 | P68: 4 | Q68: 419 | R68: 36.12068966
A69: PORVENIR | B69: 4 | C69: 724 | D69: 503 | E69: 69.47513812 | F69: 490 | G69: 0 | H69: 0 | I69: 0 | J69: 272 | K69: 54 | L69: 164 | M69: 0 | N69: 0 | O69: 10 | P69: 3 | Q69: 221 | R69: 30.52486188
A70: BEJUCO | B70: 9 | C70: 1933 | D70: 1050 | E70: 54.31971029 | F70: 1013 | G70: 0 | H70: 0 | I70: 0 | J70: 440 | K70: 281 | L70: 292 | M70: 0 | N70: 0 | O70: 32 | P70: 5 | Q70: 883 | R70: 45.68028971
A71: CANTÓN 10 LA CRUZ | B71: 24 | C71: 9262 | D71: 4442 | E71: 47.95940402 | F71: 4382 | G71: 0 | H71: 0 | I71: 0 | J71: 0 | K71: 2393 | L71: 0 | M71: 0 | N71: 1989 | O71: 44 | P71: 16 | Q71: 4820 | R71: 52.04059598
A72: LA CRUZ | B72: 11 | C72: 5144 | D72: 2702 | E72: 52.52721617 | F72: 2668 | G72: 0 | H72: 0 | I72: 0 | J72: 0 | K72: 1473 | L72: 0 | M72: 0 | N72: 1195 | O72: 22 | P72: 12 | Q72: 2442 | R72: 47.47278383
A73: SANTA CECILIA | B73: 8 | C73: 2522 | D73: 810 | E73: 32.11736717 | F73: 795 | G73: 0 | H73: 0 | I73: 0 | J73: 0 | K73: 448 | L73: 0 | M73: 0 | N73: 347 | O73: 13 | P73: 2 | Q73: 1712 | R73: 67.88263283
A74: LA GARITA | B74: 3 | C74: 570 | D74: 295 | E74: 51.75438596 | F74: 289 | G74: 0 | H74: 0 | I74: 0 | J74: 0 | K74: 184 | L74: 0 | M74: 0 | N74: 105 | O74: 6 | P74: 0 | Q74: 275 | R74: 48.24561404
A75: SANTA ELENA | B75: 2 | C75: 1026 | D75: 635 | E75: =+D75/C75*100 -> 61.89083821 | F75: 630 | G75: 0 | H75: 0 | I75: 0 | J75: 0 | K75: 288 | L75: 0 | M75: 0 | N75: 342 | O75: 3 | P75: 2 | Q75: =+C75-D75 -> 391 | R75: =+Q75/C75*100 -> 38.10916179
A76: CANTÓN 11 HOJANCHA | B76: 17 | C76: 5119 | D76: 3620 | E76: 70.7169369 | F76: 3555 | G76: 0 | H76: 2014 | I76: 0 | J76: 0 | K76: 1408 | L76: 133 | M76: 0 | N76: 0 | O76: 52 | P76: 13 | Q76: 1499 | R76: 29.2830631
A77: HOJANCHA | B77: 7 | C77: 3164 | D77: 2248 | E77: 71.04930468 | F77: 2221 | G77: 0 | H77: 1378 | I77: 0 | J77: 0 | K77: 762 | L77: 81 | M77: 0 | N77: 0 | O77: 23 | P77: 4 | Q77: 916 | R77: 28.95069532
A78: MONTE ROMO | B78: 3 | C78: 499 | D78: 379 | E78: 75.95190381 | F78: 373 | G78: 0 | H78: 233 | I78: 0 | J78: 0 | K78: 128 | L78: 12 | M78: 0 | N78: 0 | O78: 6 | P78: 0 | Q78: 120 | R78: 24.04809619
A79: PUERTO CARRILLO | B79: 5 | C79: 985 | D79: 647 | E79: 65.68527919 | F79: 624 | G79: 0 | H79: 277 | I79: 0 | J79: 0 | K79: 312 | L79: 35 | M79: 0 | N79: 0 | O79: 18 | P79: 5 | Q79: 338 | R79: 34.31472081
A80: HUACAS | B80: 2 | C80: 471 | D80: 346 | E80: 73.46072187 | F80: 337 | G80: 0 | H80: 126 | I80: 0 | J80: 0 | K80: 206 | L80: 5 | M80: 0 | N80: 0 | O80: 5 | P80: 4 | Q80: 125 | R80: 26.53927813
A82: FUENTE: Tribunal Supremo de Elecciones.

Sheet 2.14
A2: CUADRO 2.14 PROVINCIA PUNTARENAS: JUNTAS, ELECTORADO, PARTICIPACIÓN, VOTOS POR PARTIDO, NULOS, BLANCOS, Y ABSTENCIONISMO PARA ALCALDÍAS
A3: SEGÚN CANTÓN Y DISTRITO ADMINISTRATIVO, ELECCIONES MUNICIPALES DICIEMBRE 2010
A5: CANTÓN Y DISTRITO ADMINISTRATIVO | B5: JUNTAS | C5: ELECTORADO | D5: VOTOS RECIBIDOS | V5: ABSTENCIONISMO
D6: VOTOS RECIBIDOS | E6: % PARTICIPACIÓN | F6: VOTOS POR PARTIDO | T6: VOTOS NULOS | U6: VOTOS BLANCOS | V6: ABSOLUTO | W6: %
B7: JUNTAS | F7: TOTAL | G7: ACCESIBILIDAD SIN EXCLUSIÓN | H7: ACCIÓN CIUDADANA | I7: ACCIÓN QUEPEÑA | J7: ALIANZA PATRIÓTICA | K7: AUTÓNOMO OROMONTANO | L7: GARABITO ECOLÓGICO | M7: INTEGRACIÓN NACIONAL | N7: LIBERACIÓN NACIONAL | O7: MOVIMIENTO LIBERTARIO | P7: ORGANIZACIÓN LABORISTA DE AGUIRRE | Q7: ORGANIZACIÓN SOCIAL ACTIVA | R7: RENOVACIÓN COSTARRICENSE | S7: UNIDAD SOCIAL CRISTIANA
A9: PUNTARENAS | B9: 602 | C9: 265197 | D9: 88825 | E9: =+D9/C9*100 -> 33.49396863 | F9: 86240 | G9: 2493 | H9: 5624 | I9: 278 | J9: 1295 | K9: 835 | L9: 884 | M9: 2604 | N9: 36871 | O9: 11036 | P9: 52 | Q9: 960 | R9: 4760 | S9: 18548 | T9: 1995 | U9: 590 | V9: =+C9-D9 -> 176372 | W9: =+V9/C9*100 -> 66.50603137
A10: CANTÓN 1 PUNTARENAS | B10: 163 | C10: 77238 | D10: 22289 | E10: =+D10/C10*100 -> 28.85755716 | F10: 21564 | G10: 1202 | H10: 0 | I10: 0 | J10: 0 | K10: 0 | L10: 0 | M10: 0 | N10: 9752 | O10: 3743 | P10: 0 | Q10: 0 | R10: 749 | S10: 6118 | T10: 489 | U10: 236 | V10: =+C10-D10 -> 54949 | W10: =+V10/C10*100 -> 71.14244284
A11: PUNTARENAS | B11: 13 | C11: 7995 | D11: 2384 | E11: 29.81863665 | F11: 2343 | G11: 72 | H11: 0 | I11: 0 | J11: 0 | K11: 0 | L11: 0 | M11: 0 | N11: 1005 | O11: 296 | P11: 0 | Q11: 0 | R11: 105 | S11: 865 | T11: 21 | U11: 20 | V11: 5611 | W11: 70.18136335
A12: PITAHAYA | B12: 4 | C12: 1141 | D12: 408 | E12: 35.75810692 | F12: 387 | G12: 5 | H12: 0 | I12: 0 | J12: 0 | K12: 0 | L12: 0 | M12: 0 | N12: 149 | O12: 63 | P12: 0 | Q12: 0 | R12: 12 | S12: 158 | T12: 13 | U12: 8 | V12: 733 | W12: 64.24189308
A13: CHOMES | B13: 7 | C13: 3144 | D13: 742 | E13: 23.60050891 | F13: 709 | G13: 29 | H13: 0 | I13: 0 | J13: 0 | K13: 0 | L13: 0 | M13: 0 | N13: 194 | O13: 252 | P13: 0 | Q13: 0 | R13: 44 | S13: 190 | T13: 24 | U13: 9 | V13: 2402 | W13: 76.39949109
A14: LEPANTO | B14: 22 | C14: 7068 | D14: 2940 | E14: 41.5959253 | F14: 2809 | G14: 311 | H14: 0 | I14: 0 | J14: 0 | K14: 0 | L14: 0 | M14: 0 | N14: 956 | O14: 863 | P14: 0 | Q14: 0 | R14: 40 | S14: 639 | T14: 63 | U14: 68 | V14: 4128 | W14: 58.4040747
A15: PAQUERA | B15: 14 | C15: 4031 | D15: 1982 | E15: 49.16894071 | F15: 1926 | G15: 72 | H15: 0 | I15: 0 | J15: 0 | K15: 0 | L15: 0 | M15: 0 | N15: 1350 | O15: 343 | P15: 0 | Q15: 0 | R15: 17 | S15: 144 | T15: 44 | U15: 12 | V15: 2049 | W15: 50.83105929
A16: MANZANILLO | B16: 5 | C16: 2142 | D16: 718 | E16: 33.5200747 | F16: 669 | G16: 17 | H16: 0 | I16: 0 | J16: 0 | K16: 0 | L16: 0 | M16: 0 | N16: 251 | O16: 114 | P16: 0 | Q16: 0 | R16: 65 | S16: 222 | T16: 35 | U16: 14 | V16: 1424 | W16: 66.4799253
A17: GUACIMAL | B17: 2 | C17: 651 | D17: 291 | E17: 44.70046083 | F17: 287 | G17: 2 | H17: 0 | I17: 0 | J17: 0 | K17: 0 | L17: 0 | M17: 0 | N17: 120 | O17: 24 | P17: 0 | Q17: 0 | R17: 16 | S17: 125 | T17: 3 | U17: 1 | V17: 360 | W17: 55.29953917
A18: BARRANCA | B18: 32 | C18: 19571 | D18: 3879 | E18: 19.82014205 | F18: 3782 | G18: 194 | H18: 0 | I18: 0 | J18: 0 | K18: 0 | L18: 0 | M18: 0 | N18: 1758 | O18: 506 | P18: 0 | Q18: 0 | R18: 135 | S18: 1189 | T18: 75 | U18: 22 | V18: 15692 | W18: 80.17985795
A19: MONTE VERDE | B19: 5 | C19: 2692 | D19: 1293 | E19: 48.03120357 | F19: 1256 | G19: 21 | H19: 0 | I19: 0 | J19: 0 | K19: 0 | L19: 0 | M19: 0 | N19: 664 | O19: 325 | P19: 0 | Q19: 0 | R19: 21 | S19: 225 | T19: 24 | U19: 13 | V19: 1399 | W19: 51.96879643
A20: ISLA DEL COCO | B20: 1 | C20: 31 | D20: 4 | E20: 12.90322581 | F20: 4 | G20: 1 | H20: 0 | I20: 0 | J20: 0 | K20: 0 | L20: 0 | M20: 0 | N20: 1 | O20: 0 | P20: 0 | Q20: 0 | R20: 2 | S20: 0 | T20: 0 | U20: 0 | V20: 27 | W20: 87.09677419
A21: CÓBANO | B21: 13 | C21: 3910 | D21: 1985 | E21: 50.76726343 | F21: 1865 | G21: 228 | H21: 0 | I21: 0 | J21: 0 | K21: 0 | L21: 0 | M21: 0 | N21: 1005 | O21: 184 | P21: 0 | Q21: 0 | R21: 29 | S21: 419 | T21: 80 | U21: 40 | V21: 1925 | W21: 49.23273657
A22: CHACARITA | B22: 19 | C22: 12368 | D22: 2579 | E22: 20.85219922 | F22: 2518 | G22: 76 | H22: 0 | I22: 0 | J22: 0 | K22: 0 | L22: 0 | M22: 0 | N22: 1007 | O22: 383 | P22: 0 | Q22: 0 | R22: 129 | S22: 923 | T22: 44 | U22: 17 | V22: 9789 | W22: 79.14780078
A23: CHIRA | B23: 3 | C23: 1064 | D23: 405 | E23: 38.06390977 | F23: 386 | G23: 54 | H23: 0 | I23: 0 | J23: 0 | K23: 0 | L23: 0 | M23: 0 | N23: 147 | O23: 35 | P23: 0 | Q23: 0 | R23: 9 | S23: 141 | T23: 17 | U23: 2 | V23: 659 | W23: 61.93609023
A24: ACAPULCO | B24: 3 | C24: 911 | D24: 343 | E24: 37.65093304 | F24: 336 | G24: 10 | H24: 0 | I24: 0 | J24: 0 | K24: 0 | L24: 0 | M24: 0 | N24: 82 | O24: 58 | P24: 0 | Q24: 0 | R24: 34 | S24: 152 | T24: 7 | U24: 0 | V24: 568 | W24: 62.34906696
A25: EL ROBLE | B25: 17 | C25: 9961 | D25: 1983 | E25: 19.9076398 | F25: 1950 | G25: 110 | H25: 0 | I25: 0 | J25: 0 | K25: 0 | L25: 0 | M25: 0 | N25: 943 | O25: 267 | P25: 0 | Q25: 0 | R25: 91 | S25: 539 | T25: 28 | U25: 5 | V25: 7978 | W25: 80.0923602
A26: ARANCIBIA | B26: 3 | C26: 558 | D26: 353 | E26: 63.26164875 | F26: 337 | G26: 0 | H26: 0 | I26: 0 | J26: 0 | K26: 0 | L26: 0 | M26: 0 | N26: 120 | O26: 30 | P26: 0 | Q26: 0 | R26: 0 | S26: 187 | T26: 11 | U26: 5 | V26: 205 | W26: 36.73835125
A27: CANTÓN 2 ESPARZA | B27: 38 | C27: 18825 | D27: 8135 | E27: 43.21381142 | F27: 8049 | G27: 0 | H27: 544 | I27: 0 | J27: 0 | K27: 0 | L27: 0 | M27: 0 | N27: 3566 | O27: 306 | P27: 0 | Q27: 0 | R27: 609 | S27: 3024 | T27: 70 | U27: 16 | V27: 10690 | W27: 56.78618858
A28: ESPÍRITU SANTO | B28: 21 | C28: 12832 | D28: 5396 | E28: =+D28/C28*100 -> 42.05112219 | F28: 5347 | G28: 0 | H28: 368 | I28: 0 | J28: 0 | K28: 0 | L28: 0 | M28: 0 | N28: 2210 | O28: 220 | P28: 0 | Q28: 0 | R28: 482 | S28: 2067 | T28: 42 | U28: 7 | V28: 7436 | W28: 57.94887781
A29: SAN JUAN GRANDE | B29: 6 | C29: 2724 | D29: 1083 | E29: 39.75770925 | F29: 1067 | G29: 0 | H29: 83 | I29: 0 | J29: 0 | K29: 0 | L29: 0 | M29: 0 | N29: 453 | O29: 30 | P29: 0 | Q29: 0 | R29: 43 | S29: 458 | T29: 15 | U29: 1 | V29: 1641 | W29: 60.24229075
A30: MACACONA | B30: 4 | C30: 1845 | D30: 818 | E30: 44.33604336 | F30: 812 | G30: 0 | H30: 45 | I30: 0 | J30: 0 | K30: 0 | L30: 0 | M30: 0 | N30: 455 | O30: 33 | P30: 0 | Q30: 0 | R30: 54 | S30: 225 | T30: 4 | U30: 2 | V30: 1027 | W30: 55.66395664
A31: SAN RAFAEL | B31: 3 | C31: 857 | D31: 515 | E31: 60.09334889 | F31: 506 | G31: 0 | H31: 30 | I31: 0 | J31: 0 | K31: 0 | L31: 0 | M31: 0 | N31: 287 | O31: 22 | P31: 0 | Q31: 0 | R31: 12 | S31: 155 | T31: 7 | U31: 2 | V31: 342 | W31: 39.90665111
A32: SAN JERÓNIMO | B32: 4 | C32: 567 | D32: 323 | E32: 56.9664903 | F32: 317 | G32: 0 | H32: 18 | I32: 0 | J32: 0 | K32: 0 | L32: 0 | M32: 0 | N32: 161 | O32: 1 | P32: 0 | Q32: 0 | R32: 18 | S32: 119 | T32: 2 | U32: 4 | V32: 244 | W32: 43.0335097
A33: CANTÓN 3 BUENOS AIRES | B33: 70 | C33: 27392 | D33: 8632 | E33: 31.51285047 | F33: 8395 | G33: 0 | H33: 0 | I33: 0 | J33: 0 | K33: 0 | L33: 0 | M33: 0 | N33: 4384 | O33: 2126 | P33: 0 | Q33: 0 | R33: 0 | S33: 1885 | T33: 190 | U33: 47 | V33: 18760 | W33: 68.48714953
A34: BUENOS AIRES | B34: 27 | C34: 13426 | D34: 3991 | E34: 29.72590496 | F34: 3887 | G34: 0 | H34: 0 | I34: 0 | J34: 0 | K34: 0 | L34: 0 | M34: 0 | N34: 1952 | O34: 1017 | P34: 0 | Q34: 0 | R34: 0 | S34: 918 | T34: 83 | U34: 21 | V34: 9435 | W34: 70.27409504
A35: VOLCÁN | B35: 5 | C35: 2231 | D35: 704 | E35: 31.55535634 | F35: 683 | G35: 0 | H35: 0 | I35: 0 | J35: 0 | K35: 0 | L35: 0 | M35: 0 | N35: 359 | O35: 217 | P35: 0 | Q35: 0 | R35: 0 | S35: 107 | T35: 18 | U35: 3 | V35: 1527 | W35: 68.44464366
A36: POTRERO GRANDE | B36: 10 | C36: 3322 | D36: 1189 | E36: 35.79169175 | F36: 1153 | G36: 0 | H36: 0 | I36: 0 | J36: 0 | K36: 0 | L36: 0 | M36: 0 | N36: 412 | O36: 325 | P36: 0 | Q36: 0 | R36: 0 | S36: 416 | T36: 27 | U36: 9 | V36: 2133 | W36: 64.20830825
A37: BORUCA | B37: 5 | C37: 1758 | D37: 386 | E37: 21.95676906 | F37: 373 | G37: 0 | H37: 0 | I37: 0 | J37: 0 | K37: 0 | L37: 0 | M37: 0 | N37: 130 | O37: 148 | P37: 0 | Q37: 0 | R37: 0 | S37: 95 | T37: 9 | U37: 4 | V37: 1372 | W37: 78.04323094
A38: PILAS | B38: 4 | C38: 1028 | D38: 380 | E38: 36.96498054 | F38: 363 | G38: 0 | H38: 0 | I38: 0 | J38: 0 | K38: 0 | L38: 0 | M38: 0 | N38: 176 | O38: 138 | P38: 0 | Q38: 0 | R38: 0 | S38: 49 | T38: 16 | U38: 1 | V38: 648 | W38: 63.03501946
A39: COLINAS | B39: 3 | C39: 958 | D39: 234 | E39: 24.42588727 | F39: 230 | G39: 0 | H39: 0 | I39: 0 | J39: 0 | K39: 0 | L39: 0 | M39: 0 | N39: 127 | O39: 53 | P39: 0 | Q39: 0 | R39: 0 | S39: 50 | T39: 4 | U39: 0 | V39: 724 | W39: 75.57411273
A40: CHÁNGUENA | B40: 8 | C40: 1410 | D40: 542 | E40: 38.43971631 | F40: 528 | G40: 0 | H40: 0 | I40: 0 | J40: 0 | K40: 0 | L40: 0 | M40: 0 | N40: 368 | O40: 112 | P40: 0 | Q40: 0 | R40: 0 | S40: 48 | T40: 11 | U40: 3 | V40: 868 | W40: 61.56028369
A41: BIOLLEY | B41: 4 | C41: 1467 | D41: 572 | E41: 38.99113838 | F41: 559 | G41: 0 | H41: 0 | I41: 0 | J41: 0 | K41: 0 | L41: 0 | M41: 0 | N41: 420 | O41: 82 | P41: 0 | Q41: 0 | R41: 0 | S41: 57 | T41: 12 | U41: 1 | V41: 895 | W41: 61.00886162
A42: BRUNKA | B42: 4 | C42: 1792 | D42: 634 | E42: 35.37946429 | F42: 619 | G42: 0 | H42: 0 | I42: 0 | J42: 0 | K42: 0 | L42: 0 | M42: 0 | N42: 440 | O42: 34 | P42: 0 | Q42: 0 | R42: 0 | S42: 145 | T42: 10 | U42: 5 | V42: 1158 | W42: 64.62053571
A43: CANTÓN 4 MONTES DE ORO | B43: 22 | C43: 8750 | D43: 4243 | E43: 48.49142857 | F43: 4150 | G43: 0 | H43: 940 | I43: 0 | J43: 0 | K43: 835 | L43: 0 | M43: 0 | N43: 2375 | O43: 0 | P43: 0 | Q43: 0 | R43: 0 | S43: 0 | T43: 72 | U43: 21 | V43: 4507 | W43: 51.50857143
A44: MIRAMAR | B44: 13 | C44: 5869 | D44: 2698 | E44: 45.9703527 | F44: 2639 | G44: 0 | H44: 641 | I44: 0 | J44: 0 | K44: 435 | L44: 0 | M44: 0 | N44: 1563 | O44: 0 | P44: 0 | Q44: 0 | R44: 0 | S44: 0 | T44: 46 | U44: 13 | V44: 3171 | W44: 54.0296473
A45: LA UNIÓN | B45: 4 | C45: 901 | D45: 537 | E45: 59.60044395 | F45: 523 | G45: 0 | H45: 101 | I45: 0 | J45: 0 | K45: 47 | L45: 0 | M45: 0 | N45: 375 | O45: 0 | P45: 0 | Q45: 0 | R45: 0 | S45: 0 | T45: 9 | U45: 5 | V45: 364 | W45: 40.39955605
A46: SAN ISIDRO | B46: 5 | C46: 1980 | D46: 1008 | E46: 50.90909091 | F46: 988 | G46: 0 | H46: 198 | I46: 0 | J46: 0 | K46: 353 | L46: 0 | M46: 0 | N46: 437 | O46: 0 | P46: 0 | Q46: 0 | R46: 0 | S46: 0 | T46: 17 | U46: 3 | V46: 972 | W46: 49.09090909
A47: CANTÓN 5 OSA | B47: 47 | C47: 18664 | D47: 7127 | E47: 38.18581226 | F47: 6887 | G47: 0 | H47: 0 | I47: 0 | J47: 1172 | K47: 0 | L47: 0 | M47: 0 | N47: 4032 | O47: 723 | P47: 0 | Q47: 960 | R47: 0 | S47: 0 | T47: 191 | U47: 49 | V47: 11537 | W47: 61.81418774
A48: PUERTO CORTÉS | B48: 11 | C48: 5176 | D48: 2199 | E48: 42.48454405 | F48: 2145 | G48: 0 | H48: 0 | I48: 0 | J48: 169 | K48: 0 | L48: 0 | M48: 0 | N48: 1579 | O48: 151 | P48: 0 | Q48: 246 | R48: 0 | S48: 0 | T48: 43 | U48: 11 | V48: 2977 | W48: 57.51545595
A49: PALMAR | B49: 14 | C49: 6418 | D49: 2321 | E49: 36.16391399 | F49: 2228 | G49: 0 | H49: 0 | I49: 0 | J49: 349 | K49: 0 | L49: 0 | M49: 0 | N49: 1166 | O49: 319 | P49: 0 | Q49: 394 | R49: 0 | S49: 0 | T49: 74 | U49: 19 | V49: 4097 | W49: 63.83608601
A50: SIERPE | B50: 12 | C50: 2621 | D50: 997 | E50: 38.03891644 | F50: 965 | G50: 0 | H50: 0 | I50: 0 | J50: 253 | K50: 0 | L50: 0 | M50: 0 | N50: 581 | O50: 64 | P50: 0 | Q50: 67 | R50: 0 | S50: 0 | T50: 27 | U50: 5 | V50: 1624 | W50: 61.96108356
A51: BAHÍA BALLENA | B51: 3 | C51: 1714 | D51: 636 | E51: 37.10618436 | F51: 614 | G51: 0 | H51: 0 | I51: 0 | J51: 179 | K51: 0 | L51: 0 | M51: 0 | N51: 309 | O51: 35 | P51: 0 | Q51: 91 | R51: 0 | S51: 0 | T51: 18 | U51: 4 | V51: 1078 | W51: 62.89381564
A52: PIEDRAS BLANCAS | B52: 7 | C52: 2735 | D52: 974 | E52: 35.61243144 | F52: 935 | G52: 0 | H52: 0 | I52: 0 | J52: 222 | K52: 0 | L52: 0 | M52: 0 | N52: 397 | O52: 154 | P52: 0 | Q52: 162 | R52: 0 | S52: 0 | T52: 29 | U52: 10 | V52: 1761 | W52: 64.38756856
A53: CANTÓN 6 AGUIRRE | B53: 37 | C53: 16693 | D53: 6833 | E53: 40.93332535 | F53: 6561 | G53: 1291 | H53: 0 | I53: 278 | J53: 0 | K53: 0 | L53: 0 | M53: 789 | N53: 2079 | O53: 516 | P53: 52 | Q53: 0 | R53: 695 | S53: 861 | T53: 232 | U53: 40 | V53: 9860 | W53: 59.06667465
A54: QUEPOS | B54: 23 | C54: 12577 | D54: 4950 | E54: 39.35755745 | F54: 4771 | G54: 998 | H54: 0 | I54: 222 | J54: 0 | K54: 0 | L54: 0 | M54: 591 | N54: 1547 | O54: 302 | P54: 40 | Q54: 0 | R54: 530 | S54: 541 | T54: 148 | U54: 31 | V54: 7627 | W54: 60.64244255
A55: SAVEGRE | B55: 9 | C55: 1949 | D55: 991 | E55: 50.84658799 | F55: 943 | G55: 134 | H55: 0 | I55: 33 | J55: 0 | K55: 0 | L55: 0 | M55: 84 | N55: 290 | O55: 90 | P55: 5 | Q55: 0 | R55: 68 | S55: 239 | T55: 46 | U55: 2 | V55: 958 | W55: 49.15341201
A56: NARANJITO | B56: 5 | C56: 2167 | D56: 892 | E56: 41.16289802 | F56: 847 | G56: 159 | H56: 0 | I56: 23 | J56: 0 | K56: 0 | L56: 0 | M56: 114 | N56: 242 | O56: 124 | P56: 7 | Q56: 0 | R56: 97 | S56: 81 | T56: 38 | U56: 7 | V56: 1275 | W56: 58.83710198
A57: CANTÓN 7 GOLFITO | B57: 57 | C57: 25019 | D57: 7624 | E57: 30.47284064 | F57: 7382 | G57: 0 | H57: 2197 | I57: 0 | J57: 0 | K57: 0 | L57: 0 | M57: 0 | N57: 2838 | O57: 2347 | P57: 0 | Q57: 0 | R57: 0 | S57: 0 | T57: 199 | U57: 43 | V57: 17395 | W57: 69.52715936
A58: GOLFITO | B58: 16 | C58: 7929 | D58: 2504 | E58: 31.58027494 | F58: 2448 | G58: 0 | H58: 832 | I58: 0 | J58: 0 | K58: 0 | L58: 0 | M58: 0 | N58: 935 | O58: 681 | P58: 0 | Q58: 0 | R58: 0 | S58: 0 | T58: 43 | U58: 13 | V58: 5425 | W58: 68.41972506
A59: PUERTO JIMÉNEZ | B59: 9 | C59: 4902 | D59: 1774 | E59: 36.18931049 | F59: 1707 | G59: 0 | H59: 597 | I59: 0 | J59: 0 | K59: 0 | L59: 0 | M59: 0 | N59: 658 | O59: 452 | P59: 0 | Q59: 0 | R59: 0 | S59: 0 | T59: 59 | U59: 8 | V59: 3128 | W59: 63.81068951
A60: GUAYCARÁ | B60: 18 | C60: 8448 | D60: 2156 | E60: 25.52083333 | F60: 2087 | G60: 0 | H60: 339 | I60: 0 | J60: 0 | K60: 0 | L60: 0 | M60: 0 | N60: 984 | O60: 764 | P60: 0 | Q60: 0 | R60: 0 | S60: 0 | T60: 58 | U60: 11 | V60: 6292 | W60: 74.47916667
A61: PAVÓN | B61: 14 | C61: 3740 | D61: 1190 | E61: 31.81818182 | F61: 1140 | G61: 0 | H61: 429 | I61: 0 | J61: 0 | K61: 0 | L61: 0 | M61: 0 | N61: 261 | O61: 450 | P61: 0 | Q61: 0 | R61: 0 | S61: 0 | T61: 39 | U61: 11 | V61: 2550 | W61: 68.18181818
A62: CANTÓN 8 COTO BRUS | B62: 64 | C62: 26188 | D62: 8617 | E62: 32.90438369 | F62: 8339 | G62: 0 | H62: 1386 | I62: 0 | J62: 0 | K62: 0 | L62: 0 | M62: 0 | N62: 2056 | O62: 272 | P62: 0 | Q62: 0 | R62: 0 | S62: 4625 | T62: 220 | U62: 58 | V62: 17571 | W62: 67.09561631
A63: SAN VITO | B63: 24 | C63: 10624 | D63: 3543 | E63: 33.34902108 | F63: 3469 | G63: 0 | H63: 332 | I63: 0 | J63: 0 | K63: 0 | L63: 0 | M63: 0 | N63: 669 | O63: 47 | P63: 0 | Q63: 0 | R63: 0 | S63: 2421 | T63: 51 | U63: 23 | V63: 7081 | W63: 66.65097892
A64: SABALITO | B64: 16 | C64: 6908 | D64: 2026 | E64: 29.328315 | F64: 1968 | G64: 0 | H64: 103 | I64: 0 | J64: 0 | K64: 0 | L64: 0 | M64: 0 | N64: 766 | O64: 180 | P64: 0 | Q64: 0 | R64: 0 | S64: 919 | T64: 45 | U64: 13 | V64: 4882 | W64: 70.671685
A65: AGUA BUENA | B65: 10 | C65: 4401 | D65: 1499 | E65: 34.06044081 | F65: 1427 | G65: 0 | H65: 619 | I65: 0 | J65: 0 | K65: 0 | L65: 0 | M65: 0 | N65: 236 | O65: 21 | P65: 0 | Q65: 0 | R65: 0 | S65: 551 | T65: 62 | U65: 10 | V65: 2902 | W65: 65.93955919
A66: LIMONCITO | B66: 8 | C66: 2540 | D66: 841 | E66: 33.11023622 | F66: 803 | G66: 0 | H66: 242 | I66: 0 | J66: 0 | K66: 0 | L66: 0 | M66: 0 | N66: 121 | O66: 20 | P66: 0 | Q66: 0 | R66: 0 | S66: 420 | T66: 32 | U66: 6 | V66: 1699 | W66: 66.88976378
A67: PITTIER | B67: 6 | C67: 1715 | D67: 708 | E67: 41.28279883 | F67: 672 | G67: 0 | H67: 90 | I67: 0 | J67: 0 | K67: 0 | L67: 0 | M67: 0 | N67: 264 | O67: 4 | P67: 0 | Q67: 0 | R67: 0 | S67: 314 | T67: 30 | U67: 6 | V67: 1007 | W67: 58.71720117
A68: CANTÓN 9 PARRITA | B68: 30 | C68: 9776 | D68: 5653 | E68: 57.82528642 | F68: 5499 | G68: 0 | H68: 0 | I68: 0 | J68: 0 | K68: 0 | L68: 0 | M68: 980 | N68: 1521 | O68: 782 | P68: 0 | Q68: 0 | R68: 1099 | S68: 1117 | T68: 125 | U68: 29 | V68: 4123 | W68: 42.17471358
A69: PARRITA | B69: 30 | C69: 9776 | D69: 5653 | E69: 57.82528642 | F69: 5499 | G69: 0 | H69: 0 | I69: 0 | J69: 0 | K69: 0 | L69: 0 | M69: 980 | N69: 1521 | O69: 782 | P69: 0 | Q69: 0 | R69: 1099 | S69: 1117 | T69: 125 | U69: 29 | V69: 4123 | W69: 42.17471358
A70: CANTÓN 10 CORREDORES | B70: 56 | C70: 27936 | D70: 6266 | E70: 22.42983963 | F70: 6057 | G70: 0 | H70: 0 | I70: 0 | J70: 123 | K70: 0 | L70: 0 | M70: 835 | N70: 2352 | O70: 221 | P70: 0 | Q70: 0 | R70: 1608 | S70: 918 | T70: 169 | U70: 40 | V70: 21670 | W70: 77.57016037
A71: CORREDOR | B71: 27 | C71: 12581 | D71: 2980 | E71: 23.68651141 | F71: 2903 | G71: 0 | H71: 0 | I71: 0 | J71: 91 | K71: 0 | L71: 0 | M71: 667 | N71: 956 | O71: 53 | P71: 0 | Q71: 0 | R71: 581 | S71: 555 | T71: 67 | U71: 10 | V71: 9601 | W71: 76.31348859
A72: LA CUESTA | B72: 4 | C72: 2632 | D72: 454 | E72: 17.24924012 | F72: 433 | G72: 0 | H72: 0 | I72: 0 | J72: 9 | K72: 0 | L72: 0 | M72: 19 | N72: 186 | O72: 25 | P72: 0 | Q72: 0 | R72: 135 | S72: 59 | T72: 17 | U72: 4 | V72: 2178 | W72: 82.75075988
A73: CANOAS | B73: 13 | C73: 6847 | D73: 1342 | E73: 19.59982474 | F73: 1300 | G73: 0 | H73: 0 | I73: 0 | J73: 9 | K73: 0 | L73: 0 | M73: 69 | N73: 513 | O73: 114 | P73: 0 | Q73: 0 | R73: 453 | S73: 142 | T73: 35 | U73: 7 | V73: 5505 | W73: 80.40017526
A74: LAUREL | B74: 12 | C74: 5876 | D74: 1490 | E74: =+D74/C74*100 -> 25.35738598 | F74: 1421 | G74: 0 | H74: 0 | I74: 0 | J74: 14 | K74: 0 | L74: 0 | M74: 80 | N74: 697 | O74: 29 | P74: 0 | Q74: 0 | R74: 439 | S74: 162 | T74: 50 | U74: 19 | V74: =+C74-D74 -> 4386 | W74: =+V74/C74*100 -> 74.64261402
A75: CANTÓN 11 GARABITO | B75: 18 | C75: 8716 | D75: 3406 | E75: =+D75/C75*100 -> 39.07755851 | F75: 3357 | G75: 0 | H75: 557 | I75: 0 | J75: 0 | K75: 0 | L75: 884 | M75: 0 | N75: 1916 | O75: 0 | P75: 0 | Q75: 0 | R75: 0 | S75: 0 | T75: 38 | U75: 11 | V75: =+C75-D75 -> 5310 | W75: =+V75/C75*100 -> 60.92244149
A76: JACÓ | B76: 11 | C76: 5558 | D76: 2305 | E76: =+D76/C76*100 -> 41.47175243 | F76: 2279 | G76: 0 | H76: 354 | I76: 0 | J76: 0 | K76: 0 | L76: 412 | M76: 0 | N76: 1513 | O76: 0 | P76: 0 | Q76: 0 | R76: 0 | S76: 0 | T76: 21 | U76: 5 | V76: =+C76-D76 -> 3253 | W76: =+V76/C76*100 -> 58.52824757
A77: TÁRCOLES | B77: 7 | C77: 3158 | D77: 1101 | E77: =+D77/C77*100 -> 34.86383787 | F77: 1078 | G77: 0 | H77: 203 | I77: 0 | J77: 0 | K77: 0 | L77: 472 | M77: 0 | N77: 403 | O77: 0 | P77: 0 | Q77: 0 | R77: 0 | S77: 0 | T77: 17 | U77: 6 | V77: =+C77-D77 -> 2057 | W77: =+V77/C77*100 -> 65.13616213
A79: FUENTE: Tribunal Supremo de Elecciones.

Sheet 2.15
A2: CUADRO 2.15 PROVINCIA LIMÓN: JUNTAS, ELECTORADO, PARTICIPACIÓN, VOTOS POR PARTIDO, NULOS, BLANCOS, Y ABSTENCIONISMO PARA ALCALDÍAS
A3: SEGÚN CANTÓN Y DISTRITO ADMINISTRATIVO, ELECCIONES MUNICIPALES DICIEMBRE 2010
A5: CANTÓN Y DISTRITO ADMINISTRATIVO | B5: JUNTAS | C5: ELECTORADO | D5: VOTOS RECIBIDOS | T5: ABSTENCIONISMO
D6: TOTAL GENERAL | E6: % PARTICIPACIÓN | F6: VOTOS POR PARTIDO | R6: VOTOS NULOS | S6: VOTOS BLANCOS | T6: ABSOLUTO | U6: %
B7: JUNTAS | F7: TOTAL | G7: ACCESIBILIDAD SIN EXCLUSIÓN | H7: ACCIÓN CANTONAL SIQUIRRES INDEPENDIENTE | I7: ACCIÓN CIUDADANA | J7: FRENTE AMPLIO | K7: INTEGRACIÓN NACIONAL | L7: LIBERACIÓN NACIONAL | M7: MOVIMIENTO DE TRABAJADORES Y CAMPESINOS | N7: MOVIMIENTO LIBERTARIO | O7: RENOVACIÓN COSTARRICENSE | P7: TALAMANCA UNIDA | Q7: UNIDAD SOCIAL CRISTIANA
A9: LIMÓN | B9: 430 | C9: 228491 | D9: 64171 | E9: =+D9/C9*100 -> 28.0846948 | F9: 61811 | G9: 2938 | H9: 773 | I9: 6277 | J9: 4013 | K9: 84 | L9: 25007 | M9: 1208 | N9: 7834 | O9: 4437 | P9: 219 | Q9: 9021 | R9: 2006 | S9: 354 | T9: =+C9-D9 -> 164320 | U9: =+T9/C9*100 -> 71.9153052
A10: CANTÓN 1 LIMÓN | B10: 114 | C10: 61603 | D10: 14768 | E10: =+D10/C10*100 -> 23.97285846 | F10: 14122 | G10: 287 | H10: 0 | I10: 1211 | J10: 1154 | K10: 84 | L10: 4195 | M10: 0 | N10: 1683 | O10: 1563 | P10: 0 | Q10: 3945 | R10: 556 | S10: 90 | T10: =+C10-D10 -> 46835 | U10: =+T10/C10*100 -> 76.02714154
A11: LIMÓN | B11: 69 | C11: 43894 | D11: 9390 | E11: 21.39244544 | F11: 9160 | G11: 209 | H11: 0 | I11: 815 | J11: 886 | K11: 63 | L11: 2591 | M11: 0 | N11: 961 | O11: 1376 | P11: 0 | Q11: 2259 | R11: 189 | S11: 41 | T11: 34504 | U11: 78.60755456
A12: VALLE LA ESTRELLA | B12: 24 | C12: 8847 | D12: 2775 | E12: 31.36656494 | F12: 2470 | G12: 33 | H12: 0 | I12: 169 | J12: 145 | K12: 9 | L12: 737 | M12: 0 | N12: 421 | O12: 84 | P12: 0 | Q12: 872 | R12: 282 | S12: 23 | T12: 6072 | U12: 68.63343506
A13: RÍO BLANCO | B13: 10 | C13: 4584 | D13: 1254 | E13: 27.35602094 | F13: 1199 | G13: 32 | H13: 0 | I13: 139 | J13: 34 | K13: 8 | L13: 326 | M13: 0 | N13: 197 | O13: 50 | P13: 0 | Q13: 413 | R13: 48 | S13: 7 | T13: 3330 | U13: 72.64397906
A14: MATAMA | B14: 11 | C14: 4278 | D14: 1349 | E14: 31.53342683 | F14: 1293 | G14: 13 | H14: 0 | I14: 88 | J14: 89 | K14: 4 | L14: 541 | M14: 0 | N14: 104 | O14: 53 | P14: 0 | Q14: 401 | R14: 37 | S14: 19 | T14: 2929 | U14: 68.46657317
A15: CANTÓN 2 POCOCÍ | B15: 133 | C15: 75016 | D15: 18364 | E15: 24.48011091 | F15: 17822 | G15: 0 | H15: 0 | I15: 0 | J15: 852 | K15: 0 | L15: 10212 | M15: 1208 | N15: 5550 | O15: 0 | P15: 0 | Q15: 0 | R15: 451 | S15: 91 | T15: 56652 | U15: 75.51988909
A16: GUÁPILES | B16: 37 | C16: 23472 | D16: 5997 | E16: 25.549591 | F16: 5869 | G16: 0 | H16: 0 | I16: 0 | J16: 106 | K16: 0 | L16: 4085 | M16: 109 | N16: 1569 | O16: 0 | P16: 0 | Q16: 0 | R16: 105 | S16: 23 | T16: 17475 | U16: 74.450409
A17: JIMÉNEZ | B17: 11 | C17: 5622 | D17: 1630 | E17: 28.99324084 | F17: 1597 | G17: 0 | H17: 0 | I17: 0 | J17: 27 | K17: 0 | L17: 959 | M17: 32 | N17: 579 | O17: 0 | P17: 0 | Q17: 0 | R17: 29 | S17: 4 | T17: 3992 | U17: 71.00675916
A18: RITA | B18: 29 | C18: 15186 | D18: 3502 | E18: 23.06071382 | F18: 3376 | G18: 0 | H18: 0 | I18: 0 | J18: 374 | K18: 0 | L18: 1654 | M18: 163 | N18: 1185 | O18: 0 | P18: 0 | Q18: 0 | R18: 111 | S18: 15 | T18: 11684 | U18: 76.93928618
A19: ROXANA | B19: 19 | C19: 8852 | D19: 2089 | E19: 23.59918662 | F19: 2002 | G19: 0 | H19: 0 | I19: 0 | J19: 94 | K19: 0 | L19: 1047 | M19: 106 | N19: 755 | O19: 0 | P19: 0 | Q19: 0 | R19: 73 | S19: 14 | T19: 6763 | U19: 76.40081338
A20: CARIARI | B20: 33 | C20: 20555 | D20: 4824 | E20: 23.4687424 | F20: 4667 | G20: 0 | H20: 0 | I20: 0 | J20: 248 | K20: 0 | L20: 2266 | M20: 784 | N20: 1369 | O20: 0 | P20: 0 | Q20: 0 | R20: 126 | S20: 31 | T20: 15731 | U20: 76.5312576
A21: COLORADO | B21: 4 | C21: 1329 | D21: 322 | E21: 24.22874342 | F21: 311 | G21: 0 | H21: 0 | I21: 0 | J21: 3 | K21: 0 | L21: 201 | M21: 14 | N21: 93 | O21: 0 | P21: 0 | Q21: 0 | R21: 7 | S21: 4 | T21: 1007 | U21: 75.77125658
A22: CANTÓN 3 SIQUIRRES | B22: 69 | C22: 34544 | D22: 9420 | E22: 27.26956925 | F22: 9007 | G22: 2651 | H22: 773 | I22: 615 | J22: 877 | K22: 0 | L22: 2233 | M22: 0 | N22: 412 | O22: 0 | P22: 0 | Q22: 1446 | R22: 358 | S22: 55 | T22: 25124 | U22: 72.73043075
A23: SIQUIRRES | B23: 38 | C23: 20632 | D23: 5271 | E23: 25.5476929 | F23: 5082 | G23: 1739 | H23: 407 | I23: 170 | J23: 735 | K23: 0 | L23: 1141 | M23: 0 | N23: 164 | O23: 0 | P23: 0 | Q23: 726 | R23: 164 | S23: 25 | T23: 15361 | U23: 74.4523071
A24: PACUARITO | B24: 10 | C24: 4644 | D24: 1231 | E24: 26.50732127 | F24: 1158 | G24: 454 | H24: 133 | I24: 63 | J24: 37 | K24: 0 | L24: 329 | M24: 0 | N24: 45 | O24: 0 | P24: 0 | Q24: 97 | R24: 67 | S24: 6 | T24: 3413 | U24: 73.49267873
A25: FLORIDA | B25: 5 | C25: 1179 | D25: 441 | E25: 37.40458015 | F25: 423 | G25: 53 | H25: 23 | I25: 131 | J25: 15 | K25: 0 | L25: 128 | M25: 0 | N25: 0 | O25: 0 | P25: 0 | Q25: 73 | R25: 15 | S25: 3 | T25: 738 | U25: 62.59541985
A26: GERMANIA | B26: 3 | C26: 1826 | D26: 605 | E26: 33.13253012 | F26: 570 | G26: 99 | H26: 83 | I26: 68 | J26: 24 | K26: 0 | L26: 204 | M26: 0 | N26: 26 | O26: 0 | P26: 0 | Q26: 66 | R26: 28 | S26: 7 | T26: 1221 | U26: 66.86746988
A27: EL CAIRO | B27: 8 | C27: 3618 | D27: 1030 | E27: 28.46876727 | F27: 968 | G27: 178 | H27: 62 | I27: 80 | J27: 29 | K27: 0 | L27: 203 | M27: 0 | N27: 151 | O27: 0 | P27: 0 | Q27: 265 | R27: 54 | S27: 8 | T27: 2588 | U27: 71.53123273
A28: ALEGRÍA | B28: 5 | C28: 2645 | D28: 842 | E28: 31.83364839 | F28: 806 | G28: 128 | H28: 65 | I28: 103 | J28: 37 | K28: 0 | L28: 228 | M28: 0 | N28: 26 | O28: 0 | P28: 0 | Q28: 219 | R28: 30 | S28: 6 | T28: 1803 | U28: 68.16635161
A29: CANTÓN 4 TALAMANCA | B29: 36 | C29: 15458 | D29: 7214 | E29: 46.66839177 | F29: 6919 | G29: 0 | H29: 0 | I29: 387 | J29: 0 | K29: 0 | L29: 4185 | M29: 0 | N29: 151 | O29: 0 | P29: 219 | Q29: 1977 | R29: 249 | S29: 46 | T29: 8244 | U29: 53.33160823
A30: BRATSI | B30: 10 | C30: 4264 | D30: 2207 | E30: 51.75891182 | F30: 2149 | G30: 0 | H30: 0 | I30: 150 | J30: 0 | K30: 0 | L30: 1506 | M30: 0 | N30: 3 | O30: 0 | P30: 39 | Q30: 451 | R30: 42 | S30: 16 | T30: 2057 | U30: 48.24108818
A31: SIXAOLA | B31: 8 | C31: 3521 | D31: 1626 | E31: 46.18006248 | F31: 1564 | G31: 0 | H31: 0 | I31: 46 | J31: 0 | K31: 0 | L31: 936 | M31: 0 | N31: 8 | O31: 0 | P31: 43 | Q31: 531 | R31: 51 | S31: 11 | T31: 1895 | U31: 53.81993752
A32: CAHUITA | B32: 9 | C32: 4066 | D32: 1699 | E32: 41.78553861 | F32: 1582 | G32: 0 | H32: 0 | I32: 66 | J32: 0 | K32: 0 | L32: 906 | M32: 0 | N32: 137 | O32: 0 | P32: 92 | Q32: 381 | R32: 107 | S32: 10 | T32: 2367 | U32: 58.21446139
A33: TELIRE | B33: 9 | C33: 3607 | D33: 1682 | E33: 46.63154976 | F33: 1624 | G33: 0 | H33: 0 | I33: 125 | J33: 0 | K33: 0 | L33: 837 | M33: 0 | N33: 3 | O33: 0 | P33: 45 | Q33: 614 | R33: 49 | S33: 9 | T33: 1925 | U33: 53.36845024
A34: CANTÓN 5 MATINA | B34: 35 | C34: 18313 | D34: 7848 | E34: 42.8548026 | F34: 7570 | G34: 0 | H34: 0 | I34: 2503 | J34: 438 | K34: 0 | L34: 1336 | M34: 0 | N34: 38 | O34: 2155 | P34: 0 | Q34: 1100 | R34: 234 | S34: 44 | T34: 10465 | U34: 57.1451974
A35: MATINA | B35: 11 | C35: 4591 | D35: 2136 | E35: 46.52581137 | F35: 2036 | G35: 0 | H35: 0 | I35: 961 | J35: 66 | K35: 0 | L35: 393 | M35: 0 | N35: 8 | O35: 426 | P35: 0 | Q35: 182 | R35: 87 | S35: 13 | T35: 2455 | U35: 53.47418863
A36: BATÁN | B36: 16 | C36: 8976 | D36: 3775 | E36: 42.05659537 | F36: 3645 | G36: 0 | H36: 0 | I36: 1030 | J36: 356 | K36: 0 | L36: 378 | M36: 0 | N36: 21 | O36: 1085 | P36: 0 | Q36: 775 | R36: 109 | S36: 21 | T36: 5201 | U36: 57.94340463
A37: CARRANDI | B37: 8 | C37: 4746 | D37: 1937 | E37: 40.81331648 | F37: 1889 | G37: 0 | H37: 0 | I37: 512 | J37: 16 | K37: 0 | L37: 565 | M37: 0 | N37: 9 | O37: 644 | P37: 0 | Q37: 143 | R37: 38 | S37: 10 | T37: 2809 | U37: 59.18668352
A38: CANTÓN 6 GUÁCIMO | B38: 43 | C38: 23557 | D38: 6557 | E38: 27.83461392 | F38: 6371 | G38: 0 | H38: 0 | I38: 1561 | J38: 692 | K38: 0 | L38: 2846 | M38: 0 | N38: 0 | O38: 719 | P38: 0 | Q38: 553 | R38: 158 | S38: 28 | T38: 17000 | U38: 72.16538608
A39: GUÁCIMO | B39: 18 | C39: 10434 | D39: 2946 | E39: 28.2346176 | F39: 2869 | G39: 0 | H39: 0 | I39: 1061 | J39: 177 | K39: 0 | L39: 1249 | M39: 0 | N39: 0 | O39: 166 | P39: 0 | Q39: 216 | R39: 68 | S39: 9 | T39: 7488 | U39: 71.7653824
A40: MERCEDES | B40: 2 | C40: 774 | D40: 278 | E40: 35.91731266 | F40: 272 | G40: 0 | H40: 0 | I40: 63 | J40: 75 | K40: 0 | L40: 101 | M40: 0 | N40: 0 | O40: 25 | P40: 0 | Q40: 8 | R40: 6 | S40: 0 | T40: 496 | U40: 64.08268734
A41: POCORA | B41: 8 | C41: 3823 | D41: 831 | E41: 21.73685587 | F41: 800 | G41: 0 | H41: 0 | I41: 87 | J41: 41 | K41: 0 | L41: 454 | M41: 0 | N41: 0 | O41: 60 | P41: 0 | Q41: 158 | R41: 21 | S41: 10 | T41: 2992 | U41: 78.26314413
A42: RÍO JIMÉNEZ | B42: 9 | C42: 5150 | D42: 1458 | E42: 28.31067961 | F42: 1414 | G42: 0 | H42: 0 | I42: 206 | J42: 128 | K42: 0 | L42: 526 | M42: 0 | N42: 0 | O42: 412 | P42: 0 | Q42: 142 | R42: 36 | S42: 8 | T42: 3692 | U42: 71.68932039
A43: DUACARÍ | B43: 6 | C43: 3376 | D43: 1044 | E43: 30.92417062 | F43: 1016 | G43: 0 | H43: 0 | I43: 144 | J43: 271 | K43: 0 | L43: 516 | M43: 0 | N43: 0 | O43: 56 | P43: 0 | Q43: 29 | R43: 27 | S43: 1 | T43: 2332 | U43: 69.07582938
A45: FUENTE: Tribunal Supremo de Elecciones.

Sheet 3.1
A2: CUADRO 3.1 COSTA RICA: JUNTAS, ELECTORADO, VOTOS POR PARTIDO, NULOS Y BLANCOS, PARA SÍNDICOS Y CONCEJALES
A3: POR PROVINCIA, ELECCIONES MUNICIPALES DICIEMBRE 2010
A5: JUNTAS, ELECTORADO, VOTOS POR PARTIDO, NULOS Y BLANCOS Y ABSTENCIONISMO | B5: PROVINCIA
B6: TOTAL | C6: SAN JOSÉ | D6: ALAJUELA | E6: CARTAGO | F6: HEREDIA | G6: GUANACASTE | H6: PUNTARENAS | I6: LIMÓN
A8: JUNTAS | B8: 5249 | C8: 1705 | D8: 993 | E8: 581 | F8: 468 | G8: 471 | H8: 601 | I8: 430
A9: ELECTORADO | B9: 2865478 | C9: 1016678 | D9: 533285 | E9: 334473 | F9: 283771 | G9: 203614 | H9: 265166 | I9: 228491
A10: VOTOS RECIBIDOS | B10: 799190 | C10: 235842 | D10: 161334 | E10: 92237 | F10: 75246 | G10: 81522 | H10: 88839 | I10: 64170
A11: VOTOS POR PARTIDO | B11: 780391 | C11: 231482 | D11: 158070 | E11: 89962 | F11: 73789 | G11: 79264 | H11: 86167 | I11: 61657
A12: ACCESIBILIDAD SIN EXCLUSIÓN | B12: 26864 | C12: 8780 | D12: 4873 | E12: 1065 | F12: 1610 | G12: 5254 | H12: 2610 | I12: 2672
A13: ACCIÓN CANTONAL SIQUIRRES INDEPENDIENTE | B13: 833 | C13: 0 | D13: 0 | E13: 0 | F13: 0 | G13: 0 | H13: 0 | I13: 833
A14: ACCIÓN CIUDADANA | B14: 98519 | C14: 36544 | D14: 17066 | E14: 9796 | F14: 7413 | G14: 14743 | H14: 6837 | I14: 6120
A15: ACCIÓN NARANJEÑA | B15: 956 | C15: 0 | D15: 956 | E15: 0 | F15: 0 | G15: 0 | H15: 0 | I15: 0
A16: ACCIÓN QUEPEÑA | B16: 332 | C16: 0 | D16: 0 | E16: 0 | F16: 0 | G16: 0 | H16: 332 | I16: 0
A17: ACUERDO CANTONAL DESAMPARADEÑO | B17: 1950 | C17: 1950 | D17: 0 | E17: 0 | F17: 0 | G17: 0 | H17: 0 | I17: 0
A18: ALIANZA PATRIÓTICA | B18: 2218 | C18: 403 | D18: 500 | E18: 0 | F18: 0 | G18: 0 | H18: 1315 | I18: 0
A19: AUTÉNTICO LABRADOR DE CORONADO | B19: 1747 | C19: 1747 | D19: 0 | E19: 0 | F19: 0 | G19: 0 | H19: 0 | I19: 0
A20: AUTÓNOMO OROMONTANO | B20: 875 | C20: 0 | D20: 0 | E20: 0 | F20: 0 | G20: 0 | H20: 875 | I20: 0
A21: CÍVICO DE TIBAS FUENTEOVEJUNA | B21: 2228 | C21: 2228 | D21: 0 | E21: 0 | F21: 0 | G21: 0 | H21: 0 | I21: 0
A22: COALICIÓN BARVA UNIDA | B22: 952 | C22: 0 | D22: 0 | E22: 0 | F22: 952 | G22: 0 | H22: 0 | I22: 0
A23: COALICIÓN CARTAGO UNIDO | B23: 11350 | C23: 0 | D23: 0 | E23: 11350 | F23: 0 | G23: 0 | H23: 0 | I23: 0
A24: COALICIÓN MONTES DE OCA UNIDA | B24: 1309 | C24: 1309 | D24: 0 | E24: 0 | F24: 0 | G24: 0 | H24: 0 | I24: 0
A25: COALICIÓN PARTIDO ALIANZA ZARCEREÑA | B25: 697 | C25: 0 | D25: 697 | E25: 0 | F25: 0 | G25: 0 | H25: 0 | I25: 0
A26: COALICIÓN RAMONENSE | B26: 4444 | C26: 0 | D26: 4444 | E26: 0 | F26: 0 | G26: 0 | H26: 0 | I26: 0
A27: COALICIÓN UNIDOS POR SAN CARLOS | B27: 13365 | C27: 0 | D27: 13365 | E27: 0 | F27: 0 | G27: 0 | H27: 0 | I27: 0
A28: COALICIÓN UNIÓN LIBERIANA | B28: 1322 | C28: 0 | D28: 0 | E28: 0 | F28: 0 | G28: 1322 | H28: 0 | I28: 0
A29: CURRIDABAT SIGLO XXI | B29: 7455 | C29: 7455 | D29: 0 | E29: 0 | F29: 0 | G29: 0 | H29: 0 | I29: 0
A30: DEL SOL | B30: 2644 | C30: 2644 | D30: 0 | E30: 0 | F30: 0 | G30: 0 | H30: 0 | I30: 0
A31: EL PUENTE Y LOS CAMINOS DE MORA | B31: 1576 | C31: 1576 | D31: 0 | E31: 0 | F31: 0 | G31: 0 | H31: 0 | I31: 0
A32: FRENTE AMPLIO | B32: 5834 | C32: 972 | D32: 98 | E32: 580 | F32: 0 | G32: 0 | H32: 0 | I32: 4184
A33: GARABITO ECOLÓGICO | B33: 906 | C33: 0 | D33: 0 | E33: 0 | F33: 0 | G33: 0 | H33: 906 | I33: 0
A34: GOICOECHEA EN ACCIÓN | B34: 2494 | C34: 2494 | D34: 0 | E34: 0 | F34: 0 | G34: 0 | H34: 0 | I34: 0
A35: INDEPENDIENTE BELEMITA | B35: 886 | C35: 0 | D35: 0 | E35: 0 | F35: 886 | G35: 0 | H35: 0 | I35: 0
A36: INTEGRACIÓN BARBAREÑA | B36: 867 | C36: 0 | D36: 0 | E36: 0 | F36: 867 | G36: 0 | H36: 0 | I36: 0
A37: INTEGRACIÓN NACIONAL | B37: 9629 | C37: 2601 | D37: 1385 | E37: 0 | F37: 0 | G37: 2954 | H37: 2585 | I37: 104
A38: LIBERACIÓN NACIONAL | B38: 335531 | C38: 96652 | D38: 72210 | E38: 40215 | F38: 33809 | G38: 32779 | H38: 35742 | I38: 24124
A39: MOVIMIENTO AVANCE SANTO DOMINGO | B39: 2273 | C39: 0 | D39: 0 | E39: 0 | F39: 2273 | G39: 0 | H39: 0 | I39: 0
A40: MOVIMIENTO DE TRABAJADORES Y CAMPESINOS | B40: 1314 | C40: 0 | D40: 0 | E40: 0 | F40: 0 | G40: 0 | H40: 0 | I40: 1314
A41: MOVIMIENTO LIBERTARIO | B41: 77767 | C41: 17604 | D41: 13899 | E41: 6757 | F41: 11302 | G41: 8047 | H41: 11651 | I41: 8507
A42: ORGANIZACIÓN LABORISTA DE AGUIRRE | B42: 59 | C42: 0 | D42: 0 | E42: 0 | F42: 0 | G42: 0 | H42: 59 | I42: 0
A43: ORGANIZACIÓN SOCIAL ACTIVA | B43: 1062 | C43: 0 | D43: 0 | E43: 0 | F43: 0 | G43: 0 | H43: 1062 | I43: 0
A44: RENOVACIÓN COSTARRICENSE | B44: 20735 | C44: 9479 | D44: 1527 | E44: 0 | F44: 709 | G44: 0 | H44: 4651 | I44: 4369
A45: RENOVEMOS ALAJUELA | B45: 8144 | C45: 0 | D45: 8144 | E45: 0 | F45: 0 | G45: 0 | H45: 0 | I45: 0
A46: RESTAURACIÓN HEREDIANA | B46: 854 | C46: 0 | D46: 0 | E46: 0 | F46: 854 | G46: 0 | H46: 0 | I46: 0
A47: TALAMANCA UNIDA | B47: 240 | C47: 0 | D47: 0 | E47: 0 | F47: 0 | G47: 0 | H47: 0 | I47: 240
A48: TARRAZÚ PRIMERO | B48: 1084 | C48: 1084 | D48: 0 | E48: 0 | F48: 0 | G48: 0 | H48: 0 | I48: 0
A49: TODO POR FLORES | B49: 1808 | C49: 0 | D49: 0 | E49: 0 | F49: 1808 | G49: 0 | H49: 0 | I49: 0
A50: TRANSPARENCIA CARTAGINÉS | B50: 850 | C50: 0 | D50: 0 | E50: 850 | F50: 0 | G50: 0 | H50: 0 | I50: 0
A51: ÚNICO ABANGAREÑO | B51: 1119 | C51: 0 | D51: 0 | E51: 0 | F51: 0 | G51: 1119 | H51: 0 | I51: 0
A52: UNIDAD SOCIAL CRISTIANA | B52: 109808 | C52: 31006 | D52: 12628 | E52: 15090 | F52: 11306 | G52: 13046 | H52: 17542 | I52: 9190
A53: UNIÓN AGRÍCOLA CARTAGINÉS | B53: 3353 | C53: 0 | D53: 0 | E53: 3353 | F53: 0 | G53: 0 | H53: 0 | I53: 0
A54: UNIÓN ATENIENSE | B54: 2077 | C54: 0 | D54: 2077 | E54: 0 | F54: 0 | G54: 0 | H54: 0 | I54: 0
A55: UNIÓN PALMAREÑA | B55: 2561 | C55: 0 | D55: 2561 | E55: 0 | F55: 0 | G55: 0 | H55: 0 | I55: 0
A56: UNIÓN POASEÑA | B56: 1640 | C56: 0 | D56: 1640 | E56: 0 | F56: 0 | G56: 0 | H56: 0 | I56: 0
A57: VERDE ECOLOGISTA | B57: 906 | C57: 0 | D57: 0 | E57: 906 | F57: 0 | G57: 0 | H57: 0 | I57: 0
A58: YUNTA PROGRESISTA ESCAZUCEÑA | B58: 4954 | C58: 4954 | D58: 0 | E58: 0 | F58: 0 | G58: 0 | H58: 0 | I58: 0
A59: VOTOS NULOS | B59: 14192 | C59: 3026 | D59: 2474 | E59: 1733 | F59: 1123 | G59: 1690 | H59: 2068 | I59: 2078
A60: VOTOS BLANCOS | B60: 4607 | C60: 1334 | D60: 790 | E60: 542 | F60: 334 | G60: 568 | H60: 604 | I60: 435
A62: FUENTE: Tribunal Supremo de Elecciones.

Sheet 3.2
A2: CUADRO 3.2 PROVINCIA SAN JOSÉ: JUNTAS, ELECTORADO, VOTOS POR PARTIDO, NULOS Y BLANCOS
A3: PARA SÍNDICOS Y CONCEJALES, POR CANTÓN, ELECCIONES MUNICIPALES DICIEMBRE 2010
A5: JUNTAS, ELECTORADO, VOTOS POR PARTIDO, NULOS Y BLANCOS Y ABSTENCIONISMO | B5: TOTAL | C5: CANTÓN
C6: SAN JOSÉ | D6: ESCAZÚ | E6: DESAMPARADOS | F6: PURISCAL | G6: TARRAZÚ | H6: ASERRÍ | I6: MORA | J6: GOICOECHEA | K6: SANTA ANA | L6: ALAJUELITA | M6: VÁZQUEZ DE CORONADO | N6: ACOSTA | O6: TIBÁS | P6: MORAVIA | Q6: MONTES DE OCA | R6: TURRUBARES | S6: DOTA | T6: CURRIDABAT | U6: PÉREZ ZELEDÓN | V6: LEÓN CORTÉS
A8: JUNTAS | B8: 1705 | C8: 342 | D8: 61 | E8: 233 | F8: 60 | G8: 25 | H8: 66 | I8: 37 | J8: 129 | K8: 45 | L8: 69 | M8: 68 | N8: 37 | O8: 84 | P8: 62 | Q8: 62 | R8: 15 | S8: 12 | T8: 68 | U8: 208 | V8: 22
A9: ELECTORADO | B9: 1016678 | C9: 225542 | D9: 40526 | E9: 144901 | F9: 24663 | G9: 10616 | H9: 37616 | I9: 17413 | J9: 85797 | K9: 27941 | L9: 44907 | M9: 45831 | N9: 14354 | O9: 55315 | P9: 40392 | Q9: 41135 | R9: 4187 | S9: 4836 | T9: 44286 | U9: 98271 | V9: 8149
A10: VOTOS RECIBIDOS | B10: 235842 | C10: 41401 | D10: 11033 | E10: 22758 | F10: 7824 | G10: 3845 | H10: 11004 | I10: 6150 | J10: 16060 | K10: 8515 | L10: 8702 | M10: 11987 | N10: 4965 | O10: 9985 | P10: 8389 | Q10: 8304 | R10: 2820 | S10: 2098 | T10: 10206 | U10: 35650 | V10: 4146
A11: VOTOS POR PARTIDO | B11: 231482 | C11: 40806 | D11: 10843 | E11: 22438 | F11: 7446 | G11: 3773 | H11: 10779 | I11: 6022 | J11: 15750 | K11: 8412 | L11: 8551 | M11: 11767 | N11: 4793 | O11: 9849 | P11: 8254 | Q11: 8214 | R11: 2767 | S11: 2053 | T11: 10024 | U11: 34910 | V11: 4031
A12: ACCESIBILIDAD SIN EXCLUSIÓN | B12: 8780 | C12: 6789 | D12: 0 | E12: 0 | F12: 0 | G12: 0 | H12: 0 | I12: 0 | J12: 837 | K12: 0 | L12: 0 | M12: 0 | N12: 0 | O12: 0 | P12: 1154 | Q12: 0 | R12: 0 | S12: 0 | T12: 0 | U12: 0 | V12: 0
A13: ACCIÓN CIUDADANA | B13: 36544 | C13: 7026 | D13: 0 | E13: 3291 | F13: 0 | G13: 0 | H13: 5147 | I13: 0 | J13: 2218 | K13: 0 | L13: 2488 | M13: 1487 | N13: 1439 | O13: 1990 | P13: 1814 | Q13: 1706 | R13: 0 | S13: 627 | T13: 629 | U13: 6682 | V13: 0
A14: ACUERDO CANTONAL DESAMPARADEÑO | B14: 1950 | C14: 0 | D14: 0 | E14: 1950 | F14: 0 | G14: 0 | H14: 0 | I14: 0 | J14: 0 | K14: 0 | L14: 0 | M14: 0 | N14: 0 | O14: 0 | P14: 0 | Q14: 0 | R14: 0 | S14: 0 | T14: 0 | U14: 0 | V14: 0
A15: ALIANZA PATRIÓTICA | B15: 403 | C15: 0 | D15: 0 | E15: 0 | F15: 0 | G15: 0 | H15: 0 | I15: 0 | J15: 0 | K15: 0 | L15: 0 | M15: 0 | N15: 0 | O15: 0 | P15: 403 | Q15: 0 | R15: 0 | S15: 0 | T15: 0 | U15: 0 | V15: 0
A16: AUTÉNTICO LABRADOR DE CORONADO | B16: 1747 | C16: 0 | D16: 0 | E16: 0 | F16: 0 | G16: 0 | H16: 0 | I16: 0 | J16: 0 | K16: 0 | L16: 0 | M16: 1747 | N16: 0 | O16: 0 | P16: 0 | Q16: 0 | R16: 0 | S16: 0 | T16: 0 | U16: 0 | V16: 0
A17: CÍVICO DE TIBAS FUENTEOVEJUNA | B17: 2228 | C17: 0 | D17: 0 | E17: 0 | F17: 0 | G17: 0 | H17: 0 | I17: 0 | J17: 0 | K17: 0 | L17: 0 | M17: 0 | N17: 0 | O17: 2228 | P17: 0 | Q17: 0 | R17: 0 | S17: 0 | T17: 0 | U17: 0 | V17: 0
A18: COALICIÓN MONTES DE OCA UNIDA | B18: 1309 | C18: 0 | D18: 0 | E18: 0 | F18: 0 | G18: 0 | H18: 0 | I18: 0 | J18: 0 | K18: 0 | L18: 0 | M18: 0 | N18: 0 | O18: 0 | P18: 0 | Q18: 1309 | R18: 0 | S18: 0 | T18: 0 | U18: 0 | V18: 0
A19: CURRIDABAT SIGLO XXI | B19: 7455 | C19: 0 | D19: 0 | E19: 0 | F19: 0 | G19: 0 | H19: 0 | I19: 0 | J19: 0 | K19: 0 | L19: 0 | M19: 0 | N19: 0 | O19: 0 | P19: 0 | Q19: 0 | R19: 0 | S19: 0 | T19: 7455 | U19: 0 | V19: 0
A20: DEL SOL | B20: 2644 | C20: 0 | D20: 0 | E20: 0 | F20: 0 | G20: 0 | H20: 0 | I20: 0 | J20: 0 | K20: 2644 | L20: 0 | M20: 0 | N20: 0 | O20: 0 | P20: 0 | Q20: 0 | R20: 0 | S20: 0 | T20: 0 | U20: 0 | V20: 0
A21: EL PUENTE Y LOS CAMINOS DE MORA | B21: 1576 | C21: 0 | D21: 0 | E21: 0 | F21: 0 | G21: 0 | H21: 0 | I21: 1576 | J21: 0 | K21: 0 | L21: 0 | M21: 0 | N21: 0 | O21: 0 | P21: 0 | Q21: 0 | R21: 0 | S21: 0 | T21: 0 | U21: 0 | V21: 0
A22: FRENTE AMPLIO | B22: 972 | C22: 0 | D22: 0 | E22: 0 | F22: 0 | G22: 0 | H22: 972 | I22: 0 | J22: 0 | K22: 0 | L22: 0 | M22: 0 | N22: 0 | O22: 0 | P22: 0 | Q22: 0 | R22: 0 | S22: 0 | T22: 0 | U22: 0 | V22: 0
A23: GOICOECHEA EN ACCIÓN | B23: 2494 | C23: 0 | D23: 0 | E23: 0 | F23: 0 | G23: 0 | H23: 0 | I23: 0 | J23: 2494 | K23: 0 | L23: 0 | M23: 0 | N23: 0 | O23: 0 | P23: 0 | Q23: 0 | R23: 0 | S23: 0 | T23: 0 | U23: 0 | V23: 0
A24: INTEGRACIÓN NACIONAL | B24: 2601 | C24: 2173 | D24: 0 | E24: 0 | F24: 0 | G24: 0 | H24: 212 | I24: 0 | J24: 146 | K24: 0 | L24: 0 | M24: 0 | N24: 0 | O24: 0 | P24: 70 | Q24: 0 | R24: 0 | S24: 0 | T24: 0 | U24: 0 | V24: 0
A25: LIBERACIÓN NACIONAL | B25: 96652 | C25: 22902 | D25: 3474 | E25: 10536 | F25: 4794 | G25: 1913 | H25: 4162 | I25: 3084 | J25: 4977 | K25: 4287 | L25: 2257 | M25: 4647 | N25: 3354 | O25: 3004 | P25: 2162 | Q25: 2327 | R25: 1495 | S25: 1188 | T25: 1940 | U25: 12295 | V25: 1854
A26: MOVIMIENTO LIBERTARIO | B26: 17604 | C26: 1761 | D26: 1447 | E26: 3028 | F26: 0 | G26: 0 | H26: 286 | I26: 0 | J26: 1810 | K26: 402 | L26: 0 | M26: 0 | N26: 0 | O26: 1196 | P26: 724 | Q26: 0 | R26: 0 | S26: 28 | T26: 0 | U26: 6248 | V26: 674
A27: RENOVACIÓN COSTARRICENSE | B27: 9479 | C27: 0 | D27: 783 | E27: 1562 | F27: 0 | G27: 0 | H27: 0 | I27: 0 | J27: 2511 | K27: 392 | L27: 634 | M27: 0 | N27: 0 | O27: 605 | P27: 635 | Q27: 2357 | R27: 0 | S27: 0 | T27: 0 | U27: 0 | V27: 0
A28: TARRAZÚ PRIMERO | B28: 1084 | C28: 0 | D28: 0 | E28: 0 | F28: 0 | G28: 1084 | H28: 0 | I28: 0 | J28: 0 | K28: 0 | L28: 0 | M28: 0 | N28: 0 | O28: 0 | P28: 0 | Q28: 0 | R28: 0 | S28: 0 | T28: 0 | U28: 0 | V28: 0
A29: UNIDAD SOCIAL CRISTIANA | B29: 31006 | C29: 155 | D29: 185 | E29: 2071 | F29: 2652 | G29: 776 | H29: 0 | I29: 1362 | J29: 757 | K29: 687 | L29: 3172 | M29: 3886 | N29: 0 | O29: 826 | P29: 1292 | Q29: 515 | R29: 1272 | S29: 210 | T29: 0 | U29: 9685 | V29: 1503
A30: YUNTA PROGRESISTA ESCAZUCEÑA | B30: 4954 | C30: 0 | D30: 4954 | E30: 0 | F30: 0 | G30: 0 | H30: 0 | I30: 0 | J30: 0 | K30: 0 | L30: 0 | M30: 0 | N30: 0 | O30: 0 | P30: 0 | Q30: 0 | R30: 0 | S30: 0 | T30: 0 | U30: 0 | V30: 0
A31: VOTOS NULOS | B31: 3026 | C31: 424 | D31: 165 | E31: 250 | F31: 136 | G31: 54 | H31: 145 | I31: 101 | J31: 240 | K31: 71 | L31: 122 | M31: 187 | N31: 77 | O31: 105 | P31: 105 | Q31: 68 | R31: 30 | S31: 22 | T31: 141 | U31: 505 | V31: 78
A32: VOTOS BLANCOS | B32: 1334 | C32: 171 | D32: 25 | E32: 70 | F32: 242 | G32: 18 | H32: 80 | I32: 27 | J32: 70 | K32: 32 | L32: 29 | M32: 33 | N32: 95 | O32: 31 | P32: 30 | Q32: 22 | R32: 23 | S32: 23 | T32: 41 | U32: 235 | V32: 37
A34: FUENTE: Tribunal Supremo de Elecciones.

Sheet 3.3
A2: CUADRO 3.3 PROVINCIA ALAJUELA: JUNTAS, ELECTORADO, VOTOS POR PARTIDO, NULOS Y BLANCOS
A3: PARA SÍNDICOS Y CONCEJALES, POR CANTÓN, ELECCIONES MUNICIPALES DICIEMBRE 2010
A5: JUNTAS, ELECTORADO, VOTOS POR PARTIDO, NULOS Y BLANCOS Y ABSTENCIONISMO | B5: TOTAL | C5: CANTÓN
